Workbook

Sheet Geral
AA17: 1
B36: ATENÇÃO: A ferramenta não está finalizada para uso completamente automatizado e segue em fase de desenvolvimento. Caso tenha interesse no desenvolvimento ou utilização dessa ferramenta, entre em contato por e-mail: fhcampos08@gmail.com

Sheet Informações da propriedade
A2: Nome da propriedade rural
A3: Cidade
A4: Estado
A5: Coordenadas
A6: Área total (ha)
A7: Área de produção
A8: Área de preservação
A9: Área irrigada (ha/ano)
A10: Empresa
A11: Culturas produzidas
A12: Precipitação Anual Média Local (mm)
A13: Classificação climática de Köppen
A14: Altitude local (m)
A15: Temperatura média anual

Sheet Captação Hídrica
B2: Existem quantas fontes de captação hídrica? | E2: Fonte 2 | H2: Fonte 3 | K2: Fonte 4 | N2: Fonte 5
B3: Tipo de captação | E3: Tipo de captação | H3: Tipo de captação | K3: Tipo de captação | N3: Tipo de captação
B4: =IF(OR(C3="",C3=Lista!A3),"Custo",IF(C3=Lista!$A$2,"Custo da Formação da Barragem","Custo da Perfuração do Poço")) -> Custo | E4: =IF(F3="","Custo",IF(F3=Lista!$A$2,"Custo da Formação da Barragem","Custo da Perfuração do Poço")) -> Custo | H4: =IF(I3="","Custo",IF(I3=Lista!$A$2,"Custo da Formação da Barragem","Custo da Perfuração do Poço")) -> Custo | K4: =IF(L3="","Custo",IF(L3=Lista!$A$2,"Custo da Formação da Barragem","Custo da Perfuração do Poço")) -> Custo | N4: =IF(O3="","Custo",IF(O3=Lista!$A$2,"Custo da Formação da Barragem","Custo da Perfuração do Poço")) -> Custo
B5: Mão de obra (R$) | E5: Mão de obra (R$) | H5: Mão de obra (R$) | K5: Mão de obra (R$) | N5: Mão de obra (R$)
B6: Materiais | E6: Materiais | H6: Materiais | K6: Materiais | N6: Materiais
B7: Vida útil esperada do projeto | E7: Vida útil esperada do projeto | H7: Vida útil esperada do projeto | K7: Vida útil esperada do projeto | N7: Vida útil esperada do projeto
B8: Outorga (m³/ano) | E8: Outorga (m³/ano) | H8: Outorga (m³/ano) | K8: Outorga (m³/ano) | N8: Outorga (m³/ano)
B9: Custo outorga (R$/m³) | E9: Custo outorga (R$/m³) | H9: Custo outorga (R$/m³) | K9: Custo outorga (R$/m³) | N9: Custo outorga (R$/m³)

Sheet Parâmetros técnicos médios (hidden)
A2: Vida útil de um sistema de Barragem

Sheet Casa de Bombas
B2: Quantidade de Moto-Bombas
B3: =IF(C2>1,"As bombas possuem a mesma especificação?*","") -> 
D4: Bomba 2 | E4: Bomba 3 | F4: Bomba 4 | G4: Bomba 5 | H4: Bomba 6 | I4: Bomba 7 | J4: Bomba 8 | K4: Bomba 9 | L4: Bomba 10 | M4: Bomba 11 | N4: Bomba 12 | O4: Bomba 13 | P4: Bomba 14 | Q4: Bomba 15 | R4: Bomba 16 | S4: Bomba 17 | T4: Bomba 18 | U4: Bomba 19 | V4: Bomba 20 | W4: Bomba 21 | X4: Bomba 22 | Y4: Bomba 23 | Z4: Bomba 24 | AA4: Bomba 25 | AB4: Bomba 26 | AC4: Bomba 27 | AD4: Bomba 28 | AE4: Bomba 29 | AF4: Bomba 30 | AG4: Bomba 31 | AH4: Bomba 32 | AI4: Bomba 33 | AJ4: Bomba 34 | AK4: Bomba 35 | AL4: Bomba 36 | AM4: Bomba 37 | AN4: Bomba 38 | AO4: Bomba 39 | AP4: Bomba 40 | AQ4: Bomba 41 | AR4: Bomba 42 | AS4: Bomba 43 | AT4: Bomba 44 | AU4: Bomba 45 | AV4: Bomba 46 | AW4: Bomba 47 | AX4: Bomba 48 | AY4: Bomba 49 | AZ4: Bomba 50 | BA4: Bomba 51 | BB4: Bomba 52 | BC4: Bomba 53 | BD4: Bomba 54 | BE4: Bomba 55 | BF4: Bomba 56 | BG4: Bomba 57 | BH4: Bomba 58 | BI4: Bomba 59 | BJ4: Bomba 60 | BK4: Bomba 61 | BL4: Bomba 62 | BM4: Bomba 63 | BN4: Bomba 64 | BO4: Bomba 65 | BP4: Bomba 66 | BQ4: Bomba 67 | BR4: Bomba 68 | BS4: Bomba 69 | BT4: Bomba 70 | BU4: Bomba 71 | BV4: Bomba 72 | BW4: Bomba 73 | BX4: Bomba 74 | BY4: Bomba 75 | BZ4: Bomba 76 | CA4: Bomba 77 | CB4: Bomba 78 | CC4: Bomba 79 | CD4: Bomba 80 | CE4: Bomba 81 | CF4: Bomba 82 | CG4: Bomba 83 | CH4: Bomba 84 | CI4: Bomba 85 | CJ4: Bomba 86 | CK4: Bomba 87 | CL4: Bomba 88 | CM4: Bomba 89 | CN4: Bomba 90 | CO4: Bomba 91 | CP4: Bomba 92 | CQ4: Bomba 93 | CR4: Bomba 94 | CS4: Bomba 95 | CT4: Bomba 96 | CU4: Bomba 97 | CV4: Bomba 98 | CW4: Bomba 99
B5: Potência (cv)
B6: Modelo
B7: Altura manométrica (m)
B8: Rendimento
B9: Lâmina total aplicada na safra
B10: Custo unitário por bomba (R$)
B11: Vida útil (anos)
B12: Não sei informar a vida útil (caixa)
B13: Custo da contrução da casa de bombas | E13: FALSE
B14: Mão de obra (R$)
B15: =IF(E13=TRUE,"-","Materiais") -> Materiais
B16: Vida útil da construção (anos)
B17: Energia elétrica
B18: Método de fornecimento de energia
B19: Consumo elétrico anual estimado (kWh/ano)
B20: =IF(C18<>"Própria (energia gerada na propriedade)","Custo da energia elétrica (R$/kWh)","Custo da venda de energia elétrica (R$/kWh)") -> Custo da energia elétrica (R$/kWh)
B21: Custo estimado com demanda contratada (R$/ano)

Sheet Reservatório
B2: Tipo de reservatório
B3: Área ocupada pelo reservatório
B4: Volume do reservatório
B5: Custo de construção do reservatório
B6: Mão de obra (R$)
B7: =IF(F6=TRUE,"-","Materiais") -> Materiais
B8: Distância do Reservatório à Casa de bombas
B9: Inclinação
B10: Custo de instalação da tubulação Bomba->Reservatório
B11: Mão de obra (R$)
B12: =IF(F11=TRUE,"-","Materiais") -> Materiais

Sheet Bombeamento
B2: Quantidade de Bombas Necessárias
B3: As bombas possuem a mesma especificação?
C4: Bomba 1 | D4: Bomba 2 | E4: Bomba 3 | F4: Bomba 4 | G4: Bomba 5 | H4: Bomba 6 | I4: Bomba 7 | J4: Bomba 8 | K4: Bomba 9 | L4: Bomba 10 | M4: Bomba 11 | N4: Bomba 12 | O4: Bomba 13 | P4: Bomba 14 | Q4: Bomba 15 | R4: Bomba 16 | S4: Bomba 17 | T4: Bomba 18 | U4: Bomba 19 | V4: Bomba 20 | W4: Bomba 21 | X4: Bomba 22 | Y4: Bomba 23 | Z4: Bomba 24 | AA4: Bomba 25 | AB4: Bomba 26 | AC4: Bomba 27 | AD4: Bomba 28 | AE4: Bomba 29 | AF4: Bomba 30 | AG4: Bomba 31 | AH4: Bomba 32 | AI4: Bomba 33 | AJ4: Bomba 34 | AK4: Bomba 35 | AL4: Bomba 36 | AM4: Bomba 37 | AN4: Bomba 38 | AO4: Bomba 39 | AP4: Bomba 40 | AQ4: Bomba 41 | AR4: Bomba 42 | AS4: Bomba 43 | AT4: Bomba 44 | AU4: Bomba 45 | AV4: Bomba 46 | AW4: Bomba 47 | AX4: Bomba 48 | AY4: Bomba 49 | AZ4: Bomba 50 | BA4: Bomba 51 | BB4: Bomba 52 | BC4: Bomba 53 | BD4: Bomba 54 | BE4: Bomba 55 | BF4: Bomba 56 | BG4: Bomba 57 | BH4: Bomba 58 | BI4: Bomba 59 | BJ4: Bomba 60 | BK4: Bomba 61 | BL4: Bomba 62 | BM4: Bomba 63 | BN4: Bomba 64 | BO4: Bomba 65 | BP4: Bomba 66 | BQ4: Bomba 67 | BR4: Bomba 68 | BS4: Bomba 69 | BT4: Bomba 70 | BU4: Bomba 71 | BV4: Bomba 72 | BW4: Bomba 73 | BX4: Bomba 74 | BY4: Bomba 75 | BZ4: Bomba 76 | CA4: Bomba 77 | CB4: Bomba 78 | CC4: Bomba 79 | CD4: Bomba 80 | CE4: Bomba 81 | CF4: Bomba 82 | CG4: Bomba 83 | CH4: Bomba 84 | CI4: Bomba 85 | CJ4: Bomba 86 | CK4: Bomba 87 | CL4: Bomba 88 | CM4: Bomba 89 | CN4: Bomba 90 | CO4: Bomba 91 | CP4: Bomba 92 | CQ4: Bomba 93 | CR4: Bomba 94 | CS4: Bomba 95 | CT4: Bomba 96 | CU4: Bomba 97 | CV4: Bomba 98 | CW4: Bomba 99
B5: =IF(C2>1, "Potência por bomba", "Potencia") -> Potencia
B6: Modelo
B7: Altura manométrica
B8: Rendimento
B9: Lâmina total aplicada na safra
B10: Custo do equipamento (R$)
B11: Vida útil esperada (anos)
B12: Não sei informar a vida útil (caixa)
B13: Sistema de Filtragem
B14: Possui Filtragem?
B15: Tipo de filtro
B16: Quantidade de Filtros
B17: Preço Unitário (R$ por filtro)
B18: Custo anual de Manutenção (R$/ano)
B19: Vida útil esperada (anos)

Sheet Ferti e Automação de precisão (hidden)
B2: Há fertirrigação?
B3: Possui sistema de automação para irrigação de precisão?
B6: =IF('Ferti e Automação de precisão'!C2="sim","Custos Fertirrigação","") ->  | E6: =IF('Ferti e Automação de precisão'!C3="sim","Custos Automação","") -> 
B7: =IF('Ferti e Automação de precisão'!$C$2="sim","Investimento inicial em equipamentos","") ->  | E7: =IF('Ferti e Automação de precisão'!$C$3="sim","Investimento inicial em equipamentos","") -> 
B8: =IF('Ferti e Automação de precisão'!$C$2="sim","Vida útil esperada","") ->  | E8: =IF('Ferti e Automação de precisão'!$C$3="sim","Vida útil esperada","") -> 
B9: =IF('Ferti e Automação de precisão'!$C$2="sim","Custos operacionais","") ->  | E9: =IF('Ferti e Automação de precisão'!$C$3="sim","Custos operacionais","") -> 
B10: =IF('Ferti e Automação de precisão'!$C$2="sim","Tipo de insumo aplicado","") ->  | E10: =IF('Ferti e Automação de precisão'!$C$3="sim","Custo anual da mão-de-obra","") -> 
B11: =IF('Ferti e Automação de precisão'!$C$2="sim","Quantidade aplicada por ano","") -> 
B12: =IF('Ferti e Automação de precisão'!$C$2="sim","Preço insumo","") -> 
B13: =IF('Ferti e Automação de precisão'!$C$2="sim","Custo anual da mão-de-obra","") -> 

Sheet Sistema de irrigação
B2: Sistema de irrigação
B3: Unfirmidade de aplicação (%)
B4: Frequência de irrigação no ano (meses)
B5: Frequência de irrigação no dia (horas)
B6: Eficiência de aplicação de água do sistema (%)
B7: Eficiência operacional (horas trabalhadas/horas paradas, %)
B8: Custos fixo sistema
B9: Valor Presente total de aquisição do equipamento completo (R$)
B10: Valor residual do equipamento (R$)
B11: Vida útil (anos)
B12: Custos de montagem
B13: Custo de transporte do equipamento (R$)
B14: Mão de obra montagem (R$)
B15: Abertura de valas adutoras (R$)
B16: Custo de projeto
B17: Planejamento e dimensionamento do projeto (R$)
B18: Construção da rede elétrica
B19: Mão de obra (R$)
B20: Materiais (R$)
B21: Vida útil (anos)
B22: Manutenção
B23: Custos da construção da oficina de manutenção
B24: Mão de obra (R$)
B25: Materiais (R$)
B26: Vida util da oficina (anos)
B27: Custos operacionais
B28: Materiais e equipamentos de reposição (R$/ano)
B29: Serviços (MDO e/ou terceiros, R$/ano)
B30: Porecentagem sobre o custo do equipamento (%) | C30: 0.02

Sheet Insumos-MDO
A2: Insumos | D2: Mão de obra
A3: Diesel | D3: Líderes
A4: Total gasto (L/ano) | D4: Quantidade de Trabalhadores
A5: Preço unitário (R$/litro) | D5: Dias de Trabalho no ano (dias)
A6: Consumo (L/h trabalhada) | D6: Montante gasto com salários (R$/ano)
A7: Lubrificantes | D7: Operadores
A8: Total gasto (L/ano) | D8: Quantidade de Trabalhadores
A9: Preço unitário (R$/litro) | D9: Dias de Trabalho no ano (dias)
A10: Consumo (L/h trabalhada) | D10: Montante gasto com salários (R$/ano)
A11: Gasolina | D11: Motoristas
A12: Total gasto (L/ano) | D12: Quantidade de Trabalhadores
A13: Preço unitário (R$/litro) | D13: Dias de Trabalho no ano (dias)
A14: Consumo (L/h trabalhada) | D14: Montante gasto com salários (R$/ano)
A15: Água | D15: Tratoristas
A16: Preço unitário (R$/m³) | D16: Quantidade de Trabalhadores
A17: Consumo (m³/ano) | D17: Dias de Trabalho no ano (dias)
A18: Outros (ex: reposição de peças/ limpeza do sistema) | D18: Montante gasto com salários (R$/ano)
A19: Total gasto (R$/ano)
A20: Energia Elétrica - PREENCHER EM "CASA DE BOMBAS"
A21: Consumo (kWh/ano)
A22: Preço de venda da energia elétrica (R$/MWh)

Sheet Cultura
B2: Quantidades de Culturas irrigadas
B3: As culturas (anuais) são irrigadas em sucessão na mesma área?
B4: Quantidade de áreas irrigadas
C5: Área 1 | D5: Área 2 | E5: Área 3 | F5: Área 4 | G5: Área 5 | H5: Área 6 | I5: Área 7 | J5: Área 8 | K5: Área 9 | L5: Área 10 | M5: Área 11 | N5: Área 12 | O5: Área 13 | P5: Área 14 | Q5: Área 15 | R5: Área 16 | S5: Área 17 | T5: Área 18 | U5: Área 19 | V5: Área 20 | W5: Área 21 | X5: Área 22 | Y5: Área 23 | Z5: Área 24 | AA5: Área 25 | AB5: Área 26 | AC5: Área 27 | AD5: Área 28 | AE5: Área 29 | AF5: Área 30 | AG5: Área 31 | AH5: Área 32 | AI5: Área 33 | AJ5: Área 34 | AK5: Área 35 | AL5: Área 36 | AM5: Área 37 | AN5: Área 38 | AO5: Área 39 | AP5: Área 40 | AQ5: Área 41 | AR5: Área 42 | AS5: Área 43 | AT5: Área 44 | AU5: Área 45 | AV5: Área 46 | AW5: Área 47 | AX5: Área 48 | AY5: Área 49 | AZ5: Área 50 | BA5: Área 51 | BB5: Área 52 | BC5: Área 53 | BD5: Área 54 | BE5: Área 55 | BF5: Área 56 | BG5: Área 57 | BH5: Área 58 | BI5: Área 59 | BJ5: Área 60 | BK5: Área 61 | BL5: Área 62 | BM5: Área 63 | BN5: Área 64 | BO5: Área 65 | BP5: Área 66 | BQ5: Área 67 | BR5: Área 68 | BS5: Área 69 | BT5: Área 70 | BU5: Área 71 | BV5: Área 72 | BW5: Área 73 | BX5: Área 74 | BY5: Área 75 | BZ5: Área 76 | CA5: Área 77 | CB5: Área 78 | CC5: Área 79 | CD5: Área 80 | CE5: Área 81 | CF5: Área 82 | CG5: Área 83 | CH5: Área 84 | CI5: Área 85 | CJ5: Área 86 | CK5: Área 87 | CL5: Área 88 | CM5: Área 89 | CN5: Área 90 | CO5: Área 91 | CP5: Área 92 | CQ5: Área 93 | CR5: Área 94 | CS5: Área 95 | CT5: Área 96 | CU5: Área 97 | CV5: Área 98 | CW5: Área 99 | CX5: Área 100 | CY5: Área 101 | CZ5: Área 102 | DA5: Área 103 | DB5: Área 104 | DC5: Área 105 | DD5: Área 106 | DE5: Área 107 | DF5: Área 108 | DG5: Área 109 | DH5: Área 110 | DI5: Área 111 | DJ5: Área 112 | DK5: Área 113 | DL5: Área 114 | DM5: Área 115 | DN5: Área 116 | DO5: Área 117 | DP5: Área 118 | DQ5: Área 119 | DR5: Área 120 | DS5: Área 121 | DT5: Área 122 | DU5: Área 123 | DV5: Área 124 | DW5: Área 125 | DX5: Área 126 | DY5: Área 127 | DZ5: Área 128 | EA5: Área 129 | EB5: Área 130 | EC5: Área 131 | ED5: Área 132 | EE5: Área 133 | EF5: Área 134 | EG5: Área 135 | EH5: Área 136 | EI5: Área 137 | EJ5: Área 138 | EK5: Área 139 | EL5: Área 140 | EM5: Área 141 | EN5: Área 142 | EO5: Área 143 | EP5: Área 144 | EQ5: Área 145 | ER5: Área 146 | ES5: Área 147 | ET5: Área 148 | EU5: Área 149 | EV5: Área 150 | EW5: Área 151 | EX5: Área 152 | EY5: Área 153 | EZ5: Área 154 | FA5: Área 155 | FB5: Área 156 | FC5: Área 157 | FD5: Área 158 | FE5: Área 159 | FF5: Área 160 | FG5: Área 161 | FH5: Área 162 | FI5: Área 163 | FJ5: Área 164 | FK5: Área 165 | FL5: Área 166 | FM5: Área 167 | FN5: Área 168 | FO5: Área 169 | FP5: Área 170 | FQ5: Área 171 | FR5: Área 172 | FS5: Área 173 | FT5: Área 174 | FU5: Área 175 | FV5: Área 176 | FW5: Área 177 | FX5: Área 178 | FY5: Área 179 | FZ5: Área 180 | GA5: Área 181 | GB5: Área 182 | GC5: Área 183 | GD5: Área 184 | GE5: Área 185 | GF5: Área 186 | GG5: Área 187 | GH5: Área 188 | GI5: Área 189 | GJ5: Área 190 | GK5: Área 191 | GL5: Área 192 | GM5: Área 193 | GN5: Área 194 | GO5: Área 195 | GP5: Área 196 | GQ5: Área 197 | GR5: Área 198 | GS5: Área 199 | GT5: Área 200 | GU5: Área 201 | GV5: Área 202 | GW5: Área 203 | GX5: Área 204 | GY5: Área 205 | GZ5: Área 206 | HA5: Área 207 | HB5: Área 208 | HC5: Área 209 | HD5: Área 210 | HE5: Área 211 | HF5: Área 212 | HG5: Área 213 | HH5: Área 214 | HI5: Área 215 | HJ5: Área 216 | HK5: Área 217 | HL5: Área 218 | HM5: Área 219 | HN5: Área 220 | HO5: Área 221 | HP5: Área 222 | HQ5: Área 223 | HR5: Área 224 | HS5: Área 225 | HT5: Área 226 | HU5: Área 227 | HV5: Área 228 | HW5: Área 229 | HX5: Área 230 | HY5: Área 231 | HZ5: Área 232 | IA5: Área 233 | IB5: Área 234 | IC5: Área 235 | ID5: Área 236 | IE5: Área 237 | IF5: Área 238 | IG5: Área 239 | IH5: Área 240 | II5: Área 241 | IJ5: Área 242 | IK5: Área 243 | IL5: Área 244 | IM5: Área 245 | IN5: Área 246 | IO5: Área 247 | IP5: Área 248 | IQ5: Área 249 | IR5: Área 250 | IS5: Área 251 | IT5: Área 252 | IU5: Área 253 | IV5: Área 254 | IW5: Área 255 | IX5: Área 256 | IY5: Área 257 | IZ5: Área 258 | JA5: Área 259 | JB5: Área 260 | JC5: Área 261 | JD5: Área 262 | JE5: Área 263 | JF5: Área 264 | JG5: Área 265 | JH5: Área 266 | JI5: Área 267 | JJ5: Área 268 | JK5: Área 269 | JL5: Área 270 | JM5: Área 271 | JN5: Área 272 | JO5: Área 273 | JP5: Área 274 | JQ5: Área 275 | JR5: Área 276 | JS5: Área 277 | JT5: Área 278 | JU5: Área 279 | JV5: Área 280 | JW5: Área 281 | JX5: Área 282 | JY5: Área 283 | JZ5: Área 284 | KA5: Área 285 | KB5: Área 286 | KC5: Área 287 | KD5: Área 288 | KE5: Área 289 | KF5: Área 290 | KG5: Área 291 | KH5: Área 292 | KI5: Área 293 | KJ5: Área 294 | KK5: Área 295 | KL5: Área 296 | KM5: Área 297 | KN5: Área 298 | KO5: Área 299 | KP5: Área 300 | KQ5: Área 301 | KR5: Área 302 | KS5: Área 303 | KT5: Área 304 | KU5: Área 305 | KV5: Área 306 | KW5: Área 307 | KX5: Área 308 | KY5: Área 309 | KZ5: Área 310 | LA5: Área 311 | LB5: Área 312 | LC5: Área 313 | LD5: Área 314 | LE5: Área 315 | LF5: Área 316 | LG5: Área 317 | LH5: Área 318 | LI5: Área 319 | LJ5: Área 320 | LK5: Área 321 | LL5: Área 322 | LM5: Área 323 | LN5: Área 324 | LO5: Área 325 | LP5: Área 326 | LQ5: Área 327 | LR5: Área 328 | LS5: Área 329 | LT5: Área 330 | LU5: Área 331 | LV5: Área 332 | LW5: Área 333 | LX5: Área 334 | LY5: Área 335 | LZ5: Área 336 | MA5: Área 337 | MB5: Área 338 | MC5: Área 339 | MD5: Área 340 | ME5: Área 341 | MF5: Área 342 | MG5: Área 343 | MH5: Área 344 | MI5: Área 345 | MJ5: Área 346 | MK5: Área 347 | ML5: Área 348 | MM5: Área 349 | MN5: Área 350 | MO5: Área 351 | MP5: Área 352 | MQ5: Área 353 | MR5: Área 354 | MS5: Área 355 | MT5: Área 356 | MU5: Área 357 | MV5: Área 358 | MW5: Área 359 | MX5: Área 360 | MY5: Área 361 | MZ5: Área 362 | NA5: Área 363 | NB5: Área 364 | NC5: Área 365 | ND5: Área 366 | NE5: Área 367 | NF5: Área 368 | NG5: Área 369 | NH5: Área 370 | NI5: Área 371 | NJ5: Área 372 | NK5: Área 373 | NL5: Área 374 | NM5: Área 375 | NN5: Área 376 | NO5: Área 377 | NP5: Área 378 | NQ5: Área 379 | NR5: Área 380 | NS5: Área 381 | NT5: Área 382 | NU5: Área 383 | NV5: Área 384 | NW5: Área 385 | NX5: Área 386 | NY5: Área 387 | NZ5: Área 388 | OA5: Área 389 | OB5: Área 390 | OC5: Área 391 | OD5: Área 392 | OE5: Área 393 | OF5: Área 394 | OG5: Área 395 | OH5: Área 396 | OI5: Área 397 | OJ5: Área 398 | OK5: Área 399 | OL5: Área 400 | OM5: Área 401 | ON5: Área 402 | OO5: Área 403 | OP5: Área 404 | OQ5: Área 405 | OR5: Área 406 | OS5: Área 407 | OT5: Área 408 | OU5: Área 409 | OV5: Área 410 | OW5: Área 411 | OX5: Área 412 | OY5: Área 413 | OZ5: Área 414 | PA5: Área 415 | PB5: Área 416 | PC5: Área 417 | PD5: Área 418 | PE5: Área 419 | PF5: Área 420
B6: =IF(AND([2]Cultura!$B$3<>"10+",[2]Cultura!$B$3>1),"Tamanho (ha)","Tamanho total (ha)") -> Tamanho (ha)
B7: Nome da área
B8: Lâmina anual aplicada (mm)
B9: Culturas irrigadas
B10: Variedade
B11: =IF($B$8=[2]Lista!$K$1,"Produtividade esperada sequeiro (t/ha)",IF($B$8=[2]Lista!$K$2,"Produtividade esperada sequeiro (sacas/ha)","Produtividade esperada sequeiro (kg/ha)")) -> Produtividade esperada sequeiro (kg/ha)
B12: =IF($B$8=[2]Lista!$K$1,"Produtividade esperada irrigado (t/ha)",IF($B$8=[2]Lista!$K$2,"Produtividade esperada irrigado (sacas/ha)","Produtividade esperada irrigado (kg/ha)")) -> Produtividade esperada irrigado (kg/ha)
B13: Qualidade esperada irrigado (Kg ATR/t cana)
B14: Longevidade esperada Sequeiro (anos)
B15: "Longevidade esperada Irrigado (anos)"
B16: Custo de formação do canavial ou Citricultura (R$/ha)
B17: Ganho de produtividade esperado | I17: =I12-I11 -> 0 | J17: 0 | K17: 0 | L17: 0 | M17: 0 | N17: 0 | O17: 0 | P17: 0 | Q17: 0 | R17: 0 | S17: 0 | T17: 0 | U17: 0 | V17: 0 | W17: 0 | X17: 0 | Y17: 0 | Z17: 0 | AA17: 0 | AB17: 0 | AC17: 0 | AD17: 0 | AE17: 0 | AF17: 0 | AG17: 0 | AH17: 0 | AI17: 0 | AJ17: 0 | AK17: 0 | AL17: 0 | AM17: 0 | AN17: 0 | AO17: 0 | AP17: 0 | AQ17: 0 | AR17: 0 | AS17: 0 | AT17: 0 | AU17: 0 | AV17: 0 | AW17: 0 | AX17: 0 | AY17: 0 | AZ17: 0 | BA17: 0 | BB17: 0 | BC17: 0 | BD17: 0 | BE17: 0 | BF17: 0 | BG17: 0 | BH17: 0 | BI17: 0 | BJ17: 0 | BK17: 0 | BL17: 0 | BM17: 0 | BN17: 0 | BO17: 0 | BP17: =BP12-BP11 -> 0 | BQ17: 0 | BR17: 0 | BS17: 0 | BT17: 0 | BU17: 0 | BV17: 0 | BW17: 0 | BX17: 0 | BY17: 0 | BZ17: 0 | CA17: 0 | CB17: 0 | CC17: 0 | CD17: 0 | CE17: 0 | CF17: 0 | CG17: 0 | CH17: 0 | CI17: 0 | CJ17: 0 | CK17: 0 | CL17: 0 | CM17: 0 | CN17: 0 | CO17: 0 | CP17: 0 | CQ17: 0 | CR17: 0 | CS17: 0 | CT17: 0 | CU17: 0 | CV17: 0 | CW17: 0 | CX17: 0 | CY17: 0 | CZ17: 0 | DA17: 0 | DB17: 0 | DC17: 0 | DD17: 0 | DE17: 0 | DF17: 0 | DG17: 0 | DH17: 0 | DI17: 0 | DJ17: 0 | DK17: 0 | DL17: 0 | DM17: 0 | DN17: 0 | DO17: 0 | DP17: 0 | DQ17: 0 | DR17: 0 | DS17: 0 | DT17: 0 | DU17: 0 | DV17: 0 | DW17: 0 | DX17: 0 | DY17: 0 | DZ17: 0 | EA17: 0 | EB17: =EB12-EB11 -> 0 | EC17: 0 | ED17: 0 | EE17: 0 | EF17: 0 | EG17: 0 | EH17: 0 | EI17: 0 | EJ17: 0 | EK17: 0 | EL17: 0 | EM17: 0 | EN17: 0 | EO17: 0 | EP17: 0 | EQ17: 0 | ER17: 0 | ES17: 0 | ET17: 0 | EU17: 0 | EV17: 0 | EW17: 0 | EX17: 0 | EY17: 0 | EZ17: 0 | FA17: 0 | FB17: 0 | FC17: 0 | FD17: 0 | FE17: 0 | FF17: 0 | FG17: 0 | FH17: 0 | FI17: 0 | FJ17: 0 | FK17: 0 | FL17: 0 | FM17: 0 | FN17: 0 | FO17: 0 | FP17: 0 | FQ17: 0 | FR17: 0 | FS17: 0 | FT17: 0 | FU17: 0 | FV17: 0 | FW17: 0 | FX17: 0 | FY17: 0 | FZ17: 0 | GA17: 0 | GB17: 0 | GC17: 0 | GD17: 0 | GE17: 0 | GF17: 0 | GG17: 0 | GH17: 0 | GI17: 0 | GJ17: 0 | GK17: 0 | GL17: 0 | GM17: 0 | GN17: =GN12-GN11 -> 0 | GO17: 0 | GP17: 0 | GQ17: 0 | GR17: 0 | GS17: 0 | GT17: 0 | GU17: 0 | GV17: 0 | GW17: 0 | GX17: 0 | GY17: 0 | GZ17: 0 | HA17: 0 | HB17: 0 | HC17: 0 | HD17: 0 | HE17: 0 | HF17: 0 | HG17: 0 | HH17: 0 | HI17: 0 | HJ17: 0 | HK17: 0 | HL17: 0 | HM17: 0 | HN17: 0 | HO17: 0 | HP17: 0 | HQ17: 0 | HR17: 0 | HS17: 0 | HT17: 0 | HU17: 0 | HV17: 0 | HW17: 0 | HX17: 0 | HY17: 0 | HZ17: 0 | IA17: 0 | IB17: 0 | IC17: 0 | ID17: 0 | IE17: 0 | IF17: 0 | IG17: 0 | IH17: 0 | II17: 0 | IJ17: 0 | IK17: 0 | IL17: 0 | IM17: 0 | IN17: 0 | IO17: 0 | IP17: 0 | IQ17: 0 | IR17: 0 | IS17: 0 | IT17: 0 | IU17: 0 | IV17: 0 | IW17: 0 | IX17: 0 | IY17: 0 | IZ17: =IZ12-IZ11 -> 0 | JA17: 0 | JB17: 0 | JC17: 0 | JD17: 0 | JE17: 0 | JF17: 0 | JG17: 0 | JH17: 0 | JI17: 0 | JJ17: 0 | JK17: 0 | JL17: 0 | JM17: 0 | JN17: 0 | JO17: 0 | JP17: 0 | JQ17: 0 | JR17: 0 | JS17: 0 | JT17: 0 | JU17: 0 | JV17: 0 | JW17: 0 | JX17: 0 | JY17: 0 | JZ17: 0 | KA17: 0 | KB17: 0 | KC17: 0 | KD17: 0 | KE17: 0 | KF17: 0 | KG17: 0 | KH17: 0 | KI17: 0 | KJ17: 0 | KK17: 0 | KL17: 0 | KM17: 0 | KN17: 0 | KO17: 0 | KP17: 0 | KQ17: 0 | KR17: 0 | KS17: 0 | KT17: 0 | KU17: 0 | KV17: 0 | KW17: 0 | KX17: 0 | KY17: 0 | KZ17: 0 | LA17: 0 | LB17: 0 | LC17: 0 | LD17: 0 | LE17: 0 | LF17: 0 | LG17: 0 | LH17: 0 | LI17: 0 | LJ17: 0 | LK17: 0 | LL17: =LL12-LL11 -> 0 | LM17: 0 | LN17: 0 | LO17: 0 | LP17: 0 | LQ17: 0 | LR17: 0 | LS17: 0 | LT17: 0 | LU17: 0 | LV17: 0 | LW17: 0 | LX17: 0 | LY17: 0 | LZ17: 0 | MA17: 0 | MB17: 0 | MC17: 0 | MD17: 0 | ME17: 0 | MF17: 0 | MG17: 0 | MH17: 0 | MI17: 0 | MJ17: 0 | MK17: 0 | ML17: 0 | MM17: 0 | MN17: 0 | MO17: 0 | MP17: 0 | MQ17: 0 | MR17: 0 | MS17: 0 | MT17: 0 | MU17: 0 | MV17: 0 | MW17: 0 | MX17: 0 | MY17: 0 | MZ17: 0 | NA17: 0 | NB17: 0 | NC17: 0 | ND17: 0 | NE17: 0 | NF17: 0 | NG17: 0 | NH17: 0 | NI17: 0 | NJ17: 0 | NK17: 0 | NL17: 0 | NM17: 0 | NN17: 0 | NO17: 0 | NP17: 0 | NQ17: 0 | NR17: 0 | NS17: 0 | NT17: 0 | NU17: 0 | NV17: 0 | NW17: 0 | NX17: =NX12-NX11 -> 0 | NY17: 0 | NZ17: 0 | OA17: 0 | OB17: 0 | OC17: 0 | OD17: 0 | OE17: 0 | OF17: 0 | OG17: 0 | OH17: 0 | OI17: 0 | OJ17: 0 | OK17: 0 | OL17: 0 | OM17: 0 | ON17: 0 | OO17: 0 | OP17: 0 | OQ17: 0 | OR17: 0 | OS17: 0 | OT17: 0 | OU17: 0 | OV17: 0 | OW17: 0 | OX17: 0 | OY17: 0 | OZ17: 0 | PA17: 0 | PB17: 0 | PC17: 0 | PD17: 0 | PE17: 0 | PF17: 0
B18: =IF($C$8=Lista!$K$1,"Preço do ATR (R$/kg)",IF($C$8=Lista!$K$2,"Preço da saca (R$/saca)","Preço de venda da cultura (R$/kg)")) -> Preço de venda da cultura (R$/kg)
B19: EvapoTranspiração da Cultura média no ano
B20: Precipitação anual média local
B22: Preço médio ATR na safra (R$ / Kg ATR)
B23: Qualidade média cana (Kg ATR / ton)
B24: Preço cana (R$/ton)

Sheet tab resultados (hidden)
A1: Taxa de juros | B1: ='Fluxo de Caixa'!V1 -> 0.05560090516 | Q1: Desconto grupo A atual | S1: Desconto grupo A futuro | V1: Aumento sobre a tarifa
Q2: 0.1 | S2: 0.02 | T2: =Q2-S2 -> 0.08 | U2: =1-T2 -> 0.92 | V2: =1/U2 -> 1.086956522
A3: Dados por cultura | Q3: Desconto grupo B atual | S3: Desconto grupo B futuro
A4: Cultura | B4: Cana | C4: Soja | D4: Citros | E4: Milho | F4: Outras (genérico) | H4: Total | Q4: 0.3 | S4: 0.06 | T4: =Q4-S4 -> 0.24 | U4: =1-T4 -> 0.76 | V4: =1/U4 -> 1.315789474
A5: Qtd Áreas Irrigadas | B5: =COUNTIF(Cultura!9:9,'tab resultados'!B4) -> 0 | C5: =COUNTIF(Cultura!9:9,'tab resultados'!C4) -> 0 | D5: =COUNTIF(Cultura!9:9,'tab resultados'!D4) -> 0 | E5: =COUNTIF(Cultura!9:9,'tab resultados'!E4) -> 0 | F5: =COUNTIF(Cultura!9:9,'tab resultados'!F4) -> 0 | G5: =COUNTIF(Cultura!9:9,'tab resultados'!G4) -> 0 | H5: =SUM(B5:G5) -> 0
A6: Lâmina total | B6: =SUMIF(Cultura!9:9,'tab resultados'!B4,Cultura!8:8) -> 0 | C6: =SUMIF(Cultura!9:9,'tab resultados'!C4,Cultura!8:8) -> 0 | D6: =SUMIF(Cultura!9:9,'tab resultados'!D4,Cultura!8:8) -> 0 | E6: =SUMIF(Cultura!9:9,'tab resultados'!E4,Cultura!8:8) -> 0 | F6: =SUMIF(Cultura!9:9,'tab resultados'!F4,Cultura!8:8) -> 0 | G6: =SUMIF(Cultura!9:9,"",Cultura!8:8) -> 0 | H6: =SUM(B6:G6) -> 0
A7: Área total | B7: =SUMIF(Cultura!9:9,'tab resultados'!B4,Cultura!6:6) -> 0 | C7: =SUMIF(Cultura!9:9,'tab resultados'!C4,Cultura!6:6) -> 0 | D7: =SUMIF(Cultura!9:9,'tab resultados'!D4,Cultura!6:6) -> 0 | E7: =SUMIF(Cultura!9:9,'tab resultados'!E4,Cultura!6:6) -> 0 | F7: =SUMIF(Cultura!9:9,'tab resultados'!F4,Cultura!6:6) -> 0 | G7: =SUMIF(Cultura!9:9,'tab resultados'!G4,Cultura!6:6) -> 0 | H7: 0
A8: Excedente de produção | B8: =ExcedProd(B4) -> 0 | C8: =ExcedProd(C4) -> 0 | D8: =ExcedProd(D4) -> 0 | E8: =ExcedProd(E4) -> 0 | F8: =ExcedProd(F4) -> 0 | G8: =IFERROR(ExcedProd(),0) -> 0 | H8: 0
A9: Preço de venda | B9: =IFERROR(AVERAGEIF(Cultura!9:9,'tab resultados'!B4,Cultura!18:18),0) -> 0 | C9: =IFERROR(AVERAGEIF(Cultura!9:9,'tab resultados'!C4,Cultura!18:18),0) -> 0 | D9: =IFERROR(AVERAGEIF(Cultura!9:9,'tab resultados'!D4,Cultura!18:18),0) -> 0 | E9: =IFERROR(AVERAGEIF(Cultura!9:9,'tab resultados'!E4,Cultura!18:18),0) -> 0 | F9: =IFERROR(AVERAGEIF(Cultura!9:9,'tab resultados'!F4,Cultura!18:18),0) -> 0 | G9: =IFERROR(AVERAGEIF(Cultura!9:9,'tab resultados'!G4,Cultura!18:18),0) -> 0 | H9: =SUM(B9:G9) -> 0
A10: Receita | B10: =B8*B9 -> 0 | C10: =C8*C9 -> 0 | D10: 0 | E10: 0 | F10: 0 | G10: =G8*G9 -> 0 | H10: =SUM(B10:G10) -> 0
A11: Aumento de produtividade | B11: =IFERROR(B8/B7,0) -> 0 | C11: =IFERROR(C8/C7,0) -> 0 | D11: 0 | E11: 0 | F11: 0 | G11: 0 | H11: 0
A12: Produtividade Sequeiro | B12: =AVERAGEIF(Cultura!$9:$9,'tab resultados'!B$4,Cultura!11:11) ->  | C12: =AVERAGEIF(Cultura!$9:$9,'tab resultados'!C$4,Cultura!11:11) ->  | D12: =AVERAGEIF(Cultura!$9:$9,'tab resultados'!D$4,Cultura!11:11) ->  | E12: =AVERAGEIF(Cultura!$9:$9,'tab resultados'!E$4,Cultura!11:11) ->  | F12: =AVERAGEIF(Cultura!$9:$9,'tab resultados'!F$4,Cultura!11:11) ->  | G12: =AVERAGEIF(Cultura!$9:$9,'tab resultados'!G$4,Cultura!11:11) ->  | H12: =SUM(B12:E12) -> 
A13: Produtividade Irrigado | B13: =SUMPRODUCT(Cultura!C12:H12,Cultura!C6:H6)/AreaCana ->  | C13: =AVERAGEIF(Cultura!$9:$9,'tab resultados'!C$4,Cultura!12:12) ->  | D13: =AVERAGEIF(Cultura!$9:$9,'tab resultados'!D$4,Cultura!12:12) ->  | E13: =AVERAGEIF(Cultura!$9:$9,'tab resultados'!E$4,Cultura!12:12) ->  | H13: =SUM(B13:G13) -> 
A14: Receita Sequeiro | B14: =B12*B7*B9 ->  | C14: =C12*C7*C9 ->  | F14: =F12*AreaCana*PreVenCana ->  | G14: =G12*AreaCana*PreVenCana ->  | H14: =SUM(B14:E14) ->  | J14: . | AY14: .
A15: Receita Irrigado | B15: =B13*B7*B9 ->  | C15: =C13*C7*C9 ->  | H15: =SUM(B15:E15) -> 
J17: Tabela custo fixo | Z17: Rateio custo fixo por cultura | AE17: Rateio custo fixo por cultura | AJ17: Rateio custo fixo por cultura | AO17: Rateio custo fixo por cultura | AT17: Rateio custo fixo por cultura
B18: Produtivdade | C18: Receita | J18: Origem | K18: Investimento inicial (R$) | L18: Valor Residual | M18: Inicial menos residual | N18: Vida Util (anos) | Q18: Anual | T18: % | U18: Tabela Custo de Capital | Z18: Cana | AA18: Anual | AE18: Soja | AF18: Anual | AJ18: Citros | AK18: Anual | AO18: Milho | AP18: Anual | AT18: Outras | AU18: Anual
A19: Sequeiro | B19: =B12 ->  | C19: =B14 ->  | Q19: Total | R19: ha | S19: mm | V19: Total | W19: /ha | X19: /mm | AA19: Total | AB19: ha | AC19: mm | AF19: Total | AG19: ha | AH19: mm | AK19: Total | AL19: ha | AM19: mm | AP19: Total | AQ19: ha | AR19: mm | AU19: Total | AV19: ha | AW19: mm
A20: Irrigado | B20: =B13 ->  | C20: =B15 ->  | J20: Tubulação | K20: =4900000 -> 4900000 | L20: 0 | M20: =K20 -> 4900000 | N20: 20 | P20: Tubulação | Q20: =M20/N20 -> 245000 | R20: =Q20/'Informações da propriedade'!$B$9 ->  | S20: =Q20/$H$6 ->  | T20: =Q20/CFixoAnualTotal ->  | U20: Tubulação | V20: =K20*$B$1 -> 272444.4353 | W20: =V20/'Informações da propriedade'!$B$9 ->  | X20: =V20/$H$6 ->  | Z20: Captação Hídrica | AA20: =Q20*(LamCana/LamTotal) ->  | AE20: Captação Hídrica | AF20: =Q20*(LamSoja/LamTotal) ->  | AJ20: Captação Hídrica | AK20: =Q20*(LamCitros/LamTotal) ->  | AO20: Captação Hídrica | AP20: =Q20*(LamMilho/LamTotal) ->  | AT20: Captação Hídrica | AU20: =Q20*(LamOutras/LamTotal) ->  | AV20: =R20*(LamMilho/LamTotal) -> 
B21: Sequeiro | C21: Irrigado | J21: Oficina de irrigação | K21: ='Sistema de irrigação'!C24 -> 0 | L21: 0 | M21: =K21 -> 0 | N21: ='Sistema de irrigação'!C26 -> 0 | P21: Oficina de irrigação | Q21: =M21/N21 ->  | R21: =Q21/'Informações da propriedade'!$B$9 ->  | S21: =Q21/$H$6 ->  | U21: Oficina de irrigação | V21: 0 | W21: =V21/'Informações da propriedade'!$B$9 ->  | X21: =V21/$H$6 ->  | Z21: Oficina de irrigação
A22: Produtivdade | B22: =B12 ->  | C22: =B13 ->  | J22: Tratores e retroescavadeira | K22: =150000*5+260000 -> 1010000 | L22: =0.15*K22 -> 151500 | M22: =K22-L22 -> 858500 | N22: =20 -> 20 | P22: Tratores e retroescavadeira | Q22: =M22/N22 -> 42925 | R22: =Q22/'Informações da propriedade'!$B$9 ->  | S22: =Q22/$H$6 ->  | U22: Tratores e retroescavadeira | V22: =K22*$B$1 -> 56156.91421 | W22: =V22/'Informações da propriedade'!$B$9 ->  | X22: =V22/$H$6 ->  | Z22: Tratores e retroescavadeira
A23: Receita por hectare | B23: =B14/AreaCana ->  | C23: =B15/AreaCana ->  | J23: Casa de Bombas | K23: ='Casa de Bombas'!C10*'Casa de Bombas'!C2+'Casa de Bombas'!C14 -> 0 | L23: =0 -> 0 | M23: =K23 -> 0 | N23: 20 | P23: Casa de Bombas | Q23: =M23/N23 -> 0 | R23: =Q23/'Informações da propriedade'!$B$9 ->  | U23: Casa de Bombas | V23: 0 | W23: =V23/'Informações da propriedade'!$B$9 ->  | Z23: Casa de Bombas | AE23: Casa de Bombas | AJ23: Casa de Bombas | AO23: Casa de Bombas | AT23: Casa de Bombas | AU23: =Q23*(LamMilho/LamTotal) -> 
J24: Aparelho de irrigação | K24: ='Sistema de irrigação'!C9 -> 0 | L24: ='Sistema de irrigação'!C10 -> 0 | M24: =IFERROR(IF('Sistema de irrigação'!C10<>"",'Sistema de irrigação'!C9-'Sistema de irrigação'!C10,'Sistema de irrigação'!C9*(1-VLOOKUP('Sistema de irrigação'!C2,Lista!I1:J4,2,FALSE))),'Sistema de irrigação'!C9*(1-VLOOKUP('Sistema de irrigação'!C2,Lista!I1:J4,2,FALSE))) ->  | N24: 20 | P24: Sistema de irrigação | Q24: =M24/N24 ->  | R24: =Q24/'Informações da propriedade'!$B$9 ->  | U24: Sistema de irrigação | V24: 0 | W24: =V24/'Informações da propriedade'!$B$9 ->  | Z24: Sistema de irrigação | AE24: Sistema de irrigação | AJ24: Sistema de irrigação | AO24: Sistema de irrigação | AT24: Sistema de irrigação
J25: Planejamento do projeto | K25: ='Sistema de irrigação'!C17 -> 0 | M25: =K25 -> 0 | N25: 20 | P25: Planejamento do projeto | Q25: =M25/N25 -> 0 | R25: =Q25/'Informações da propriedade'!$B$9 ->  | U25: Planejamento do projeto | V25: 0 | W25: =V25/'Informações da propriedade'!$B$9 ->  | Z25: Planejamento do projeto
J26: Transporte e montagem | K26: =SUM('Sistema de irrigação'!C13:C14) -> 0 | L26: 0 | M26: =K26 -> 0 | N26: 20 | P26: Transporte e montagem | Q26: =M26/N26 -> 0 | R26: =Q26/'Informações da propriedade'!$B$9 ->  | S26: =Q26/$H$6 ->  | U26: Transporte e montagem | V26: 0 | W26: =V26/'Informações da propriedade'!$B$9 ->  | Z26: Transporte e montagem | AE26: Transporte e montagem | AJ26: Transporte e montagem | AO26: Transporte e montagem | AT26: Transporte e montagem
J27: Abertura de valas | K27: ='Sistema de irrigação'!C15 -> 0 | L27: =0 -> 0 | M27: =K27 -> 0 | N27: 20 | P27: Abertura de valas | Q27: 0 | R27: =Q27/'Informações da propriedade'!$B$9 ->  | U27: Abertura de valas | V27: 0 | W27: =V27/'Informações da propriedade'!$B$9 ->  | Z27: Abertura de valas | AE27: Abertura de valas | AJ27: Abertura de valas | AO27: Abertura de valas | AT27: Abertura de valas | AY27: .
J28: Custo do Capital | K28: 0 | L28: =0 -> 0 | M28: 0 | N28: 0 | P28: Custo do Capital | Q28: =V29 -> 328601.3495 | R28: =Q28/'Informações da propriedade'!$B$9 ->  | U28: Custo do Capital | V28: 0 | W28: =V28/'Informações da propriedade'!$B$9 ->  | X28: =V28/$H$6 ->  | Z28: Custo do Capital | AE28: Custo do Capital | AJ28: Custo do Capital | AO28: Custo do Capital | AT28: Custo do Capital
J29: Total | K29: =SUM(K20:K27) -> 5910000 | M29: =SUM(M20:M28) ->  | N29: 0 | P29: Total | Q29: =SUM(Q20:Q28) ->  | R29: =SUM(R20:R28) ->  | U29: Total | V29: 328601.3495 | W29: =V29/'Informações da propriedade'!$B$9 ->  | Z29: Total | AE29: Total | AJ29: Total | AO29: Total | AT29: Total
J30: Depreciação | Q30: =SUM(Q20:Q27) ->  | R30: =SUM(R20:R27) ->  | V30: =SUM(V20:V27) -> 328601.3495 | W30: =SUM(W20:W27) ->  | AA30: =SUM(AA20:AA27) ->  | AB30: =SUM(AB20:AB27) ->  | AF30: =SUM(AF20:AF27) ->  | AG30: =SUM(AG20:AG27) ->  | AK30: =SUM(AK20:AK27) ->  | AL30: =SUM(AL20:AL27) ->  | AP30: =SUM(AP20:AP27) ->  | AQ30: =SUM(AQ20:AQ27) ->  | AU30: =SUM(AU20:AU27) ->  | AV30: =SUM(AV20:AV27) -> 
J31: Outros | R31: =SUM(R26,R25,R23,R21) ->  | AY31: Tabela Custo Operacional do Sistema de Irrigação | BE31: Custo Operacional por Cultura | BJ31: Custo Operacional por Cultura | BO31: Custo Operacional por Cultura | BT31: Custo Operacional por Cultura | BY31: Custo Operacional por Cultura | CD31: Custo Operacional por Cultura
AZ32: Valor anual | BA32: /ha | BB32: /mm | BC32: Participação (%) | BE32: Cana | BF32: Valor anual | BG32: /ha | BH32: /mm | BJ32: Soja | BK32: Valor anual | BL32: /ha | BM32: /mm | BO32: Citros | BP32: Valor anual | BQ32: /ha | BR32: /mm | BT32: Milho | BU32: Valor anual | BV32: /ha | BW32: /mm | BY32: Outras | BZ32: Valor anual | CA32: /ha | CB32: /mm | CD32: Não informada | CE32: Valor anual | CF32: /ha | CG32: /mm
AY33: Energia elétrica | AZ33: ='Casa de Bombas'!C19*'Casa de Bombas'!C20 -> 0 | BA33: =AZ33/'Informações da propriedade'!$B$9 ->  | BB33: =AZ33/LamTotal ->  | BC33: =AZ33/COpAnualTotal ->  | BE33: Consumo eletricidade | BF33: =$AZ$33*(LamCana/LamTotal) ->  | BG33: =$BA$33*(LamCana/LamTotal) ->  | BH33: =$BB$33*(LamCana/LamTotal) ->  | BJ33: Consumo eletricidade | BK33: =$AZ$33*(LamSoja/LamTotal) ->  | BL33: =$BA$33*(LamSoja/LamTotal) ->  | BM33: =$BB$33*(LamSoja/LamTotal) ->  | BO33: Consumo eletricidade | BP33: =$AZ$33*(LamCitros/LamTotal) ->  | BQ33: =$BA$33*(LamCitros/LamTotal) ->  | BR33: =$BB$33*(LamCitros/LamTotal) ->  | BT33: Consumo eletricidade | BU33: =$AZ$33*(LamMilho/LamTotal) ->  | BV33: =$BA$33*(LamMilho/LamTotal) ->  | BW33: =$BB$33*(LamMilho/LamTotal) ->  | BY33: Consumo eletricidade | BZ33: =$AZ$33*(LamOutras/LamTotal) ->  | CA33: =$BA$33*(LamOutras/LamTotal) ->  | CB33: =$BB$33*(LamOutras/LamTotal) ->  | CD33: Consumo eletricidade | CE33: =$AZ$33*(LamND/LamTotal) ->  | CF33: =$BA$33*(LamND/LamTotal) ->  | CG33: =$BB$33*(LamND/LamTotal) -> 
AY34: Demanda elétrica | AZ34: ='Casa de Bombas'!C21 -> 0 | BA34: 0 | BB34: 0 | BC34: 0 | BE34: Demanda elétrica | BF34: =$AZ$34*(LamCana/LamTotal) ->  | BG34: =$BA$34*(LamCana/LamTotal) ->  | BH34: =$BB$34*(LamCana/LamTotal) ->  | BJ34: Demanda elétrica | BK34: =$AZ$34*(LamSoja/LamTotal) ->  | BL34: =$BA$34*(LamSoja/LamTotal) ->  | BM34: =$BB$34*(LamSoja/LamTotal) ->  | BO34: Demanda elétrica | BP34: =$AZ$34*(LamCitros/LamTotal) ->  | BQ34: =$BA$34*(LamCitros/LamTotal) ->  | BR34: =$BB$34*(LamCitros/LamTotal) ->  | BT34: Demanda elétrica | BU34: =$AZ$34*(LamMilho/LamTotal) ->  | BV34: =$BA$34*(LamMilho/LamTotal) ->  | BW34: =$BB$34*(LamMilho/LamTotal) ->  | BY34: Demanda elétrica | BZ34: =$AZ$34*(LamOutras/LamTotal) ->  | CA34: =$BA$34*(LamOutras/LamTotal) ->  | CB34: =$BB$34*(LamOutras/LamTotal) ->  | CD34: Demanda elétrica | CE34: =$AZ$34*(LamND/LamTotal) ->  | CF34: =$BA$34*(LamND/LamTotal) ->  | CG34: =$BB$34*(LamND/LamTotal) -> 
AY35: Manutenção | AZ35: =SUM('Sistema de irrigação'!C28:C29) -> 0 | BA35: =AZ35/'Informações da propriedade'!$B$9 ->  | BB35: =AZ35/LamTotal ->  | BC35: =AZ35/COpAnualTotal ->  | BE35: Manutenção | BF35: =$AZ$35*(LamCana/LamTotal) ->  | BG35: =$BA$35*(LamCana/LamTotal) ->  | BH35: =$BB$35*(LamCana/LamTotal) ->  | BJ35: Manutenção | BK35: =$AZ$35*(LamSoja/LamTotal) ->  | BL35: =$BA$35*(LamSoja/LamTotal) ->  | BM35: =$BB$35*(LamSoja/LamTotal) ->  | BO35: Manutenção | BP35: =$AZ$35*(LamCitros/LamTotal) ->  | BQ35: =$BA$35*(LamCitros/LamTotal) ->  | BR35: =$BB$35*(LamCitros/LamTotal) ->  | BT35: Manutenção | BU35: =$AZ$35*(LamMilho/LamTotal) ->  | BV35: =$BA$35*(LamMilho/LamTotal) ->  | BW35: =$BB$35*(LamMilho/LamTotal) ->  | BY35: Manutenção | BZ35: =$AZ$35*(LamOutras/LamTotal) ->  | CA35: =$BA$35*(LamOutras/LamTotal) ->  | CB35: =$BB$35*(LamOutras/LamTotal) ->  | CD35: Manutenção | CE35: =$AZ$35*(LamND/LamTotal) ->  | CF35: =$BA$35*(LamND/LamTotal) ->  | CG35: =$BB$35*(LamND/LamTotal) -> 
AY36: Mão-de-obra | AZ36: =SUM('Insumos-MDO'!$E$6,'Insumos-MDO'!$E$10,'Insumos-MDO'!$E$14,'Insumos-MDO'!$E$18) -> 0 | BA36: =AZ36/'Informações da propriedade'!$B$9 ->  | BB36: =AZ36/LamTotal ->  | BC36: =AZ36/COpAnualTotal ->  | BE36: Mão-de-obra | BF36: =$AZ$36*(LamCana/LamTotal) ->  | BG36: =$BA$36*(LamCana/LamTotal) ->  | BH36: =$BB$36*(LamCana/LamTotal) ->  | BJ36: Mão-de-obra | BK36: =$AZ$36*(LamSoja/LamTotal) ->  | BL36: =$BA$36*(LamSoja/LamTotal) ->  | BM36: =$BB$36*(LamSoja/LamTotal) ->  | BO36: Mão-de-obra | BP36: =$AZ$36*(LamCitros/LamTotal) ->  | BQ36: =$BA$36*(LamCitros/LamTotal) ->  | BR36: =$BB$36*(LamCitros/LamTotal) ->  | BT36: Mão-de-obra | BU36: =$AZ$36*(LamMilho/LamTotal) ->  | BV36: =$BA$36*(LamMilho/LamTotal) ->  | BW36: =$BB$36*(LamMilho/LamTotal) ->  | BY36: Mão-de-obra | BZ36: =$AZ$36*(LamOutras/LamTotal) ->  | CA36: =$BA$36*(LamOutras/LamTotal) ->  | CB36: =$BB$36*(LamOutras/LamTotal) ->  | CD36: Mão-de-obra | CE36: =$AZ$36*(LamND/LamTotal) ->  | CF36: =$BA$36*(LamND/LamTotal) ->  | CG36: =$BB$36*(LamND/LamTotal) -> 
AY37: Diesel e lub. | AZ37: ='Insumos-MDO'!$B$24 -> 0 | BA37: =AZ37/'Informações da propriedade'!$B$9 ->  | BB37: =AZ37/LamTotal ->  | BC37: =AZ37/COpAnualTotal ->  | BE37: Outros insumos | BF37: =$AZ$37*(LamCana/LamTotal) ->  | BG37: =$BA$37*(LamCana/LamTotal) ->  | BH37: =$BB$37*(LamCana/LamTotal) ->  | BJ37: Outros insumos | BK37: =$AZ$37*(LamSoja/LamTotal) ->  | BL37: =$BA$37*(LamSoja/LamTotal) ->  | BM37: =$BB$37*(LamSoja/LamTotal) ->  | BO37: Outros insumos | BP37: =$AZ$37*(LamCitros/LamTotal) ->  | BQ37: =$BA$37*(LamCitros/LamTotal) ->  | BR37: =$BB$37*(LamCitros/LamTotal) ->  | BT37: Outros insumos | BU37: =$AZ$37*(LamMilho/LamTotal) ->  | BV37: =$BA$37*(LamMilho/LamTotal) ->  | BW37: =$BB$37*(LamMilho/LamTotal) ->  | BY37: Outros insumos | BZ37: =$AZ$37*(LamOutras/LamTotal) ->  | CA37: =$BA$37*(LamOutras/LamTotal) ->  | CB37: =$BB$37*(LamOutras/LamTotal) ->  | CD37: Outros insumos | CE37: =$AZ$37*(LamND/LamTotal) ->  | CF37: =$BA$37*(LamND/LamTotal) ->  | CG37: =$BB$37*(LamND/LamTotal) -> 
AY38: Total | AZ38: =SUM(AZ33:AZ37) -> 0 | BA38: =COpAnualTotal/AreaTotal ->  | BB38: =COpAnualTotal/LamTotal ->  | BE38: Total | BF38: =SUM(BF33:BF37) ->  | BG38: =SUM(BG33:BG37) ->  | BJ38: Total | BK38: =SUM(BK33:BK37) ->  | BL38: =SUM(BL33:BL37) ->  | BM38: =SUM(BM33:BM37) ->  | BO38: Total | BP38: =SUM(BP33:BP37) ->  | BQ38: =SUM(BQ33:BQ37) ->  | BR38: =SUM(BR33:BR37) ->  | BT38: Total | BU38: =SUM(BU33:BU37) ->  | BV38: =SUM(BV33:BV37) ->  | BW38: =SUM(BW33:BW37) ->  | BY38: Total | BZ38: =SUM(BZ33:BZ37) ->  | CA38: =SUM(CA33:CA37) ->  | CB38: =SUM(CB33:CB37) ->  | CD38: Total | CE38: =SUM(CE33:CE37) ->  | CF38: =SUM(CF33:CF37) ->  | CG38: =SUM(CG33:CG37) -> 
CI39: Benefício do aumento da produtividade do Sistema de Irrigação | CN39: Benefício do aumento da produtividade por cultura | DX39: Benefício do aumento da produtividade do Sistema de Irrigação
CJ40: R$/ano | CK40: /ha | CL40: /mm | CO40: Aumento Produtividade | CP40: R$/ano | CQ40: /ha | CR40: /mm | DY40: R$ ano | DZ40: ha | EA40: mm | ET40: Lucro sobre aumento de produtividade
CI41: Total | CJ41: =RecTotal -> 0 | CK41: =BenefAnualTotal/AreaTotal ->  | CL41: =BenefAnualTotal/LamTotal ->  | CN41: Cana | CO41: =B8/B7 ->  | CP41: =REcCana -> 0 | CQ41: =BenefCanaAnual/AreaCana ->  | CR41: =BenefCanaAnual/LamCana ->  | DX41: Etapa 1 (Produtividade) | DY41: =RecTotal -> 0 | DZ41: =BenefAnualTotal/AreaTotal ->  | EA41: =BenefAnualTotal/LamTotal ->  | EU41: R$/ano | EV41: /ha | EW41: /mm | EX41: Margem (%)
CN42: Soja | CO42: =C8/C7 ->  | CP42: =RecSoja -> 0 | CQ42: =BenefSojaAnual/AreaSoja ->  | CR42: =BenefSojaAnual/LamSoja ->  | CU42: Custo Total do Sistema de Irrigação | DA42: Custo Total por cultura | DX42: Etapa 2 | DY42: =DY41+DY43 -> 1960291.667 | DZ42: =DZ41+DZ43 ->  | ET42: etapa 1 | EU42: =BenefCanaAnual-CustCanaAnual ->  | EV42: =BenefCanaHa-CustCanaHA ->  | EW42: =BenefCanamm-CustCanamm ->  | EX42: =LucrCanaAnual/BenefCanaAnual -> 
CN43: Citros | CO43: =D8/D7 ->  | CP43: =RecCitros -> 0 | CQ43: =BenefCitrosAnual/AreaCitros ->  | CR43: =BenefCitrosAnual/LamCitros ->  | CV43: R$/ano | CW43: /ha | CX43: /mm | CY43: Participação | DB43: R$/ano | DC43: /ha | DD43: /mm | DX43: Deprec | DY43: 1960291.667 | DZ43: 301.5833333 | EA43: 14157.66204 | ET43: etapa 2 | EU43: =BenefCanaAnual+BenefDepreCana-CustCanaAnual ->  | EV43: =BenefCanaHa+BenefDepreCanaHa-CustCanaHA ->  | EW43: =BenefCanamm+BenefDepreCanamm-CustCanamm ->  | EX43: =EU43/BenefAnualTotal -> 
CN44: Milho | CO44: =E8/E7 ->  | CP44: =RecMilho -> 0 | CQ44: =BenefMilhoAnual/AreaMilho ->  | CR44: =BenefMilhoAnual/LamMilho ->  | CU44: Custo Total do Sistema | CV44: =COpAnualTotal+CFixoAnualTotal ->  | CW44: =COpAnualHa+CFixoAnualHa ->  | CX44: =COpAnualmm+CfixoAnualmm ->  | CY44: =CV44/CustoTotal ->  | DA44: Cana | DB44: =BF38+AA29 ->  | DC44: =COpCanaAnualHa+CFixoCanaAnualHa ->  | DD44: =COpCanaAnualmm+CFixoCanaAnualmm ->  | DX44: Etapa 3 | DY44: =DY42+DY45 -> 1957967.293 | DZ44: =DZ42+DZ45 ->  | ET44: etapa 3 | EU44: =BenefCanaAnual+BenefDepreCana+BenefInCanaAnual-CustCanaAnual ->  | EV44: =BenefCanaHa+BenefDepreCanaHa+BenefInCanaHa-CustCanaHA ->  | EW44: =BenefCanamm+BenefDepreCanamm+BenefInCanamm-CustCanamm ->  | EX44: =EU44/BenefAnualTotal -> 
CN45: Outras | CO45: =F8/F7 ->  | CP45: =RecOutras -> 0 | CQ45: =BenefOutrasAnual/AreaOutras ->  | CR45: =BenefOutrasAnual/LamOutras ->  | CU45: Custos Operacionais | DA45: Soja | DB45: =COpSojaAnualTotal+CFixoSojaAnualTotal ->  | DC45: =COpSojaAnualHa+CFixoSojaAnualHa ->  | DD45: =COpSojaAnualmm+CFixoSojaAnualmm ->  | DF45: Lucro do Sistema de Irrigação | DL45: Lucro sobre aumento de produtividade | DR45: Lucro por cultura | DX45: Colheita | DY45: -2324.373996 | DZ45: -0.3575959995 | EA45: -16.78714553
CU46: =AY33 -> Energia elétrica | CV46: 0 | CY46: =CV46/CustoTotal ->  | DA46: Citros | DB46: =COpCitrosAnualTotal+CFixoCitrosAnualTotal ->  | DC46: =COpCitrosAnualHa+CFixoCitrosAnualHa ->  | DD46: =COpCitrosAnualmm+CFixoCitrosAnualmm ->  | DG46: R$/ano | DH46: /ha | DI46: /mm | DJ46: Margem (%) | DM46: R$/ano | DN46: /ha | DO46: /mm | DP46: Margem (%) | DS46: R$/ano | DT46: /ha | DU46: /mm | DV46: Margem (%)
CU47: Demanda elétrica | CV47: 0 | CW47: 0 | CX47: 0 | CY47: 0 | DA47: Milho | DB47: =COpMilhoAnualTotal+CFixoMilhoAnualTotal ->  | DC47: =COpMilhoAnualHa+CFixoMilhoAnualHa ->  | DD47: =COpMilhoAnualmm+CFixoMilhoAnualmm ->  | DF47: Total Sistema | DG47: =BenefAnualTotal-CustoTotal ->  | DH47: =BenefAnualHa-CustoHa ->  | DI47: =BenefAnualmm-Customm ->  | DJ47: =LucroTotalAnual/BenefAnualTotal ->  | DL47: Cana | DM47: =BenefCanaAnual-CustCanaAnual ->  | DN47: =BenefCanaHa-CustCanaHA ->  | DO47: =BenefCanamm-CustCanamm ->  | DP47: =LucrCanaAnual/BenefCanaAnual ->  | DR47: Soja | DS47: =BenefSojaAnual-CustSojaAnual ->  | DT47: =BenefSojaHa-CustSojaHa ->  | DU47: =BenefSojamm-CustSojamm ->  | DV47: =LucrSojaAnual/BenefSojaAnual -> 
CU48: Manutenção | CV48: 0 | CY48: =CV48/CustoTotal ->  | DA48: Outras | DB48: =BZ38+AU29 ->  | DC48: =DB48/F7 ->  | DD48: =DB48/F6 ->  | DR48: Citros | DS48: =BenefCitrosAnual-CustCitrosAnual ->  | DT48: =BenefCitrosHa-CustCitrosHa ->  | DU48: =BenefCitrosmm-CustCitrosmm ->  | DV48: =LucrCitrosAnual/BenefCitrosAnual ->  | DY48: Benefício Depreciação Canavial | EC48: Benefício Indireto Colheita | EH48: Receita Total Beneficios Direto (produtividade + longevidade) | EM48: Receita Beneficios Totais (produtividade + longevidade + colheita) | ER48: Lucro sobre benefícios diretos (produtividade e longevidade) | EX48: Lucro sobre benefícios totais (produtividade, longevidade e colheita)
CU49: Mão-de-obra | CV49: 0 | CY49: =CV49/CustoTotal ->  | DR49: Milho | DS49: =BenefMilhoAnual-CustMilhoAnual ->  | DT49: =BenefMilhoHa-CustMilhoHa ->  | DU49: =BenefMilhomm-CustMilhomm ->  | DV49: =LucrMilhoAnual/BenefMilhoAnual ->  | DY49: R$/ano | DZ49: /ha | EA49: /mm | ED49: R$/ano | EE49: /ha | EF49: /mm | EI49: R$/ano | EJ49: /ha | EK49: /mm | EN49: R$/ano | EO49: /ha | EP49: /mm | ES49: R$/ano | ET49: /ha | EU49: /mm | EV49: Margem (%) | EY49: R$/ano | EZ49: /ha | FA49: /mm | FB49: Margem (%)
CU50: Diesel e lub. | CV50: 0 | CY50: =CV50/CustoTotal ->  | DR50: Outras | DS50: =BenefOutrasAnual-CustOutrasAnual ->  | DT50: =BenefOutrasHa-CustOutrasHa ->  | DU50: =BenefOutrasmm-CustOutrasmm ->  | DV50: =LucrOutrasAnual/BenefOutrasAnual ->  | DY50: =DZ50*AreaCana -> 0 | DZ50: ='Benefícios Indiretos'!C11 -> 0 | EA50: =DY50/LamCana ->  | EC50: Cana | ED50: =('Benefícios Indiretos'!C7*ExcPrCana/1000) -> 0 | EE50: =BenefInCanaAnual/AreaCana ->  | EF50: =ED50/LamCana ->  | EH50: Cana | EI50: =BenefCanaAnual+BenefDepreCana -> 0 | EJ50: =BenefCanaHa+BenefDepreCanaHa ->  | EK50: =EI50/LamCana ->  | EM50: Cana | EN50: =BenefCanaAnual+BenefDepreCana+BenefInCanaAnual -> 0 | EO50: =BenefCanaHa+BenefDepreCanaHa+BenefInCanaHa ->  | EP50: =EK50+BenefInCanamm ->  | ER50: Cana | ES50: =BenefCanaAnual+BenefDepreCana-CustCanaAnual ->  | ET50: =BenefCanaHa+BenefDepreCanaHa-CustCanaHA ->  | EU50: =BenefCanamm+BenefDepreCanamm-CustCanamm ->  | EV50: =ES50/BenefAnualTotal ->  | EX50: Cana | EY50: =BenefCanaAnual+BenefDepreCana+BenefInCanaAnual-CustCanaAnual ->  | EZ50: =BenefCanaHa+BenefDepreCanaHa+BenefInCanaHa-CustCanaHA ->  | FA50: =BenefCanamm+BenefDepreCanamm+BenefInCanamm-CustCanamm ->  | FB50: =EY50/BenefAnualTotal -> 
CT51: Custo Operacional | CU51: Total Custo Operacional | CV51: =COpAnualTotal -> 0 | CW51: =COpAnualHa ->  | CX51: =COpAnualmm ->  | CY51: =CV51/CustoTotal -> 
CU52: Custos Fixos
CU53: =P20 -> Tubulação | CV53: =Q20 -> 245000 | CW53: =R20 ->  | CX53: =S20 ->  | CY53: =CV53/CustoTotal ->  | FD53: Resultados Fluxo de Caixa | FH53: Etapa 2 | FI53: Etapa 3
CU54: Oficina de irrigação | FD54: ='Fluxo de Caixa'!A34 -> TIR (%) | FE54: ='Fluxo de Caixa'!C34 ->  | FG54: =FD54 -> TIR (%) | FH54: ='Fluxo de Caixa'!C47 ->  | FI54: ='Fluxo de Caixa'!C60 -> 
CU55: Tratores e retroescavadeira | CV55: 42925 | FD55: ='Fluxo de Caixa'!A35 -> VPL (R$) | FE55: ='Fluxo de Caixa'!C35 -> -48631.51508 | FG55: VPL (R$) | FH55: ='Fluxo de Caixa'!C48 -> -48631.51508 | FI55: ='Fluxo de Caixa'!C61 -> -48631.51508
CU56: Casa de Bombas | CV56: 0 | FD56: ='Fluxo de Caixa'!A36 -> VPL (R$/ha) | FE56: ='Fluxo de Caixa'!C36 ->  | FG56: VPL (R$/ha) | FH56: ='Fluxo de Caixa'!C49 ->  | FI56: ='Fluxo de Caixa'!C62 -> 
CU57: Sistema de irrigação | FD57: ='Fluxo de Caixa'!A37 -> Payback simples (anos) | FE57: ='Fluxo de Caixa'!C37 -> 21 | FG57: Payback simples (anos) | FH57: ='Fluxo de Caixa'!C50 -> 21 | FI57: ='Fluxo de Caixa'!C63 -> 21
CU58: Planejamento do projeto | CV58: 0 | FD58: ='Fluxo de Caixa'!A38 -> Payback descontado (anos) | FE58: ='Fluxo de Caixa'!C38 -> 21 | FG58: Payback descontado (anos) | FH58: ='Fluxo de Caixa'!C51 -> 21 | FI58: ='Fluxo de Caixa'!C64 -> 21
CU59: Transporte e montagem | CV59: 0 | FD59: ='Fluxo de Caixa'!A39 -> VPL anual (R$) | FE59: ='Fluxo de Caixa'!C39 -> -4089.764895 | FG59: VPL anual (R$) | FH59: ='Fluxo de Caixa'!C52 -> -4089.764895 | FI59: ='Fluxo de Caixa'!C65 -> -4089.764895
CU60: Abertura de valas | CV60: 0 | FD60: ='Fluxo de Caixa'!A40 -> VPL anual (R$/ha) | FE60: ='Fluxo de Caixa'!C40 ->  | FG60: VPL anual (R$/ha) | FH60: ='Fluxo de Caixa'!C53 ->  | FI60: ='Fluxo de Caixa'!C66 -> 
CU61: Custo do Capital | CV61: 328601.3495
CT62: Custo Fixo | CU62: Total Custo Fixo
CU63: Outros | CW63: =CW60+CW59+CW58+CW56+CW54+CW57+CW55+CW48 -> 

Sheet Graf Resultados (hidden)
M1: .
M13: . | W13: .
W27: . | AF27: .
AF42: . | AM42: .
AM58: . | AV58: .
AV75: . | BE75: .
BE90: . | BM90: .
BM103: . | BV103: .
BV122: . | CE122: .
CE135: . | CO135: .
CO153: . | CY153: .
CY174: . | DG174: .
DG195: . | DP195: .
DP213: . | DY213: .
DY233: . | EI233: .
EI252: . | EQ252: .
EQ273: . | EY273: .
EY294: . | FH294: .
FH314: . | FR314: .
FR334: . | GA334: .
GA354: . | GJ354: .
GJ374: . | GR374: .
GR393: . | HA393: .
HA413: . | HK413: .
HK433: . | HT433: .
HT452: . | IC452: .
IC472: . | IK472: .
IK493: . | IT493: .
IT515: . | JC515: .
JC532: ..... | JD532: . | JE532: . | JF532: . | JG532: . | JH532: . | JI532: . | JJ532: . | JK532: . | JL532: .
JC533: .
JC534: .
JC535: .
JC536: .
JC537: .
JC538: .
JC539: .
JC540: .
JC541: .

Sheet Lista (hidden)
A1: Poço artesiano | C1: 1 | E1: Sim | G1: Aberto (Lago) | I1: Pivô | J1: 20 | K1: Cana | M1: Própria (energia gerada na propriedade) | O1: Tela | Q1: Tab_Parametros_Culturas
A2: Rio (Barragem) | C2: 2 | E2: Não | G2: Fechado (Caixa d'água) | I2: Micro-aspersor | J2: XX% | K2: Soja | M2: Rede | O2: Disco | Q2: Tab_Custo_Fixo_Sistema
A3: Direta (fio d'agua) | C3: 3 | G3: Não possui (Bombeamento direto para o sistema de irrigação) | I3: Gotejamento | J3: 0 | K3: Citros | O3: Areia | Q3: Tab_Custo_Capital
C4: 4 | J4: #N/D | K4: Milho | O4: Misto | Q4: Tab_Rateio_Custo_Fixo_Cana
C5: 5 | K5: Outras (genérico) | Q5: Tab_Rateio_Custo_Fixo_Soja
C6: 6 | K6: Soja-Milho | Q6: Tab_Rateio_Custo_Fixo_Citros
C7: 7 | Q7: Tab_Rateio_Custo_Fixo_Milho
C8: 8 | Q8: Tab_Rateio_Custo_Fixo_Outras
C9: 9 | Q9: Tab_Custo_Operacional_Sistema
C10: 10 | Q10: Tab_Custo_Operacional_Cana
C11: 11 | Q11: Tab_Custo_Operacional_Soja
C12: 12 | Q12: Tab_Custo_Operacional_Citros
C13: 13 | Q13: Tab_Custo_Operacional_Milho
C14: 14 | Q14: Tab_Custo_Operacional_Outras
C15: 15 | Q15: Tab_Benefício_Produtividade_Sistema
C16: 16 | Q16: Tab_Benefício_por_Cultura
C17: 17 | Q17: Tab_Custo_Total_Sistema
C18: 18 | Q18: Tab_Custo_Total_por_Cultura
C19: 19 | Q19: Tab_Lucro_Sistema
C20: 20 | Q20: Tab_Lucro_Cana_Produtividade
C21: 21 | Q21: Tab_Lucro_por_Cultura
C22: 22 | Q22: Graf_Composição_Custo_Fixo
C23: 23 | Q23: Graf_Custo_Fixo_Anual
C24: 24 | Q24: Graf_CF_Anual_ha
C25: 25 | Q25: Graf_CF_Anual_mm
C26: 26 | Q26: Graf_Composição_Custo_Operacional
C27: 27 | Q27: Graf_Custo_Operacional_Anual
C28: 28 | Q28: Graf_Custo_Operacional_ha
C29: 29 | Q29: Graf_Custo_Operacional_mm
C30: 30 | Q30: Graf_Produtividades
C31: 31 | Q31: Graf_Receitas
C32: 32 | Q32: Graf_Margem_Lucro_Anual_Sistema
C33: 33
C34: 34 | Q34: Graf_Lucro_ha_Sistema
C35: 35 | Q35: Graf_Lucro_mm_Sistema
C36: 36 | Q36: Graf_Lucro_Cana_Anual_produtividade
C37: 37 | Q37: Graf_Lucro_Cana_ha_produtividade
C38: 38 | Q38: Graf_Lucro_Cana_mm_produtividade
C39: 39 | Q39: Graf_Lucro_Soja_Anual
C40: 40 | Q40: Graf_Lucro_Soja_ha
C41: 41 | Q41: Graf_Lucro_Soja_mm
C42: 42 | Q42: Graf_Lucro_Citros_Anual
C43: 43 | Q43: Graf_Lucro_Citros_ha
C44: 44 | Q44: Graf_Lucro_Citros_mm
C45: 45 | Q45: Graf_Lucro_Milho_Anual
C46: 46 | Q46: Graf_Lucro_Milho_ha
C47: 47 | Q47: Graf_Lucro_Milho_mm
C48: 48 | Q48: Graf_Lucro_Outras_Anual
C49: 49 | Q49: Graf_Lucro_Outras_ha
C50: 50 | Q50: Graf_Lucro_Outras_mm
C51: 51 | Q51: Tab_Resultados_Fluxo_Caixa_TIR_VPLs_PAYBACKs
C52: 52 | Q52: Tab_Benefício_Depreciação_Canavial
C53: 53 | Q53: Tab_Cana_Benefício_Indireto_Colheita
C54: 54 | Q54: Tab_Cana_Receita_Total_Beneficios_Direto_produtividade_longevidade
C55: 55 | Q55: Tab_Cana_Receita_Beneficios_Totais_produtividade_longevidade_colheita
C56: 56 | Q56: Tab_Cana_Lucro_sobre_benefícios_diretos_produtividade_e_longevidade
C57: 57 | Q57: Tab_Cana_Lucro_sobre_benefícios_totais__produtividade__longevidade_e_colheita
C58: 58
C59: 59
C60: 60
C61: 61
C62: 62
C63: 63
C64: 64
C65: 65
C66: 66
C67: 67
C68: 68
C69: 69
C70: 70
C71: 71
C72: 72
C73: 73
C74: 74
C75: 75
C76: 76
C77: 77
C78: 78
C79: 79
C80: 80
C81: 81
C82: 82
C83: 83
C84: 84
C85: 85
C86: 86
C87: 87
C88: 88
C89: 89
C90: 90
C91: 91
C92: 92
C93: 93
C94: 94
C95: 95
C96: 96
C97: 97
C98: 98
C99: 99
C100: 100
C101: 101
C102: 102
C103: 103
C104: 104
C105: 105
C106: 106
C107: 107
C108: 108
C109: 109
C110: 110
C111: 111
C112: 112
C113: 113
C114: 114
C115: 115
C116: 116
C117: 117
C118: 118
C119: 119
C120: 120
C121: 121
C122: 122
C123: 123
C124: 124
C125: 125
C126: 126
C127: 127
C128: 128
C129: 129
C130: 130
C131: 131
C132: 132
C133: 133
C134: 134
C135: 135
C136: 136
C137: 137
C138: 138
C139: 139
C140: 140
C141: 141
C142: 142
C143: 143
C144: 144
C145: 145
C146: 146
C147: 147
C148: 148
C149: 149
C150: 150
C151: 151
C152: 152
C153: 153
C154: 154
C155: 155
C156: 156
C157: 157
C158: 158
C159: 159
C160: 160
C161: 161
C162: 162
C163: 163
C164: 164
C165: 165
C166: 166
C167: 167
C168: 168
C169: 169
C170: 170
C171: 171
C172: 172
C173: 173
C174: 174
C175: 175
C176: 176
C177: 177
C178: 178
C179: 179
C180: 180
C181: 181
C182: 182
C183: 183
C184: 184
C185: 185
C186: 186
C187: 187
C188: 188
C189: 189
C190: 190
C191: 191
C192: 192
C193: 193
C194: 194
C195: 195
C196: 196
C197: 197
C198: 198
C199: 199
C200: 200
... 220 more rows

Sheet Benefícios Indiretos
B2: Selecione a Cultura
B3: Cana | R3: Produtividade Kg ha-1 | S3: Nfix Kg ha-1
D4: Custo de colheita em função da produtividade (Teixeira) | E4: Custo de colheita em função da produtividade (Bastos) | F4: 0.0036*(x^2)-0.729*x+43.875 | G4: =2*0.0036 -> 0.0072 | H4: x | I4: -0.729 | J4: = | K4: 0 | L4: =-I4/G4 -> 101.25 | R4: 2610 | S4: 0
B5: Produtividade Cana Sequeiro (ton/ha) | D5: =0.0036*(C5^2)-0.729*C5+43.875 -> 43.875 | E5: =0.0012*(C5^2)-0.3097*C5+25.175 -> 25.175 | F5: 0.0012*(x^2)-0.3097*x+25.175 | G5: =0.0012*2 -> 0.0024 | H5: x | I5: -0.3097 | J5: = | K5: 0 | L5: =-I5/G5 -> 129.0416667 | R5: 2670 | S5: 29.64
B6: Produtividade Cana irrigado (ton/ha) | D6: =0.0036*(C6^2)-0.729*C6+43.875 -> 43.875 | E6: =0.0012*(C6^2)-0.3097*C6+25.175 -> 25.175 | R6: 2890 | S6: 1.43
B7: Benefício da Colheita R$/t | D7: =D5-D6 -> 0 | E7: =E5-E6 -> 0 | R7: 3000 | S7: 14.04
B8: Custo de formação do Canavial (R$/ha.reformado) | R8: 3010 | S8: 5.46
B9: Longevidade Canavial Sequeiro | R9: 3020 | S9: 36.79
B10: Longevidade Canavial Irrigado | R10: 3210 | S10: 6.89
B11: Benefício da redução da depreciação (R$/ha) | R11: 3330 | S11: 9.88
D12: Fixação de Nitrogênio em função da produtividade Kg*ha | R12: 3350 | S12: 16.38
B13: Produtividade Soja Sequeiro (ton/ha) | D13: =1.7641*C15+6.2583 -> 6.2583 | R13: 3360 | S13: 17.42
B14: Produtividade Soja irrigado (ton/ha) | R14: 3390 | S14: 28.08
B15: Aumento Produtividade Soja (ton/ha) | R15: 3520 | S15: 23.92
R16: 3520 | S16: 18.98
R17: 3530 | S17: 22.1
R18: 3650 | S18: 52.78
R19: 3670 | S19: 13.78
R20: 3800 | S20: 65.65
R21: 3810 | S21: 35.36
R22: 3840 | S22: 40.82
R23: 3850 | S23: 22.62
R24: 4060 | S24: 37.18
R25: 4090 | S25: 21.06
R26: 4160 | S26: 36.53
R27: 4260 | S27: 53.43
R28: 4270 | S28: 68.77
R29: 4380 | S29: 35.23
R30: 4390 | S30: 31.98
R31: 4700 | S31: 42.9
R32: 4760 | S32: 57.98
R33: 4920 | S33: 101.79

Sheet Visualização dos Resultados
C4: Selecione o indicador desejado:
C5: Graf_Lucro_ha_Sistema

Sheet Monte-Carlo Cana (hidden)
A1: Váriavel | B1: ='Casa de Bombas'!B20 -> Custo da energia elétrica (R$/kWh) | C1: ='tab resultados'!$A$9&'tab resultados'!B4 -> Preço de vendaCana | D1: ='tab resultados'!$A$9&'tab resultados'!C4 -> Preço de vendaSoja | E1: ='tab resultados'!$A$9&'tab resultados'!E4 -> Preço de vendaMilho | F1: Aumento Produtividade Cana | G1: Aumento Produtividade Soja | H1: Aumento Produtividade Milho | J1: InflaCana | K1: ='Fluxo de Caixa'!D1 -> 0.08996420769 | M1: InflaSoja | N1: ='Fluxo de Caixa'!G1 -> 0.09230786448 | P1: ='Fluxo de Caixa'!I1 -> InflaCitros | Q1: ='Fluxo de Caixa'!J1 -> 1 | S1: ='Fluxo de Caixa'!L1 -> InflaMilho | T1: ='Fluxo de Caixa'!M1 -> 0.0596564993 | V1: ='Fluxo de Caixa'!O1 -> IPCA | W1: ='Fluxo de Caixa'!P1 -> 0.06058666667 | Y1: ='Fluxo de Caixa'!R1 -> InflaEnerg | Z1: ='Fluxo de Caixa'!S1 -> 0.1151160915 | AB1: Taxa de desconto | AC1: ='tab resultados'!B1 -> 0.05560090516
A2: Coeficiente de Variação | B2: =51.2358492940591/1000 -> 0.05123584929 | C2: =(0.0911805403493057*Cultura!C23)/1000 -> 0 | D2: =AVERAGE(D5:D6) -> 0.2338298454 | E2: =AVERAGE(E5:E6) -> 0.1225021435 | F2: 4866.637991 | G2: 313.2621019 | H2: 1071.961558 | EA2: Desconto grupo A atual | EC2: Desconto grupo A futuro | EF2: Aumento sobre a tarifa
A3: Média | B3: ='Casa de Bombas'!C20 -> 0 | C3: =PreVenCana -> 0 | D3: =PreVenSoja -> 0 | E3: =PreVenMilho -> 0 | F3: =AumPrCana ->  | G3: =AumPrSoja ->  | H3: =AumPrMilho ->  | EA3: 0.1 | EC3: 0 | ED3: =EA3-EC3 -> 0.1 | EE3: =1-ED3 -> 0.9 | EF3: =1/EE3 -> 1.111111111
EA4: Desconto grupo B atual | EC4: Desconto grupo B futuro
D5: 0.2231410501 | E5: 0.1202000816 | EA5: 0.3 | EC5: 0 | ED5: =EA5-EC5 -> 0.3 | EE5: =1-ED5 -> 0.7 | EF5: =1/EE5 -> 1.428571429
D6: 0.2445186407 | E6: 0.1248042054 | ED6: Tarifa media deflacionada leilões usina GO
H7: 0.5475 | EF7: =160.03/1000 -> 0.16003
H8: 129.41 | DX8: Real | EC8: A | EE8: B | EG8: L | EL8: =DX8 -> Real | EN8: A | EP8: B | ER8: L
B9: =0.0911805403493057 -> 0.09118054035 | C9: R$ | D9: * | E9: 129.41 | F9: Kg ATR | G9: = | H9: =E9*B9 -> 11.79967373 | I9: Preço por kg | J9: =H9/1000 -> 0.01179967373 | DX9: Mínimo | DY9: =MIN(DY15:DY1014) ->  | EC9: Mínimo | ED9: =MIN(EC15:EC1014) ->  | EE9: Mínimo | EF9: =MIN(EE15:EE1014) ->  | EG9: Mínimo | EH9: =MIN(EG15:EG1014) ->  | EL9: =DX9 -> Mínimo | EN9: =ED9 ->  | EO9: =(EN9-$EM9)/$EM9 ->  | EP9: =EF9 ->  | EQ9: =(EP9-$EM9)/$EM9 ->  | ER9: =EH9 ->  | ES9: =($EM$9-ER9)/$EM$9 -> 
C10: Kg atr | F10: ton Cana | DX10: Máximo | DY10: =MAX(DY15:DY1014) ->  | EC10: Máximo | ED10: =MAX(EC15:EC1014) ->  | EE10: Máximo | EF10: =MAX(EE15:EE1014) ->  | EG10: Máximo | EH10: =MAX(EG15:EG1014) ->  | EL10: Máximo | EO10: =(EN10-$EM10)/$EM10 ->  | EP10: =EF10 ->  | EQ10: =(EP10-$EM10)/$EM10 ->  | ER10: =EH10 ->  | ES10: =($EM$9-ER10)/$EM$9 -> 
DX11: Média | DY11: =AVERAGE(DY15:DY1014) ->  | EC11: Média | ED11: =AVERAGE(EC15:EC1014) ->  | EE11: Média | EF11: =AVERAGE(EE15:EE1014) ->  | EG11: Média | EH11: =AVERAGE(EG15:EG1014) ->  | EL11: Média
C12: 0 | H12: 1 | M12: 2 | R12: 3 | W12: 4 | AB12: 5 | AG12: 6 | AL12: 7 | AQ12: 8 | AV12: 9 | BA12: 10 | BF12: 11 | BK12: 12 | BP12: 13 | BU12: 14 | BZ12: 15 | CE12: 16 | CJ12: 17 | CO12: 18 | CT12: 19 | CY12: 20 | DX12: Desvio-padrão | DY12: =_xlfn.STDEV.S(DY15:DY1014) ->  | EC12: Desvio-padrão | ED12: =_xlfn.STDEV.S(EC15:EC1014) ->  | EE12: Desvio-padrão | EF12: =_xlfn.STDEV.S(EE15:EE1014) ->  | EG12: Desvio-padrão | EH12: =_xlfn.STDEV.S(EG15:EG1014) ->  | EL12: Desvio-padrão
C13: Preço Eletr 0 | D13: Cust Total 0 | E13: PreVen A 0 | F13: AumProd A 0 | G13: Rec Total 0 | H13: preço eletr 1 | I13: Cust Total 1 | J13: PreVen A 1 | K13: AumProd A 1 | L13: Rec Total 1 | M13: preço eletr 2 | N13: Cust Total 2 | O13: PreVen A 2 | P13: AumProd A 2 | Q13: Rec Total 2 | R13: preço eletr 3 | S13: Cust Total 3 | T13: PreVen A 3 | U13: AumProd A 3 | V13: Rec Total 3 | W13: preço eletr 4 | X13: Cust Total 4 | Y13: PreVen A 4 | Z13: AumProd A 4 | AA13: Rec Total 4 | AB13: preço eletr 5 | AC13: Cust Total 5 | AD13: PreVen A 5 | AE13: AumProd A 5 | AF13: Rec Total 5 | AG13: preço eletr 6 | AH13: Cust Total 6 | AI13: PreVen A 6 | AJ13: AumProd A 6 | AK13: Rec Total 6 | AL13: preço eletr 7 | AM13: Cust Total 7 | AN13: PreVen A 7 | AO13: AumProd A 7 | AP13: Rec Total 7 | AQ13: preço eletr 8 | AR13: Cust Total 8 | AS13: PreVen A 8 | AT13: AumProd A 8 | AU13: Rec Total 8 | AV13: preço eletr 9 | AW13: Cust Total 9 | AX13: PreVen A 9 | AY13: AumProd A 9 | AZ13: Rec Total 9 | BA13: preço eletr 10 | BB13: Cust Total 10 | BC13: PreVen A 10 | BD13: AumProd A 10 | BE13: Rec Total 10 | BF13: preço eletr 11 | BG13: Cust Total 11 | BH13: PreVen A 11 | BI13: AumProd A 11 | BJ13: Rec Total 11 | BK13: preço eletr 12 | BL13: Cust Total 12 | BM13: PreVen A 12 | BN13: AumProd A 12 | BO13: Rec Total 12 | BP13: preço eletr 13 | BQ13: Cust Total 13 | BR13: PreVen A 13 | BS13: AumProd A 13 | BT13: Rec Total 13 | BU13: preço eletr 14 | BV13: Cust Total 14 | BW13: PreVen A 14 | BX13: AumProd A 14 | BY13: Rec Total 14 | BZ13: preço eletr 15 | CA13: Cust Total 15 | CB13: PreVen A 15 | CC13: AumProd A 15 | CD13: Rec Total 15 | CE13: preço eletr 16 | CF13: Cust Total 16 | CG13: PreVen A 16 | CH13: AumProd A 16 | CI13: Rec Total 16 | CJ13: preço eletr 17 | CK13: Cust Total 17 | CL13: PreVen A 17 | CM13: AumProd A 17 | CN13: Rec Total 17 | CO13: preço eletr 18 | CP13: Cust Total 18 | CQ13: PreVen A 18 | CR13: AumProd A 18 | CS13: Rec Total 18 | CT13: preço eletr 19 | CU13: Cust Total 19 | CV13: PreVen A 19 | CW13: AumProd A 19 | CX13: Rec Total 19 | CY13: preço eletr 20 | CZ13: Cust Total 20 | DA13: PreVen A 20 | DB13: AumProd A 20 | DC13: Rec Total 20 | DD13: FCL 0 | DE13: FCL 1 | DF13: FCL 2 | DG13: FCL 3 | DH13: FCL 4 | DI13: FCL 5 | DJ13: FCL 6 | DK13: FCL 7 | DL13: FCL 8 | DM13: FCL 9 | DN13: FCL 10 | DO13: FCL 11 | DP13: FCL 12 | DQ13: FCL 13 | DR13: FCL 14 | DS13: FCL 15 | DT13: FCL 16 | DU13: FCL 17 | DV13: FCL 18 | DW13: FCL 19 | DX13: FCL 20 | DY13: VPL | DZ13: Prob | EC13: VPL grupo a | ED13: Prob a | EE13: VPL grupo b | EF13: Prob b | EG13: VPL leilão | EH13: Prob L
B14: Base | C14: 0 | D14: =SUM('Fluxo de Caixa'!C15:C27)+(C14*'Casa de Bombas'!C19) -> 0 | G14: =F14*AreaCana*E14 -> 0 | H14: =$B$3*((1+$Z$1)^H$12) -> 0 | I14: =SUM('Fluxo de Caixa'!$D$15:$D$27)+(H14*'Casa de Bombas'!$C$19) -> 0 | J14: =$C$3*((1+$K$1)^H$12) -> 0 | K14: =AumPrCana ->  | L14: =K14*AreaCana*J14 ->  | M14: =$B$3*((1+$Z$1)^M$12) -> 0 | N14: =SUM('Fluxo de Caixa'!E15:E27)+(M14*'Casa de Bombas'!$C$19) -> 0 | O14: =$C$3*((1+$K$1)^M$12) -> 0 | P14: =AumPrCana ->  | Q14: =P14*AreaCana*O14 ->  | R14: =$B$3*((1+$Z$1)^R$12) -> 0 | S14: =SUM('Fluxo de Caixa'!F15:F27)+(R14*'Casa de Bombas'!$C$19) -> 0 | T14: =$C$3*((1+$K$1)^R$12) -> 0 | U14: =AumPrCana ->  | V14: =U14*AreaCana*T14 ->  | W14: =$B$3*((1+$Z$1)^W$12) -> 0 | X14: =SUM('Fluxo de Caixa'!G15:G27)+(W14*'Casa de Bombas'!$C$19) -> 0 | Y14: =$C$3*((1+$K$1)^W$12) -> 0 | Z14: =AumPrCana ->  | AA14: =Z14*AreaCana*Y14 ->  | AB14: =$B$3*((1+$Z$1)^AB$12) -> 0 | AC14: =SUM('Fluxo de Caixa'!H15:H27)+(AB14*'Casa de Bombas'!$C$19) -> 0 | AD14: =$C$3*((1+$K$1)^AB$12) -> 0 | AE14: =AumPrCana ->  | AF14: =AE14*AreaCana*AD14 ->  | AG14: =$B$3*((1+$Z$1)^AG$12) -> 0 | AH14: =SUM('Fluxo de Caixa'!I15:I27)+(AG14*'Casa de Bombas'!$C$19) -> 0 | AI14: =$C$3*((1+$K$1)^AG$12) -> 0 | AJ14: =AumPrCana ->  | AK14: =AJ14*AreaCana*AI14 ->  | AL14: =$B$3*((1+$Z$1)^AL$12) -> 0 | AM14: =SUM('Fluxo de Caixa'!J15:J27)+(AL14*'Casa de Bombas'!$C$19) -> 0 | AN14: =$C$3*((1+$K$1)^AL$12) -> 0 | AO14: =AumPrCana ->  | AP14: =AO14*AreaCana*AN14 ->  | AQ14: =$B$3*((1+$Z$1)^AQ$12) -> 0 | AR14: =SUM('Fluxo de Caixa'!K15:K27)+(AQ14*'Casa de Bombas'!$C$19) -> 0 | AS14: =$C$3*((1+$K$1)^AQ$12) -> 0 | AT14: =AumPrCana ->  | AU14: =AT14*AreaCana*AS14 ->  | AV14: =$B$3*((1+$Z$1)^AV$12) -> 0 | AW14: =SUM('Fluxo de Caixa'!L15:L27)+(AV14*'Casa de Bombas'!$C$19) -> 0 | AX14: =$C$3*((1+$K$1)^AV$12) -> 0 | AY14: =AumPrCana ->  | AZ14: =AY14*AreaCana*AX14 ->  | BA14: =$B$3*((1+$Z$1)^BA$12) -> 0 | BB14: =SUM('Fluxo de Caixa'!M15:M27)+(BA14*'Casa de Bombas'!$C$19) -> 0 | BC14: =$C$3*((1+$K$1)^BA$12) -> 0 | BD14: =AumPrCana ->  | BE14: =BD14*AreaCana*BC14 ->  | BF14: =$B$3*((1+$Z$1)^BF$12) -> 0 | BG14: =SUM('Fluxo de Caixa'!N15:N27)+(BF14*'Casa de Bombas'!$C$19) -> 0 | BH14: =$C$3*((1+$K$1)^BF$12) -> 0 | BI14: =AumPrCana ->  | BJ14: =BI14*AreaCana*BH14 ->  | BK14: =$B$3*((1+$Z$1)^BK$12) -> 0 | BL14: =SUM('Fluxo de Caixa'!O15:O27)+(BK14*'Casa de Bombas'!$C$19) -> 0 | BM14: =$C$3*((1+$K$1)^BK$12) -> 0 | BN14: =AumPrCana ->  | BO14: =BN14*AreaCana*BM14 ->  | BP14: =$B$3*((1+$Z$1)^BP$12) -> 0 | BQ14: =SUM('Fluxo de Caixa'!P15:P27)+(BP14*'Casa de Bombas'!$C$19) -> 0 | BR14: =$C$3*((1+$K$1)^BP$12) -> 0 | BS14: =AumPrCana ->  | BT14: =BS14*AreaCana*BR14 ->  | BU14: =$B$3*((1+$Z$1)^BU$12) -> 0 | BV14: =SUM('Fluxo de Caixa'!Q15:Q27)+(BU14*'Casa de Bombas'!$C$19) -> 0 | BW14: =$C$3*((1+$K$1)^BU$12) -> 0 | BX14: =AumPrCana ->  | BY14: =BX14*AreaCana*BW14 ->  | BZ14: =$B$3*((1+$Z$1)^BZ$12) -> 0 | CA14: =SUM('Fluxo de Caixa'!R15:R27)+(BZ14*'Casa de Bombas'!$C$19) -> 0 | CB14: =$C$3*((1+$K$1)^BZ$12) -> 0 | CC14: =AumPrCana ->  | CD14: =CC14*AreaCana*CB14 ->  | CE14: =$B$3*((1+$Z$1)^CE$12) -> 0 | CF14: =SUM('Fluxo de Caixa'!S15:S27)+(CE14*'Casa de Bombas'!$C$19) -> 0 | CG14: =$C$3*((1+$K$1)^CE$12) -> 0 | CH14: =AumPrCana ->  | CI14: =CH14*AreaCana*CG14 ->  | CJ14: =$B$3*((1+$Z$1)^CJ$12) -> 0 | CK14: =SUM('Fluxo de Caixa'!T15:T27)+(CJ14*'Casa de Bombas'!$C$19) -> 0 | CL14: =$C$3*((1+$K$1)^CJ$12) -> 0 | CM14: =AumPrCana ->  | CN14: =CM14*AreaCana*CL14 ->  | CO14: =$B$3*((1+$Z$1)^CO$12) -> 0 | CP14: =SUM('Fluxo de Caixa'!U15:U27)+(CO14*'Casa de Bombas'!$C$19) -> 0 | CQ14: =$C$3*((1+$K$1)^CO$12) -> 0 | CR14: =AumPrCana ->  | CS14: =CR14*AreaCana*CQ14 ->  | CT14: =$B$3*((1+$Z$1)^CT$12) -> 0 | CU14: =SUM('Fluxo de Caixa'!V15:V27)+(CT14*'Casa de Bombas'!$C$19) -> 0 | CV14: =$C$3*((1+$K$1)^CT$12) -> 0 | CW14: =AumPrCana ->  | CX14: =CW14*AreaCana*CV14 ->  | CY14: =$B$3*((1+$Z$1)^CY$12) -> 0 | CZ14: =SUM('Fluxo de Caixa'!W15:W18)+(CY14*'Casa de Bombas'!$C$19) -> 0 | DA14: =$C$3*((1+$K$1)^CY$12) -> 0 | DB14: =AumPrCana ->  | DC14: =DB14*AreaCana*DA14-'Fluxo de Caixa'!$W$23 ->  | DD14: =G14-D14 -> 0 | DE14: =L14-I14 ->  | DF14: =Q14-N14 ->  | DG14: =V14-S14 ->  | DH14: =AA14-X14 ->  | DI14: =AF14-AC14 ->  | DJ14: =AK14-AH14 ->  | DK14: =AP14-AM14 ->  | DL14: =AU14-AR14 ->  | DM14: =AZ14-AW14 ->  | DN14: =BE14-BB14 ->  | DO14: =BJ14-BG14 ->  | DP14: =BO14-BL14 ->  | DQ14: =BT14-BQ14 ->  | DR14: =BY14-BV14 ->  | DS14: =CD14-CA14 ->  | DT14: =CI14-CF14 ->  | DU14: =CN14-CK14 ->  | DV14: =CS14-CP14 ->  | DW14: =CX14-CU14 ->  | DX14: =DC14-CZ14 ->  | DY14: =NPV($AC$1,DD14:DX14) ->  | DZ14: =_xlfn.NORM.DIST(DY14,$DY$11,$DY$12,TRUE) -> 
B15: 1 | C15: =$C$14 -> 0 | D15: =D14 -> 0 | E15: 0 | F15: 0 | G15: 0 | H15: =_xlfn.NORM.INV(RAND(),H$14,$B$2) -> 0.07822606425 | I15: =SUM('Fluxo de Caixa'!$D$15:$D$27)+(H15*'Casa de Bombas'!$C$19) -> 0 | J15: =_xlfn.NORM.INV(RAND(),J$14,$C$2) ->  | K15: =_xlfn.NORM.INV(RAND(),K$14,$F$2) ->  | M15: =_xlfn.NORM.INV(RAND(),M$14,$B$2) -> 0.03671438099 | N15: =SUM('Fluxo de Caixa'!$E$15:$E$27)+(M15*'Casa de Bombas'!$C$19) -> 0 | O15: =_xlfn.NORM.INV(RAND(),O$14,$C$2) ->  | P15: =_xlfn.NORM.INV(RAND(),P$14,$F$2) ->  | R15: =_xlfn.NORM.INV(RAND(),R$14,$B$2) -> -0.02598395678 | S15: =SUM('Fluxo de Caixa'!$F$15:$F$27)+(R15*'Casa de Bombas'!$C$19) -> 0 | T15: =_xlfn.NORM.INV(RAND(),T$14,$C$2) ->  | U15: =_xlfn.NORM.INV(RAND(),U$14,$F$2) ->  | W15: =_xlfn.NORM.INV(RAND(),W$14,$B$2) -> 0.005801309525 | X15: =SUM('Fluxo de Caixa'!$G$15:$G$27)+(W15*'Casa de Bombas'!$C$19) -> 0 | Y15: =_xlfn.NORM.INV(RAND(),Y$14,$C$2) ->  | Z15: =_xlfn.NORM.INV(RAND(),Z$14,$F$2) ->  | AB15: =_xlfn.NORM.INV(RAND(),AB$14,$B$2) -> -0.06747748209 | AC15: =SUM('Fluxo de Caixa'!$H$15:$H$27)+(AB15*'Casa de Bombas'!$C$19) -> 0 | AD15: =_xlfn.NORM.INV(RAND(),AD$14,$C$2) ->  | AE15: =_xlfn.NORM.INV(RAND(),AE$14,$F$2) ->  | AG15: =_xlfn.NORM.INV(RAND(),AG$14,$B$2) -> 0.03324652565 | AH15: =SUM('Fluxo de Caixa'!$I$15:$I$27)+(AG15*'Casa de Bombas'!$C$19) -> 0 | AI15: =_xlfn.NORM.INV(RAND(),AI$14,$C$2) ->  | AJ15: =_xlfn.NORM.INV(RAND(),AJ$14,$F$2) ->  | AL15: =_xlfn.NORM.INV(RAND(),AL$14,$B$2) -> -0.03376843705 | AM15: =SUM('Fluxo de Caixa'!$J$15:$J$27)+(AL15*'Casa de Bombas'!$C$19) -> 0 | AN15: =_xlfn.NORM.INV(RAND(),AN$14,$C$2) ->  | AO15: =_xlfn.NORM.INV(RAND(),AO$14,$F$2) ->  | AQ15: =_xlfn.NORM.INV(RAND(),AQ$14,$B$2) -> 0.003959062624 | AR15: =SUM('Fluxo de Caixa'!$K$15:$K$27)+(AQ15*'Casa de Bombas'!$C$19) -> 0 | AS15: =_xlfn.NORM.INV(RAND(),AS$14,$C$2) ->  | AT15: =_xlfn.NORM.INV(RAND(),AT$14,$F$2) ->  | AV15: =_xlfn.NORM.INV(RAND(),AV$14,$B$2) -> 0.03899889066 | AW15: =SUM('Fluxo de Caixa'!$L$15:$L$27)+(AV15*'Casa de Bombas'!$C$19) -> 0 | AX15: =_xlfn.NORM.INV(RAND(),AX$14,$C$2) ->  | AY15: =_xlfn.NORM.INV(RAND(),AY$14,$F$2) ->  | BA15: =_xlfn.NORM.INV(RAND(),BA$14,$B$2) -> -0.04789205476 | BB15: =SUM('Fluxo de Caixa'!$M$15:$M$27)+(BA15*'Casa de Bombas'!$C$19) -> 0 | BC15: =_xlfn.NORM.INV(RAND(),BC$14,$C$2) ->  | BD15: =_xlfn.NORM.INV(RAND(),BD$14,$F$2) ->  | BF15: =_xlfn.NORM.INV(RAND(),BF$14,$B$2) -> 0.0253134788 | BG15: =SUM('Fluxo de Caixa'!$N$15:$N$27)+(BF15*'Casa de Bombas'!$C$19) -> 0 | BH15: =_xlfn.NORM.INV(RAND(),BH$14,$C$2) ->  | BI15: =_xlfn.NORM.INV(RAND(),BI$14,$F$2) ->  | BK15: =_xlfn.NORM.INV(RAND(),BK$14,$B$2) -> -0.02541441838 | BL15: =SUM('Fluxo de Caixa'!$O$15:$O$27)+(BK15*'Casa de Bombas'!$C$19) -> 0 | BM15: =_xlfn.NORM.INV(RAND(),BM$14,$C$2) ->  | BN15: =_xlfn.NORM.INV(RAND(),BN$14,$F$2) ->  | BP15: =_xlfn.NORM.INV(RAND(),BP$14,$B$2) -> -0.04937373607 | BQ15: =SUM('Fluxo de Caixa'!$P$15:$P$27)+(BP15*'Casa de Bombas'!$C$19) -> 0 | BR15: =_xlfn.NORM.INV(RAND(),BR$14,$C$2) ->  | BS15: =_xlfn.NORM.INV(RAND(),BS$14,$F$2) ->  | BU15: =_xlfn.NORM.INV(RAND(),BU$14,$B$2) -> -0.04214309061 | BV15: =SUM('Fluxo de Caixa'!$Q$15:$Q$27)+(BU15*'Casa de Bombas'!$C$19) -> 0 | BW15: =_xlfn.NORM.INV(RAND(),BW$14,$C$2) ->  | BX15: =_xlfn.NORM.INV(RAND(),BX$14,$F$2) ->  | BZ15: =_xlfn.NORM.INV(RAND(),BZ$14,$B$2) -> 0.06479628446 | CA15: =SUM('Fluxo de Caixa'!$R$15:$R$27)+(BZ15*'Casa de Bombas'!$C$19) -> 0 | CB15: =_xlfn.NORM.INV(RAND(),CB$14,$C$2) ->  | CC15: =_xlfn.NORM.INV(RAND(),CC$14,$F$2) ->  | CE15: =_xlfn.NORM.INV(RAND(),CE$14,$B$2) -> -0.03456580324 | CF15: =SUM('Fluxo de Caixa'!$S$15:$S$27)+(CE15*'Casa de Bombas'!$C$19) -> 0 | CG15: =_xlfn.NORM.INV(RAND(),CG$14,$C$2) ->  | CH15: =_xlfn.NORM.INV(RAND(),CH$14,$F$2) ->  | CJ15: =_xlfn.NORM.INV(RAND(),CJ$14,$B$2) -> -0.03875585316 | CK15: =SUM('Fluxo de Caixa'!$T$15:$T$27)+(CJ15*'Casa de Bombas'!$C$19) -> 0 | CL15: =_xlfn.NORM.INV(RAND(),CL$14,$C$2) ->  | CM15: =_xlfn.NORM.INV(RAND(),CM$14,$F$2) ->  | CO15: =_xlfn.NORM.INV(RAND(),CO$14,$B$2) -> 0.003930202126 | CP15: =SUM('Fluxo de Caixa'!$U$15:$U$27)+(CO15*'Casa de Bombas'!$C$19) -> 0 | CQ15: =_xlfn.NORM.INV(RAND(),CQ$14,$C$2) ->  | CR15: =_xlfn.NORM.INV(RAND(),CR$14,$F$2) ->  | CT15: =_xlfn.NORM.INV(RAND(),CT$14,$B$2) -> 0.006751678613 | CU15: =SUM('Fluxo de Caixa'!$V$15:$V$27)+(CT15*'Casa de Bombas'!$C$19) -> 0 | CV15: =_xlfn.NORM.INV(RAND(),CV$14,$C$2) ->  | CW15: =_xlfn.NORM.INV(RAND(),CW$14,$F$2) ->  | CY15: =_xlfn.NORM.INV(RAND(),CY$14,$B$2) -> 0.0233545765 | CZ15: =SUM('Fluxo de Caixa'!$W$15:$W$18)+(CY15*'Casa de Bombas'!$C$19) -> 0 | DA15: =_xlfn.NORM.INV(RAND(),DA$14,$C$2) ->  | DB15: =_xlfn.NORM.INV(RAND(),DB$14,$F$2) ->  | DC15: =DB15*AreaCana*DA15-'Fluxo de Caixa'!W21-'Fluxo de Caixa'!W23 ->  | DD15: =G15-D15 -> 0 | DE15: =L15-I15 ->  | DF15: =Q15-N15 ->  | DG15: =V15-S15 ->  | DH15: =AA15-X15 ->  | DI15: =AF15-AC15 ->  | DJ15: =AK15-AH15 ->  | DK15: =AP15-AM15 ->  | DL15: =AU15-AR15 ->  | DM15: =AZ15-AW15 ->  | DN15: =BE15-BB15 ->  | DO15: =BJ15-BG15 ->  | DP15: =BO15-BL15 ->  | DQ15: =BT15-BQ15 ->  | DR15: =BY15-BV15 ->  | DS15: =CD15-CA15 ->  | DT15: =CI15-CF15 ->  | DU15: =CN15-CK15 ->  | DV15: =CS15-CP15 ->  | DW15: =CX15-CU15 ->  | DX15: =DC15-CZ15 ->  | DY15: =NPV($AC$1,DD15:DX15) ->  | DZ15: =_xlfn.NORM.DIST(DY15,$DY$11,$DY$12,TRUE) ->  | ED15: =_xlfn.NORM.DIST(EC15,$ED$11,$ED$12,TRUE) ->  | EF15: =_xlfn.NORM.DIST(EE15,$EF$11,$EF$12,TRUE) ->  | EH15: =_xlfn.NORM.DIST(EG15,$EH$11,$EH$12,TRUE) -> 
B16: 2 | C16: =$C$14 -> 0 | D16: =D15 -> 0 | E16: 0 | F16: 0 | G16: =G15 -> 0 | H16: =_xlfn.NORM.INV(RAND(),H$14,$B$2) -> 0.05360163643 | I16: =SUM('Fluxo de Caixa'!$D$15:$D$27)+(H16*'Casa de Bombas'!$C$19) -> 0 | J16: =_xlfn.NORM.INV(RAND(),J$14,$C$2) ->  | K16: =_xlfn.NORM.INV(RAND(),K$14,$F$2) ->  | M16: =_xlfn.NORM.INV(RAND(),M$14,$B$2) -> 0.1206344308 | N16: =SUM('Fluxo de Caixa'!$E$15:$E$27)+(M16*'Casa de Bombas'!$C$19) -> 0 | O16: =_xlfn.NORM.INV(RAND(),O$14,$C$2) ->  | P16: =_xlfn.NORM.INV(RAND(),P$14,$F$2) ->  | R16: =_xlfn.NORM.INV(RAND(),R$14,$B$2) -> -0.01293837781 | S16: =SUM('Fluxo de Caixa'!$F$15:$F$27)+(R16*'Casa de Bombas'!$C$19) -> 0 | T16: =_xlfn.NORM.INV(RAND(),T$14,$C$2) ->  | U16: =_xlfn.NORM.INV(RAND(),U$14,$F$2) ->  | W16: =_xlfn.NORM.INV(RAND(),W$14,$B$2) -> 0.05137041705 | X16: =SUM('Fluxo de Caixa'!$G$15:$G$27)+(W16*'Casa de Bombas'!$C$19) -> 0 | Y16: =_xlfn.NORM.INV(RAND(),Y$14,$C$2) ->  | Z16: =_xlfn.NORM.INV(RAND(),Z$14,$F$2) ->  | AB16: =_xlfn.NORM.INV(RAND(),AB$14,$B$2) -> 0.04181277754 | AC16: =SUM('Fluxo de Caixa'!$H$15:$H$27)+(AB16*'Casa de Bombas'!$C$19) -> 0 | AD16: =_xlfn.NORM.INV(RAND(),AD$14,$C$2) ->  | AE16: =_xlfn.NORM.INV(RAND(),AE$14,$F$2) ->  | AG16: =_xlfn.NORM.INV(RAND(),AG$14,$B$2) -> 0.1229526921 | AH16: =SUM('Fluxo de Caixa'!$I$15:$I$27)+(AG16*'Casa de Bombas'!$C$19) -> 0 | AI16: =_xlfn.NORM.INV(RAND(),AI$14,$C$2) ->  | AJ16: =_xlfn.NORM.INV(RAND(),AJ$14,$F$2) ->  | AL16: =_xlfn.NORM.INV(RAND(),AL$14,$B$2) -> 0.00875011367 | AM16: =SUM('Fluxo de Caixa'!$J$15:$J$27)+(AL16*'Casa de Bombas'!$C$19) -> 0 | AN16: =_xlfn.NORM.INV(RAND(),AN$14,$C$2) ->  | AO16: =_xlfn.NORM.INV(RAND(),AO$14,$F$2) ->  | AQ16: =_xlfn.NORM.INV(RAND(),AQ$14,$B$2) -> -0.04911857637 | AR16: =SUM('Fluxo de Caixa'!$K$15:$K$27)+(AQ16*'Casa de Bombas'!$C$19) -> 0 | AS16: =_xlfn.NORM.INV(RAND(),AS$14,$C$2) ->  | AT16: =_xlfn.NORM.INV(RAND(),AT$14,$F$2) ->  | AV16: =_xlfn.NORM.INV(RAND(),AV$14,$B$2) -> -0.02691224679 | AW16: =SUM('Fluxo de Caixa'!$L$15:$L$27)+(AV16*'Casa de Bombas'!$C$19) -> 0 | AX16: =_xlfn.NORM.INV(RAND(),AX$14,$C$2) ->  | AY16: =_xlfn.NORM.INV(RAND(),AY$14,$F$2) ->  | BA16: =_xlfn.NORM.INV(RAND(),BA$14,$B$2) -> -0.1168017746 | BB16: =SUM('Fluxo de Caixa'!$M$15:$M$27)+(BA16*'Casa de Bombas'!$C$19) -> 0 | BC16: =_xlfn.NORM.INV(RAND(),BC$14,$C$2) ->  | BD16: =_xlfn.NORM.INV(RAND(),BD$14,$F$2) ->  | BF16: =_xlfn.NORM.INV(RAND(),BF$14,$B$2) -> -0.03559339351 | BG16: =SUM('Fluxo de Caixa'!$N$15:$N$27)+(BF16*'Casa de Bombas'!$C$19) -> 0 | BH16: =_xlfn.NORM.INV(RAND(),BH$14,$C$2) ->  | BI16: =_xlfn.NORM.INV(RAND(),BI$14,$F$2) ->  | BK16: =_xlfn.NORM.INV(RAND(),BK$14,$B$2) -> 0.02905311026 | BL16: =SUM('Fluxo de Caixa'!$O$15:$O$27)+(BK16*'Casa de Bombas'!$C$19) -> 0 | BM16: =_xlfn.NORM.INV(RAND(),BM$14,$C$2) ->  | BN16: =_xlfn.NORM.INV(RAND(),BN$14,$F$2) ->  | BP16: =_xlfn.NORM.INV(RAND(),BP$14,$B$2) -> -0.05555960306 | BQ16: =SUM('Fluxo de Caixa'!$P$15:$P$27)+(BP16*'Casa de Bombas'!$C$19) -> 0 | BR16: =_xlfn.NORM.INV(RAND(),BR$14,$C$2) ->  | BS16: =_xlfn.NORM.INV(RAND(),BS$14,$F$2) ->  | BU16: =_xlfn.NORM.INV(RAND(),BU$14,$B$2) -> 0.0207140538 | BV16: =SUM('Fluxo de Caixa'!$Q$15:$Q$27)+(BU16*'Casa de Bombas'!$C$19) -> 0 | BW16: =_xlfn.NORM.INV(RAND(),BW$14,$C$2) ->  | BX16: =_xlfn.NORM.INV(RAND(),BX$14,$F$2) ->  | BZ16: =_xlfn.NORM.INV(RAND(),BZ$14,$B$2) -> 0.06409027992 | CA16: =SUM('Fluxo de Caixa'!$R$15:$R$27)+(BZ16*'Casa de Bombas'!$C$19) -> 0 | CB16: =_xlfn.NORM.INV(RAND(),CB$14,$C$2) ->  | CC16: =_xlfn.NORM.INV(RAND(),CC$14,$F$2) ->  | CE16: =_xlfn.NORM.INV(RAND(),CE$14,$B$2) -> -0.02942053732 | CF16: =SUM('Fluxo de Caixa'!$S$15:$S$27)+(CE16*'Casa de Bombas'!$C$19) -> 0 | CG16: =_xlfn.NORM.INV(RAND(),CG$14,$C$2) ->  | CH16: =_xlfn.NORM.INV(RAND(),CH$14,$F$2) ->  | CJ16: =_xlfn.NORM.INV(RAND(),CJ$14,$B$2) -> 0.03708099543 | CK16: =SUM('Fluxo de Caixa'!$T$15:$T$27)+(CJ16*'Casa de Bombas'!$C$19) -> 0 | CL16: =_xlfn.NORM.INV(RAND(),CL$14,$C$2) ->  | CM16: =_xlfn.NORM.INV(RAND(),CM$14,$F$2) ->  | CO16: =_xlfn.NORM.INV(RAND(),CO$14,$B$2) -> -0.07172039053 | CP16: =SUM('Fluxo de Caixa'!$U$15:$U$27)+(CO16*'Casa de Bombas'!$C$19) -> 0 | CQ16: =_xlfn.NORM.INV(RAND(),CQ$14,$C$2) ->  | CR16: =_xlfn.NORM.INV(RAND(),CR$14,$F$2) ->  | CT16: =_xlfn.NORM.INV(RAND(),CT$14,$B$2) -> -0.04093279255 | CU16: =SUM('Fluxo de Caixa'!$V$15:$V$27)+(CT16*'Casa de Bombas'!$C$19) -> 0 | CV16: =_xlfn.NORM.INV(RAND(),CV$14,$C$2) ->  | CW16: =_xlfn.NORM.INV(RAND(),CW$14,$F$2) ->  | CY16: =_xlfn.NORM.INV(RAND(),CY$14,$B$2) -> 0.1020576357 | CZ16: =SUM('Fluxo de Caixa'!$W$15:$W$18)+(CY16*'Casa de Bombas'!$C$19) -> 0 | DA16: =_xlfn.NORM.INV(RAND(),DA$14,$C$2) ->  | DB16: =_xlfn.NORM.INV(RAND(),DB$14,$F$2) ->  | DC16: =DB16*AreaCana*DA16-'Fluxo de Caixa'!W22-'Fluxo de Caixa'!W24 ->  | DD16: =G16-D16 -> 0 | DE16: =L16-I16 ->  | DF16: =Q16-N16 ->  | DG16: =V16-S16 ->  | DH16: =AA16-X16 ->  | DI16: =AF16-AC16 ->  | DJ16: =AK16-AH16 ->  | DK16: =AP16-AM16 ->  | DL16: =AU16-AR16 ->  | DM16: =AZ16-AW16 ->  | DN16: =BE16-BB16 ->  | DO16: =BJ16-BG16 ->  | DP16: =BO16-BL16 ->  | DQ16: =BT16-BQ16 ->  | DR16: =BY16-BV16 ->  | DS16: =CD16-CA16 ->  | DT16: =CI16-CF16 ->  | DU16: =CN16-CK16 ->  | DV16: =CS16-CP16 ->  | DW16: =CX16-CU16 ->  | DX16: =DC16-CZ16 ->  | DY16: =NPV($AC$1,DD16:DX16) ->  | DZ16: =_xlfn.NORM.DIST(DY16,$DY$11,$DY$12,TRUE) ->  | ED16: =_xlfn.NORM.DIST(EC16,$ED$11,$ED$12,TRUE) ->  | EF16: =_xlfn.NORM.DIST(EE16,$EF$11,$EF$12,TRUE) -> 
B17: 3 | C17: 0 | D17: =D16 -> 0 | E17: 0 | F17: 0 | G17: 0 | H17: -0.02339051855 | I17: =SUM('Fluxo de Caixa'!$D$15:$D$27)+(H17*'Casa de Bombas'!$C$19) -> 0 | M17: 0.04371823775 | N17: =SUM('Fluxo de Caixa'!$E$15:$E$27)+(M17*'Casa de Bombas'!$C$19) -> 0 | R17: -0.02462371738 | S17: =SUM('Fluxo de Caixa'!$F$15:$F$27)+(R17*'Casa de Bombas'!$C$19) -> 0 | W17: 0.06859639441 | X17: =SUM('Fluxo de Caixa'!$G$15:$G$27)+(W17*'Casa de Bombas'!$C$19) -> 0 | AB17: -0.0135178254 | AC17: =SUM('Fluxo de Caixa'!$H$15:$H$27)+(AB17*'Casa de Bombas'!$C$19) -> 0 | AG17: 0.009645453145 | AH17: =SUM('Fluxo de Caixa'!$I$15:$I$27)+(AG17*'Casa de Bombas'!$C$19) -> 0 | AL17: -0.04016460127 | AM17: =SUM('Fluxo de Caixa'!$J$15:$J$27)+(AL17*'Casa de Bombas'!$C$19) -> 0 | AQ17: -0.03848524489 | AR17: =SUM('Fluxo de Caixa'!$K$15:$K$27)+(AQ17*'Casa de Bombas'!$C$19) -> 0 | AV17: 0.08372692979 | AW17: =SUM('Fluxo de Caixa'!$L$15:$L$27)+(AV17*'Casa de Bombas'!$C$19) -> 0 | BA17: 0.008215319994 | BB17: =SUM('Fluxo de Caixa'!$M$15:$M$27)+(BA17*'Casa de Bombas'!$C$19) -> 0 | BF17: 0.006018650349 | BG17: =SUM('Fluxo de Caixa'!$N$15:$N$27)+(BF17*'Casa de Bombas'!$C$19) -> 0 | BK17: -0.08400683081 | BL17: =SUM('Fluxo de Caixa'!$O$15:$O$27)+(BK17*'Casa de Bombas'!$C$19) -> 0 | BP17: 0.004810009957 | BQ17: =SUM('Fluxo de Caixa'!$P$15:$P$27)+(BP17*'Casa de Bombas'!$C$19) -> 0 | BU17: -0.04480642453 | BV17: =SUM('Fluxo de Caixa'!$Q$15:$Q$27)+(BU17*'Casa de Bombas'!$C$19) -> 0 | BZ17: -0.02690429444 | CA17: =SUM('Fluxo de Caixa'!$R$15:$R$27)+(BZ17*'Casa de Bombas'!$C$19) -> 0 | CE17: -0.06326782155 | CF17: =SUM('Fluxo de Caixa'!$S$15:$S$27)+(CE17*'Casa de Bombas'!$C$19) -> 0 | CJ17: 0.01149280434 | CK17: =SUM('Fluxo de Caixa'!$T$15:$T$27)+(CJ17*'Casa de Bombas'!$C$19) -> 0 | CO17: 0.0198168976 | CP17: =SUM('Fluxo de Caixa'!$U$15:$U$27)+(CO17*'Casa de Bombas'!$C$19) -> 0 | CT17: -0.0005723879707 | CU17: =SUM('Fluxo de Caixa'!$V$15:$V$27)+(CT17*'Casa de Bombas'!$C$19) -> 0 | CY17: -0.03967753671 | CZ17: =SUM('Fluxo de Caixa'!$W$15:$W$18)+(CY17*'Casa de Bombas'!$C$19) -> 0 | DC17: =DB17*AreaCana*DA17-'Fluxo de Caixa'!W23-'Fluxo de Caixa'!W25 ->  | DD17: 0 | DY17: =NPV($AC$1,DD17:DX17) -> 
B18: 4 | C18: 0 | D18: =D17 -> 0 | E18: 0 | F18: 0 | G18: 0 | H18: -0.05035559213 | I18: =SUM('Fluxo de Caixa'!$D$15:$D$27)+(H18*'Casa de Bombas'!$C$19) -> 0 | M18: -0.05763222774 | N18: =SUM('Fluxo de Caixa'!$E$15:$E$27)+(M18*'Casa de Bombas'!$C$19) -> 0 | R18: -0.03235855744 | S18: =SUM('Fluxo de Caixa'!$F$15:$F$27)+(R18*'Casa de Bombas'!$C$19) -> 0 | W18: 0.002688106746 | X18: =SUM('Fluxo de Caixa'!$G$15:$G$27)+(W18*'Casa de Bombas'!$C$19) -> 0 | AB18: 0.04212522611 | AC18: =SUM('Fluxo de Caixa'!$H$15:$H$27)+(AB18*'Casa de Bombas'!$C$19) -> 0 | AG18: 0.0006497028842 | AH18: =SUM('Fluxo de Caixa'!$I$15:$I$27)+(AG18*'Casa de Bombas'!$C$19) -> 0 | AL18: -0.004733227215 | AM18: =SUM('Fluxo de Caixa'!$J$15:$J$27)+(AL18*'Casa de Bombas'!$C$19) -> 0 | AQ18: -0.08048535322 | AR18: =SUM('Fluxo de Caixa'!$K$15:$K$27)+(AQ18*'Casa de Bombas'!$C$19) -> 0 | AV18: 0.08380382187 | AW18: =SUM('Fluxo de Caixa'!$L$15:$L$27)+(AV18*'Casa de Bombas'!$C$19) -> 0 | BA18: 0.09579396536 | BB18: =SUM('Fluxo de Caixa'!$M$15:$M$27)+(BA18*'Casa de Bombas'!$C$19) -> 0 | BF18: 0.005224398102 | BG18: =SUM('Fluxo de Caixa'!$N$15:$N$27)+(BF18*'Casa de Bombas'!$C$19) -> 0 | BK18: -0.004084098497 | BL18: =SUM('Fluxo de Caixa'!$O$15:$O$27)+(BK18*'Casa de Bombas'!$C$19) -> 0 | BP18: 0.04285347308 | BQ18: =SUM('Fluxo de Caixa'!$P$15:$P$27)+(BP18*'Casa de Bombas'!$C$19) -> 0 | BU18: 0.05259082228 | BV18: =SUM('Fluxo de Caixa'!$Q$15:$Q$27)+(BU18*'Casa de Bombas'!$C$19) -> 0 | BZ18: 0.06577620018 | CA18: =SUM('Fluxo de Caixa'!$R$15:$R$27)+(BZ18*'Casa de Bombas'!$C$19) -> 0 | CE18: 0.03612749017 | CF18: =SUM('Fluxo de Caixa'!$S$15:$S$27)+(CE18*'Casa de Bombas'!$C$19) -> 0 | CJ18: 0.100284092 | CK18: =SUM('Fluxo de Caixa'!$T$15:$T$27)+(CJ18*'Casa de Bombas'!$C$19) -> 0 | CO18: -0.03170413924 | CP18: =SUM('Fluxo de Caixa'!$U$15:$U$27)+(CO18*'Casa de Bombas'!$C$19) -> 0 | CT18: -0.03306140001 | CU18: =SUM('Fluxo de Caixa'!$V$15:$V$27)+(CT18*'Casa de Bombas'!$C$19) -> 0 | CY18: -0.002065433476 | CZ18: =SUM('Fluxo de Caixa'!$W$15:$W$18)+(CY18*'Casa de Bombas'!$C$19) -> 0 | DC18: =DB18*AreaCana*DA18-'Fluxo de Caixa'!W24-'Fluxo de Caixa'!W26 ->  | DD18: 0
B19: 5 | C19: 0 | D19: =D18 -> 0 | E19: 0 | F19: 0 | G19: 0 | H19: 0.03800421678 | I19: =SUM('Fluxo de Caixa'!$D$15:$D$27)+(H19*'Casa de Bombas'!$C$19) -> 0 | M19: -0.03093968566 | N19: =SUM('Fluxo de Caixa'!$E$15:$E$27)+(M19*'Casa de Bombas'!$C$19) -> 0 | R19: 0.09666299972 | S19: =SUM('Fluxo de Caixa'!$F$15:$F$27)+(R19*'Casa de Bombas'!$C$19) -> 0 | W19: -0.07153300858 | X19: =SUM('Fluxo de Caixa'!$G$15:$G$27)+(W19*'Casa de Bombas'!$C$19) -> 0 | AB19: 0.01305434708 | AC19: =SUM('Fluxo de Caixa'!$H$15:$H$27)+(AB19*'Casa de Bombas'!$C$19) -> 0 | AG19: 0.02307821837 | AH19: =SUM('Fluxo de Caixa'!$I$15:$I$27)+(AG19*'Casa de Bombas'!$C$19) -> 0 | AL19: -0.03473420911 | AM19: =SUM('Fluxo de Caixa'!$J$15:$J$27)+(AL19*'Casa de Bombas'!$C$19) -> 0 | AQ19: -0.02123757216 | AR19: =SUM('Fluxo de Caixa'!$K$15:$K$27)+(AQ19*'Casa de Bombas'!$C$19) -> 0 | AV19: -0.03204710592 | AW19: =SUM('Fluxo de Caixa'!$L$15:$L$27)+(AV19*'Casa de Bombas'!$C$19) -> 0 | BA19: 0.02731554428 | BB19: =SUM('Fluxo de Caixa'!$M$15:$M$27)+(BA19*'Casa de Bombas'!$C$19) -> 0 | BF19: -0.07092572413 | BG19: =SUM('Fluxo de Caixa'!$N$15:$N$27)+(BF19*'Casa de Bombas'!$C$19) -> 0 | BK19: 0.01255133743 | BL19: =SUM('Fluxo de Caixa'!$O$15:$O$27)+(BK19*'Casa de Bombas'!$C$19) -> 0 | BP19: 0.02673975297 | BQ19: =SUM('Fluxo de Caixa'!$P$15:$P$27)+(BP19*'Casa de Bombas'!$C$19) -> 0 | BU19: 0.02187727134 | BV19: =SUM('Fluxo de Caixa'!$Q$15:$Q$27)+(BU19*'Casa de Bombas'!$C$19) -> 0 | BZ19: -0.06532648746 | CA19: =SUM('Fluxo de Caixa'!$R$15:$R$27)+(BZ19*'Casa de Bombas'!$C$19) -> 0 | CE19: 0.05485193899 | CF19: =SUM('Fluxo de Caixa'!$S$15:$S$27)+(CE19*'Casa de Bombas'!$C$19) -> 0 | CJ19: -0.06205618335 | CK19: =SUM('Fluxo de Caixa'!$T$15:$T$27)+(CJ19*'Casa de Bombas'!$C$19) -> 0 | CO19: -0.06244735784 | CP19: =SUM('Fluxo de Caixa'!$U$15:$U$27)+(CO19*'Casa de Bombas'!$C$19) -> 0 | CT19: -0.008211735024 | CU19: =SUM('Fluxo de Caixa'!$V$15:$V$27)+(CT19*'Casa de Bombas'!$C$19) -> 0 | CY19: 0.04080484063 | CZ19: =SUM('Fluxo de Caixa'!$W$15:$W$18)+(CY19*'Casa de Bombas'!$C$19) -> 0 | DC19: =DB19*AreaCana*DA19-'Fluxo de Caixa'!W25-'Fluxo de Caixa'!W27 ->  | DD19: 0
B20: 6 | C20: 0 | D20: =D19 -> 0 | E20: 0 | F20: 0 | G20: 0 | H20: 0.06242297863 | I20: =SUM('Fluxo de Caixa'!$D$15:$D$27)+(H20*'Casa de Bombas'!$C$19) -> 0 | M20: 0.003603287091 | N20: =SUM('Fluxo de Caixa'!$E$15:$E$27)+(M20*'Casa de Bombas'!$C$19) -> 0 | R20: -0.0743086419 | S20: =SUM('Fluxo de Caixa'!$F$15:$F$27)+(R20*'Casa de Bombas'!$C$19) -> 0 | W20: -0.04370188108 | X20: =SUM('Fluxo de Caixa'!$G$15:$G$27)+(W20*'Casa de Bombas'!$C$19) -> 0 | AB20: 0.02188462683 | AC20: =SUM('Fluxo de Caixa'!$H$15:$H$27)+(AB20*'Casa de Bombas'!$C$19) -> 0 | AG20: -0.005891381348 | AH20: =SUM('Fluxo de Caixa'!$I$15:$I$27)+(AG20*'Casa de Bombas'!$C$19) -> 0 | AL20: 0.05576410582 | AM20: =SUM('Fluxo de Caixa'!$J$15:$J$27)+(AL20*'Casa de Bombas'!$C$19) -> 0 | AQ20: -0.02946908126 | AR20: =SUM('Fluxo de Caixa'!$K$15:$K$27)+(AQ20*'Casa de Bombas'!$C$19) -> 0 | AV20: 0.06375204345 | AW20: =SUM('Fluxo de Caixa'!$L$15:$L$27)+(AV20*'Casa de Bombas'!$C$19) -> 0 | BA20: 0.02717999847 | BB20: =SUM('Fluxo de Caixa'!$M$15:$M$27)+(BA20*'Casa de Bombas'!$C$19) -> 0 | BF20: -0.07224716411 | BG20: =SUM('Fluxo de Caixa'!$N$15:$N$27)+(BF20*'Casa de Bombas'!$C$19) -> 0 | BK20: 0.1601338146 | BL20: =SUM('Fluxo de Caixa'!$O$15:$O$27)+(BK20*'Casa de Bombas'!$C$19) -> 0 | BP20: -0.03680320008 | BQ20: =SUM('Fluxo de Caixa'!$P$15:$P$27)+(BP20*'Casa de Bombas'!$C$19) -> 0 | BU20: -0.006543362726 | BV20: =SUM('Fluxo de Caixa'!$Q$15:$Q$27)+(BU20*'Casa de Bombas'!$C$19) -> 0 | BZ20: 0.008216651879 | CA20: =SUM('Fluxo de Caixa'!$R$15:$R$27)+(BZ20*'Casa de Bombas'!$C$19) -> 0 | CE20: 0.009717227345 | CF20: =SUM('Fluxo de Caixa'!$S$15:$S$27)+(CE20*'Casa de Bombas'!$C$19) -> 0 | CJ20: 0.05022843695 | CK20: =SUM('Fluxo de Caixa'!$T$15:$T$27)+(CJ20*'Casa de Bombas'!$C$19) -> 0 | CO20: 0.01356642635 | CP20: =SUM('Fluxo de Caixa'!$U$15:$U$27)+(CO20*'Casa de Bombas'!$C$19) -> 0 | CT20: -0.08673332737 | CU20: =SUM('Fluxo de Caixa'!$V$15:$V$27)+(CT20*'Casa de Bombas'!$C$19) -> 0 | CY20: -0.01852028459 | CZ20: =SUM('Fluxo de Caixa'!$W$15:$W$18)+(CY20*'Casa de Bombas'!$C$19) -> 0 | DC20: =DB20*AreaCana*DA20-'Fluxo de Caixa'!W26-'Fluxo de Caixa'!W28 ->  | DD20: 0
B21: 7 | C21: 0 | D21: =D20 -> 0 | E21: 0 | F21: 0 | G21: 0 | H21: -0.03476239414 | I21: =SUM('Fluxo de Caixa'!$D$15:$D$27)+(H21*'Casa de Bombas'!$C$19) -> 0 | M21: 0.06075139766 | N21: =SUM('Fluxo de Caixa'!$E$15:$E$27)+(M21*'Casa de Bombas'!$C$19) -> 0 | R21: -0.002216799177 | S21: =SUM('Fluxo de Caixa'!$F$15:$F$27)+(R21*'Casa de Bombas'!$C$19) -> 0 | W21: 0.006020625912 | X21: =SUM('Fluxo de Caixa'!$G$15:$G$27)+(W21*'Casa de Bombas'!$C$19) -> 0 | AB21: -0.06013103148 | AC21: =SUM('Fluxo de Caixa'!$H$15:$H$27)+(AB21*'Casa de Bombas'!$C$19) -> 0 | AG21: -0.007334426198 | AH21: =SUM('Fluxo de Caixa'!$I$15:$I$27)+(AG21*'Casa de Bombas'!$C$19) -> 0 | AL21: -0.01397700179 | AM21: =SUM('Fluxo de Caixa'!$J$15:$J$27)+(AL21*'Casa de Bombas'!$C$19) -> 0 | AQ21: -0.05800437763 | AR21: =SUM('Fluxo de Caixa'!$K$15:$K$27)+(AQ21*'Casa de Bombas'!$C$19) -> 0 | AV21: -0.0004519584906 | AW21: =SUM('Fluxo de Caixa'!$L$15:$L$27)+(AV21*'Casa de Bombas'!$C$19) -> 0 | BA21: 0.06885442664 | BB21: =SUM('Fluxo de Caixa'!$M$15:$M$27)+(BA21*'Casa de Bombas'!$C$19) -> 0 | BF21: -0.04546977212 | BG21: =SUM('Fluxo de Caixa'!$N$15:$N$27)+(BF21*'Casa de Bombas'!$C$19) -> 0 | BK21: -0.03907990453 | BL21: =SUM('Fluxo de Caixa'!$O$15:$O$27)+(BK21*'Casa de Bombas'!$C$19) -> 0 | BP21: -0.07892097436 | BQ21: =SUM('Fluxo de Caixa'!$P$15:$P$27)+(BP21*'Casa de Bombas'!$C$19) -> 0 | BU21: -0.02370002645 | BV21: =SUM('Fluxo de Caixa'!$Q$15:$Q$27)+(BU21*'Casa de Bombas'!$C$19) -> 0 | BZ21: -0.07072207933 | CA21: =SUM('Fluxo de Caixa'!$R$15:$R$27)+(BZ21*'Casa de Bombas'!$C$19) -> 0 | CE21: 0.03638434453 | CF21: =SUM('Fluxo de Caixa'!$S$15:$S$27)+(CE21*'Casa de Bombas'!$C$19) -> 0 | CJ21: -0.03648496065 | CK21: =SUM('Fluxo de Caixa'!$T$15:$T$27)+(CJ21*'Casa de Bombas'!$C$19) -> 0 | CO21: 0.05980848625 | CP21: =SUM('Fluxo de Caixa'!$U$15:$U$27)+(CO21*'Casa de Bombas'!$C$19) -> 0 | CT21: 0.08149918095 | CU21: =SUM('Fluxo de Caixa'!$V$15:$V$27)+(CT21*'Casa de Bombas'!$C$19) -> 0 | CY21: 0.01892617955 | CZ21: =SUM('Fluxo de Caixa'!$W$15:$W$18)+(CY21*'Casa de Bombas'!$C$19) -> 0 | DC21: =DB21*AreaCana*DA21-'Fluxo de Caixa'!W27-'Fluxo de Caixa'!W29 ->  | DD21: 0
B22: 8 | C22: 0 | D22: =D21 -> 0 | E22: 0 | F22: 0 | G22: 0 | H22: -0.02254562872 | I22: =SUM('Fluxo de Caixa'!$D$15:$D$27)+(H22*'Casa de Bombas'!$C$19) -> 0 | M22: -0.02792356994 | N22: =SUM('Fluxo de Caixa'!$E$15:$E$27)+(M22*'Casa de Bombas'!$C$19) -> 0 | R22: 0.03736401389 | S22: =SUM('Fluxo de Caixa'!$F$15:$F$27)+(R22*'Casa de Bombas'!$C$19) -> 0 | W22: -0.06793932566 | X22: =SUM('Fluxo de Caixa'!$G$15:$G$27)+(W22*'Casa de Bombas'!$C$19) -> 0 | AB22: -0.08782609434 | AC22: =SUM('Fluxo de Caixa'!$H$15:$H$27)+(AB22*'Casa de Bombas'!$C$19) -> 0 | AG22: 0.09812971542 | AH22: =SUM('Fluxo de Caixa'!$I$15:$I$27)+(AG22*'Casa de Bombas'!$C$19) -> 0 | AL22: 0.01995144736 | AM22: =SUM('Fluxo de Caixa'!$J$15:$J$27)+(AL22*'Casa de Bombas'!$C$19) -> 0 | AQ22: 0.0004193708821 | AR22: =SUM('Fluxo de Caixa'!$K$15:$K$27)+(AQ22*'Casa de Bombas'!$C$19) -> 0 | AV22: -0.001518687277 | AW22: =SUM('Fluxo de Caixa'!$L$15:$L$27)+(AV22*'Casa de Bombas'!$C$19) -> 0 | BA22: 0.09366234567 | BB22: =SUM('Fluxo de Caixa'!$M$15:$M$27)+(BA22*'Casa de Bombas'!$C$19) -> 0 | BF22: 0.08543514373 | BG22: =SUM('Fluxo de Caixa'!$N$15:$N$27)+(BF22*'Casa de Bombas'!$C$19) -> 0 | BK22: 0.03876945016 | BL22: =SUM('Fluxo de Caixa'!$O$15:$O$27)+(BK22*'Casa de Bombas'!$C$19) -> 0 | BP22: 0.006135062401 | BQ22: =SUM('Fluxo de Caixa'!$P$15:$P$27)+(BP22*'Casa de Bombas'!$C$19) -> 0 | BU22: -0.01199826803 | BV22: =SUM('Fluxo de Caixa'!$Q$15:$Q$27)+(BU22*'Casa de Bombas'!$C$19) -> 0 | BZ22: -0.05127347061 | CA22: =SUM('Fluxo de Caixa'!$R$15:$R$27)+(BZ22*'Casa de Bombas'!$C$19) -> 0 | CE22: 0.0003909012093 | CF22: =SUM('Fluxo de Caixa'!$S$15:$S$27)+(CE22*'Casa de Bombas'!$C$19) -> 0 | CJ22: -0.0579855461 | CK22: =SUM('Fluxo de Caixa'!$T$15:$T$27)+(CJ22*'Casa de Bombas'!$C$19) -> 0 | CO22: -0.01497515958 | CP22: =SUM('Fluxo de Caixa'!$U$15:$U$27)+(CO22*'Casa de Bombas'!$C$19) -> 0 | CT22: 0.02073878274 | CU22: =SUM('Fluxo de Caixa'!$V$15:$V$27)+(CT22*'Casa de Bombas'!$C$19) -> 0 | CY22: 0.02887762226 | CZ22: =SUM('Fluxo de Caixa'!$W$15:$W$18)+(CY22*'Casa de Bombas'!$C$19) -> 0 | DC22: =DB22*AreaCana*DA22-'Fluxo de Caixa'!W28-'Fluxo de Caixa'!W30 ->  | DD22: 0
B23: 9 | C23: 0 | D23: =D22 -> 0 | E23: 0 | F23: 0 | G23: 0 | H23: 0.05882748645 | I23: =SUM('Fluxo de Caixa'!$D$15:$D$27)+(H23*'Casa de Bombas'!$C$19) -> 0 | M23: 0.03542630379 | N23: =SUM('Fluxo de Caixa'!$E$15:$E$27)+(M23*'Casa de Bombas'!$C$19) -> 0 | R23: -0.05274196881 | S23: =SUM('Fluxo de Caixa'!$F$15:$F$27)+(R23*'Casa de Bombas'!$C$19) -> 0 | W23: 0.03355947484 | X23: =SUM('Fluxo de Caixa'!$G$15:$G$27)+(W23*'Casa de Bombas'!$C$19) -> 0 | AB23: 0.0595265726 | AC23: =SUM('Fluxo de Caixa'!$H$15:$H$27)+(AB23*'Casa de Bombas'!$C$19) -> 0 | AG23: 0.03740243417 | AH23: =SUM('Fluxo de Caixa'!$I$15:$I$27)+(AG23*'Casa de Bombas'!$C$19) -> 0 | AL23: 0.02259005114 | AM23: =SUM('Fluxo de Caixa'!$J$15:$J$27)+(AL23*'Casa de Bombas'!$C$19) -> 0 | AQ23: -0.03025023984 | AR23: =SUM('Fluxo de Caixa'!$K$15:$K$27)+(AQ23*'Casa de Bombas'!$C$19) -> 0 | AV23: 0.04562021525 | AW23: =SUM('Fluxo de Caixa'!$L$15:$L$27)+(AV23*'Casa de Bombas'!$C$19) -> 0 | BA23: -0.0619264475 | BB23: =SUM('Fluxo de Caixa'!$M$15:$M$27)+(BA23*'Casa de Bombas'!$C$19) -> 0 | BF23: 0.002058650635 | BG23: =SUM('Fluxo de Caixa'!$N$15:$N$27)+(BF23*'Casa de Bombas'!$C$19) -> 0 | BK23: 0.03898852641 | BL23: =SUM('Fluxo de Caixa'!$O$15:$O$27)+(BK23*'Casa de Bombas'!$C$19) -> 0 | BP23: -0.01177202399 | BQ23: =SUM('Fluxo de Caixa'!$P$15:$P$27)+(BP23*'Casa de Bombas'!$C$19) -> 0 | BU23: 0.03849579993 | BV23: =SUM('Fluxo de Caixa'!$Q$15:$Q$27)+(BU23*'Casa de Bombas'!$C$19) -> 0 | BZ23: 0.003414146428 | CA23: =SUM('Fluxo de Caixa'!$R$15:$R$27)+(BZ23*'Casa de Bombas'!$C$19) -> 0 | CE23: 0.01798614763 | CF23: =SUM('Fluxo de Caixa'!$S$15:$S$27)+(CE23*'Casa de Bombas'!$C$19) -> 0 | CJ23: 0.03155760353 | CK23: =SUM('Fluxo de Caixa'!$T$15:$T$27)+(CJ23*'Casa de Bombas'!$C$19) -> 0 | CO23: -0.004858780158 | CP23: =SUM('Fluxo de Caixa'!$U$15:$U$27)+(CO23*'Casa de Bombas'!$C$19) -> 0 | CT23: 0.04260012782 | CU23: =SUM('Fluxo de Caixa'!$V$15:$V$27)+(CT23*'Casa de Bombas'!$C$19) -> 0 | CY23: 0.07523321016 | CZ23: =SUM('Fluxo de Caixa'!$W$15:$W$18)+(CY23*'Casa de Bombas'!$C$19) -> 0 | DC23: =DB23*AreaCana*DA23-'Fluxo de Caixa'!W29-'Fluxo de Caixa'!W31 ->  | DD23: 0
B24: 10 | C24: 0 | D24: =D23 -> 0 | E24: 0 | F24: 0 | G24: 0 | H24: -0.002414468053 | I24: =SUM('Fluxo de Caixa'!$D$15:$D$27)+(H24*'Casa de Bombas'!$C$19) -> 0 | M24: 0.004005689349 | N24: =SUM('Fluxo de Caixa'!$E$15:$E$27)+(M24*'Casa de Bombas'!$C$19) -> 0 | R24: -0.03509134054 | S24: =SUM('Fluxo de Caixa'!$F$15:$F$27)+(R24*'Casa de Bombas'!$C$19) -> 0 | W24: -0.01948257856 | X24: =SUM('Fluxo de Caixa'!$G$15:$G$27)+(W24*'Casa de Bombas'!$C$19) -> 0 | AB24: -0.04294851356 | AC24: =SUM('Fluxo de Caixa'!$H$15:$H$27)+(AB24*'Casa de Bombas'!$C$19) -> 0 | AG24: -0.1046479269 | AH24: =SUM('Fluxo de Caixa'!$I$15:$I$27)+(AG24*'Casa de Bombas'!$C$19) -> 0 | AL24: -0.03783732501 | AM24: =SUM('Fluxo de Caixa'!$J$15:$J$27)+(AL24*'Casa de Bombas'!$C$19) -> 0 | AQ24: -0.04967999112 | AR24: =SUM('Fluxo de Caixa'!$K$15:$K$27)+(AQ24*'Casa de Bombas'!$C$19) -> 0 | AV24: -0.005267015844 | AW24: =SUM('Fluxo de Caixa'!$L$15:$L$27)+(AV24*'Casa de Bombas'!$C$19) -> 0 | BA24: -0.0377388759 | BB24: =SUM('Fluxo de Caixa'!$M$15:$M$27)+(BA24*'Casa de Bombas'!$C$19) -> 0 | BF24: -0.07034561306 | BG24: =SUM('Fluxo de Caixa'!$N$15:$N$27)+(BF24*'Casa de Bombas'!$C$19) -> 0 | BK24: -0.05248440613 | BL24: =SUM('Fluxo de Caixa'!$O$15:$O$27)+(BK24*'Casa de Bombas'!$C$19) -> 0 | BP24: 0.01451343712 | BQ24: =SUM('Fluxo de Caixa'!$P$15:$P$27)+(BP24*'Casa de Bombas'!$C$19) -> 0 | BU24: 0.01888255811 | BV24: =SUM('Fluxo de Caixa'!$Q$15:$Q$27)+(BU24*'Casa de Bombas'!$C$19) -> 0 | BZ24: 0.05831925613 | CA24: =SUM('Fluxo de Caixa'!$R$15:$R$27)+(BZ24*'Casa de Bombas'!$C$19) -> 0 | CE24: 0.03474426056 | CF24: =SUM('Fluxo de Caixa'!$S$15:$S$27)+(CE24*'Casa de Bombas'!$C$19) -> 0 | CJ24: 0.005355072219 | CK24: =SUM('Fluxo de Caixa'!$T$15:$T$27)+(CJ24*'Casa de Bombas'!$C$19) -> 0 | CO24: 0.02822361211 | CP24: =SUM('Fluxo de Caixa'!$U$15:$U$27)+(CO24*'Casa de Bombas'!$C$19) -> 0 | CT24: 0.02382130301 | CU24: =SUM('Fluxo de Caixa'!$V$15:$V$27)+(CT24*'Casa de Bombas'!$C$19) -> 0 | CY24: 0.08260997504 | CZ24: =SUM('Fluxo de Caixa'!$W$15:$W$18)+(CY24*'Casa de Bombas'!$C$19) -> 0 | DC24: =DB24*AreaCana*DA24-'Fluxo de Caixa'!W30-'Fluxo de Caixa'!W32 ->  | DD24: 0
B25: 11 | C25: 0 | D25: =D24 -> 0 | E25: 0 | F25: 0 | G25: 0 | H25: -0.02141811861 | I25: =SUM('Fluxo de Caixa'!$D$15:$D$27)+(H25*'Casa de Bombas'!$C$19) -> 0 | M25: 0.01899328561 | N25: =SUM('Fluxo de Caixa'!$E$15:$E$27)+(M25*'Casa de Bombas'!$C$19) -> 0 | R25: -0.06001805815 | S25: =SUM('Fluxo de Caixa'!$F$15:$F$27)+(R25*'Casa de Bombas'!$C$19) -> 0 | W25: 0.04027732593 | X25: =SUM('Fluxo de Caixa'!$G$15:$G$27)+(W25*'Casa de Bombas'!$C$19) -> 0 | AB25: 0.04074665607 | AC25: =SUM('Fluxo de Caixa'!$H$15:$H$27)+(AB25*'Casa de Bombas'!$C$19) -> 0 | AG25: 0.0831364228 | AH25: =SUM('Fluxo de Caixa'!$I$15:$I$27)+(AG25*'Casa de Bombas'!$C$19) -> 0 | AL25: 0.0385675094 | AM25: =SUM('Fluxo de Caixa'!$J$15:$J$27)+(AL25*'Casa de Bombas'!$C$19) -> 0 | AQ25: -0.01439601758 | AR25: =SUM('Fluxo de Caixa'!$K$15:$K$27)+(AQ25*'Casa de Bombas'!$C$19) -> 0 | AV25: 0.05165237386 | AW25: =SUM('Fluxo de Caixa'!$L$15:$L$27)+(AV25*'Casa de Bombas'!$C$19) -> 0 | BA25: 0.002180378421 | BB25: =SUM('Fluxo de Caixa'!$M$15:$M$27)+(BA25*'Casa de Bombas'!$C$19) -> 0 | BF25: -0.04307563365 | BG25: =SUM('Fluxo de Caixa'!$N$15:$N$27)+(BF25*'Casa de Bombas'!$C$19) -> 0 | BK25: 0.02171598092 | BL25: =SUM('Fluxo de Caixa'!$O$15:$O$27)+(BK25*'Casa de Bombas'!$C$19) -> 0 | BP25: -0.04809543146 | BQ25: =SUM('Fluxo de Caixa'!$P$15:$P$27)+(BP25*'Casa de Bombas'!$C$19) -> 0 | BU25: 0.02289928484 | BV25: =SUM('Fluxo de Caixa'!$Q$15:$Q$27)+(BU25*'Casa de Bombas'!$C$19) -> 0 | BZ25: 0.08979668739 | CA25: =SUM('Fluxo de Caixa'!$R$15:$R$27)+(BZ25*'Casa de Bombas'!$C$19) -> 0 | CE25: 0.03689222386 | CF25: =SUM('Fluxo de Caixa'!$S$15:$S$27)+(CE25*'Casa de Bombas'!$C$19) -> 0 | CJ25: 0.08060683477 | CK25: =SUM('Fluxo de Caixa'!$T$15:$T$27)+(CJ25*'Casa de Bombas'!$C$19) -> 0 | CO25: -0.006743773175 | CP25: =SUM('Fluxo de Caixa'!$U$15:$U$27)+(CO25*'Casa de Bombas'!$C$19) -> 0 | CT25: -0.01938786293 | CU25: =SUM('Fluxo de Caixa'!$V$15:$V$27)+(CT25*'Casa de Bombas'!$C$19) -> 0 | CY25: 0.0922595052 | CZ25: =SUM('Fluxo de Caixa'!$W$15:$W$18)+(CY25*'Casa de Bombas'!$C$19) -> 0 | DC25: =DB25*AreaCana*DA25-'Fluxo de Caixa'!W31-'Fluxo de Caixa'!W33 ->  | DD25: 0
B26: 12 | C26: 0 | D26: =D25 -> 0 | E26: 0 | F26: 0 | G26: 0 | H26: 0.03228885859 | I26: =SUM('Fluxo de Caixa'!$D$15:$D$27)+(H26*'Casa de Bombas'!$C$19) -> 0 | M26: -0.02969653322 | N26: =SUM('Fluxo de Caixa'!$E$15:$E$27)+(M26*'Casa de Bombas'!$C$19) -> 0 | R26: -0.0490073742 | S26: =SUM('Fluxo de Caixa'!$F$15:$F$27)+(R26*'Casa de Bombas'!$C$19) -> 0 | W26: -0.00971020436 | X26: =SUM('Fluxo de Caixa'!$G$15:$G$27)+(W26*'Casa de Bombas'!$C$19) -> 0 | AB26: 0.05589105979 | AC26: =SUM('Fluxo de Caixa'!$H$15:$H$27)+(AB26*'Casa de Bombas'!$C$19) -> 0 | AG26: -0.05093562188 | AH26: =SUM('Fluxo de Caixa'!$I$15:$I$27)+(AG26*'Casa de Bombas'!$C$19) -> 0 | AL26: 0.007736585833 | AM26: =SUM('Fluxo de Caixa'!$J$15:$J$27)+(AL26*'Casa de Bombas'!$C$19) -> 0 | AQ26: -0.04022738459 | AR26: =SUM('Fluxo de Caixa'!$K$15:$K$27)+(AQ26*'Casa de Bombas'!$C$19) -> 0 | AV26: 0.007416171613 | AW26: =SUM('Fluxo de Caixa'!$L$15:$L$27)+(AV26*'Casa de Bombas'!$C$19) -> 0 | BA26: 0.01231455023 | BB26: =SUM('Fluxo de Caixa'!$M$15:$M$27)+(BA26*'Casa de Bombas'!$C$19) -> 0 | BF26: 0.002045470495 | BG26: =SUM('Fluxo de Caixa'!$N$15:$N$27)+(BF26*'Casa de Bombas'!$C$19) -> 0 | BK26: -0.04770285828 | BL26: =SUM('Fluxo de Caixa'!$O$15:$O$27)+(BK26*'Casa de Bombas'!$C$19) -> 0 | BP26: 0.06258903435 | BQ26: =SUM('Fluxo de Caixa'!$P$15:$P$27)+(BP26*'Casa de Bombas'!$C$19) -> 0 | BU26: -0.004619753552 | BV26: =SUM('Fluxo de Caixa'!$Q$15:$Q$27)+(BU26*'Casa de Bombas'!$C$19) -> 0 | BZ26: 0.05042380774 | CA26: =SUM('Fluxo de Caixa'!$R$15:$R$27)+(BZ26*'Casa de Bombas'!$C$19) -> 0 | CE26: -0.0815974001 | CF26: =SUM('Fluxo de Caixa'!$S$15:$S$27)+(CE26*'Casa de Bombas'!$C$19) -> 0 | CJ26: -0.03793553501 | CK26: =SUM('Fluxo de Caixa'!$T$15:$T$27)+(CJ26*'Casa de Bombas'!$C$19) -> 0 | CO26: -0.0748320474 | CP26: =SUM('Fluxo de Caixa'!$U$15:$U$27)+(CO26*'Casa de Bombas'!$C$19) -> 0 | CT26: 0.05984423459 | CU26: =SUM('Fluxo de Caixa'!$V$15:$V$27)+(CT26*'Casa de Bombas'!$C$19) -> 0 | CY26: -0.07358103197 | CZ26: =SUM('Fluxo de Caixa'!$W$15:$W$18)+(CY26*'Casa de Bombas'!$C$19) -> 0 | DC26: =DB26*AreaCana*DA26-'Fluxo de Caixa'!W32-'Fluxo de Caixa'!W34 ->  | DD26: 0
B27: 13 | C27: 0 | D27: =D26 -> 0 | E27: 0 | F27: 0 | G27: 0 | H27: 0.01052363271 | I27: =SUM('Fluxo de Caixa'!$D$15:$D$27)+(H27*'Casa de Bombas'!$C$19) -> 0 | M27: -0.005042701193 | N27: =SUM('Fluxo de Caixa'!$E$15:$E$27)+(M27*'Casa de Bombas'!$C$19) -> 0 | R27: 0.01187690436 | S27: =SUM('Fluxo de Caixa'!$F$15:$F$27)+(R27*'Casa de Bombas'!$C$19) -> 0 | W27: 0.02431166573 | X27: =SUM('Fluxo de Caixa'!$G$15:$G$27)+(W27*'Casa de Bombas'!$C$19) -> 0 | AB27: -0.003017177938 | AC27: =SUM('Fluxo de Caixa'!$H$15:$H$27)+(AB27*'Casa de Bombas'!$C$19) -> 0 | AG27: -0.02369908264 | AH27: =SUM('Fluxo de Caixa'!$I$15:$I$27)+(AG27*'Casa de Bombas'!$C$19) -> 0 | AL27: -0.06996038996 | AM27: =SUM('Fluxo de Caixa'!$J$15:$J$27)+(AL27*'Casa de Bombas'!$C$19) -> 0 | AQ27: -0.01069898217 | AR27: =SUM('Fluxo de Caixa'!$K$15:$K$27)+(AQ27*'Casa de Bombas'!$C$19) -> 0 | AV27: 0.03727689412 | AW27: =SUM('Fluxo de Caixa'!$L$15:$L$27)+(AV27*'Casa de Bombas'!$C$19) -> 0 | BA27: 0.009276908283 | BB27: =SUM('Fluxo de Caixa'!$M$15:$M$27)+(BA27*'Casa de Bombas'!$C$19) -> 0 | BF27: 0.04579264256 | BG27: =SUM('Fluxo de Caixa'!$N$15:$N$27)+(BF27*'Casa de Bombas'!$C$19) -> 0 | BK27: 0.01392249391 | BL27: =SUM('Fluxo de Caixa'!$O$15:$O$27)+(BK27*'Casa de Bombas'!$C$19) -> 0 | BP27: -0.0169269932 | BQ27: =SUM('Fluxo de Caixa'!$P$15:$P$27)+(BP27*'Casa de Bombas'!$C$19) -> 0 | BU27: -0.02127592191 | BV27: =SUM('Fluxo de Caixa'!$Q$15:$Q$27)+(BU27*'Casa de Bombas'!$C$19) -> 0 | BZ27: -0.04139615249 | CA27: =SUM('Fluxo de Caixa'!$R$15:$R$27)+(BZ27*'Casa de Bombas'!$C$19) -> 0 | CE27: -0.01197645628 | CF27: =SUM('Fluxo de Caixa'!$S$15:$S$27)+(CE27*'Casa de Bombas'!$C$19) -> 0 | CJ27: 0.01422531098 | CK27: =SUM('Fluxo de Caixa'!$T$15:$T$27)+(CJ27*'Casa de Bombas'!$C$19) -> 0 | CO27: -0.02997071318 | CP27: =SUM('Fluxo de Caixa'!$U$15:$U$27)+(CO27*'Casa de Bombas'!$C$19) -> 0 | CT27: -0.05416509447 | CU27: =SUM('Fluxo de Caixa'!$V$15:$V$27)+(CT27*'Casa de Bombas'!$C$19) -> 0 | CY27: -0.01283338372 | CZ27: =SUM('Fluxo de Caixa'!$W$15:$W$18)+(CY27*'Casa de Bombas'!$C$19) -> 0 | DC27: =DB27*AreaCana*DA27-'Fluxo de Caixa'!W33-'Fluxo de Caixa'!W35 ->  | DD27: 0
B28: 14 | C28: 0 | D28: =D27 -> 0 | E28: 0 | F28: 0 | G28: 0 | H28: -0.001919377941 | I28: =SUM('Fluxo de Caixa'!$D$15:$D$27)+(H28*'Casa de Bombas'!$C$19) -> 0 | M28: 0.03108507259 | N28: =SUM('Fluxo de Caixa'!$E$15:$E$27)+(M28*'Casa de Bombas'!$C$19) -> 0 | R28: 0.06712533584 | S28: =SUM('Fluxo de Caixa'!$F$15:$F$27)+(R28*'Casa de Bombas'!$C$19) -> 0 | W28: -0.01754092054 | X28: =SUM('Fluxo de Caixa'!$G$15:$G$27)+(W28*'Casa de Bombas'!$C$19) -> 0 | AB28: 0.07082990798 | AC28: =SUM('Fluxo de Caixa'!$H$15:$H$27)+(AB28*'Casa de Bombas'!$C$19) -> 0 | AG28: 0.05056348521 | AH28: =SUM('Fluxo de Caixa'!$I$15:$I$27)+(AG28*'Casa de Bombas'!$C$19) -> 0 | AL28: -0.1066788414 | AM28: =SUM('Fluxo de Caixa'!$J$15:$J$27)+(AL28*'Casa de Bombas'!$C$19) -> 0 | AQ28: -0.09078383599 | AR28: =SUM('Fluxo de Caixa'!$K$15:$K$27)+(AQ28*'Casa de Bombas'!$C$19) -> 0 | AV28: 0.03403714326 | AW28: =SUM('Fluxo de Caixa'!$L$15:$L$27)+(AV28*'Casa de Bombas'!$C$19) -> 0 | BA28: 0.07132362777 | BB28: =SUM('Fluxo de Caixa'!$M$15:$M$27)+(BA28*'Casa de Bombas'!$C$19) -> 0 | BF28: -0.0190889398 | BG28: =SUM('Fluxo de Caixa'!$N$15:$N$27)+(BF28*'Casa de Bombas'!$C$19) -> 0 | BK28: 0.01826071659 | BL28: =SUM('Fluxo de Caixa'!$O$15:$O$27)+(BK28*'Casa de Bombas'!$C$19) -> 0 | BP28: -0.04517552227 | BQ28: =SUM('Fluxo de Caixa'!$P$15:$P$27)+(BP28*'Casa de Bombas'!$C$19) -> 0 | BU28: -0.005231343313 | BV28: =SUM('Fluxo de Caixa'!$Q$15:$Q$27)+(BU28*'Casa de Bombas'!$C$19) -> 0 | BZ28: 0.02846363299 | CA28: =SUM('Fluxo de Caixa'!$R$15:$R$27)+(BZ28*'Casa de Bombas'!$C$19) -> 0 | CE28: -0.003930010248 | CF28: =SUM('Fluxo de Caixa'!$S$15:$S$27)+(CE28*'Casa de Bombas'!$C$19) -> 0 | CJ28: 0.0106852922 | CK28: =SUM('Fluxo de Caixa'!$T$15:$T$27)+(CJ28*'Casa de Bombas'!$C$19) -> 0 | CO28: -0.1189043474 | CP28: =SUM('Fluxo de Caixa'!$U$15:$U$27)+(CO28*'Casa de Bombas'!$C$19) -> 0 | CT28: 0.05052641103 | CU28: =SUM('Fluxo de Caixa'!$V$15:$V$27)+(CT28*'Casa de Bombas'!$C$19) -> 0 | CY28: 0.06054486451 | CZ28: =SUM('Fluxo de Caixa'!$W$15:$W$18)+(CY28*'Casa de Bombas'!$C$19) -> 0 | DC28: =DB28*AreaCana*DA28-'Fluxo de Caixa'!W34-'Fluxo de Caixa'!W36 ->  | DD28: 0
B29: 15 | C29: 0 | D29: =D28 -> 0 | E29: 0 | F29: 0 | G29: 0 | H29: -0.07293086987 | I29: =SUM('Fluxo de Caixa'!$D$15:$D$27)+(H29*'Casa de Bombas'!$C$19) -> 0 | M29: -0.05908915149 | N29: =SUM('Fluxo de Caixa'!$E$15:$E$27)+(M29*'Casa de Bombas'!$C$19) -> 0 | R29: -0.07029078647 | S29: =SUM('Fluxo de Caixa'!$F$15:$F$27)+(R29*'Casa de Bombas'!$C$19) -> 0 | W29: 0.003191164748 | X29: =SUM('Fluxo de Caixa'!$G$15:$G$27)+(W29*'Casa de Bombas'!$C$19) -> 0 | AB29: 0.07308086721 | AC29: =SUM('Fluxo de Caixa'!$H$15:$H$27)+(AB29*'Casa de Bombas'!$C$19) -> 0 | AG29: 0.05194737591 | AH29: =SUM('Fluxo de Caixa'!$I$15:$I$27)+(AG29*'Casa de Bombas'!$C$19) -> 0 | AL29: 0.08684135466 | AM29: =SUM('Fluxo de Caixa'!$J$15:$J$27)+(AL29*'Casa de Bombas'!$C$19) -> 0 | AQ29: 0.03164027384 | AR29: =SUM('Fluxo de Caixa'!$K$15:$K$27)+(AQ29*'Casa de Bombas'!$C$19) -> 0 | AV29: -0.08641684915 | AW29: =SUM('Fluxo de Caixa'!$L$15:$L$27)+(AV29*'Casa de Bombas'!$C$19) -> 0 | BA29: -0.06705654483 | BB29: =SUM('Fluxo de Caixa'!$M$15:$M$27)+(BA29*'Casa de Bombas'!$C$19) -> 0 | BF29: -0.07337118943 | BG29: =SUM('Fluxo de Caixa'!$N$15:$N$27)+(BF29*'Casa de Bombas'!$C$19) -> 0 | BK29: 0.05762612878 | BL29: =SUM('Fluxo de Caixa'!$O$15:$O$27)+(BK29*'Casa de Bombas'!$C$19) -> 0 | BP29: -0.002493693728 | BQ29: =SUM('Fluxo de Caixa'!$P$15:$P$27)+(BP29*'Casa de Bombas'!$C$19) -> 0 | BU29: 0.0865355096 | BV29: =SUM('Fluxo de Caixa'!$Q$15:$Q$27)+(BU29*'Casa de Bombas'!$C$19) -> 0 | BZ29: 0.03100227779 | CA29: =SUM('Fluxo de Caixa'!$R$15:$R$27)+(BZ29*'Casa de Bombas'!$C$19) -> 0 | CE29: 0.02084889678 | CF29: =SUM('Fluxo de Caixa'!$S$15:$S$27)+(CE29*'Casa de Bombas'!$C$19) -> 0 | CJ29: 0.04657021901 | CK29: =SUM('Fluxo de Caixa'!$T$15:$T$27)+(CJ29*'Casa de Bombas'!$C$19) -> 0 | CO29: 0.02548094829 | CP29: =SUM('Fluxo de Caixa'!$U$15:$U$27)+(CO29*'Casa de Bombas'!$C$19) -> 0 | CT29: 0.01516557282 | CU29: =SUM('Fluxo de Caixa'!$V$15:$V$27)+(CT29*'Casa de Bombas'!$C$19) -> 0 | CY29: -0.002089649008 | CZ29: =SUM('Fluxo de Caixa'!$W$15:$W$18)+(CY29*'Casa de Bombas'!$C$19) -> 0 | DC29: =DB29*AreaCana*DA29-'Fluxo de Caixa'!W35-'Fluxo de Caixa'!W37 ->  | DD29: 0
B30: 16 | C30: 0 | D30: =D29 -> 0 | E30: 0 | F30: 0 | G30: 0 | H30: -0.04076703567 | I30: =SUM('Fluxo de Caixa'!$D$15:$D$27)+(H30*'Casa de Bombas'!$C$19) -> 0 | M30: -0.04039700593 | N30: =SUM('Fluxo de Caixa'!$E$15:$E$27)+(M30*'Casa de Bombas'!$C$19) -> 0 | R30: 0.02371491372 | S30: =SUM('Fluxo de Caixa'!$F$15:$F$27)+(R30*'Casa de Bombas'!$C$19) -> 0 | W30: 0.02373102786 | X30: =SUM('Fluxo de Caixa'!$G$15:$G$27)+(W30*'Casa de Bombas'!$C$19) -> 0 | AB30: -0.003450743165 | AC30: =SUM('Fluxo de Caixa'!$H$15:$H$27)+(AB30*'Casa de Bombas'!$C$19) -> 0 | AG30: 0.06222722932 | AH30: =SUM('Fluxo de Caixa'!$I$15:$I$27)+(AG30*'Casa de Bombas'!$C$19) -> 0 | AL30: -0.03969483823 | AM30: =SUM('Fluxo de Caixa'!$J$15:$J$27)+(AL30*'Casa de Bombas'!$C$19) -> 0 | AQ30: -0.03592857785 | AR30: =SUM('Fluxo de Caixa'!$K$15:$K$27)+(AQ30*'Casa de Bombas'!$C$19) -> 0 | AV30: 0.02985771272 | AW30: =SUM('Fluxo de Caixa'!$L$15:$L$27)+(AV30*'Casa de Bombas'!$C$19) -> 0 | BA30: 0.02761393458 | BB30: =SUM('Fluxo de Caixa'!$M$15:$M$27)+(BA30*'Casa de Bombas'!$C$19) -> 0 | BF30: -0.04138387134 | BG30: =SUM('Fluxo de Caixa'!$N$15:$N$27)+(BF30*'Casa de Bombas'!$C$19) -> 0 | BK30: 0.05013281423 | BL30: =SUM('Fluxo de Caixa'!$O$15:$O$27)+(BK30*'Casa de Bombas'!$C$19) -> 0 | BP30: -0.01364327636 | BQ30: =SUM('Fluxo de Caixa'!$P$15:$P$27)+(BP30*'Casa de Bombas'!$C$19) -> 0 | BU30: 0.0006366837626 | BV30: =SUM('Fluxo de Caixa'!$Q$15:$Q$27)+(BU30*'Casa de Bombas'!$C$19) -> 0 | BZ30: -0.02813123116 | CA30: =SUM('Fluxo de Caixa'!$R$15:$R$27)+(BZ30*'Casa de Bombas'!$C$19) -> 0 | CE30: 0.03769167679 | CF30: =SUM('Fluxo de Caixa'!$S$15:$S$27)+(CE30*'Casa de Bombas'!$C$19) -> 0 | CJ30: 0.006134250357 | CK30: =SUM('Fluxo de Caixa'!$T$15:$T$27)+(CJ30*'Casa de Bombas'!$C$19) -> 0 | CO30: 0.03938552339 | CP30: =SUM('Fluxo de Caixa'!$U$15:$U$27)+(CO30*'Casa de Bombas'!$C$19) -> 0 | CT30: -0.001678485383 | CU30: =SUM('Fluxo de Caixa'!$V$15:$V$27)+(CT30*'Casa de Bombas'!$C$19) -> 0 | CY30: -0.04638588901 | CZ30: =SUM('Fluxo de Caixa'!$W$15:$W$18)+(CY30*'Casa de Bombas'!$C$19) -> 0 | DC30: =DB30*AreaCana*DA30-'Fluxo de Caixa'!W36-'Fluxo de Caixa'!W38 ->  | DD30: 0
B31: 17 | C31: 0 | D31: =D30 -> 0 | E31: 0 | F31: 0 | G31: 0 | H31: 0.01244756857 | I31: =SUM('Fluxo de Caixa'!$D$15:$D$27)+(H31*'Casa de Bombas'!$C$19) -> 0 | M31: -0.00566504725 | N31: =SUM('Fluxo de Caixa'!$E$15:$E$27)+(M31*'Casa de Bombas'!$C$19) -> 0 | R31: 0.02326419567 | S31: =SUM('Fluxo de Caixa'!$F$15:$F$27)+(R31*'Casa de Bombas'!$C$19) -> 0 | W31: -0.08705790786 | X31: =SUM('Fluxo de Caixa'!$G$15:$G$27)+(W31*'Casa de Bombas'!$C$19) -> 0 | AB31: 0.03382578276 | AC31: =SUM('Fluxo de Caixa'!$H$15:$H$27)+(AB31*'Casa de Bombas'!$C$19) -> 0 | AG31: -0.08019868887 | AH31: =SUM('Fluxo de Caixa'!$I$15:$I$27)+(AG31*'Casa de Bombas'!$C$19) -> 0 | AL31: 0.02190410978 | AM31: =SUM('Fluxo de Caixa'!$J$15:$J$27)+(AL31*'Casa de Bombas'!$C$19) -> 0 | AQ31: -0.02007191982 | AR31: =SUM('Fluxo de Caixa'!$K$15:$K$27)+(AQ31*'Casa de Bombas'!$C$19) -> 0 | AV31: -0.06322809181 | AW31: =SUM('Fluxo de Caixa'!$L$15:$L$27)+(AV31*'Casa de Bombas'!$C$19) -> 0 | BA31: -0.04805674779 | BB31: =SUM('Fluxo de Caixa'!$M$15:$M$27)+(BA31*'Casa de Bombas'!$C$19) -> 0 | BF31: 0.0008867694748 | BG31: =SUM('Fluxo de Caixa'!$N$15:$N$27)+(BF31*'Casa de Bombas'!$C$19) -> 0 | BK31: 0.007401446881 | BL31: =SUM('Fluxo de Caixa'!$O$15:$O$27)+(BK31*'Casa de Bombas'!$C$19) -> 0 | BP31: 0.116874725 | BQ31: =SUM('Fluxo de Caixa'!$P$15:$P$27)+(BP31*'Casa de Bombas'!$C$19) -> 0 | BU31: 0.03900383763 | BV31: =SUM('Fluxo de Caixa'!$Q$15:$Q$27)+(BU31*'Casa de Bombas'!$C$19) -> 0 | BZ31: -0.02023797801 | CA31: =SUM('Fluxo de Caixa'!$R$15:$R$27)+(BZ31*'Casa de Bombas'!$C$19) -> 0 | CE31: -0.1152605015 | CF31: =SUM('Fluxo de Caixa'!$S$15:$S$27)+(CE31*'Casa de Bombas'!$C$19) -> 0 | CJ31: -0.05335280273 | CK31: =SUM('Fluxo de Caixa'!$T$15:$T$27)+(CJ31*'Casa de Bombas'!$C$19) -> 0 | CO31: 0.05319835381 | CP31: =SUM('Fluxo de Caixa'!$U$15:$U$27)+(CO31*'Casa de Bombas'!$C$19) -> 0 | CT31: 0.05050329812 | CU31: =SUM('Fluxo de Caixa'!$V$15:$V$27)+(CT31*'Casa de Bombas'!$C$19) -> 0 | CY31: 0.1118081992 | CZ31: =SUM('Fluxo de Caixa'!$W$15:$W$18)+(CY31*'Casa de Bombas'!$C$19) -> 0 | DC31: =DB31*AreaCana*DA31-'Fluxo de Caixa'!W37-'Fluxo de Caixa'!W39 ->  | DD31: 0
B32: 18 | C32: 0 | D32: =D31 -> 0 | E32: 0 | F32: 0 | G32: 0 | H32: 0.02642814914 | I32: =SUM('Fluxo de Caixa'!$D$15:$D$27)+(H32*'Casa de Bombas'!$C$19) -> 0 | M32: 0.06735484978 | N32: =SUM('Fluxo de Caixa'!$E$15:$E$27)+(M32*'Casa de Bombas'!$C$19) -> 0 | R32: -0.05039739355 | S32: =SUM('Fluxo de Caixa'!$F$15:$F$27)+(R32*'Casa de Bombas'!$C$19) -> 0 | W32: 0.06835806434 | X32: =SUM('Fluxo de Caixa'!$G$15:$G$27)+(W32*'Casa de Bombas'!$C$19) -> 0 | AB32: -0.003409556766 | AC32: =SUM('Fluxo de Caixa'!$H$15:$H$27)+(AB32*'Casa de Bombas'!$C$19) -> 0 | AG32: 0.06589720483 | AH32: =SUM('Fluxo de Caixa'!$I$15:$I$27)+(AG32*'Casa de Bombas'!$C$19) -> 0 | AL32: -0.003316587116 | AM32: =SUM('Fluxo de Caixa'!$J$15:$J$27)+(AL32*'Casa de Bombas'!$C$19) -> 0 | AQ32: -8.223112509e-05 | AR32: =SUM('Fluxo de Caixa'!$K$15:$K$27)+(AQ32*'Casa de Bombas'!$C$19) -> 0 | AV32: 0.02463180394 | AW32: =SUM('Fluxo de Caixa'!$L$15:$L$27)+(AV32*'Casa de Bombas'!$C$19) -> 0 | BA32: -0.06421636085 | BB32: =SUM('Fluxo de Caixa'!$M$15:$M$27)+(BA32*'Casa de Bombas'!$C$19) -> 0 | BF32: 0.1092674683 | BG32: =SUM('Fluxo de Caixa'!$N$15:$N$27)+(BF32*'Casa de Bombas'!$C$19) -> 0 | BK32: 0.1016345102 | BL32: =SUM('Fluxo de Caixa'!$O$15:$O$27)+(BK32*'Casa de Bombas'!$C$19) -> 0 | BP32: -0.06233900508 | BQ32: =SUM('Fluxo de Caixa'!$P$15:$P$27)+(BP32*'Casa de Bombas'!$C$19) -> 0 | BU32: 0.04682421806 | BV32: =SUM('Fluxo de Caixa'!$Q$15:$Q$27)+(BU32*'Casa de Bombas'!$C$19) -> 0 | BZ32: 0.06719367864 | CA32: =SUM('Fluxo de Caixa'!$R$15:$R$27)+(BZ32*'Casa de Bombas'!$C$19) -> 0 | CE32: -0.03412123334 | CF32: =SUM('Fluxo de Caixa'!$S$15:$S$27)+(CE32*'Casa de Bombas'!$C$19) -> 0 | CJ32: -0.01771133611 | CK32: =SUM('Fluxo de Caixa'!$T$15:$T$27)+(CJ32*'Casa de Bombas'!$C$19) -> 0 | CO32: -0.06577457022 | CP32: =SUM('Fluxo de Caixa'!$U$15:$U$27)+(CO32*'Casa de Bombas'!$C$19) -> 0 | CT32: -0.06745424052 | CU32: =SUM('Fluxo de Caixa'!$V$15:$V$27)+(CT32*'Casa de Bombas'!$C$19) -> 0 | CY32: 0.04239968238 | CZ32: =SUM('Fluxo de Caixa'!$W$15:$W$18)+(CY32*'Casa de Bombas'!$C$19) -> 0 | DC32: =DB32*AreaCana*DA32-'Fluxo de Caixa'!W38-'Fluxo de Caixa'!W40 ->  | DD32: 0
B33: 19 | C33: 0 | D33: =D32 -> 0 | E33: 0 | F33: 0 | G33: 0 | H33: -0.01879302137 | I33: =SUM('Fluxo de Caixa'!$D$15:$D$27)+(H33*'Casa de Bombas'!$C$19) -> 0 | M33: 0.01820107317 | N33: =SUM('Fluxo de Caixa'!$E$15:$E$27)+(M33*'Casa de Bombas'!$C$19) -> 0 | R33: -0.01653472776 | S33: =SUM('Fluxo de Caixa'!$F$15:$F$27)+(R33*'Casa de Bombas'!$C$19) -> 0 | W33: -0.0120745726 | X33: =SUM('Fluxo de Caixa'!$G$15:$G$27)+(W33*'Casa de Bombas'!$C$19) -> 0 | AB33: -0.05566374264 | AC33: =SUM('Fluxo de Caixa'!$H$15:$H$27)+(AB33*'Casa de Bombas'!$C$19) -> 0 | AG33: 0.02583828354 | AH33: =SUM('Fluxo de Caixa'!$I$15:$I$27)+(AG33*'Casa de Bombas'!$C$19) -> 0 | AL33: 0.07871498508 | AM33: =SUM('Fluxo de Caixa'!$J$15:$J$27)+(AL33*'Casa de Bombas'!$C$19) -> 0 | AQ33: -0.05138796674 | AR33: =SUM('Fluxo de Caixa'!$K$15:$K$27)+(AQ33*'Casa de Bombas'!$C$19) -> 0 | AV33: -0.04753812425 | AW33: =SUM('Fluxo de Caixa'!$L$15:$L$27)+(AV33*'Casa de Bombas'!$C$19) -> 0 | BA33: 0.03913719485 | BB33: =SUM('Fluxo de Caixa'!$M$15:$M$27)+(BA33*'Casa de Bombas'!$C$19) -> 0 | BF33: 0.05181524069 | BG33: =SUM('Fluxo de Caixa'!$N$15:$N$27)+(BF33*'Casa de Bombas'!$C$19) -> 0 | BK33: -0.1129316944 | BL33: =SUM('Fluxo de Caixa'!$O$15:$O$27)+(BK33*'Casa de Bombas'!$C$19) -> 0 | BP33: -0.01936152543 | BQ33: =SUM('Fluxo de Caixa'!$P$15:$P$27)+(BP33*'Casa de Bombas'!$C$19) -> 0 | BU33: -0.04336810169 | BV33: =SUM('Fluxo de Caixa'!$Q$15:$Q$27)+(BU33*'Casa de Bombas'!$C$19) -> 0 | BZ33: 0.05180736204 | CA33: =SUM('Fluxo de Caixa'!$R$15:$R$27)+(BZ33*'Casa de Bombas'!$C$19) -> 0 | CE33: -0.04642945094 | CF33: =SUM('Fluxo de Caixa'!$S$15:$S$27)+(CE33*'Casa de Bombas'!$C$19) -> 0 | CJ33: -0.04346855321 | CK33: =SUM('Fluxo de Caixa'!$T$15:$T$27)+(CJ33*'Casa de Bombas'!$C$19) -> 0 | CO33: 0.05707095961 | CP33: =SUM('Fluxo de Caixa'!$U$15:$U$27)+(CO33*'Casa de Bombas'!$C$19) -> 0 | CT33: 0.01662054637 | CU33: =SUM('Fluxo de Caixa'!$V$15:$V$27)+(CT33*'Casa de Bombas'!$C$19) -> 0 | CY33: 0.02370826777 | CZ33: =SUM('Fluxo de Caixa'!$W$15:$W$18)+(CY33*'Casa de Bombas'!$C$19) -> 0 | DC33: =DB33*AreaCana*DA33-'Fluxo de Caixa'!W39-'Fluxo de Caixa'!W41 ->  | DD33: 0
B34: 20 | C34: 0 | D34: =D33 -> 0 | E34: 0 | F34: 0 | G34: 0 | H34: 0.04923357867 | I34: =SUM('Fluxo de Caixa'!$D$15:$D$27)+(H34*'Casa de Bombas'!$C$19) -> 0 | M34: -0.02872537982 | N34: =SUM('Fluxo de Caixa'!$E$15:$E$27)+(M34*'Casa de Bombas'!$C$19) -> 0 | R34: -0.05769809976 | S34: =SUM('Fluxo de Caixa'!$F$15:$F$27)+(R34*'Casa de Bombas'!$C$19) -> 0 | W34: 0.1228898463 | X34: =SUM('Fluxo de Caixa'!$G$15:$G$27)+(W34*'Casa de Bombas'!$C$19) -> 0 | AB34: -0.02917838022 | AC34: =SUM('Fluxo de Caixa'!$H$15:$H$27)+(AB34*'Casa de Bombas'!$C$19) -> 0 | AG34: 0.02374340154 | AH34: =SUM('Fluxo de Caixa'!$I$15:$I$27)+(AG34*'Casa de Bombas'!$C$19) -> 0 | AL34: -0.03603904122 | AM34: =SUM('Fluxo de Caixa'!$J$15:$J$27)+(AL34*'Casa de Bombas'!$C$19) -> 0 | AQ34: 0.003508728617 | AR34: =SUM('Fluxo de Caixa'!$K$15:$K$27)+(AQ34*'Casa de Bombas'!$C$19) -> 0 | AV34: -0.0130033009 | AW34: =SUM('Fluxo de Caixa'!$L$15:$L$27)+(AV34*'Casa de Bombas'!$C$19) -> 0 | BA34: 0.05940177364 | BB34: =SUM('Fluxo de Caixa'!$M$15:$M$27)+(BA34*'Casa de Bombas'!$C$19) -> 0 | BF34: -0.0106806566 | BG34: =SUM('Fluxo de Caixa'!$N$15:$N$27)+(BF34*'Casa de Bombas'!$C$19) -> 0 | BK34: 0.02860300186 | BL34: =SUM('Fluxo de Caixa'!$O$15:$O$27)+(BK34*'Casa de Bombas'!$C$19) -> 0 | BP34: -0.05240637204 | BQ34: =SUM('Fluxo de Caixa'!$P$15:$P$27)+(BP34*'Casa de Bombas'!$C$19) -> 0 | BU34: 0.008602230192 | BV34: =SUM('Fluxo de Caixa'!$Q$15:$Q$27)+(BU34*'Casa de Bombas'!$C$19) -> 0 | BZ34: 0.06699128938 | CA34: =SUM('Fluxo de Caixa'!$R$15:$R$27)+(BZ34*'Casa de Bombas'!$C$19) -> 0 | CE34: 0.06994770275 | CF34: =SUM('Fluxo de Caixa'!$S$15:$S$27)+(CE34*'Casa de Bombas'!$C$19) -> 0 | CJ34: 0.03385162499 | CK34: =SUM('Fluxo de Caixa'!$T$15:$T$27)+(CJ34*'Casa de Bombas'!$C$19) -> 0 | CO34: 0.01289950337 | CP34: =SUM('Fluxo de Caixa'!$U$15:$U$27)+(CO34*'Casa de Bombas'!$C$19) -> 0 | CT34: -0.06355175977 | CU34: =SUM('Fluxo de Caixa'!$V$15:$V$27)+(CT34*'Casa de Bombas'!$C$19) -> 0 | CY34: -0.0002841766505 | CZ34: =SUM('Fluxo de Caixa'!$W$15:$W$18)+(CY34*'Casa de Bombas'!$C$19) -> 0 | DC34: =DB34*AreaCana*DA34-'Fluxo de Caixa'!W40-'Fluxo de Caixa'!W42 ->  | DD34: 0
B35: 21 | C35: 0 | D35: =D34 -> 0 | E35: 0 | F35: 0 | G35: 0 | H35: -0.08389886837 | I35: =SUM('Fluxo de Caixa'!$D$15:$D$27)+(H35*'Casa de Bombas'!$C$19) -> 0 | M35: 0.0414140648 | N35: =SUM('Fluxo de Caixa'!$E$15:$E$27)+(M35*'Casa de Bombas'!$C$19) -> 0 | R35: 0.03561300131 | S35: =SUM('Fluxo de Caixa'!$F$15:$F$27)+(R35*'Casa de Bombas'!$C$19) -> 0 | W35: 0.001001597029 | X35: =SUM('Fluxo de Caixa'!$G$15:$G$27)+(W35*'Casa de Bombas'!$C$19) -> 0 | AB35: 0.07302254498 | AC35: =SUM('Fluxo de Caixa'!$H$15:$H$27)+(AB35*'Casa de Bombas'!$C$19) -> 0 | AG35: 0.04384943951 | AH35: =SUM('Fluxo de Caixa'!$I$15:$I$27)+(AG35*'Casa de Bombas'!$C$19) -> 0 | AL35: 0.03674741715 | AM35: =SUM('Fluxo de Caixa'!$J$15:$J$27)+(AL35*'Casa de Bombas'!$C$19) -> 0 | AQ35: -0.04493733208 | AR35: =SUM('Fluxo de Caixa'!$K$15:$K$27)+(AQ35*'Casa de Bombas'!$C$19) -> 0 | AV35: -0.007476179936 | AW35: =SUM('Fluxo de Caixa'!$L$15:$L$27)+(AV35*'Casa de Bombas'!$C$19) -> 0 | BA35: 0.02480482513 | BB35: =SUM('Fluxo de Caixa'!$M$15:$M$27)+(BA35*'Casa de Bombas'!$C$19) -> 0 | BF35: 0.04744308432 | BG35: =SUM('Fluxo de Caixa'!$N$15:$N$27)+(BF35*'Casa de Bombas'!$C$19) -> 0 | BK35: -0.03359176453 | BL35: =SUM('Fluxo de Caixa'!$O$15:$O$27)+(BK35*'Casa de Bombas'!$C$19) -> 0 | BP35: 0.01756388919 | BQ35: =SUM('Fluxo de Caixa'!$P$15:$P$27)+(BP35*'Casa de Bombas'!$C$19) -> 0 | BU35: -0.01038413505 | BV35: =SUM('Fluxo de Caixa'!$Q$15:$Q$27)+(BU35*'Casa de Bombas'!$C$19) -> 0 | BZ35: 0.04542704866 | CA35: =SUM('Fluxo de Caixa'!$R$15:$R$27)+(BZ35*'Casa de Bombas'!$C$19) -> 0 | CE35: -0.07742489473 | CF35: =SUM('Fluxo de Caixa'!$S$15:$S$27)+(CE35*'Casa de Bombas'!$C$19) -> 0 | CJ35: 0.09526142395 | CK35: =SUM('Fluxo de Caixa'!$T$15:$T$27)+(CJ35*'Casa de Bombas'!$C$19) -> 0 | CO35: -0.1194111832 | CP35: =SUM('Fluxo de Caixa'!$U$15:$U$27)+(CO35*'Casa de Bombas'!$C$19) -> 0 | CT35: -0.008565697223 | CU35: =SUM('Fluxo de Caixa'!$V$15:$V$27)+(CT35*'Casa de Bombas'!$C$19) -> 0 | CY35: -0.01194917354 | CZ35: =SUM('Fluxo de Caixa'!$W$15:$W$18)+(CY35*'Casa de Bombas'!$C$19) -> 0 | DC35: =DB35*AreaCana*DA35-'Fluxo de Caixa'!W41-'Fluxo de Caixa'!W43 ->  | DD35: 0
B36: 22 | C36: 0 | D36: =D35 -> 0 | E36: 0 | F36: 0 | G36: 0 | H36: 0.0499460998 | I36: =SUM('Fluxo de Caixa'!$D$15:$D$27)+(H36*'Casa de Bombas'!$C$19) -> 0 | M36: -0.07594329301 | N36: =SUM('Fluxo de Caixa'!$E$15:$E$27)+(M36*'Casa de Bombas'!$C$19) -> 0 | R36: 0.02174188708 | S36: =SUM('Fluxo de Caixa'!$F$15:$F$27)+(R36*'Casa de Bombas'!$C$19) -> 0 | W36: -0.05190871984 | X36: =SUM('Fluxo de Caixa'!$G$15:$G$27)+(W36*'Casa de Bombas'!$C$19) -> 0 | AB36: 0.0008233954535 | AC36: =SUM('Fluxo de Caixa'!$H$15:$H$27)+(AB36*'Casa de Bombas'!$C$19) -> 0 | AG36: -0.04412398465 | AH36: =SUM('Fluxo de Caixa'!$I$15:$I$27)+(AG36*'Casa de Bombas'!$C$19) -> 0 | AL36: -0.1255583942 | AM36: =SUM('Fluxo de Caixa'!$J$15:$J$27)+(AL36*'Casa de Bombas'!$C$19) -> 0 | AQ36: -0.04896399455 | AR36: =SUM('Fluxo de Caixa'!$K$15:$K$27)+(AQ36*'Casa de Bombas'!$C$19) -> 0 | AV36: -0.07543567921 | AW36: =SUM('Fluxo de Caixa'!$L$15:$L$27)+(AV36*'Casa de Bombas'!$C$19) -> 0 | BA36: -0.02882280565 | BB36: =SUM('Fluxo de Caixa'!$M$15:$M$27)+(BA36*'Casa de Bombas'!$C$19) -> 0 | BF36: 0.0461979621 | BG36: =SUM('Fluxo de Caixa'!$N$15:$N$27)+(BF36*'Casa de Bombas'!$C$19) -> 0 | BK36: 0.01829329352 | BL36: =SUM('Fluxo de Caixa'!$O$15:$O$27)+(BK36*'Casa de Bombas'!$C$19) -> 0 | BP36: -0.06145276971 | BQ36: =SUM('Fluxo de Caixa'!$P$15:$P$27)+(BP36*'Casa de Bombas'!$C$19) -> 0 | BU36: -0.03544369153 | BV36: =SUM('Fluxo de Caixa'!$Q$15:$Q$27)+(BU36*'Casa de Bombas'!$C$19) -> 0 | BZ36: 0.02874810778 | CA36: =SUM('Fluxo de Caixa'!$R$15:$R$27)+(BZ36*'Casa de Bombas'!$C$19) -> 0 | CE36: 0.0270637121 | CF36: =SUM('Fluxo de Caixa'!$S$15:$S$27)+(CE36*'Casa de Bombas'!$C$19) -> 0 | CJ36: 0.05028292882 | CK36: =SUM('Fluxo de Caixa'!$T$15:$T$27)+(CJ36*'Casa de Bombas'!$C$19) -> 0 | CO36: 0.0236885911 | CP36: =SUM('Fluxo de Caixa'!$U$15:$U$27)+(CO36*'Casa de Bombas'!$C$19) -> 0 | CT36: -0.05621833389 | CU36: =SUM('Fluxo de Caixa'!$V$15:$V$27)+(CT36*'Casa de Bombas'!$C$19) -> 0 | CY36: -0.06614753542 | CZ36: =SUM('Fluxo de Caixa'!$W$15:$W$18)+(CY36*'Casa de Bombas'!$C$19) -> 0 | DC36: =DB36*AreaCana*DA36-'Fluxo de Caixa'!W42-'Fluxo de Caixa'!W44 ->  | DD36: 0
B37: 23 | C37: 0 | D37: =D36 -> 0 | E37: 0 | F37: 0 | G37: 0 | H37: 0.07438297196 | I37: =SUM('Fluxo de Caixa'!$D$15:$D$27)+(H37*'Casa de Bombas'!$C$19) -> 0 | M37: 0.01234398735 | N37: =SUM('Fluxo de Caixa'!$E$15:$E$27)+(M37*'Casa de Bombas'!$C$19) -> 0 | R37: 0.03388288048 | S37: =SUM('Fluxo de Caixa'!$F$15:$F$27)+(R37*'Casa de Bombas'!$C$19) -> 0 | W37: -0.02262928149 | X37: =SUM('Fluxo de Caixa'!$G$15:$G$27)+(W37*'Casa de Bombas'!$C$19) -> 0 | AB37: -0.05066899257 | AC37: =SUM('Fluxo de Caixa'!$H$15:$H$27)+(AB37*'Casa de Bombas'!$C$19) -> 0 | AG37: -0.004463703689 | AH37: =SUM('Fluxo de Caixa'!$I$15:$I$27)+(AG37*'Casa de Bombas'!$C$19) -> 0 | AL37: 0.0002642536153 | AM37: =SUM('Fluxo de Caixa'!$J$15:$J$27)+(AL37*'Casa de Bombas'!$C$19) -> 0 | AQ37: -0.007164935013 | AR37: =SUM('Fluxo de Caixa'!$K$15:$K$27)+(AQ37*'Casa de Bombas'!$C$19) -> 0 | AV37: -0.04670747285 | AW37: =SUM('Fluxo de Caixa'!$L$15:$L$27)+(AV37*'Casa de Bombas'!$C$19) -> 0 | BA37: 0.07900463746 | BB37: =SUM('Fluxo de Caixa'!$M$15:$M$27)+(BA37*'Casa de Bombas'!$C$19) -> 0 | BF37: 0.04185633383 | BG37: =SUM('Fluxo de Caixa'!$N$15:$N$27)+(BF37*'Casa de Bombas'!$C$19) -> 0 | BK37: 0.01229104213 | BL37: =SUM('Fluxo de Caixa'!$O$15:$O$27)+(BK37*'Casa de Bombas'!$C$19) -> 0 | BP37: 0.04160892916 | BQ37: =SUM('Fluxo de Caixa'!$P$15:$P$27)+(BP37*'Casa de Bombas'!$C$19) -> 0 | BU37: -0.04490887569 | BV37: =SUM('Fluxo de Caixa'!$Q$15:$Q$27)+(BU37*'Casa de Bombas'!$C$19) -> 0 | BZ37: -0.08504539763 | CA37: =SUM('Fluxo de Caixa'!$R$15:$R$27)+(BZ37*'Casa de Bombas'!$C$19) -> 0 | CE37: 0.02275854036 | CF37: =SUM('Fluxo de Caixa'!$S$15:$S$27)+(CE37*'Casa de Bombas'!$C$19) -> 0 | CJ37: -0.1034949126 | CK37: =SUM('Fluxo de Caixa'!$T$15:$T$27)+(CJ37*'Casa de Bombas'!$C$19) -> 0 | CO37: -0.02284103655 | CP37: =SUM('Fluxo de Caixa'!$U$15:$U$27)+(CO37*'Casa de Bombas'!$C$19) -> 0 | CT37: 0.0295678851 | CU37: =SUM('Fluxo de Caixa'!$V$15:$V$27)+(CT37*'Casa de Bombas'!$C$19) -> 0 | CY37: -0.03830425341 | CZ37: =SUM('Fluxo de Caixa'!$W$15:$W$18)+(CY37*'Casa de Bombas'!$C$19) -> 0 | DC37: =DB37*AreaCana*DA37-'Fluxo de Caixa'!W43-'Fluxo de Caixa'!W45 ->  | DD37: 0
B38: 24 | C38: 0 | D38: =D37 -> 0 | E38: 0 | F38: 0 | G38: 0 | H38: 0.002297775436 | I38: =SUM('Fluxo de Caixa'!$D$15:$D$27)+(H38*'Casa de Bombas'!$C$19) -> 0 | M38: 0.008933411885 | N38: =SUM('Fluxo de Caixa'!$E$15:$E$27)+(M38*'Casa de Bombas'!$C$19) -> 0 | R38: -0.02986606169 | S38: =SUM('Fluxo de Caixa'!$F$15:$F$27)+(R38*'Casa de Bombas'!$C$19) -> 0 | W38: 0.03613135695 | X38: =SUM('Fluxo de Caixa'!$G$15:$G$27)+(W38*'Casa de Bombas'!$C$19) -> 0 | AB38: 0.04601642037 | AC38: =SUM('Fluxo de Caixa'!$H$15:$H$27)+(AB38*'Casa de Bombas'!$C$19) -> 0 | AG38: 0.05503288604 | AH38: =SUM('Fluxo de Caixa'!$I$15:$I$27)+(AG38*'Casa de Bombas'!$C$19) -> 0 | AL38: 0.04317774771 | AM38: =SUM('Fluxo de Caixa'!$J$15:$J$27)+(AL38*'Casa de Bombas'!$C$19) -> 0 | AQ38: -0.01946626622 | AR38: =SUM('Fluxo de Caixa'!$K$15:$K$27)+(AQ38*'Casa de Bombas'!$C$19) -> 0 | AV38: -0.1142620205 | AW38: =SUM('Fluxo de Caixa'!$L$15:$L$27)+(AV38*'Casa de Bombas'!$C$19) -> 0 | BA38: -0.002596340331 | BB38: =SUM('Fluxo de Caixa'!$M$15:$M$27)+(BA38*'Casa de Bombas'!$C$19) -> 0 | BF38: -0.03044729696 | BG38: =SUM('Fluxo de Caixa'!$N$15:$N$27)+(BF38*'Casa de Bombas'!$C$19) -> 0 | BK38: 0.0209693517 | BL38: =SUM('Fluxo de Caixa'!$O$15:$O$27)+(BK38*'Casa de Bombas'!$C$19) -> 0 | BP38: -0.04896902919 | BQ38: =SUM('Fluxo de Caixa'!$P$15:$P$27)+(BP38*'Casa de Bombas'!$C$19) -> 0 | BU38: -0.04093707158 | BV38: =SUM('Fluxo de Caixa'!$Q$15:$Q$27)+(BU38*'Casa de Bombas'!$C$19) -> 0 | BZ38: -0.04479562992 | CA38: =SUM('Fluxo de Caixa'!$R$15:$R$27)+(BZ38*'Casa de Bombas'!$C$19) -> 0 | CE38: 0.06356627767 | CF38: =SUM('Fluxo de Caixa'!$S$15:$S$27)+(CE38*'Casa de Bombas'!$C$19) -> 0 | CJ38: -0.07216965463 | CK38: =SUM('Fluxo de Caixa'!$T$15:$T$27)+(CJ38*'Casa de Bombas'!$C$19) -> 0 | CO38: 0.04888393723 | CP38: =SUM('Fluxo de Caixa'!$U$15:$U$27)+(CO38*'Casa de Bombas'!$C$19) -> 0 | CT38: -0.03769926895 | CU38: =SUM('Fluxo de Caixa'!$V$15:$V$27)+(CT38*'Casa de Bombas'!$C$19) -> 0 | CY38: -0.01201509371 | CZ38: =SUM('Fluxo de Caixa'!$W$15:$W$18)+(CY38*'Casa de Bombas'!$C$19) -> 0 | DC38: =DB38*AreaCana*DA38-'Fluxo de Caixa'!W44-'Fluxo de Caixa'!W46 ->  | DD38: 0
B39: 25 | C39: 0 | D39: =D38 -> 0 | E39: 0 | F39: 0 | G39: 0 | H39: 0.01423213178 | I39: =SUM('Fluxo de Caixa'!$D$15:$D$27)+(H39*'Casa de Bombas'!$C$19) -> 0 | M39: 0.009822196344 | N39: =SUM('Fluxo de Caixa'!$E$15:$E$27)+(M39*'Casa de Bombas'!$C$19) -> 0 | R39: -0.04858872084 | S39: =SUM('Fluxo de Caixa'!$F$15:$F$27)+(R39*'Casa de Bombas'!$C$19) -> 0 | W39: -0.06640653224 | X39: =SUM('Fluxo de Caixa'!$G$15:$G$27)+(W39*'Casa de Bombas'!$C$19) -> 0 | AB39: 0.07211737091 | AC39: =SUM('Fluxo de Caixa'!$H$15:$H$27)+(AB39*'Casa de Bombas'!$C$19) -> 0 | AG39: 0.05499384915 | AH39: =SUM('Fluxo de Caixa'!$I$15:$I$27)+(AG39*'Casa de Bombas'!$C$19) -> 0 | AL39: 0.03314700691 | AM39: =SUM('Fluxo de Caixa'!$J$15:$J$27)+(AL39*'Casa de Bombas'!$C$19) -> 0 | AQ39: 0.009940514999 | AR39: =SUM('Fluxo de Caixa'!$K$15:$K$27)+(AQ39*'Casa de Bombas'!$C$19) -> 0 | AV39: 0.01606990501 | AW39: =SUM('Fluxo de Caixa'!$L$15:$L$27)+(AV39*'Casa de Bombas'!$C$19) -> 0 | BA39: 0.06456376258 | BB39: =SUM('Fluxo de Caixa'!$M$15:$M$27)+(BA39*'Casa de Bombas'!$C$19) -> 0 | BF39: 0.09251960253 | BG39: =SUM('Fluxo de Caixa'!$N$15:$N$27)+(BF39*'Casa de Bombas'!$C$19) -> 0 | BK39: 0.02744027422 | BL39: =SUM('Fluxo de Caixa'!$O$15:$O$27)+(BK39*'Casa de Bombas'!$C$19) -> 0 | BP39: -0.01260099225 | BQ39: =SUM('Fluxo de Caixa'!$P$15:$P$27)+(BP39*'Casa de Bombas'!$C$19) -> 0 | BU39: 0.06642955332 | BV39: =SUM('Fluxo de Caixa'!$Q$15:$Q$27)+(BU39*'Casa de Bombas'!$C$19) -> 0 | BZ39: 0.1011395534 | CA39: =SUM('Fluxo de Caixa'!$R$15:$R$27)+(BZ39*'Casa de Bombas'!$C$19) -> 0 | CE39: 0.002331691243 | CF39: =SUM('Fluxo de Caixa'!$S$15:$S$27)+(CE39*'Casa de Bombas'!$C$19) -> 0 | CJ39: -0.04952494446 | CK39: =SUM('Fluxo de Caixa'!$T$15:$T$27)+(CJ39*'Casa de Bombas'!$C$19) -> 0 | CO39: -0.0729295778 | CP39: =SUM('Fluxo de Caixa'!$U$15:$U$27)+(CO39*'Casa de Bombas'!$C$19) -> 0 | CT39: -0.09847847434 | CU39: =SUM('Fluxo de Caixa'!$V$15:$V$27)+(CT39*'Casa de Bombas'!$C$19) -> 0 | CY39: -0.05033899015 | CZ39: =SUM('Fluxo de Caixa'!$W$15:$W$18)+(CY39*'Casa de Bombas'!$C$19) -> 0 | DC39: =DB39*AreaCana*DA39-'Fluxo de Caixa'!W45-'Fluxo de Caixa'!W47 ->  | DD39: 0
B40: 26 | C40: 0 | D40: =D39 -> 0 | E40: 0 | F40: 0 | G40: 0 | H40: -0.01630078917 | I40: =SUM('Fluxo de Caixa'!$D$15:$D$27)+(H40*'Casa de Bombas'!$C$19) -> 0 | M40: -0.07320118165 | N40: =SUM('Fluxo de Caixa'!$E$15:$E$27)+(M40*'Casa de Bombas'!$C$19) -> 0 | R40: 0.05579536626 | S40: =SUM('Fluxo de Caixa'!$F$15:$F$27)+(R40*'Casa de Bombas'!$C$19) -> 0 | W40: -0.02144236226 | X40: =SUM('Fluxo de Caixa'!$G$15:$G$27)+(W40*'Casa de Bombas'!$C$19) -> 0 | AB40: 0.02442654192 | AC40: =SUM('Fluxo de Caixa'!$H$15:$H$27)+(AB40*'Casa de Bombas'!$C$19) -> 0 | AG40: -0.03725322861 | AH40: =SUM('Fluxo de Caixa'!$I$15:$I$27)+(AG40*'Casa de Bombas'!$C$19) -> 0 | AL40: 0.03637556186 | AM40: =SUM('Fluxo de Caixa'!$J$15:$J$27)+(AL40*'Casa de Bombas'!$C$19) -> 0 | AQ40: -0.01549315555 | AR40: =SUM('Fluxo de Caixa'!$K$15:$K$27)+(AQ40*'Casa de Bombas'!$C$19) -> 0 | AV40: 0.08016491072 | AW40: =SUM('Fluxo de Caixa'!$L$15:$L$27)+(AV40*'Casa de Bombas'!$C$19) -> 0 | BA40: -0.00571304364 | BB40: =SUM('Fluxo de Caixa'!$M$15:$M$27)+(BA40*'Casa de Bombas'!$C$19) -> 0 | BF40: 0.1059350177 | BG40: =SUM('Fluxo de Caixa'!$N$15:$N$27)+(BF40*'Casa de Bombas'!$C$19) -> 0 | BK40: -0.02107029529 | BL40: =SUM('Fluxo de Caixa'!$O$15:$O$27)+(BK40*'Casa de Bombas'!$C$19) -> 0 | BP40: -0.03393023855 | BQ40: =SUM('Fluxo de Caixa'!$P$15:$P$27)+(BP40*'Casa de Bombas'!$C$19) -> 0 | BU40: 0.04684078784 | BV40: =SUM('Fluxo de Caixa'!$Q$15:$Q$27)+(BU40*'Casa de Bombas'!$C$19) -> 0 | BZ40: -0.0145889249 | CA40: =SUM('Fluxo de Caixa'!$R$15:$R$27)+(BZ40*'Casa de Bombas'!$C$19) -> 0 | CE40: 0.0317044555 | CF40: =SUM('Fluxo de Caixa'!$S$15:$S$27)+(CE40*'Casa de Bombas'!$C$19) -> 0 | CJ40: -0.02175352552 | CK40: =SUM('Fluxo de Caixa'!$T$15:$T$27)+(CJ40*'Casa de Bombas'!$C$19) -> 0 | CO40: 0.08301194059 | CP40: =SUM('Fluxo de Caixa'!$U$15:$U$27)+(CO40*'Casa de Bombas'!$C$19) -> 0 | CT40: -0.1030185896 | CU40: =SUM('Fluxo de Caixa'!$V$15:$V$27)+(CT40*'Casa de Bombas'!$C$19) -> 0 | CY40: -0.06959125794 | CZ40: =SUM('Fluxo de Caixa'!$W$15:$W$18)+(CY40*'Casa de Bombas'!$C$19) -> 0 | DC40: =DB40*AreaCana*DA40-'Fluxo de Caixa'!W46-'Fluxo de Caixa'!W48 ->  | DD40: 0
B41: 27 | C41: 0 | D41: =D40 -> 0 | E41: 0 | F41: 0 | G41: 0 | H41: -0.1069416093 | I41: =SUM('Fluxo de Caixa'!$D$15:$D$27)+(H41*'Casa de Bombas'!$C$19) -> 0 | M41: 0.006928533439 | N41: =SUM('Fluxo de Caixa'!$E$15:$E$27)+(M41*'Casa de Bombas'!$C$19) -> 0 | R41: 0.063300832 | S41: =SUM('Fluxo de Caixa'!$F$15:$F$27)+(R41*'Casa de Bombas'!$C$19) -> 0 | W41: 0.017801591 | X41: =SUM('Fluxo de Caixa'!$G$15:$G$27)+(W41*'Casa de Bombas'!$C$19) -> 0 | AB41: 0.04886864794 | AC41: =SUM('Fluxo de Caixa'!$H$15:$H$27)+(AB41*'Casa de Bombas'!$C$19) -> 0 | AG41: -0.02304928703 | AH41: =SUM('Fluxo de Caixa'!$I$15:$I$27)+(AG41*'Casa de Bombas'!$C$19) -> 0 | AL41: 0.01182396992 | AM41: =SUM('Fluxo de Caixa'!$J$15:$J$27)+(AL41*'Casa de Bombas'!$C$19) -> 0 | AQ41: -0.0003484910334 | AR41: =SUM('Fluxo de Caixa'!$K$15:$K$27)+(AQ41*'Casa de Bombas'!$C$19) -> 0 | AV41: -0.1124052092 | AW41: =SUM('Fluxo de Caixa'!$L$15:$L$27)+(AV41*'Casa de Bombas'!$C$19) -> 0 | BA41: -0.02196068487 | BB41: =SUM('Fluxo de Caixa'!$M$15:$M$27)+(BA41*'Casa de Bombas'!$C$19) -> 0 | BF41: -0.01086746371 | BG41: =SUM('Fluxo de Caixa'!$N$15:$N$27)+(BF41*'Casa de Bombas'!$C$19) -> 0 | BK41: -0.02088070679 | BL41: =SUM('Fluxo de Caixa'!$O$15:$O$27)+(BK41*'Casa de Bombas'!$C$19) -> 0 | BP41: -0.002169506698 | BQ41: =SUM('Fluxo de Caixa'!$P$15:$P$27)+(BP41*'Casa de Bombas'!$C$19) -> 0 | BU41: 0.009694351545 | BV41: =SUM('Fluxo de Caixa'!$Q$15:$Q$27)+(BU41*'Casa de Bombas'!$C$19) -> 0 | BZ41: 0.01013903785 | CA41: =SUM('Fluxo de Caixa'!$R$15:$R$27)+(BZ41*'Casa de Bombas'!$C$19) -> 0 | CE41: 0.0328512207 | CF41: =SUM('Fluxo de Caixa'!$S$15:$S$27)+(CE41*'Casa de Bombas'!$C$19) -> 0 | CJ41: -0.01152096525 | CK41: =SUM('Fluxo de Caixa'!$T$15:$T$27)+(CJ41*'Casa de Bombas'!$C$19) -> 0 | CO41: -0.04222509485 | CP41: =SUM('Fluxo de Caixa'!$U$15:$U$27)+(CO41*'Casa de Bombas'!$C$19) -> 0 | CT41: 0.03459388803 | CU41: =SUM('Fluxo de Caixa'!$V$15:$V$27)+(CT41*'Casa de Bombas'!$C$19) -> 0 | CY41: -0.009937189603 | CZ41: =SUM('Fluxo de Caixa'!$W$15:$W$18)+(CY41*'Casa de Bombas'!$C$19) -> 0 | DC41: =DB41*AreaCana*DA41-'Fluxo de Caixa'!W47-'Fluxo de Caixa'!W49 ->  | DD41: 0
B42: 28 | C42: 0 | D42: =D41 -> 0 | E42: 0 | F42: 0 | G42: 0 | H42: 0.01896679049 | I42: =SUM('Fluxo de Caixa'!$D$15:$D$27)+(H42*'Casa de Bombas'!$C$19) -> 0 | M42: 0.01677558944 | N42: =SUM('Fluxo de Caixa'!$E$15:$E$27)+(M42*'Casa de Bombas'!$C$19) -> 0 | R42: 0.03841713523 | S42: =SUM('Fluxo de Caixa'!$F$15:$F$27)+(R42*'Casa de Bombas'!$C$19) -> 0 | W42: 0.04154259637 | X42: =SUM('Fluxo de Caixa'!$G$15:$G$27)+(W42*'Casa de Bombas'!$C$19) -> 0 | AB42: -0.07678705864 | AC42: =SUM('Fluxo de Caixa'!$H$15:$H$27)+(AB42*'Casa de Bombas'!$C$19) -> 0 | AG42: -0.05710862045 | AH42: =SUM('Fluxo de Caixa'!$I$15:$I$27)+(AG42*'Casa de Bombas'!$C$19) -> 0 | AL42: -0.02719471129 | AM42: =SUM('Fluxo de Caixa'!$J$15:$J$27)+(AL42*'Casa de Bombas'!$C$19) -> 0 | AQ42: -0.09436015578 | AR42: =SUM('Fluxo de Caixa'!$K$15:$K$27)+(AQ42*'Casa de Bombas'!$C$19) -> 0 | AV42: 0.04704243596 | AW42: =SUM('Fluxo de Caixa'!$L$15:$L$27)+(AV42*'Casa de Bombas'!$C$19) -> 0 | BA42: -0.004741982958 | BB42: =SUM('Fluxo de Caixa'!$M$15:$M$27)+(BA42*'Casa de Bombas'!$C$19) -> 0 | BF42: 0.02282611894 | BG42: =SUM('Fluxo de Caixa'!$N$15:$N$27)+(BF42*'Casa de Bombas'!$C$19) -> 0 | BK42: 0.04686989542 | BL42: =SUM('Fluxo de Caixa'!$O$15:$O$27)+(BK42*'Casa de Bombas'!$C$19) -> 0 | BP42: -0.04609990949 | BQ42: =SUM('Fluxo de Caixa'!$P$15:$P$27)+(BP42*'Casa de Bombas'!$C$19) -> 0 | BU42: -0.1187949083 | BV42: =SUM('Fluxo de Caixa'!$Q$15:$Q$27)+(BU42*'Casa de Bombas'!$C$19) -> 0 | BZ42: -0.05013207773 | CA42: =SUM('Fluxo de Caixa'!$R$15:$R$27)+(BZ42*'Casa de Bombas'!$C$19) -> 0 | CE42: 0.05507344442 | CF42: =SUM('Fluxo de Caixa'!$S$15:$S$27)+(CE42*'Casa de Bombas'!$C$19) -> 0 | CJ42: -0.05609013794 | CK42: =SUM('Fluxo de Caixa'!$T$15:$T$27)+(CJ42*'Casa de Bombas'!$C$19) -> 0 | CO42: 0.008389131478 | CP42: =SUM('Fluxo de Caixa'!$U$15:$U$27)+(CO42*'Casa de Bombas'!$C$19) -> 0 | CT42: -0.02270245976 | CU42: =SUM('Fluxo de Caixa'!$V$15:$V$27)+(CT42*'Casa de Bombas'!$C$19) -> 0 | CY42: -0.01483465148 | CZ42: =SUM('Fluxo de Caixa'!$W$15:$W$18)+(CY42*'Casa de Bombas'!$C$19) -> 0 | DC42: =DB42*AreaCana*DA42-'Fluxo de Caixa'!W48-'Fluxo de Caixa'!W50 ->  | DD42: 0
B43: 29 | C43: 0 | D43: =D42 -> 0 | E43: 0 | F43: 0 | G43: 0 | H43: -0.01159440761 | I43: =SUM('Fluxo de Caixa'!$D$15:$D$27)+(H43*'Casa de Bombas'!$C$19) -> 0 | M43: -0.009437584333 | N43: =SUM('Fluxo de Caixa'!$E$15:$E$27)+(M43*'Casa de Bombas'!$C$19) -> 0 | R43: 0.03370424952 | S43: =SUM('Fluxo de Caixa'!$F$15:$F$27)+(R43*'Casa de Bombas'!$C$19) -> 0 | W43: 0.03921371284 | X43: =SUM('Fluxo de Caixa'!$G$15:$G$27)+(W43*'Casa de Bombas'!$C$19) -> 0 | AB43: 0.02948422966 | AC43: =SUM('Fluxo de Caixa'!$H$15:$H$27)+(AB43*'Casa de Bombas'!$C$19) -> 0 | AG43: -0.05142594784 | AH43: =SUM('Fluxo de Caixa'!$I$15:$I$27)+(AG43*'Casa de Bombas'!$C$19) -> 0 | AL43: -0.01117585079 | AM43: =SUM('Fluxo de Caixa'!$J$15:$J$27)+(AL43*'Casa de Bombas'!$C$19) -> 0 | AQ43: 0.0350842556 | AR43: =SUM('Fluxo de Caixa'!$K$15:$K$27)+(AQ43*'Casa de Bombas'!$C$19) -> 0 | AV43: -0.01186907356 | AW43: =SUM('Fluxo de Caixa'!$L$15:$L$27)+(AV43*'Casa de Bombas'!$C$19) -> 0 | BA43: -0.02311246789 | BB43: =SUM('Fluxo de Caixa'!$M$15:$M$27)+(BA43*'Casa de Bombas'!$C$19) -> 0 | BF43: 0.04712750646 | BG43: =SUM('Fluxo de Caixa'!$N$15:$N$27)+(BF43*'Casa de Bombas'!$C$19) -> 0 | BK43: 0.01015521446 | BL43: =SUM('Fluxo de Caixa'!$O$15:$O$27)+(BK43*'Casa de Bombas'!$C$19) -> 0 | BP43: 0.01562475876 | BQ43: =SUM('Fluxo de Caixa'!$P$15:$P$27)+(BP43*'Casa de Bombas'!$C$19) -> 0 | BU43: 0.1138034716 | BV43: =SUM('Fluxo de Caixa'!$Q$15:$Q$27)+(BU43*'Casa de Bombas'!$C$19) -> 0 | BZ43: -0.08875909428 | CA43: =SUM('Fluxo de Caixa'!$R$15:$R$27)+(BZ43*'Casa de Bombas'!$C$19) -> 0 | CE43: -0.0627455762 | CF43: =SUM('Fluxo de Caixa'!$S$15:$S$27)+(CE43*'Casa de Bombas'!$C$19) -> 0 | CJ43: -0.04254980926 | CK43: =SUM('Fluxo de Caixa'!$T$15:$T$27)+(CJ43*'Casa de Bombas'!$C$19) -> 0 | CO43: -0.01780892168 | CP43: =SUM('Fluxo de Caixa'!$U$15:$U$27)+(CO43*'Casa de Bombas'!$C$19) -> 0 | CT43: -0.004530165614 | CU43: =SUM('Fluxo de Caixa'!$V$15:$V$27)+(CT43*'Casa de Bombas'!$C$19) -> 0 | CY43: -0.02875197744 | CZ43: =SUM('Fluxo de Caixa'!$W$15:$W$18)+(CY43*'Casa de Bombas'!$C$19) -> 0 | DC43: =DB43*AreaCana*DA43-'Fluxo de Caixa'!W49-'Fluxo de Caixa'!W51 ->  | DD43: 0
B44: 30 | C44: 0 | D44: =D43 -> 0 | E44: 0 | F44: 0 | G44: 0 | H44: -0.009753674075 | I44: =SUM('Fluxo de Caixa'!$D$15:$D$27)+(H44*'Casa de Bombas'!$C$19) -> 0 | M44: -0.004492562166 | N44: =SUM('Fluxo de Caixa'!$E$15:$E$27)+(M44*'Casa de Bombas'!$C$19) -> 0 | R44: -0.01838380784 | S44: =SUM('Fluxo de Caixa'!$F$15:$F$27)+(R44*'Casa de Bombas'!$C$19) -> 0 | W44: 0.07570342373 | X44: =SUM('Fluxo de Caixa'!$G$15:$G$27)+(W44*'Casa de Bombas'!$C$19) -> 0 | AB44: -0.08573594668 | AC44: =SUM('Fluxo de Caixa'!$H$15:$H$27)+(AB44*'Casa de Bombas'!$C$19) -> 0 | AG44: 0.01695304013 | AH44: =SUM('Fluxo de Caixa'!$I$15:$I$27)+(AG44*'Casa de Bombas'!$C$19) -> 0 | AL44: -0.07734909428 | AM44: =SUM('Fluxo de Caixa'!$J$15:$J$27)+(AL44*'Casa de Bombas'!$C$19) -> 0 | AQ44: 0.01390243342 | AR44: =SUM('Fluxo de Caixa'!$K$15:$K$27)+(AQ44*'Casa de Bombas'!$C$19) -> 0 | AV44: -0.02512734566 | AW44: =SUM('Fluxo de Caixa'!$L$15:$L$27)+(AV44*'Casa de Bombas'!$C$19) -> 0 | BA44: 0.003500293558 | BB44: =SUM('Fluxo de Caixa'!$M$15:$M$27)+(BA44*'Casa de Bombas'!$C$19) -> 0 | BF44: -0.02230086575 | BG44: =SUM('Fluxo de Caixa'!$N$15:$N$27)+(BF44*'Casa de Bombas'!$C$19) -> 0 | BK44: -0.01068680231 | BL44: =SUM('Fluxo de Caixa'!$O$15:$O$27)+(BK44*'Casa de Bombas'!$C$19) -> 0 | BP44: 0.03728472969 | BQ44: =SUM('Fluxo de Caixa'!$P$15:$P$27)+(BP44*'Casa de Bombas'!$C$19) -> 0 | BU44: 0.01472806903 | BV44: =SUM('Fluxo de Caixa'!$Q$15:$Q$27)+(BU44*'Casa de Bombas'!$C$19) -> 0 | BZ44: -0.0697451623 | CA44: =SUM('Fluxo de Caixa'!$R$15:$R$27)+(BZ44*'Casa de Bombas'!$C$19) -> 0 | CE44: -0.02235966108 | CF44: =SUM('Fluxo de Caixa'!$S$15:$S$27)+(CE44*'Casa de Bombas'!$C$19) -> 0 | CJ44: -0.00106129575 | CK44: =SUM('Fluxo de Caixa'!$T$15:$T$27)+(CJ44*'Casa de Bombas'!$C$19) -> 0 | CO44: -0.0473682845 | CP44: =SUM('Fluxo de Caixa'!$U$15:$U$27)+(CO44*'Casa de Bombas'!$C$19) -> 0 | CT44: -0.04772521305 | CU44: =SUM('Fluxo de Caixa'!$V$15:$V$27)+(CT44*'Casa de Bombas'!$C$19) -> 0 | CY44: 0.02222342756 | CZ44: =SUM('Fluxo de Caixa'!$W$15:$W$18)+(CY44*'Casa de Bombas'!$C$19) -> 0 | DC44: =DB44*AreaCana*DA44-'Fluxo de Caixa'!W50-'Fluxo de Caixa'!W52 ->  | DD44: 0
B45: 31 | C45: 0 | D45: =D44 -> 0 | E45: 0 | F45: 0 | G45: 0 | H45: 0.07816430155 | I45: =SUM('Fluxo de Caixa'!$D$15:$D$27)+(H45*'Casa de Bombas'!$C$19) -> 0 | M45: 0.06194554105 | N45: =SUM('Fluxo de Caixa'!$E$15:$E$27)+(M45*'Casa de Bombas'!$C$19) -> 0 | R45: 0.01127765825 | S45: =SUM('Fluxo de Caixa'!$F$15:$F$27)+(R45*'Casa de Bombas'!$C$19) -> 0 | W45: 0.007045967787 | X45: =SUM('Fluxo de Caixa'!$G$15:$G$27)+(W45*'Casa de Bombas'!$C$19) -> 0 | AB45: -0.03509792406 | AC45: =SUM('Fluxo de Caixa'!$H$15:$H$27)+(AB45*'Casa de Bombas'!$C$19) -> 0 | AG45: -0.01285130975 | AH45: =SUM('Fluxo de Caixa'!$I$15:$I$27)+(AG45*'Casa de Bombas'!$C$19) -> 0 | AL45: 0.002962880426 | AM45: =SUM('Fluxo de Caixa'!$J$15:$J$27)+(AL45*'Casa de Bombas'!$C$19) -> 0 | AQ45: 0.04307022405 | AR45: =SUM('Fluxo de Caixa'!$K$15:$K$27)+(AQ45*'Casa de Bombas'!$C$19) -> 0 | AV45: -0.04168943575 | AW45: =SUM('Fluxo de Caixa'!$L$15:$L$27)+(AV45*'Casa de Bombas'!$C$19) -> 0 | BA45: 0.05710107379 | BB45: =SUM('Fluxo de Caixa'!$M$15:$M$27)+(BA45*'Casa de Bombas'!$C$19) -> 0 | BF45: -0.03954771275 | BG45: =SUM('Fluxo de Caixa'!$N$15:$N$27)+(BF45*'Casa de Bombas'!$C$19) -> 0 | BK45: 0.05120774074 | BL45: =SUM('Fluxo de Caixa'!$O$15:$O$27)+(BK45*'Casa de Bombas'!$C$19) -> 0 | BP45: -0.004151676626 | BQ45: =SUM('Fluxo de Caixa'!$P$15:$P$27)+(BP45*'Casa de Bombas'!$C$19) -> 0 | BU45: 0.04537732583 | BV45: =SUM('Fluxo de Caixa'!$Q$15:$Q$27)+(BU45*'Casa de Bombas'!$C$19) -> 0 | BZ45: 0.02941127282 | CA45: =SUM('Fluxo de Caixa'!$R$15:$R$27)+(BZ45*'Casa de Bombas'!$C$19) -> 0 | CE45: 0.0620061435 | CF45: =SUM('Fluxo de Caixa'!$S$15:$S$27)+(CE45*'Casa de Bombas'!$C$19) -> 0 | CJ45: -0.05005591063 | CK45: =SUM('Fluxo de Caixa'!$T$15:$T$27)+(CJ45*'Casa de Bombas'!$C$19) -> 0 | CO45: -0.05457514754 | CP45: =SUM('Fluxo de Caixa'!$U$15:$U$27)+(CO45*'Casa de Bombas'!$C$19) -> 0 | CT45: -0.01887840817 | CU45: =SUM('Fluxo de Caixa'!$V$15:$V$27)+(CT45*'Casa de Bombas'!$C$19) -> 0 | CY45: -0.04352616822 | CZ45: =SUM('Fluxo de Caixa'!$W$15:$W$18)+(CY45*'Casa de Bombas'!$C$19) -> 0 | DC45: =DB45*AreaCana*DA45-'Fluxo de Caixa'!W51-'Fluxo de Caixa'!W53 ->  | DD45: 0
B46: 32 | C46: 0 | D46: =D45 -> 0 | E46: 0 | F46: 0 | G46: 0 | H46: 0.01483782322 | I46: =SUM('Fluxo de Caixa'!$D$15:$D$27)+(H46*'Casa de Bombas'!$C$19) -> 0 | M46: -0.1092067822 | N46: =SUM('Fluxo de Caixa'!$E$15:$E$27)+(M46*'Casa de Bombas'!$C$19) -> 0 | R46: -0.05568649947 | S46: =SUM('Fluxo de Caixa'!$F$15:$F$27)+(R46*'Casa de Bombas'!$C$19) -> 0 | W46: 0.1114868982 | X46: =SUM('Fluxo de Caixa'!$G$15:$G$27)+(W46*'Casa de Bombas'!$C$19) -> 0 | AB46: 0.09442866721 | AC46: =SUM('Fluxo de Caixa'!$H$15:$H$27)+(AB46*'Casa de Bombas'!$C$19) -> 0 | AG46: 0.01863961962 | AH46: =SUM('Fluxo de Caixa'!$I$15:$I$27)+(AG46*'Casa de Bombas'!$C$19) -> 0 | AL46: 0.01271379298 | AM46: =SUM('Fluxo de Caixa'!$J$15:$J$27)+(AL46*'Casa de Bombas'!$C$19) -> 0 | AQ46: -0.1189713721 | AR46: =SUM('Fluxo de Caixa'!$K$15:$K$27)+(AQ46*'Casa de Bombas'!$C$19) -> 0 | AV46: 0.02074232557 | AW46: =SUM('Fluxo de Caixa'!$L$15:$L$27)+(AV46*'Casa de Bombas'!$C$19) -> 0 | BA46: 0.005794097595 | BB46: =SUM('Fluxo de Caixa'!$M$15:$M$27)+(BA46*'Casa de Bombas'!$C$19) -> 0 | BF46: 0.03646985781 | BG46: =SUM('Fluxo de Caixa'!$N$15:$N$27)+(BF46*'Casa de Bombas'!$C$19) -> 0 | BK46: -0.09938002728 | BL46: =SUM('Fluxo de Caixa'!$O$15:$O$27)+(BK46*'Casa de Bombas'!$C$19) -> 0 | BP46: 0.08996696511 | BQ46: =SUM('Fluxo de Caixa'!$P$15:$P$27)+(BP46*'Casa de Bombas'!$C$19) -> 0 | BU46: -0.03981978202 | BV46: =SUM('Fluxo de Caixa'!$Q$15:$Q$27)+(BU46*'Casa de Bombas'!$C$19) -> 0 | BZ46: -0.01761705468 | CA46: =SUM('Fluxo de Caixa'!$R$15:$R$27)+(BZ46*'Casa de Bombas'!$C$19) -> 0 | CE46: -0.0845781299 | CF46: =SUM('Fluxo de Caixa'!$S$15:$S$27)+(CE46*'Casa de Bombas'!$C$19) -> 0 | CJ46: 0.0865547182 | CK46: =SUM('Fluxo de Caixa'!$T$15:$T$27)+(CJ46*'Casa de Bombas'!$C$19) -> 0 | CO46: 0.07476246675 | CP46: =SUM('Fluxo de Caixa'!$U$15:$U$27)+(CO46*'Casa de Bombas'!$C$19) -> 0 | CT46: -0.01443194428 | CU46: =SUM('Fluxo de Caixa'!$V$15:$V$27)+(CT46*'Casa de Bombas'!$C$19) -> 0 | CY46: 0.00998015025 | CZ46: =SUM('Fluxo de Caixa'!$W$15:$W$18)+(CY46*'Casa de Bombas'!$C$19) -> 0 | DC46: =DB46*AreaCana*DA46-'Fluxo de Caixa'!W52-'Fluxo de Caixa'!W54 ->  | DD46: 0
B47: 33 | C47: 0 | D47: =D46 -> 0 | E47: 0 | F47: 0 | G47: 0 | H47: -0.04423705533 | I47: =SUM('Fluxo de Caixa'!$D$15:$D$27)+(H47*'Casa de Bombas'!$C$19) -> 0 | M47: -0.0335685176 | N47: =SUM('Fluxo de Caixa'!$E$15:$E$27)+(M47*'Casa de Bombas'!$C$19) -> 0 | R47: -0.02683530102 | S47: =SUM('Fluxo de Caixa'!$F$15:$F$27)+(R47*'Casa de Bombas'!$C$19) -> 0 | W47: -0.01744744624 | X47: =SUM('Fluxo de Caixa'!$G$15:$G$27)+(W47*'Casa de Bombas'!$C$19) -> 0 | AB47: 0.06181371398 | AC47: =SUM('Fluxo de Caixa'!$H$15:$H$27)+(AB47*'Casa de Bombas'!$C$19) -> 0 | AG47: 0.02421959811 | AH47: =SUM('Fluxo de Caixa'!$I$15:$I$27)+(AG47*'Casa de Bombas'!$C$19) -> 0 | AL47: 0.008650106561 | AM47: =SUM('Fluxo de Caixa'!$J$15:$J$27)+(AL47*'Casa de Bombas'!$C$19) -> 0 | AQ47: -0.0770898412 | AR47: =SUM('Fluxo de Caixa'!$K$15:$K$27)+(AQ47*'Casa de Bombas'!$C$19) -> 0 | AV47: -0.04016873526 | AW47: =SUM('Fluxo de Caixa'!$L$15:$L$27)+(AV47*'Casa de Bombas'!$C$19) -> 0 | BA47: -0.07380769355 | BB47: =SUM('Fluxo de Caixa'!$M$15:$M$27)+(BA47*'Casa de Bombas'!$C$19) -> 0 | BF47: -0.06553021218 | BG47: =SUM('Fluxo de Caixa'!$N$15:$N$27)+(BF47*'Casa de Bombas'!$C$19) -> 0 | BK47: 0.05380582606 | BL47: =SUM('Fluxo de Caixa'!$O$15:$O$27)+(BK47*'Casa de Bombas'!$C$19) -> 0 | BP47: 0.008505393393 | BQ47: =SUM('Fluxo de Caixa'!$P$15:$P$27)+(BP47*'Casa de Bombas'!$C$19) -> 0 | BU47: -0.03343858121 | BV47: =SUM('Fluxo de Caixa'!$Q$15:$Q$27)+(BU47*'Casa de Bombas'!$C$19) -> 0 | BZ47: -0.09716163422 | CA47: =SUM('Fluxo de Caixa'!$R$15:$R$27)+(BZ47*'Casa de Bombas'!$C$19) -> 0 | CE47: -0.03066001754 | CF47: =SUM('Fluxo de Caixa'!$S$15:$S$27)+(CE47*'Casa de Bombas'!$C$19) -> 0 | CJ47: -0.06946117364 | CK47: =SUM('Fluxo de Caixa'!$T$15:$T$27)+(CJ47*'Casa de Bombas'!$C$19) -> 0 | CO47: 0.05164625888 | CP47: =SUM('Fluxo de Caixa'!$U$15:$U$27)+(CO47*'Casa de Bombas'!$C$19) -> 0 | CT47: -0.05649090752 | CU47: =SUM('Fluxo de Caixa'!$V$15:$V$27)+(CT47*'Casa de Bombas'!$C$19) -> 0 | CY47: 0.02278179257 | CZ47: =SUM('Fluxo de Caixa'!$W$15:$W$18)+(CY47*'Casa de Bombas'!$C$19) -> 0 | DC47: =DB47*AreaCana*DA47-'Fluxo de Caixa'!W53-'Fluxo de Caixa'!W55 ->  | DD47: 0
B48: 34 | C48: 0 | D48: =D47 -> 0 | E48: 0 | F48: 0 | G48: 0 | H48: -0.04478759151 | I48: =SUM('Fluxo de Caixa'!$D$15:$D$27)+(H48*'Casa de Bombas'!$C$19) -> 0 | M48: 0.0862113725 | N48: =SUM('Fluxo de Caixa'!$E$15:$E$27)+(M48*'Casa de Bombas'!$C$19) -> 0 | R48: 0.008138523677 | S48: =SUM('Fluxo de Caixa'!$F$15:$F$27)+(R48*'Casa de Bombas'!$C$19) -> 0 | W48: 0.09510884315 | X48: =SUM('Fluxo de Caixa'!$G$15:$G$27)+(W48*'Casa de Bombas'!$C$19) -> 0 | AB48: 0.01584980836 | AC48: =SUM('Fluxo de Caixa'!$H$15:$H$27)+(AB48*'Casa de Bombas'!$C$19) -> 0 | AG48: 0.05428826397 | AH48: =SUM('Fluxo de Caixa'!$I$15:$I$27)+(AG48*'Casa de Bombas'!$C$19) -> 0 | AL48: -0.06210058472 | AM48: =SUM('Fluxo de Caixa'!$J$15:$J$27)+(AL48*'Casa de Bombas'!$C$19) -> 0 | AQ48: -0.1144617751 | AR48: =SUM('Fluxo de Caixa'!$K$15:$K$27)+(AQ48*'Casa de Bombas'!$C$19) -> 0 | AV48: -0.02494101449 | AW48: =SUM('Fluxo de Caixa'!$L$15:$L$27)+(AV48*'Casa de Bombas'!$C$19) -> 0 | BA48: 0.1622858672 | BB48: =SUM('Fluxo de Caixa'!$M$15:$M$27)+(BA48*'Casa de Bombas'!$C$19) -> 0 | BF48: -0.05291171443 | BG48: =SUM('Fluxo de Caixa'!$N$15:$N$27)+(BF48*'Casa de Bombas'!$C$19) -> 0 | BK48: -0.03343972188 | BL48: =SUM('Fluxo de Caixa'!$O$15:$O$27)+(BK48*'Casa de Bombas'!$C$19) -> 0 | BP48: 0.02629124946 | BQ48: =SUM('Fluxo de Caixa'!$P$15:$P$27)+(BP48*'Casa de Bombas'!$C$19) -> 0 | BU48: 0.03415186473 | BV48: =SUM('Fluxo de Caixa'!$Q$15:$Q$27)+(BU48*'Casa de Bombas'!$C$19) -> 0 | BZ48: 0.034408817 | CA48: =SUM('Fluxo de Caixa'!$R$15:$R$27)+(BZ48*'Casa de Bombas'!$C$19) -> 0 | CE48: 0.05600931181 | CF48: =SUM('Fluxo de Caixa'!$S$15:$S$27)+(CE48*'Casa de Bombas'!$C$19) -> 0 | CJ48: -0.04410779688 | CK48: =SUM('Fluxo de Caixa'!$T$15:$T$27)+(CJ48*'Casa de Bombas'!$C$19) -> 0 | CO48: 0.009309577158 | CP48: =SUM('Fluxo de Caixa'!$U$15:$U$27)+(CO48*'Casa de Bombas'!$C$19) -> 0 | CT48: 0.01122587435 | CU48: =SUM('Fluxo de Caixa'!$V$15:$V$27)+(CT48*'Casa de Bombas'!$C$19) -> 0 | CY48: -0.01028112755 | CZ48: =SUM('Fluxo de Caixa'!$W$15:$W$18)+(CY48*'Casa de Bombas'!$C$19) -> 0 | DC48: =DB48*AreaCana*DA48-'Fluxo de Caixa'!W54-'Fluxo de Caixa'!W56 ->  | DD48: 0
B49: 35 | C49: 0 | D49: =D48 -> 0 | E49: 0 | F49: 0 | G49: 0 | H49: -0.01560947659 | I49: =SUM('Fluxo de Caixa'!$D$15:$D$27)+(H49*'Casa de Bombas'!$C$19) -> 0 | M49: 0.04123036531 | N49: =SUM('Fluxo de Caixa'!$E$15:$E$27)+(M49*'Casa de Bombas'!$C$19) -> 0 | R49: 0.03803689959 | S49: =SUM('Fluxo de Caixa'!$F$15:$F$27)+(R49*'Casa de Bombas'!$C$19) -> 0 | W49: 0.07881633157 | X49: =SUM('Fluxo de Caixa'!$G$15:$G$27)+(W49*'Casa de Bombas'!$C$19) -> 0 | AB49: 0.007015885802 | AC49: =SUM('Fluxo de Caixa'!$H$15:$H$27)+(AB49*'Casa de Bombas'!$C$19) -> 0 | AG49: -0.03662024885 | AH49: =SUM('Fluxo de Caixa'!$I$15:$I$27)+(AG49*'Casa de Bombas'!$C$19) -> 0 | AL49: 0.02404203905 | AM49: =SUM('Fluxo de Caixa'!$J$15:$J$27)+(AL49*'Casa de Bombas'!$C$19) -> 0 | AQ49: -0.04492762042 | AR49: =SUM('Fluxo de Caixa'!$K$15:$K$27)+(AQ49*'Casa de Bombas'!$C$19) -> 0 | AV49: -0.03079454658 | AW49: =SUM('Fluxo de Caixa'!$L$15:$L$27)+(AV49*'Casa de Bombas'!$C$19) -> 0 | BA49: -0.03058671749 | BB49: =SUM('Fluxo de Caixa'!$M$15:$M$27)+(BA49*'Casa de Bombas'!$C$19) -> 0 | BF49: 0.03658943474 | BG49: =SUM('Fluxo de Caixa'!$N$15:$N$27)+(BF49*'Casa de Bombas'!$C$19) -> 0 | BK49: -0.0113202787 | BL49: =SUM('Fluxo de Caixa'!$O$15:$O$27)+(BK49*'Casa de Bombas'!$C$19) -> 0 | BP49: 0.06047760978 | BQ49: =SUM('Fluxo de Caixa'!$P$15:$P$27)+(BP49*'Casa de Bombas'!$C$19) -> 0 | BU49: 0.06349949409 | BV49: =SUM('Fluxo de Caixa'!$Q$15:$Q$27)+(BU49*'Casa de Bombas'!$C$19) -> 0 | BZ49: -0.01261646001 | CA49: =SUM('Fluxo de Caixa'!$R$15:$R$27)+(BZ49*'Casa de Bombas'!$C$19) -> 0 | CE49: -0.0443455472 | CF49: =SUM('Fluxo de Caixa'!$S$15:$S$27)+(CE49*'Casa de Bombas'!$C$19) -> 0 | CJ49: 0.0282791097 | CK49: =SUM('Fluxo de Caixa'!$T$15:$T$27)+(CJ49*'Casa de Bombas'!$C$19) -> 0 | CO49: 0.09201399535 | CP49: =SUM('Fluxo de Caixa'!$U$15:$U$27)+(CO49*'Casa de Bombas'!$C$19) -> 0 | CT49: -0.101691865 | CU49: =SUM('Fluxo de Caixa'!$V$15:$V$27)+(CT49*'Casa de Bombas'!$C$19) -> 0 | CY49: 0.01565037475 | CZ49: =SUM('Fluxo de Caixa'!$W$15:$W$18)+(CY49*'Casa de Bombas'!$C$19) -> 0 | DC49: =DB49*AreaCana*DA49-'Fluxo de Caixa'!W55-'Fluxo de Caixa'!W57 ->  | DD49: 0
B50: 36 | C50: 0 | D50: =D49 -> 0 | E50: 0 | F50: 0 | G50: 0 | H50: 0.1236717185 | I50: =SUM('Fluxo de Caixa'!$D$15:$D$27)+(H50*'Casa de Bombas'!$C$19) -> 0 | M50: 0.05580302743 | N50: =SUM('Fluxo de Caixa'!$E$15:$E$27)+(M50*'Casa de Bombas'!$C$19) -> 0 | R50: 0.06132183911 | S50: =SUM('Fluxo de Caixa'!$F$15:$F$27)+(R50*'Casa de Bombas'!$C$19) -> 0 | W50: 0.02395736445 | X50: =SUM('Fluxo de Caixa'!$G$15:$G$27)+(W50*'Casa de Bombas'!$C$19) -> 0 | AB50: 0.0896671601 | AC50: =SUM('Fluxo de Caixa'!$H$15:$H$27)+(AB50*'Casa de Bombas'!$C$19) -> 0 | AG50: 0.03825856419 | AH50: =SUM('Fluxo de Caixa'!$I$15:$I$27)+(AG50*'Casa de Bombas'!$C$19) -> 0 | AL50: 0.01911046933 | AM50: =SUM('Fluxo de Caixa'!$J$15:$J$27)+(AL50*'Casa de Bombas'!$C$19) -> 0 | AQ50: 0.00685969252 | AR50: =SUM('Fluxo de Caixa'!$K$15:$K$27)+(AQ50*'Casa de Bombas'!$C$19) -> 0 | AV50: 0.03657240851 | AW50: =SUM('Fluxo de Caixa'!$L$15:$L$27)+(AV50*'Casa de Bombas'!$C$19) -> 0 | BA50: 0.1092389647 | BB50: =SUM('Fluxo de Caixa'!$M$15:$M$27)+(BA50*'Casa de Bombas'!$C$19) -> 0 | BF50: -0.05578807258 | BG50: =SUM('Fluxo de Caixa'!$N$15:$N$27)+(BF50*'Casa de Bombas'!$C$19) -> 0 | BK50: -0.0205983201 | BL50: =SUM('Fluxo de Caixa'!$O$15:$O$27)+(BK50*'Casa de Bombas'!$C$19) -> 0 | BP50: -0.01788094266 | BQ50: =SUM('Fluxo de Caixa'!$P$15:$P$27)+(BP50*'Casa de Bombas'!$C$19) -> 0 | BU50: -0.06009486104 | BV50: =SUM('Fluxo de Caixa'!$Q$15:$Q$27)+(BU50*'Casa de Bombas'!$C$19) -> 0 | BZ50: 0.01115563568 | CA50: =SUM('Fluxo de Caixa'!$R$15:$R$27)+(BZ50*'Casa de Bombas'!$C$19) -> 0 | CE50: 0.009132118999 | CF50: =SUM('Fluxo de Caixa'!$S$15:$S$27)+(CE50*'Casa de Bombas'!$C$19) -> 0 | CJ50: -0.03862341589 | CK50: =SUM('Fluxo de Caixa'!$T$15:$T$27)+(CJ50*'Casa de Bombas'!$C$19) -> 0 | CO50: -0.08344126913 | CP50: =SUM('Fluxo de Caixa'!$U$15:$U$27)+(CO50*'Casa de Bombas'!$C$19) -> 0 | CT50: 0.01391619115 | CU50: =SUM('Fluxo de Caixa'!$V$15:$V$27)+(CT50*'Casa de Bombas'!$C$19) -> 0 | CY50: 0.006569927454 | CZ50: =SUM('Fluxo de Caixa'!$W$15:$W$18)+(CY50*'Casa de Bombas'!$C$19) -> 0 | DC50: =DB50*AreaCana*DA50-'Fluxo de Caixa'!W56-'Fluxo de Caixa'!W58 ->  | DD50: 0
B51: 37 | C51: 0 | D51: =D50 -> 0 | E51: 0 | F51: 0 | G51: 0 | H51: 0.0948282529 | I51: =SUM('Fluxo de Caixa'!$D$15:$D$27)+(H51*'Casa de Bombas'!$C$19) -> 0 | M51: -0.02995885723 | N51: =SUM('Fluxo de Caixa'!$E$15:$E$27)+(M51*'Casa de Bombas'!$C$19) -> 0 | R51: -0.05034942919 | S51: =SUM('Fluxo de Caixa'!$F$15:$F$27)+(R51*'Casa de Bombas'!$C$19) -> 0 | W51: 0.03695247595 | X51: =SUM('Fluxo de Caixa'!$G$15:$G$27)+(W51*'Casa de Bombas'!$C$19) -> 0 | AB51: 0.05139563414 | AC51: =SUM('Fluxo de Caixa'!$H$15:$H$27)+(AB51*'Casa de Bombas'!$C$19) -> 0 | AG51: -0.043368394 | AH51: =SUM('Fluxo de Caixa'!$I$15:$I$27)+(AG51*'Casa de Bombas'!$C$19) -> 0 | AL51: 0.01676531734 | AM51: =SUM('Fluxo de Caixa'!$J$15:$J$27)+(AL51*'Casa de Bombas'!$C$19) -> 0 | AQ51: 0.002703073214 | AR51: =SUM('Fluxo de Caixa'!$K$15:$K$27)+(AQ51*'Casa de Bombas'!$C$19) -> 0 | AV51: 0.008162598958 | AW51: =SUM('Fluxo de Caixa'!$L$15:$L$27)+(AV51*'Casa de Bombas'!$C$19) -> 0 | BA51: 0.007607896962 | BB51: =SUM('Fluxo de Caixa'!$M$15:$M$27)+(BA51*'Casa de Bombas'!$C$19) -> 0 | BF51: -0.008366245185 | BG51: =SUM('Fluxo de Caixa'!$N$15:$N$27)+(BF51*'Casa de Bombas'!$C$19) -> 0 | BK51: -0.02800688975 | BL51: =SUM('Fluxo de Caixa'!$O$15:$O$27)+(BK51*'Casa de Bombas'!$C$19) -> 0 | BP51: 0.01902920837 | BQ51: =SUM('Fluxo de Caixa'!$P$15:$P$27)+(BP51*'Casa de Bombas'!$C$19) -> 0 | BU51: 0.0102361453 | BV51: =SUM('Fluxo de Caixa'!$Q$15:$Q$27)+(BU51*'Casa de Bombas'!$C$19) -> 0 | BZ51: 0.005096520711 | CA51: =SUM('Fluxo de Caixa'!$R$15:$R$27)+(BZ51*'Casa de Bombas'!$C$19) -> 0 | CE51: -0.05818107172 | CF51: =SUM('Fluxo de Caixa'!$S$15:$S$27)+(CE51*'Casa de Bombas'!$C$19) -> 0 | CJ51: 0.0549761177 | CK51: =SUM('Fluxo de Caixa'!$T$15:$T$27)+(CJ51*'Casa de Bombas'!$C$19) -> 0 | CO51: 0.002906710844 | CP51: =SUM('Fluxo de Caixa'!$U$15:$U$27)+(CO51*'Casa de Bombas'!$C$19) -> 0 | CT51: 0.08960958072 | CU51: =SUM('Fluxo de Caixa'!$V$15:$V$27)+(CT51*'Casa de Bombas'!$C$19) -> 0 | CY51: -0.03456058724 | CZ51: =SUM('Fluxo de Caixa'!$W$15:$W$18)+(CY51*'Casa de Bombas'!$C$19) -> 0 | DC51: =DB51*AreaCana*DA51-'Fluxo de Caixa'!W57-'Fluxo de Caixa'!W59 ->  | DD51: 0
B52: 38 | C52: 0 | D52: =D51 -> 0 | E52: 0 | F52: 0 | G52: 0 | H52: 0.09562801 | I52: =SUM('Fluxo de Caixa'!$D$15:$D$27)+(H52*'Casa de Bombas'!$C$19) -> 0 | M52: 0.03356027961 | N52: =SUM('Fluxo de Caixa'!$E$15:$E$27)+(M52*'Casa de Bombas'!$C$19) -> 0 | R52: 0.02368613557 | S52: =SUM('Fluxo de Caixa'!$F$15:$F$27)+(R52*'Casa de Bombas'!$C$19) -> 0 | W52: 0.02498419551 | X52: =SUM('Fluxo de Caixa'!$G$15:$G$27)+(W52*'Casa de Bombas'!$C$19) -> 0 | AB52: 0.01262732368 | AC52: =SUM('Fluxo de Caixa'!$H$15:$H$27)+(AB52*'Casa de Bombas'!$C$19) -> 0 | AG52: 0.04357048579 | AH52: =SUM('Fluxo de Caixa'!$I$15:$I$27)+(AG52*'Casa de Bombas'!$C$19) -> 0 | AL52: -0.04419770506 | AM52: =SUM('Fluxo de Caixa'!$J$15:$J$27)+(AL52*'Casa de Bombas'!$C$19) -> 0 | AQ52: -0.01417937468 | AR52: =SUM('Fluxo de Caixa'!$K$15:$K$27)+(AQ52*'Casa de Bombas'!$C$19) -> 0 | AV52: 0.03851272505 | AW52: =SUM('Fluxo de Caixa'!$L$15:$L$27)+(AV52*'Casa de Bombas'!$C$19) -> 0 | BA52: 0.03280558914 | BB52: =SUM('Fluxo de Caixa'!$M$15:$M$27)+(BA52*'Casa de Bombas'!$C$19) -> 0 | BF52: -0.07058968609 | BG52: =SUM('Fluxo de Caixa'!$N$15:$N$27)+(BF52*'Casa de Bombas'!$C$19) -> 0 | BK52: 0.07810241379 | BL52: =SUM('Fluxo de Caixa'!$O$15:$O$27)+(BK52*'Casa de Bombas'!$C$19) -> 0 | BP52: 0.08038033199 | BQ52: =SUM('Fluxo de Caixa'!$P$15:$P$27)+(BP52*'Casa de Bombas'!$C$19) -> 0 | BU52: 0.03627123176 | BV52: =SUM('Fluxo de Caixa'!$Q$15:$Q$27)+(BU52*'Casa de Bombas'!$C$19) -> 0 | BZ52: -0.04386664007 | CA52: =SUM('Fluxo de Caixa'!$R$15:$R$27)+(BZ52*'Casa de Bombas'!$C$19) -> 0 | CE52: -0.04276122271 | CF52: =SUM('Fluxo de Caixa'!$S$15:$S$27)+(CE52*'Casa de Bombas'!$C$19) -> 0 | CJ52: -0.06116742711 | CK52: =SUM('Fluxo de Caixa'!$T$15:$T$27)+(CJ52*'Casa de Bombas'!$C$19) -> 0 | CO52: -0.103479557 | CP52: =SUM('Fluxo de Caixa'!$U$15:$U$27)+(CO52*'Casa de Bombas'!$C$19) -> 0 | CT52: 0.05503278275 | CU52: =SUM('Fluxo de Caixa'!$V$15:$V$27)+(CT52*'Casa de Bombas'!$C$19) -> 0 | CY52: -0.01216973165 | CZ52: =SUM('Fluxo de Caixa'!$W$15:$W$18)+(CY52*'Casa de Bombas'!$C$19) -> 0 | DC52: =DB52*AreaCana*DA52-'Fluxo de Caixa'!W58-'Fluxo de Caixa'!W60 ->  | DD52: 0
B53: 39 | C53: 0 | D53: =D52 -> 0 | E53: 0 | F53: 0 | G53: 0 | H53: 0.1640853383 | I53: =SUM('Fluxo de Caixa'!$D$15:$D$27)+(H53*'Casa de Bombas'!$C$19) -> 0 | M53: 0.04339587792 | N53: =SUM('Fluxo de Caixa'!$E$15:$E$27)+(M53*'Casa de Bombas'!$C$19) -> 0 | R53: -0.03465683726 | S53: =SUM('Fluxo de Caixa'!$F$15:$F$27)+(R53*'Casa de Bombas'!$C$19) -> 0 | W53: 0.01020143804 | X53: =SUM('Fluxo de Caixa'!$G$15:$G$27)+(W53*'Casa de Bombas'!$C$19) -> 0 | AB53: 0.08270788693 | AC53: =SUM('Fluxo de Caixa'!$H$15:$H$27)+(AB53*'Casa de Bombas'!$C$19) -> 0 | AG53: 0.09852832209 | AH53: =SUM('Fluxo de Caixa'!$I$15:$I$27)+(AG53*'Casa de Bombas'!$C$19) -> 0 | AL53: 0.03656799006 | AM53: =SUM('Fluxo de Caixa'!$J$15:$J$27)+(AL53*'Casa de Bombas'!$C$19) -> 0 | AQ53: 0.02501202301 | AR53: =SUM('Fluxo de Caixa'!$K$15:$K$27)+(AQ53*'Casa de Bombas'!$C$19) -> 0 | AV53: -0.04898985241 | AW53: =SUM('Fluxo de Caixa'!$L$15:$L$27)+(AV53*'Casa de Bombas'!$C$19) -> 0 | BA53: 0.003860913454 | BB53: =SUM('Fluxo de Caixa'!$M$15:$M$27)+(BA53*'Casa de Bombas'!$C$19) -> 0 | BF53: 0.006911992776 | BG53: =SUM('Fluxo de Caixa'!$N$15:$N$27)+(BF53*'Casa de Bombas'!$C$19) -> 0 | BK53: 0.01864009091 | BL53: =SUM('Fluxo de Caixa'!$O$15:$O$27)+(BK53*'Casa de Bombas'!$C$19) -> 0 | BP53: 0.04377385232 | BQ53: =SUM('Fluxo de Caixa'!$P$15:$P$27)+(BP53*'Casa de Bombas'!$C$19) -> 0 | BU53: -0.04265726836 | BV53: =SUM('Fluxo de Caixa'!$Q$15:$Q$27)+(BU53*'Casa de Bombas'!$C$19) -> 0 | BZ53: -0.04109900515 | CA53: =SUM('Fluxo de Caixa'!$R$15:$R$27)+(BZ53*'Casa de Bombas'!$C$19) -> 0 | CE53: 0.1122953209 | CF53: =SUM('Fluxo de Caixa'!$S$15:$S$27)+(CE53*'Casa de Bombas'!$C$19) -> 0 | CJ53: 0.05612684644 | CK53: =SUM('Fluxo de Caixa'!$T$15:$T$27)+(CJ53*'Casa de Bombas'!$C$19) -> 0 | CO53: 0.05436891001 | CP53: =SUM('Fluxo de Caixa'!$U$15:$U$27)+(CO53*'Casa de Bombas'!$C$19) -> 0 | CT53: 0.06632952522 | CU53: =SUM('Fluxo de Caixa'!$V$15:$V$27)+(CT53*'Casa de Bombas'!$C$19) -> 0 | CY53: 0.02907673418 | CZ53: =SUM('Fluxo de Caixa'!$W$15:$W$18)+(CY53*'Casa de Bombas'!$C$19) -> 0 | DC53: =DB53*AreaCana*DA53-'Fluxo de Caixa'!W59-'Fluxo de Caixa'!W61 ->  | DD53: 0
B54: 40 | C54: 0 | D54: =D53 -> 0 | E54: 0 | F54: 0 | G54: 0 | H54: -0.03445459039 | I54: =SUM('Fluxo de Caixa'!$D$15:$D$27)+(H54*'Casa de Bombas'!$C$19) -> 0 | M54: 0.00879746466 | N54: =SUM('Fluxo de Caixa'!$E$15:$E$27)+(M54*'Casa de Bombas'!$C$19) -> 0 | R54: -0.08667321595 | S54: =SUM('Fluxo de Caixa'!$F$15:$F$27)+(R54*'Casa de Bombas'!$C$19) -> 0 | W54: 0.02682196157 | X54: =SUM('Fluxo de Caixa'!$G$15:$G$27)+(W54*'Casa de Bombas'!$C$19) -> 0 | AB54: 0.06719024616 | AC54: =SUM('Fluxo de Caixa'!$H$15:$H$27)+(AB54*'Casa de Bombas'!$C$19) -> 0 | AG54: -0.06214887273 | AH54: =SUM('Fluxo de Caixa'!$I$15:$I$27)+(AG54*'Casa de Bombas'!$C$19) -> 0 | AL54: -0.02164342188 | AM54: =SUM('Fluxo de Caixa'!$J$15:$J$27)+(AL54*'Casa de Bombas'!$C$19) -> 0 | AQ54: -0.01253585601 | AR54: =SUM('Fluxo de Caixa'!$K$15:$K$27)+(AQ54*'Casa de Bombas'!$C$19) -> 0 | AV54: -0.005133783724 | AW54: =SUM('Fluxo de Caixa'!$L$15:$L$27)+(AV54*'Casa de Bombas'!$C$19) -> 0 | BA54: 0.006324019796 | BB54: =SUM('Fluxo de Caixa'!$M$15:$M$27)+(BA54*'Casa de Bombas'!$C$19) -> 0 | BF54: -0.04127010572 | BG54: =SUM('Fluxo de Caixa'!$N$15:$N$27)+(BF54*'Casa de Bombas'!$C$19) -> 0 | BK54: -0.0370551589 | BL54: =SUM('Fluxo de Caixa'!$O$15:$O$27)+(BK54*'Casa de Bombas'!$C$19) -> 0 | BP54: 0.07028116554 | BQ54: =SUM('Fluxo de Caixa'!$P$15:$P$27)+(BP54*'Casa de Bombas'!$C$19) -> 0 | BU54: 0.1164262691 | BV54: =SUM('Fluxo de Caixa'!$Q$15:$Q$27)+(BU54*'Casa de Bombas'!$C$19) -> 0 | BZ54: 0.03211741994 | CA54: =SUM('Fluxo de Caixa'!$R$15:$R$27)+(BZ54*'Casa de Bombas'!$C$19) -> 0 | CE54: -0.04421416375 | CF54: =SUM('Fluxo de Caixa'!$S$15:$S$27)+(CE54*'Casa de Bombas'!$C$19) -> 0 | CJ54: -0.05323121267 | CK54: =SUM('Fluxo de Caixa'!$T$15:$T$27)+(CJ54*'Casa de Bombas'!$C$19) -> 0 | CO54: -0.003639812897 | CP54: =SUM('Fluxo de Caixa'!$U$15:$U$27)+(CO54*'Casa de Bombas'!$C$19) -> 0 | CT54: -0.007361224509 | CU54: =SUM('Fluxo de Caixa'!$V$15:$V$27)+(CT54*'Casa de Bombas'!$C$19) -> 0 | CY54: -0.01337920994 | CZ54: =SUM('Fluxo de Caixa'!$W$15:$W$18)+(CY54*'Casa de Bombas'!$C$19) -> 0 | DC54: =DB54*AreaCana*DA54-'Fluxo de Caixa'!W60-'Fluxo de Caixa'!W62 ->  | DD54: 0
B55: 41 | C55: 0 | D55: =D54 -> 0 | E55: 0 | F55: 0 | G55: 0 | H55: -0.06898828855 | I55: =SUM('Fluxo de Caixa'!$D$15:$D$27)+(H55*'Casa de Bombas'!$C$19) -> 0 | M55: 0.01265376442 | N55: =SUM('Fluxo de Caixa'!$E$15:$E$27)+(M55*'Casa de Bombas'!$C$19) -> 0 | R55: -0.001474106602 | S55: =SUM('Fluxo de Caixa'!$F$15:$F$27)+(R55*'Casa de Bombas'!$C$19) -> 0 | W55: -0.05481516705 | X55: =SUM('Fluxo de Caixa'!$G$15:$G$27)+(W55*'Casa de Bombas'!$C$19) -> 0 | AB55: 0.05974068181 | AC55: =SUM('Fluxo de Caixa'!$H$15:$H$27)+(AB55*'Casa de Bombas'!$C$19) -> 0 | AG55: -0.1344269958 | AH55: =SUM('Fluxo de Caixa'!$I$15:$I$27)+(AG55*'Casa de Bombas'!$C$19) -> 0 | AL55: 0.02278410633 | AM55: =SUM('Fluxo de Caixa'!$J$15:$J$27)+(AL55*'Casa de Bombas'!$C$19) -> 0 | AQ55: -0.03956972032 | AR55: =SUM('Fluxo de Caixa'!$K$15:$K$27)+(AQ55*'Casa de Bombas'!$C$19) -> 0 | AV55: 0.05692776968 | AW55: =SUM('Fluxo de Caixa'!$L$15:$L$27)+(AV55*'Casa de Bombas'!$C$19) -> 0 | BA55: 0.0964053211 | BB55: =SUM('Fluxo de Caixa'!$M$15:$M$27)+(BA55*'Casa de Bombas'!$C$19) -> 0 | BF55: 0.08430730946 | BG55: =SUM('Fluxo de Caixa'!$N$15:$N$27)+(BF55*'Casa de Bombas'!$C$19) -> 0 | BK55: -0.03559729468 | BL55: =SUM('Fluxo de Caixa'!$O$15:$O$27)+(BK55*'Casa de Bombas'!$C$19) -> 0 | BP55: -0.01480234762 | BQ55: =SUM('Fluxo de Caixa'!$P$15:$P$27)+(BP55*'Casa de Bombas'!$C$19) -> 0 | BU55: 0.03845528402 | BV55: =SUM('Fluxo de Caixa'!$Q$15:$Q$27)+(BU55*'Casa de Bombas'!$C$19) -> 0 | BZ55: -0.1407130701 | CA55: =SUM('Fluxo de Caixa'!$R$15:$R$27)+(BZ55*'Casa de Bombas'!$C$19) -> 0 | CE55: 0.05352782582 | CF55: =SUM('Fluxo de Caixa'!$S$15:$S$27)+(CE55*'Casa de Bombas'!$C$19) -> 0 | CJ55: -0.01322111877 | CK55: =SUM('Fluxo de Caixa'!$T$15:$T$27)+(CJ55*'Casa de Bombas'!$C$19) -> 0 | CO55: -0.00233841107 | CP55: =SUM('Fluxo de Caixa'!$U$15:$U$27)+(CO55*'Casa de Bombas'!$C$19) -> 0 | CT55: 0.05590467284 | CU55: =SUM('Fluxo de Caixa'!$V$15:$V$27)+(CT55*'Casa de Bombas'!$C$19) -> 0 | CY55: -0.04382614239 | CZ55: =SUM('Fluxo de Caixa'!$W$15:$W$18)+(CY55*'Casa de Bombas'!$C$19) -> 0 | DC55: =DB55*AreaCana*DA55-'Fluxo de Caixa'!W61-'Fluxo de Caixa'!W63 ->  | DD55: 0
B56: 42 | C56: 0 | D56: =D55 -> 0 | E56: 0 | F56: 0 | G56: 0 | H56: -0.008593622103 | I56: =SUM('Fluxo de Caixa'!$D$15:$D$27)+(H56*'Casa de Bombas'!$C$19) -> 0 | M56: -0.01416455651 | N56: =SUM('Fluxo de Caixa'!$E$15:$E$27)+(M56*'Casa de Bombas'!$C$19) -> 0 | R56: 0.06518392347 | S56: =SUM('Fluxo de Caixa'!$F$15:$F$27)+(R56*'Casa de Bombas'!$C$19) -> 0 | W56: 0.01171662573 | X56: =SUM('Fluxo de Caixa'!$G$15:$G$27)+(W56*'Casa de Bombas'!$C$19) -> 0 | AB56: 0.01528545757 | AC56: =SUM('Fluxo de Caixa'!$H$15:$H$27)+(AB56*'Casa de Bombas'!$C$19) -> 0 | AG56: -0.06942379725 | AH56: =SUM('Fluxo de Caixa'!$I$15:$I$27)+(AG56*'Casa de Bombas'!$C$19) -> 0 | AL56: 0.03461270089 | AM56: =SUM('Fluxo de Caixa'!$J$15:$J$27)+(AL56*'Casa de Bombas'!$C$19) -> 0 | AQ56: 0.08268995273 | AR56: =SUM('Fluxo de Caixa'!$K$15:$K$27)+(AQ56*'Casa de Bombas'!$C$19) -> 0 | AV56: 0.02571736069 | AW56: =SUM('Fluxo de Caixa'!$L$15:$L$27)+(AV56*'Casa de Bombas'!$C$19) -> 0 | BA56: -0.01639100311 | BB56: =SUM('Fluxo de Caixa'!$M$15:$M$27)+(BA56*'Casa de Bombas'!$C$19) -> 0 | BF56: 0.03965841559 | BG56: =SUM('Fluxo de Caixa'!$N$15:$N$27)+(BF56*'Casa de Bombas'!$C$19) -> 0 | BK56: -0.0994874642 | BL56: =SUM('Fluxo de Caixa'!$O$15:$O$27)+(BK56*'Casa de Bombas'!$C$19) -> 0 | BP56: -0.01459806213 | BQ56: =SUM('Fluxo de Caixa'!$P$15:$P$27)+(BP56*'Casa de Bombas'!$C$19) -> 0 | BU56: 0.02238810607 | BV56: =SUM('Fluxo de Caixa'!$Q$15:$Q$27)+(BU56*'Casa de Bombas'!$C$19) -> 0 | BZ56: -0.07774185909 | CA56: =SUM('Fluxo de Caixa'!$R$15:$R$27)+(BZ56*'Casa de Bombas'!$C$19) -> 0 | CE56: -0.03097227295 | CF56: =SUM('Fluxo de Caixa'!$S$15:$S$27)+(CE56*'Casa de Bombas'!$C$19) -> 0 | CJ56: -0.1024792031 | CK56: =SUM('Fluxo de Caixa'!$T$15:$T$27)+(CJ56*'Casa de Bombas'!$C$19) -> 0 | CO56: -0.03769019623 | CP56: =SUM('Fluxo de Caixa'!$U$15:$U$27)+(CO56*'Casa de Bombas'!$C$19) -> 0 | CT56: -0.01173716024 | CU56: =SUM('Fluxo de Caixa'!$V$15:$V$27)+(CT56*'Casa de Bombas'!$C$19) -> 0 | CY56: 0.04277437257 | CZ56: =SUM('Fluxo de Caixa'!$W$15:$W$18)+(CY56*'Casa de Bombas'!$C$19) -> 0 | DC56: =DB56*AreaCana*DA56-'Fluxo de Caixa'!W62-'Fluxo de Caixa'!W64 ->  | DD56: 0
B57: 43 | C57: 0 | D57: =D56 -> 0 | E57: 0 | F57: 0 | G57: 0 | H57: 0.1111659765 | I57: =SUM('Fluxo de Caixa'!$D$15:$D$27)+(H57*'Casa de Bombas'!$C$19) -> 0 | M57: -0.09783945389 | N57: =SUM('Fluxo de Caixa'!$E$15:$E$27)+(M57*'Casa de Bombas'!$C$19) -> 0 | R57: -0.1484744583 | S57: =SUM('Fluxo de Caixa'!$F$15:$F$27)+(R57*'Casa de Bombas'!$C$19) -> 0 | W57: -0.02260578311 | X57: =SUM('Fluxo de Caixa'!$G$15:$G$27)+(W57*'Casa de Bombas'!$C$19) -> 0 | AB57: 0.04592852794 | AC57: =SUM('Fluxo de Caixa'!$H$15:$H$27)+(AB57*'Casa de Bombas'!$C$19) -> 0 | AG57: -0.07366501037 | AH57: =SUM('Fluxo de Caixa'!$I$15:$I$27)+(AG57*'Casa de Bombas'!$C$19) -> 0 | AL57: -0.01233714705 | AM57: =SUM('Fluxo de Caixa'!$J$15:$J$27)+(AL57*'Casa de Bombas'!$C$19) -> 0 | AQ57: -0.05611839955 | AR57: =SUM('Fluxo de Caixa'!$K$15:$K$27)+(AQ57*'Casa de Bombas'!$C$19) -> 0 | AV57: -0.002373289616 | AW57: =SUM('Fluxo de Caixa'!$L$15:$L$27)+(AV57*'Casa de Bombas'!$C$19) -> 0 | BA57: -0.02300044128 | BB57: =SUM('Fluxo de Caixa'!$M$15:$M$27)+(BA57*'Casa de Bombas'!$C$19) -> 0 | BF57: -0.003553520722 | BG57: =SUM('Fluxo de Caixa'!$N$15:$N$27)+(BF57*'Casa de Bombas'!$C$19) -> 0 | BK57: -0.05704429002 | BL57: =SUM('Fluxo de Caixa'!$O$15:$O$27)+(BK57*'Casa de Bombas'!$C$19) -> 0 | BP57: 0.02172433032 | BQ57: =SUM('Fluxo de Caixa'!$P$15:$P$27)+(BP57*'Casa de Bombas'!$C$19) -> 0 | BU57: -0.04774119206 | BV57: =SUM('Fluxo de Caixa'!$Q$15:$Q$27)+(BU57*'Casa de Bombas'!$C$19) -> 0 | BZ57: 0.08042933201 | CA57: =SUM('Fluxo de Caixa'!$R$15:$R$27)+(BZ57*'Casa de Bombas'!$C$19) -> 0 | CE57: 0.004313549252 | CF57: =SUM('Fluxo de Caixa'!$S$15:$S$27)+(CE57*'Casa de Bombas'!$C$19) -> 0 | CJ57: 0.03648385186 | CK57: =SUM('Fluxo de Caixa'!$T$15:$T$27)+(CJ57*'Casa de Bombas'!$C$19) -> 0 | CO57: 0.03132077492 | CP57: =SUM('Fluxo de Caixa'!$U$15:$U$27)+(CO57*'Casa de Bombas'!$C$19) -> 0 | CT57: 0.09352197678 | CU57: =SUM('Fluxo de Caixa'!$V$15:$V$27)+(CT57*'Casa de Bombas'!$C$19) -> 0 | CY57: 0.0305838784 | CZ57: =SUM('Fluxo de Caixa'!$W$15:$W$18)+(CY57*'Casa de Bombas'!$C$19) -> 0 | DC57: =DB57*AreaCana*DA57-'Fluxo de Caixa'!W63-'Fluxo de Caixa'!W65 ->  | DD57: 0
B58: 44 | C58: 0 | D58: =D57 -> 0 | E58: 0 | F58: 0 | G58: 0 | H58: 0.145294746 | I58: =SUM('Fluxo de Caixa'!$D$15:$D$27)+(H58*'Casa de Bombas'!$C$19) -> 0 | M58: -0.05409983278 | N58: =SUM('Fluxo de Caixa'!$E$15:$E$27)+(M58*'Casa de Bombas'!$C$19) -> 0 | R58: -0.0905230978 | S58: =SUM('Fluxo de Caixa'!$F$15:$F$27)+(R58*'Casa de Bombas'!$C$19) -> 0 | W58: 0.1333377335 | X58: =SUM('Fluxo de Caixa'!$G$15:$G$27)+(W58*'Casa de Bombas'!$C$19) -> 0 | AB58: -0.05741932932 | AC58: =SUM('Fluxo de Caixa'!$H$15:$H$27)+(AB58*'Casa de Bombas'!$C$19) -> 0 | AG58: -0.1436984824 | AH58: =SUM('Fluxo de Caixa'!$I$15:$I$27)+(AG58*'Casa de Bombas'!$C$19) -> 0 | AL58: -0.07070385607 | AM58: =SUM('Fluxo de Caixa'!$J$15:$J$27)+(AL58*'Casa de Bombas'!$C$19) -> 0 | AQ58: 0.07580495962 | AR58: =SUM('Fluxo de Caixa'!$K$15:$K$27)+(AQ58*'Casa de Bombas'!$C$19) -> 0 | AV58: 0.006808329784 | AW58: =SUM('Fluxo de Caixa'!$L$15:$L$27)+(AV58*'Casa de Bombas'!$C$19) -> 0 | BA58: 0.06943084197 | BB58: =SUM('Fluxo de Caixa'!$M$15:$M$27)+(BA58*'Casa de Bombas'!$C$19) -> 0 | BF58: -0.0690421796 | BG58: =SUM('Fluxo de Caixa'!$N$15:$N$27)+(BF58*'Casa de Bombas'!$C$19) -> 0 | BK58: 0.06145448135 | BL58: =SUM('Fluxo de Caixa'!$O$15:$O$27)+(BK58*'Casa de Bombas'!$C$19) -> 0 | BP58: 0.02728928194 | BQ58: =SUM('Fluxo de Caixa'!$P$15:$P$27)+(BP58*'Casa de Bombas'!$C$19) -> 0 | BU58: -0.0653711778 | BV58: =SUM('Fluxo de Caixa'!$Q$15:$Q$27)+(BU58*'Casa de Bombas'!$C$19) -> 0 | BZ58: -0.1107428135 | CA58: =SUM('Fluxo de Caixa'!$R$15:$R$27)+(BZ58*'Casa de Bombas'!$C$19) -> 0 | CE58: 0.1400676973 | CF58: =SUM('Fluxo de Caixa'!$S$15:$S$27)+(CE58*'Casa de Bombas'!$C$19) -> 0 | CJ58: 0.0669106417 | CK58: =SUM('Fluxo de Caixa'!$T$15:$T$27)+(CJ58*'Casa de Bombas'!$C$19) -> 0 | CO58: -0.06929137778 | CP58: =SUM('Fluxo de Caixa'!$U$15:$U$27)+(CO58*'Casa de Bombas'!$C$19) -> 0 | CT58: -0.0102519219 | CU58: =SUM('Fluxo de Caixa'!$V$15:$V$27)+(CT58*'Casa de Bombas'!$C$19) -> 0 | CY58: 0.003063082785 | CZ58: =SUM('Fluxo de Caixa'!$W$15:$W$18)+(CY58*'Casa de Bombas'!$C$19) -> 0 | DC58: =DB58*AreaCana*DA58-'Fluxo de Caixa'!W64-'Fluxo de Caixa'!W66 ->  | DD58: 0
B59: 45 | C59: 0 | D59: =D58 -> 0 | E59: 0 | F59: 0 | G59: 0 | H59: -0.09153544478 | I59: =SUM('Fluxo de Caixa'!$D$15:$D$27)+(H59*'Casa de Bombas'!$C$19) -> 0 | M59: 0.006300442857 | N59: =SUM('Fluxo de Caixa'!$E$15:$E$27)+(M59*'Casa de Bombas'!$C$19) -> 0 | R59: -0.02533214251 | S59: =SUM('Fluxo de Caixa'!$F$15:$F$27)+(R59*'Casa de Bombas'!$C$19) -> 0 | W59: 0.08420068441 | X59: =SUM('Fluxo de Caixa'!$G$15:$G$27)+(W59*'Casa de Bombas'!$C$19) -> 0 | AB59: -0.1257091667 | AC59: =SUM('Fluxo de Caixa'!$H$15:$H$27)+(AB59*'Casa de Bombas'!$C$19) -> 0 | AG59: -0.1212522517 | AH59: =SUM('Fluxo de Caixa'!$I$15:$I$27)+(AG59*'Casa de Bombas'!$C$19) -> 0 | AL59: 0.03331366464 | AM59: =SUM('Fluxo de Caixa'!$J$15:$J$27)+(AL59*'Casa de Bombas'!$C$19) -> 0 | AQ59: 0.003243234105 | AR59: =SUM('Fluxo de Caixa'!$K$15:$K$27)+(AQ59*'Casa de Bombas'!$C$19) -> 0 | AV59: 0.01049586097 | AW59: =SUM('Fluxo de Caixa'!$L$15:$L$27)+(AV59*'Casa de Bombas'!$C$19) -> 0 | BA59: -0.050460694 | BB59: =SUM('Fluxo de Caixa'!$M$15:$M$27)+(BA59*'Casa de Bombas'!$C$19) -> 0 | BF59: 0.03464023108 | BG59: =SUM('Fluxo de Caixa'!$N$15:$N$27)+(BF59*'Casa de Bombas'!$C$19) -> 0 | BK59: -0.01098350254 | BL59: =SUM('Fluxo de Caixa'!$O$15:$O$27)+(BK59*'Casa de Bombas'!$C$19) -> 0 | BP59: 0.01813854446 | BQ59: =SUM('Fluxo de Caixa'!$P$15:$P$27)+(BP59*'Casa de Bombas'!$C$19) -> 0 | BU59: 0.04237174353 | BV59: =SUM('Fluxo de Caixa'!$Q$15:$Q$27)+(BU59*'Casa de Bombas'!$C$19) -> 0 | BZ59: -0.06437710024 | CA59: =SUM('Fluxo de Caixa'!$R$15:$R$27)+(BZ59*'Casa de Bombas'!$C$19) -> 0 | CE59: 0.01277880003 | CF59: =SUM('Fluxo de Caixa'!$S$15:$S$27)+(CE59*'Casa de Bombas'!$C$19) -> 0 | CJ59: 0.01456246154 | CK59: =SUM('Fluxo de Caixa'!$T$15:$T$27)+(CJ59*'Casa de Bombas'!$C$19) -> 0 | CO59: -0.1195177627 | CP59: =SUM('Fluxo de Caixa'!$U$15:$U$27)+(CO59*'Casa de Bombas'!$C$19) -> 0 | CT59: -0.01911831994 | CU59: =SUM('Fluxo de Caixa'!$V$15:$V$27)+(CT59*'Casa de Bombas'!$C$19) -> 0 | CY59: -0.002051805474 | CZ59: =SUM('Fluxo de Caixa'!$W$15:$W$18)+(CY59*'Casa de Bombas'!$C$19) -> 0 | DC59: =DB59*AreaCana*DA59-'Fluxo de Caixa'!W65-'Fluxo de Caixa'!W67 ->  | DD59: 0
B60: 46 | C60: 0 | D60: =D59 -> 0 | E60: 0 | F60: 0 | G60: 0 | H60: -0.01139296232 | I60: =SUM('Fluxo de Caixa'!$D$15:$D$27)+(H60*'Casa de Bombas'!$C$19) -> 0 | M60: -0.08076501829 | N60: =SUM('Fluxo de Caixa'!$E$15:$E$27)+(M60*'Casa de Bombas'!$C$19) -> 0 | R60: -0.07766994713 | S60: =SUM('Fluxo de Caixa'!$F$15:$F$27)+(R60*'Casa de Bombas'!$C$19) -> 0 | W60: -0.005790670599 | X60: =SUM('Fluxo de Caixa'!$G$15:$G$27)+(W60*'Casa de Bombas'!$C$19) -> 0 | AB60: 0.04233467223 | AC60: =SUM('Fluxo de Caixa'!$H$15:$H$27)+(AB60*'Casa de Bombas'!$C$19) -> 0 | AG60: 0.07384920379 | AH60: =SUM('Fluxo de Caixa'!$I$15:$I$27)+(AG60*'Casa de Bombas'!$C$19) -> 0 | AL60: -0.02790503089 | AM60: =SUM('Fluxo de Caixa'!$J$15:$J$27)+(AL60*'Casa de Bombas'!$C$19) -> 0 | AQ60: -0.03037650665 | AR60: =SUM('Fluxo de Caixa'!$K$15:$K$27)+(AQ60*'Casa de Bombas'!$C$19) -> 0 | AV60: 0.04820058103 | AW60: =SUM('Fluxo de Caixa'!$L$15:$L$27)+(AV60*'Casa de Bombas'!$C$19) -> 0 | BA60: 0.03288794335 | BB60: =SUM('Fluxo de Caixa'!$M$15:$M$27)+(BA60*'Casa de Bombas'!$C$19) -> 0 | BF60: 0.01397691074 | BG60: =SUM('Fluxo de Caixa'!$N$15:$N$27)+(BF60*'Casa de Bombas'!$C$19) -> 0 | BK60: -0.06877265195 | BL60: =SUM('Fluxo de Caixa'!$O$15:$O$27)+(BK60*'Casa de Bombas'!$C$19) -> 0 | BP60: 0.03525943541 | BQ60: =SUM('Fluxo de Caixa'!$P$15:$P$27)+(BP60*'Casa de Bombas'!$C$19) -> 0 | BU60: -0.0372888377 | BV60: =SUM('Fluxo de Caixa'!$Q$15:$Q$27)+(BU60*'Casa de Bombas'!$C$19) -> 0 | BZ60: 0.004515818951 | CA60: =SUM('Fluxo de Caixa'!$R$15:$R$27)+(BZ60*'Casa de Bombas'!$C$19) -> 0 | CE60: 0.02008009627 | CF60: =SUM('Fluxo de Caixa'!$S$15:$S$27)+(CE60*'Casa de Bombas'!$C$19) -> 0 | CJ60: 0.08551500627 | CK60: =SUM('Fluxo de Caixa'!$T$15:$T$27)+(CJ60*'Casa de Bombas'!$C$19) -> 0 | CO60: -0.1379266957 | CP60: =SUM('Fluxo de Caixa'!$U$15:$U$27)+(CO60*'Casa de Bombas'!$C$19) -> 0 | CT60: -0.04038658454 | CU60: =SUM('Fluxo de Caixa'!$V$15:$V$27)+(CT60*'Casa de Bombas'!$C$19) -> 0 | CY60: 0.001881486983 | CZ60: =SUM('Fluxo de Caixa'!$W$15:$W$18)+(CY60*'Casa de Bombas'!$C$19) -> 0 | DC60: =DB60*AreaCana*DA60-'Fluxo de Caixa'!W66-'Fluxo de Caixa'!W68 ->  | DD60: 0
B61: 47 | C61: 0 | D61: =D60 -> 0 | E61: 0 | F61: 0 | G61: 0 | H61: -0.0898084398 | I61: =SUM('Fluxo de Caixa'!$D$15:$D$27)+(H61*'Casa de Bombas'!$C$19) -> 0 | M61: -0.01835046626 | N61: =SUM('Fluxo de Caixa'!$E$15:$E$27)+(M61*'Casa de Bombas'!$C$19) -> 0 | R61: -0.03153129128 | S61: =SUM('Fluxo de Caixa'!$F$15:$F$27)+(R61*'Casa de Bombas'!$C$19) -> 0 | W61: 0.01254565966 | X61: =SUM('Fluxo de Caixa'!$G$15:$G$27)+(W61*'Casa de Bombas'!$C$19) -> 0 | AB61: -0.02497399492 | AC61: =SUM('Fluxo de Caixa'!$H$15:$H$27)+(AB61*'Casa de Bombas'!$C$19) -> 0 | AG61: -0.05328559795 | AH61: =SUM('Fluxo de Caixa'!$I$15:$I$27)+(AG61*'Casa de Bombas'!$C$19) -> 0 | AL61: -0.008491916209 | AM61: =SUM('Fluxo de Caixa'!$J$15:$J$27)+(AL61*'Casa de Bombas'!$C$19) -> 0 | AQ61: 0.06628031305 | AR61: =SUM('Fluxo de Caixa'!$K$15:$K$27)+(AQ61*'Casa de Bombas'!$C$19) -> 0 | AV61: -0.004418350863 | AW61: =SUM('Fluxo de Caixa'!$L$15:$L$27)+(AV61*'Casa de Bombas'!$C$19) -> 0 | BA61: -0.01399538201 | BB61: =SUM('Fluxo de Caixa'!$M$15:$M$27)+(BA61*'Casa de Bombas'!$C$19) -> 0 | BF61: -0.06666015549 | BG61: =SUM('Fluxo de Caixa'!$N$15:$N$27)+(BF61*'Casa de Bombas'!$C$19) -> 0 | BK61: 0.03859766153 | BL61: =SUM('Fluxo de Caixa'!$O$15:$O$27)+(BK61*'Casa de Bombas'!$C$19) -> 0 | BP61: -0.01570035885 | BQ61: =SUM('Fluxo de Caixa'!$P$15:$P$27)+(BP61*'Casa de Bombas'!$C$19) -> 0 | BU61: 0.06199131881 | BV61: =SUM('Fluxo de Caixa'!$Q$15:$Q$27)+(BU61*'Casa de Bombas'!$C$19) -> 0 | BZ61: -0.03549674383 | CA61: =SUM('Fluxo de Caixa'!$R$15:$R$27)+(BZ61*'Casa de Bombas'!$C$19) -> 0 | CE61: 0.05866666791 | CF61: =SUM('Fluxo de Caixa'!$S$15:$S$27)+(CE61*'Casa de Bombas'!$C$19) -> 0 | CJ61: -0.02206740122 | CK61: =SUM('Fluxo de Caixa'!$T$15:$T$27)+(CJ61*'Casa de Bombas'!$C$19) -> 0 | CO61: -0.01979900195 | CP61: =SUM('Fluxo de Caixa'!$U$15:$U$27)+(CO61*'Casa de Bombas'!$C$19) -> 0 | CT61: 0.0579219104 | CU61: =SUM('Fluxo de Caixa'!$V$15:$V$27)+(CT61*'Casa de Bombas'!$C$19) -> 0 | CY61: 0.02059703195 | CZ61: =SUM('Fluxo de Caixa'!$W$15:$W$18)+(CY61*'Casa de Bombas'!$C$19) -> 0 | DC61: =DB61*AreaCana*DA61-'Fluxo de Caixa'!W67-'Fluxo de Caixa'!W69 ->  | DD61: 0
B62: 48 | C62: 0 | D62: =D61 -> 0 | E62: 0 | F62: 0 | G62: 0 | H62: -0.008704022793 | I62: =SUM('Fluxo de Caixa'!$D$15:$D$27)+(H62*'Casa de Bombas'!$C$19) -> 0 | M62: -0.04774482608 | N62: =SUM('Fluxo de Caixa'!$E$15:$E$27)+(M62*'Casa de Bombas'!$C$19) -> 0 | R62: -0.0124934634 | S62: =SUM('Fluxo de Caixa'!$F$15:$F$27)+(R62*'Casa de Bombas'!$C$19) -> 0 | W62: -0.06017546905 | X62: =SUM('Fluxo de Caixa'!$G$15:$G$27)+(W62*'Casa de Bombas'!$C$19) -> 0 | AB62: -0.03685083565 | AC62: =SUM('Fluxo de Caixa'!$H$15:$H$27)+(AB62*'Casa de Bombas'!$C$19) -> 0 | AG62: -0.01025461429 | AH62: =SUM('Fluxo de Caixa'!$I$15:$I$27)+(AG62*'Casa de Bombas'!$C$19) -> 0 | AL62: 0.02329216052 | AM62: =SUM('Fluxo de Caixa'!$J$15:$J$27)+(AL62*'Casa de Bombas'!$C$19) -> 0 | AQ62: -0.02605686721 | AR62: =SUM('Fluxo de Caixa'!$K$15:$K$27)+(AQ62*'Casa de Bombas'!$C$19) -> 0 | AV62: 0.008248832985 | AW62: =SUM('Fluxo de Caixa'!$L$15:$L$27)+(AV62*'Casa de Bombas'!$C$19) -> 0 | BA62: 0.01011725126 | BB62: =SUM('Fluxo de Caixa'!$M$15:$M$27)+(BA62*'Casa de Bombas'!$C$19) -> 0 | BF62: -0.009150868048 | BG62: =SUM('Fluxo de Caixa'!$N$15:$N$27)+(BF62*'Casa de Bombas'!$C$19) -> 0 | BK62: -0.01374592398 | BL62: =SUM('Fluxo de Caixa'!$O$15:$O$27)+(BK62*'Casa de Bombas'!$C$19) -> 0 | BP62: 0.04595875328 | BQ62: =SUM('Fluxo de Caixa'!$P$15:$P$27)+(BP62*'Casa de Bombas'!$C$19) -> 0 | BU62: -0.004637729207 | BV62: =SUM('Fluxo de Caixa'!$Q$15:$Q$27)+(BU62*'Casa de Bombas'!$C$19) -> 0 | BZ62: 0.03354574844 | CA62: =SUM('Fluxo de Caixa'!$R$15:$R$27)+(BZ62*'Casa de Bombas'!$C$19) -> 0 | CE62: 0.03875315515 | CF62: =SUM('Fluxo de Caixa'!$S$15:$S$27)+(CE62*'Casa de Bombas'!$C$19) -> 0 | CJ62: -0.0690275355 | CK62: =SUM('Fluxo de Caixa'!$T$15:$T$27)+(CJ62*'Casa de Bombas'!$C$19) -> 0 | CO62: -0.02584534785 | CP62: =SUM('Fluxo de Caixa'!$U$15:$U$27)+(CO62*'Casa de Bombas'!$C$19) -> 0 | CT62: 0.04781880421 | CU62: =SUM('Fluxo de Caixa'!$V$15:$V$27)+(CT62*'Casa de Bombas'!$C$19) -> 0 | CY62: -0.03785700699 | CZ62: =SUM('Fluxo de Caixa'!$W$15:$W$18)+(CY62*'Casa de Bombas'!$C$19) -> 0 | DC62: =DB62*AreaCana*DA62-'Fluxo de Caixa'!W68-'Fluxo de Caixa'!W70 ->  | DD62: 0
B63: 49 | C63: 0 | D63: =D62 -> 0 | E63: 0 | F63: 0 | G63: 0 | H63: 0.1326332239 | I63: =SUM('Fluxo de Caixa'!$D$15:$D$27)+(H63*'Casa de Bombas'!$C$19) -> 0 | M63: -0.127091143 | N63: =SUM('Fluxo de Caixa'!$E$15:$E$27)+(M63*'Casa de Bombas'!$C$19) -> 0 | R63: 0.004531035646 | S63: =SUM('Fluxo de Caixa'!$F$15:$F$27)+(R63*'Casa de Bombas'!$C$19) -> 0 | W63: -0.03873701824 | X63: =SUM('Fluxo de Caixa'!$G$15:$G$27)+(W63*'Casa de Bombas'!$C$19) -> 0 | AB63: -0.03794266396 | AC63: =SUM('Fluxo de Caixa'!$H$15:$H$27)+(AB63*'Casa de Bombas'!$C$19) -> 0 | AG63: -0.01640623547 | AH63: =SUM('Fluxo de Caixa'!$I$15:$I$27)+(AG63*'Casa de Bombas'!$C$19) -> 0 | AL63: 0.06102774016 | AM63: =SUM('Fluxo de Caixa'!$J$15:$J$27)+(AL63*'Casa de Bombas'!$C$19) -> 0 | AQ63: -0.08768158121 | AR63: =SUM('Fluxo de Caixa'!$K$15:$K$27)+(AQ63*'Casa de Bombas'!$C$19) -> 0 | AV63: -0.06766151535 | AW63: =SUM('Fluxo de Caixa'!$L$15:$L$27)+(AV63*'Casa de Bombas'!$C$19) -> 0 | BA63: 0.05379962301 | BB63: =SUM('Fluxo de Caixa'!$M$15:$M$27)+(BA63*'Casa de Bombas'!$C$19) -> 0 | BF63: -0.08153947645 | BG63: =SUM('Fluxo de Caixa'!$N$15:$N$27)+(BF63*'Casa de Bombas'!$C$19) -> 0 | BK63: -0.03167971489 | BL63: =SUM('Fluxo de Caixa'!$O$15:$O$27)+(BK63*'Casa de Bombas'!$C$19) -> 0 | BP63: 0.00729361678 | BQ63: =SUM('Fluxo de Caixa'!$P$15:$P$27)+(BP63*'Casa de Bombas'!$C$19) -> 0 | BU63: -0.02238995371 | BV63: =SUM('Fluxo de Caixa'!$Q$15:$Q$27)+(BU63*'Casa de Bombas'!$C$19) -> 0 | BZ63: 0.07396790871 | CA63: =SUM('Fluxo de Caixa'!$R$15:$R$27)+(BZ63*'Casa de Bombas'!$C$19) -> 0 | CE63: -0.05593341121 | CF63: =SUM('Fluxo de Caixa'!$S$15:$S$27)+(CE63*'Casa de Bombas'!$C$19) -> 0 | CJ63: 0.02692709173 | CK63: =SUM('Fluxo de Caixa'!$T$15:$T$27)+(CJ63*'Casa de Bombas'!$C$19) -> 0 | CO63: 0.09113066812 | CP63: =SUM('Fluxo de Caixa'!$U$15:$U$27)+(CO63*'Casa de Bombas'!$C$19) -> 0 | CT63: -0.00689070036 | CU63: =SUM('Fluxo de Caixa'!$V$15:$V$27)+(CT63*'Casa de Bombas'!$C$19) -> 0 | CY63: 0.02787394266 | CZ63: =SUM('Fluxo de Caixa'!$W$15:$W$18)+(CY63*'Casa de Bombas'!$C$19) -> 0 | DC63: =DB63*AreaCana*DA63-'Fluxo de Caixa'!W69-'Fluxo de Caixa'!W71 ->  | DD63: 0
B64: 50 | C64: 0 | D64: =D63 -> 0 | E64: 0 | F64: 0 | G64: 0 | H64: -0.07006822687 | I64: =SUM('Fluxo de Caixa'!$D$15:$D$27)+(H64*'Casa de Bombas'!$C$19) -> 0 | M64: -0.00807542323 | N64: =SUM('Fluxo de Caixa'!$E$15:$E$27)+(M64*'Casa de Bombas'!$C$19) -> 0 | R64: 0.03191312995 | S64: =SUM('Fluxo de Caixa'!$F$15:$F$27)+(R64*'Casa de Bombas'!$C$19) -> 0 | W64: -0.05715158822 | X64: =SUM('Fluxo de Caixa'!$G$15:$G$27)+(W64*'Casa de Bombas'!$C$19) -> 0 | AB64: -0.02463380061 | AC64: =SUM('Fluxo de Caixa'!$H$15:$H$27)+(AB64*'Casa de Bombas'!$C$19) -> 0 | AG64: -0.05635972501 | AH64: =SUM('Fluxo de Caixa'!$I$15:$I$27)+(AG64*'Casa de Bombas'!$C$19) -> 0 | AL64: -0.06259918257 | AM64: =SUM('Fluxo de Caixa'!$J$15:$J$27)+(AL64*'Casa de Bombas'!$C$19) -> 0 | AQ64: 0.008126449268 | AR64: =SUM('Fluxo de Caixa'!$K$15:$K$27)+(AQ64*'Casa de Bombas'!$C$19) -> 0 | AV64: 0.02685212429 | AW64: =SUM('Fluxo de Caixa'!$L$15:$L$27)+(AV64*'Casa de Bombas'!$C$19) -> 0 | BA64: 0.05311381172 | BB64: =SUM('Fluxo de Caixa'!$M$15:$M$27)+(BA64*'Casa de Bombas'!$C$19) -> 0 | BF64: -0.07431588437 | BG64: =SUM('Fluxo de Caixa'!$N$15:$N$27)+(BF64*'Casa de Bombas'!$C$19) -> 0 | BK64: 0.03916009927 | BL64: =SUM('Fluxo de Caixa'!$O$15:$O$27)+(BK64*'Casa de Bombas'!$C$19) -> 0 | BP64: 0.01184082429 | BQ64: =SUM('Fluxo de Caixa'!$P$15:$P$27)+(BP64*'Casa de Bombas'!$C$19) -> 0 | BU64: -0.08357831348 | BV64: =SUM('Fluxo de Caixa'!$Q$15:$Q$27)+(BU64*'Casa de Bombas'!$C$19) -> 0 | BZ64: 0.01553852395 | CA64: =SUM('Fluxo de Caixa'!$R$15:$R$27)+(BZ64*'Casa de Bombas'!$C$19) -> 0 | CE64: 0.001654933151 | CF64: =SUM('Fluxo de Caixa'!$S$15:$S$27)+(CE64*'Casa de Bombas'!$C$19) -> 0 | CJ64: 0.0266228472 | CK64: =SUM('Fluxo de Caixa'!$T$15:$T$27)+(CJ64*'Casa de Bombas'!$C$19) -> 0 | CO64: -0.1082720056 | CP64: =SUM('Fluxo de Caixa'!$U$15:$U$27)+(CO64*'Casa de Bombas'!$C$19) -> 0 | CT64: 0.04638246825 | CU64: =SUM('Fluxo de Caixa'!$V$15:$V$27)+(CT64*'Casa de Bombas'!$C$19) -> 0 | CY64: -0.05985515091 | CZ64: =SUM('Fluxo de Caixa'!$W$15:$W$18)+(CY64*'Casa de Bombas'!$C$19) -> 0 | DC64: =DB64*AreaCana*DA64-'Fluxo de Caixa'!W70-'Fluxo de Caixa'!W72 ->  | DD64: 0
B65: 51 | C65: 0 | D65: =D64 -> 0 | E65: 0 | F65: 0 | G65: 0 | H65: -0.1148498764 | I65: =SUM('Fluxo de Caixa'!$D$15:$D$27)+(H65*'Casa de Bombas'!$C$19) -> 0 | M65: -0.02743454155 | N65: =SUM('Fluxo de Caixa'!$E$15:$E$27)+(M65*'Casa de Bombas'!$C$19) -> 0 | R65: -0.06531695051 | S65: =SUM('Fluxo de Caixa'!$F$15:$F$27)+(R65*'Casa de Bombas'!$C$19) -> 0 | W65: -0.07230302097 | X65: =SUM('Fluxo de Caixa'!$G$15:$G$27)+(W65*'Casa de Bombas'!$C$19) -> 0 | AB65: -0.0673100878 | AC65: =SUM('Fluxo de Caixa'!$H$15:$H$27)+(AB65*'Casa de Bombas'!$C$19) -> 0 | AG65: 0.009751808973 | AH65: =SUM('Fluxo de Caixa'!$I$15:$I$27)+(AG65*'Casa de Bombas'!$C$19) -> 0 | AL65: -0.05262894376 | AM65: =SUM('Fluxo de Caixa'!$J$15:$J$27)+(AL65*'Casa de Bombas'!$C$19) -> 0 | AQ65: 0.09270321321 | AR65: =SUM('Fluxo de Caixa'!$K$15:$K$27)+(AQ65*'Casa de Bombas'!$C$19) -> 0 | AV65: -0.03785931699 | AW65: =SUM('Fluxo de Caixa'!$L$15:$L$27)+(AV65*'Casa de Bombas'!$C$19) -> 0 | BA65: -0.05436720051 | BB65: =SUM('Fluxo de Caixa'!$M$15:$M$27)+(BA65*'Casa de Bombas'!$C$19) -> 0 | BF65: -0.0456638631 | BG65: =SUM('Fluxo de Caixa'!$N$15:$N$27)+(BF65*'Casa de Bombas'!$C$19) -> 0 | BK65: -0.0379805318 | BL65: =SUM('Fluxo de Caixa'!$O$15:$O$27)+(BK65*'Casa de Bombas'!$C$19) -> 0 | BP65: -0.03245673347 | BQ65: =SUM('Fluxo de Caixa'!$P$15:$P$27)+(BP65*'Casa de Bombas'!$C$19) -> 0 | BU65: 0.06525512381 | BV65: =SUM('Fluxo de Caixa'!$Q$15:$Q$27)+(BU65*'Casa de Bombas'!$C$19) -> 0 | BZ65: -0.03283677476 | CA65: =SUM('Fluxo de Caixa'!$R$15:$R$27)+(BZ65*'Casa de Bombas'!$C$19) -> 0 | CE65: -0.06970153634 | CF65: =SUM('Fluxo de Caixa'!$S$15:$S$27)+(CE65*'Casa de Bombas'!$C$19) -> 0 | CJ65: -0.03397921374 | CK65: =SUM('Fluxo de Caixa'!$T$15:$T$27)+(CJ65*'Casa de Bombas'!$C$19) -> 0 | CO65: -0.00114707428 | CP65: =SUM('Fluxo de Caixa'!$U$15:$U$27)+(CO65*'Casa de Bombas'!$C$19) -> 0 | CT65: -0.01675100441 | CU65: =SUM('Fluxo de Caixa'!$V$15:$V$27)+(CT65*'Casa de Bombas'!$C$19) -> 0 | CY65: -0.0216127005 | CZ65: =SUM('Fluxo de Caixa'!$W$15:$W$18)+(CY65*'Casa de Bombas'!$C$19) -> 0 | DC65: =DB65*AreaCana*DA65-'Fluxo de Caixa'!W71-'Fluxo de Caixa'!W73 ->  | DD65: 0
B66: 52 | C66: 0 | D66: =D65 -> 0 | E66: 0 | F66: 0 | G66: 0 | H66: 0.06951816038 | I66: =SUM('Fluxo de Caixa'!$D$15:$D$27)+(H66*'Casa de Bombas'!$C$19) -> 0 | M66: 0.02668204675 | N66: =SUM('Fluxo de Caixa'!$E$15:$E$27)+(M66*'Casa de Bombas'!$C$19) -> 0 | R66: 0.06700060962 | S66: =SUM('Fluxo de Caixa'!$F$15:$F$27)+(R66*'Casa de Bombas'!$C$19) -> 0 | W66: 0.03188314677 | X66: =SUM('Fluxo de Caixa'!$G$15:$G$27)+(W66*'Casa de Bombas'!$C$19) -> 0 | AB66: 0.048372075 | AC66: =SUM('Fluxo de Caixa'!$H$15:$H$27)+(AB66*'Casa de Bombas'!$C$19) -> 0 | AG66: -0.01052523403 | AH66: =SUM('Fluxo de Caixa'!$I$15:$I$27)+(AG66*'Casa de Bombas'!$C$19) -> 0 | AL66: -0.02242532331 | AM66: =SUM('Fluxo de Caixa'!$J$15:$J$27)+(AL66*'Casa de Bombas'!$C$19) -> 0 | AQ66: 0.04187801348 | AR66: =SUM('Fluxo de Caixa'!$K$15:$K$27)+(AQ66*'Casa de Bombas'!$C$19) -> 0 | AV66: -0.1010393798 | AW66: =SUM('Fluxo de Caixa'!$L$15:$L$27)+(AV66*'Casa de Bombas'!$C$19) -> 0 | BA66: 0.0464678164 | BB66: =SUM('Fluxo de Caixa'!$M$15:$M$27)+(BA66*'Casa de Bombas'!$C$19) -> 0 | BF66: -0.09276143648 | BG66: =SUM('Fluxo de Caixa'!$N$15:$N$27)+(BF66*'Casa de Bombas'!$C$19) -> 0 | BK66: 0.1566992984 | BL66: =SUM('Fluxo de Caixa'!$O$15:$O$27)+(BK66*'Casa de Bombas'!$C$19) -> 0 | BP66: 0.005272112842 | BQ66: =SUM('Fluxo de Caixa'!$P$15:$P$27)+(BP66*'Casa de Bombas'!$C$19) -> 0 | BU66: -0.01637765325 | BV66: =SUM('Fluxo de Caixa'!$Q$15:$Q$27)+(BU66*'Casa de Bombas'!$C$19) -> 0 | BZ66: -0.1251603964 | CA66: =SUM('Fluxo de Caixa'!$R$15:$R$27)+(BZ66*'Casa de Bombas'!$C$19) -> 0 | CE66: 0.05028909408 | CF66: =SUM('Fluxo de Caixa'!$S$15:$S$27)+(CE66*'Casa de Bombas'!$C$19) -> 0 | CJ66: -0.03119991628 | CK66: =SUM('Fluxo de Caixa'!$T$15:$T$27)+(CJ66*'Casa de Bombas'!$C$19) -> 0 | CO66: -0.07292451534 | CP66: =SUM('Fluxo de Caixa'!$U$15:$U$27)+(CO66*'Casa de Bombas'!$C$19) -> 0 | CT66: -0.002087040403 | CU66: =SUM('Fluxo de Caixa'!$V$15:$V$27)+(CT66*'Casa de Bombas'!$C$19) -> 0 | CY66: -0.04666557952 | CZ66: =SUM('Fluxo de Caixa'!$W$15:$W$18)+(CY66*'Casa de Bombas'!$C$19) -> 0 | DC66: =DB66*AreaCana*DA66-'Fluxo de Caixa'!W72-'Fluxo de Caixa'!W74 ->  | DD66: 0
B67: 53 | C67: 0 | D67: =D66 -> 0 | E67: 0 | F67: 0 | G67: 0 | H67: 0.105696977 | I67: =SUM('Fluxo de Caixa'!$D$15:$D$27)+(H67*'Casa de Bombas'!$C$19) -> 0 | M67: -0.004328865202 | N67: =SUM('Fluxo de Caixa'!$E$15:$E$27)+(M67*'Casa de Bombas'!$C$19) -> 0 | R67: 0.04962699136 | S67: =SUM('Fluxo de Caixa'!$F$15:$F$27)+(R67*'Casa de Bombas'!$C$19) -> 0 | W67: 0.04295444395 | X67: =SUM('Fluxo de Caixa'!$G$15:$G$27)+(W67*'Casa de Bombas'!$C$19) -> 0 | AB67: 0.04942120305 | AC67: =SUM('Fluxo de Caixa'!$H$15:$H$27)+(AB67*'Casa de Bombas'!$C$19) -> 0 | AG67: 0.08106498258 | AH67: =SUM('Fluxo de Caixa'!$I$15:$I$27)+(AG67*'Casa de Bombas'!$C$19) -> 0 | AL67: -0.08412065306 | AM67: =SUM('Fluxo de Caixa'!$J$15:$J$27)+(AL67*'Casa de Bombas'!$C$19) -> 0 | AQ67: -0.08060146612 | AR67: =SUM('Fluxo de Caixa'!$K$15:$K$27)+(AQ67*'Casa de Bombas'!$C$19) -> 0 | AV67: 0.02945882672 | AW67: =SUM('Fluxo de Caixa'!$L$15:$L$27)+(AV67*'Casa de Bombas'!$C$19) -> 0 | BA67: -0.01307498663 | BB67: =SUM('Fluxo de Caixa'!$M$15:$M$27)+(BA67*'Casa de Bombas'!$C$19) -> 0 | BF67: 0.03284529545 | BG67: =SUM('Fluxo de Caixa'!$N$15:$N$27)+(BF67*'Casa de Bombas'!$C$19) -> 0 | BK67: -0.02415285354 | BL67: =SUM('Fluxo de Caixa'!$O$15:$O$27)+(BK67*'Casa de Bombas'!$C$19) -> 0 | BP67: 0.05241619371 | BQ67: =SUM('Fluxo de Caixa'!$P$15:$P$27)+(BP67*'Casa de Bombas'!$C$19) -> 0 | BU67: -0.05751693423 | BV67: =SUM('Fluxo de Caixa'!$Q$15:$Q$27)+(BU67*'Casa de Bombas'!$C$19) -> 0 | BZ67: -0.04820145555 | CA67: =SUM('Fluxo de Caixa'!$R$15:$R$27)+(BZ67*'Casa de Bombas'!$C$19) -> 0 | CE67: -0.01975605735 | CF67: =SUM('Fluxo de Caixa'!$S$15:$S$27)+(CE67*'Casa de Bombas'!$C$19) -> 0 | CJ67: -0.03669355334 | CK67: =SUM('Fluxo de Caixa'!$T$15:$T$27)+(CJ67*'Casa de Bombas'!$C$19) -> 0 | CO67: -0.06342914146 | CP67: =SUM('Fluxo de Caixa'!$U$15:$U$27)+(CO67*'Casa de Bombas'!$C$19) -> 0 | CT67: -0.04261300428 | CU67: =SUM('Fluxo de Caixa'!$V$15:$V$27)+(CT67*'Casa de Bombas'!$C$19) -> 0 | CY67: -0.04876865232 | CZ67: =SUM('Fluxo de Caixa'!$W$15:$W$18)+(CY67*'Casa de Bombas'!$C$19) -> 0 | DC67: =DB67*AreaCana*DA67-'Fluxo de Caixa'!W73-'Fluxo de Caixa'!W75 ->  | DD67: 0
B68: 54 | C68: 0 | D68: =D67 -> 0 | E68: 0 | F68: 0 | G68: 0 | H68: 0.003441480184 | I68: =SUM('Fluxo de Caixa'!$D$15:$D$27)+(H68*'Casa de Bombas'!$C$19) -> 0 | M68: 0.02389943689 | N68: =SUM('Fluxo de Caixa'!$E$15:$E$27)+(M68*'Casa de Bombas'!$C$19) -> 0 | R68: -0.03132339094 | S68: =SUM('Fluxo de Caixa'!$F$15:$F$27)+(R68*'Casa de Bombas'!$C$19) -> 0 | W68: -0.005602408511 | X68: =SUM('Fluxo de Caixa'!$G$15:$G$27)+(W68*'Casa de Bombas'!$C$19) -> 0 | AB68: -0.01209323404 | AC68: =SUM('Fluxo de Caixa'!$H$15:$H$27)+(AB68*'Casa de Bombas'!$C$19) -> 0 | AG68: 0.04820244108 | AH68: =SUM('Fluxo de Caixa'!$I$15:$I$27)+(AG68*'Casa de Bombas'!$C$19) -> 0 | AL68: -0.0003382811546 | AM68: =SUM('Fluxo de Caixa'!$J$15:$J$27)+(AL68*'Casa de Bombas'!$C$19) -> 0 | AQ68: -0.04483529868 | AR68: =SUM('Fluxo de Caixa'!$K$15:$K$27)+(AQ68*'Casa de Bombas'!$C$19) -> 0 | AV68: 0.06179264677 | AW68: =SUM('Fluxo de Caixa'!$L$15:$L$27)+(AV68*'Casa de Bombas'!$C$19) -> 0 | BA68: -0.002262219146 | BB68: =SUM('Fluxo de Caixa'!$M$15:$M$27)+(BA68*'Casa de Bombas'!$C$19) -> 0 | BF68: -0.02013998187 | BG68: =SUM('Fluxo de Caixa'!$N$15:$N$27)+(BF68*'Casa de Bombas'!$C$19) -> 0 | BK68: -0.02996440432 | BL68: =SUM('Fluxo de Caixa'!$O$15:$O$27)+(BK68*'Casa de Bombas'!$C$19) -> 0 | BP68: -0.03919267797 | BQ68: =SUM('Fluxo de Caixa'!$P$15:$P$27)+(BP68*'Casa de Bombas'!$C$19) -> 0 | BU68: 0.02908167043 | BV68: =SUM('Fluxo de Caixa'!$Q$15:$Q$27)+(BU68*'Casa de Bombas'!$C$19) -> 0 | BZ68: -0.03994265873 | CA68: =SUM('Fluxo de Caixa'!$R$15:$R$27)+(BZ68*'Casa de Bombas'!$C$19) -> 0 | CE68: 0.03261424225 | CF68: =SUM('Fluxo de Caixa'!$S$15:$S$27)+(CE68*'Casa de Bombas'!$C$19) -> 0 | CJ68: -0.1035778174 | CK68: =SUM('Fluxo de Caixa'!$T$15:$T$27)+(CJ68*'Casa de Bombas'!$C$19) -> 0 | CO68: 0.0005550505443 | CP68: =SUM('Fluxo de Caixa'!$U$15:$U$27)+(CO68*'Casa de Bombas'!$C$19) -> 0 | CT68: -0.005034715986 | CU68: =SUM('Fluxo de Caixa'!$V$15:$V$27)+(CT68*'Casa de Bombas'!$C$19) -> 0 | CY68: 0.05044964272 | CZ68: =SUM('Fluxo de Caixa'!$W$15:$W$18)+(CY68*'Casa de Bombas'!$C$19) -> 0 | DC68: =DB68*AreaCana*DA68-'Fluxo de Caixa'!W74-'Fluxo de Caixa'!W76 ->  | DD68: 0
B69: 55 | C69: 0 | D69: =D68 -> 0 | E69: 0 | F69: 0 | G69: 0 | H69: -0.02911441906 | I69: =SUM('Fluxo de Caixa'!$D$15:$D$27)+(H69*'Casa de Bombas'!$C$19) -> 0 | M69: 0.01526078092 | N69: =SUM('Fluxo de Caixa'!$E$15:$E$27)+(M69*'Casa de Bombas'!$C$19) -> 0 | R69: 0.000972309544 | S69: =SUM('Fluxo de Caixa'!$F$15:$F$27)+(R69*'Casa de Bombas'!$C$19) -> 0 | W69: -0.05948878898 | X69: =SUM('Fluxo de Caixa'!$G$15:$G$27)+(W69*'Casa de Bombas'!$C$19) -> 0 | AB69: -0.02250618008 | AC69: =SUM('Fluxo de Caixa'!$H$15:$H$27)+(AB69*'Casa de Bombas'!$C$19) -> 0 | AG69: 0.04420850751 | AH69: =SUM('Fluxo de Caixa'!$I$15:$I$27)+(AG69*'Casa de Bombas'!$C$19) -> 0 | AL69: -0.08797441158 | AM69: =SUM('Fluxo de Caixa'!$J$15:$J$27)+(AL69*'Casa de Bombas'!$C$19) -> 0 | AQ69: 0.04262180575 | AR69: =SUM('Fluxo de Caixa'!$K$15:$K$27)+(AQ69*'Casa de Bombas'!$C$19) -> 0 | AV69: 0.03111600199 | AW69: =SUM('Fluxo de Caixa'!$L$15:$L$27)+(AV69*'Casa de Bombas'!$C$19) -> 0 | BA69: -0.05628422519 | BB69: =SUM('Fluxo de Caixa'!$M$15:$M$27)+(BA69*'Casa de Bombas'!$C$19) -> 0 | BF69: 0.04283176152 | BG69: =SUM('Fluxo de Caixa'!$N$15:$N$27)+(BF69*'Casa de Bombas'!$C$19) -> 0 | BK69: 0.07105173863 | BL69: =SUM('Fluxo de Caixa'!$O$15:$O$27)+(BK69*'Casa de Bombas'!$C$19) -> 0 | BP69: 0.076117212 | BQ69: =SUM('Fluxo de Caixa'!$P$15:$P$27)+(BP69*'Casa de Bombas'!$C$19) -> 0 | BU69: -0.07393205142 | BV69: =SUM('Fluxo de Caixa'!$Q$15:$Q$27)+(BU69*'Casa de Bombas'!$C$19) -> 0 | BZ69: 0.03996863586 | CA69: =SUM('Fluxo de Caixa'!$R$15:$R$27)+(BZ69*'Casa de Bombas'!$C$19) -> 0 | CE69: 0.03812522901 | CF69: =SUM('Fluxo de Caixa'!$S$15:$S$27)+(CE69*'Casa de Bombas'!$C$19) -> 0 | CJ69: -0.02576571047 | CK69: =SUM('Fluxo de Caixa'!$T$15:$T$27)+(CJ69*'Casa de Bombas'!$C$19) -> 0 | CO69: -0.05122326511 | CP69: =SUM('Fluxo de Caixa'!$U$15:$U$27)+(CO69*'Casa de Bombas'!$C$19) -> 0 | CT69: 0.01596685894 | CU69: =SUM('Fluxo de Caixa'!$V$15:$V$27)+(CT69*'Casa de Bombas'!$C$19) -> 0 | CY69: 0.08756950437 | CZ69: =SUM('Fluxo de Caixa'!$W$15:$W$18)+(CY69*'Casa de Bombas'!$C$19) -> 0 | DC69: =DB69*AreaCana*DA69-'Fluxo de Caixa'!W75-'Fluxo de Caixa'!W77 ->  | DD69: 0
B70: 56 | C70: 0 | D70: =D69 -> 0 | E70: 0 | F70: 0 | G70: 0 | H70: -0.009147035344 | I70: =SUM('Fluxo de Caixa'!$D$15:$D$27)+(H70*'Casa de Bombas'!$C$19) -> 0 | M70: 0.05681702373 | N70: =SUM('Fluxo de Caixa'!$E$15:$E$27)+(M70*'Casa de Bombas'!$C$19) -> 0 | R70: -0.02735932543 | S70: =SUM('Fluxo de Caixa'!$F$15:$F$27)+(R70*'Casa de Bombas'!$C$19) -> 0 | W70: -0.04609412615 | X70: =SUM('Fluxo de Caixa'!$G$15:$G$27)+(W70*'Casa de Bombas'!$C$19) -> 0 | AB70: -0.03789484336 | AC70: =SUM('Fluxo de Caixa'!$H$15:$H$27)+(AB70*'Casa de Bombas'!$C$19) -> 0 | AG70: -0.04195907665 | AH70: =SUM('Fluxo de Caixa'!$I$15:$I$27)+(AG70*'Casa de Bombas'!$C$19) -> 0 | AL70: 0.06218720189 | AM70: =SUM('Fluxo de Caixa'!$J$15:$J$27)+(AL70*'Casa de Bombas'!$C$19) -> 0 | AQ70: -0.02168217644 | AR70: =SUM('Fluxo de Caixa'!$K$15:$K$27)+(AQ70*'Casa de Bombas'!$C$19) -> 0 | AV70: 0.006613555805 | AW70: =SUM('Fluxo de Caixa'!$L$15:$L$27)+(AV70*'Casa de Bombas'!$C$19) -> 0 | BA70: -0.03111995766 | BB70: =SUM('Fluxo de Caixa'!$M$15:$M$27)+(BA70*'Casa de Bombas'!$C$19) -> 0 | BF70: 0.01052762571 | BG70: =SUM('Fluxo de Caixa'!$N$15:$N$27)+(BF70*'Casa de Bombas'!$C$19) -> 0 | BK70: 0.05211510742 | BL70: =SUM('Fluxo de Caixa'!$O$15:$O$27)+(BK70*'Casa de Bombas'!$C$19) -> 0 | BP70: -0.0146683651 | BQ70: =SUM('Fluxo de Caixa'!$P$15:$P$27)+(BP70*'Casa de Bombas'!$C$19) -> 0 | BU70: 0.004686702152 | BV70: =SUM('Fluxo de Caixa'!$Q$15:$Q$27)+(BU70*'Casa de Bombas'!$C$19) -> 0 | BZ70: -0.0996936453 | CA70: =SUM('Fluxo de Caixa'!$R$15:$R$27)+(BZ70*'Casa de Bombas'!$C$19) -> 0 | CE70: -0.0578434101 | CF70: =SUM('Fluxo de Caixa'!$S$15:$S$27)+(CE70*'Casa de Bombas'!$C$19) -> 0 | CJ70: -0.01007970583 | CK70: =SUM('Fluxo de Caixa'!$T$15:$T$27)+(CJ70*'Casa de Bombas'!$C$19) -> 0 | CO70: -0.01957558657 | CP70: =SUM('Fluxo de Caixa'!$U$15:$U$27)+(CO70*'Casa de Bombas'!$C$19) -> 0 | CT70: -0.03106329326 | CU70: =SUM('Fluxo de Caixa'!$V$15:$V$27)+(CT70*'Casa de Bombas'!$C$19) -> 0 | CY70: 0.005420102316 | CZ70: =SUM('Fluxo de Caixa'!$W$15:$W$18)+(CY70*'Casa de Bombas'!$C$19) -> 0 | DC70: =DB70*AreaCana*DA70-'Fluxo de Caixa'!W76-'Fluxo de Caixa'!W78 ->  | DD70: 0
B71: 57 | C71: 0 | D71: =D70 -> 0 | E71: 0 | F71: 0 | G71: 0 | H71: -0.02984984358 | I71: =SUM('Fluxo de Caixa'!$D$15:$D$27)+(H71*'Casa de Bombas'!$C$19) -> 0 | M71: -0.07808467577 | N71: =SUM('Fluxo de Caixa'!$E$15:$E$27)+(M71*'Casa de Bombas'!$C$19) -> 0 | R71: 0.0528947815 | S71: =SUM('Fluxo de Caixa'!$F$15:$F$27)+(R71*'Casa de Bombas'!$C$19) -> 0 | W71: -0.009320347164 | X71: =SUM('Fluxo de Caixa'!$G$15:$G$27)+(W71*'Casa de Bombas'!$C$19) -> 0 | AB71: -0.05653199288 | AC71: =SUM('Fluxo de Caixa'!$H$15:$H$27)+(AB71*'Casa de Bombas'!$C$19) -> 0 | AG71: -0.01463564631 | AH71: =SUM('Fluxo de Caixa'!$I$15:$I$27)+(AG71*'Casa de Bombas'!$C$19) -> 0 | AL71: 0.105573903 | AM71: =SUM('Fluxo de Caixa'!$J$15:$J$27)+(AL71*'Casa de Bombas'!$C$19) -> 0 | AQ71: -0.04737926621 | AR71: =SUM('Fluxo de Caixa'!$K$15:$K$27)+(AQ71*'Casa de Bombas'!$C$19) -> 0 | AV71: -0.02062283142 | AW71: =SUM('Fluxo de Caixa'!$L$15:$L$27)+(AV71*'Casa de Bombas'!$C$19) -> 0 | BA71: -0.003371628392 | BB71: =SUM('Fluxo de Caixa'!$M$15:$M$27)+(BA71*'Casa de Bombas'!$C$19) -> 0 | BF71: 0.01473568462 | BG71: =SUM('Fluxo de Caixa'!$N$15:$N$27)+(BF71*'Casa de Bombas'!$C$19) -> 0 | BK71: -0.06517658937 | BL71: =SUM('Fluxo de Caixa'!$O$15:$O$27)+(BK71*'Casa de Bombas'!$C$19) -> 0 | BP71: 0.02545986289 | BQ71: =SUM('Fluxo de Caixa'!$P$15:$P$27)+(BP71*'Casa de Bombas'!$C$19) -> 0 | BU71: -0.05045411048 | BV71: =SUM('Fluxo de Caixa'!$Q$15:$Q$27)+(BU71*'Casa de Bombas'!$C$19) -> 0 | BZ71: 0.03329432584 | CA71: =SUM('Fluxo de Caixa'!$R$15:$R$27)+(BZ71*'Casa de Bombas'!$C$19) -> 0 | CE71: 0.08062522052 | CF71: =SUM('Fluxo de Caixa'!$S$15:$S$27)+(CE71*'Casa de Bombas'!$C$19) -> 0 | CJ71: 0.0008001685499 | CK71: =SUM('Fluxo de Caixa'!$T$15:$T$27)+(CJ71*'Casa de Bombas'!$C$19) -> 0 | CO71: 0.03685617181 | CP71: =SUM('Fluxo de Caixa'!$U$15:$U$27)+(CO71*'Casa de Bombas'!$C$19) -> 0 | CT71: -0.05279030208 | CU71: =SUM('Fluxo de Caixa'!$V$15:$V$27)+(CT71*'Casa de Bombas'!$C$19) -> 0 | CY71: -0.001657113474 | CZ71: =SUM('Fluxo de Caixa'!$W$15:$W$18)+(CY71*'Casa de Bombas'!$C$19) -> 0 | DC71: =DB71*AreaCana*DA71-'Fluxo de Caixa'!W77-'Fluxo de Caixa'!W79 ->  | DD71: 0
B72: 58 | C72: 0 | D72: =D71 -> 0 | E72: 0 | F72: 0 | G72: 0 | H72: 0.0313697771 | I72: =SUM('Fluxo de Caixa'!$D$15:$D$27)+(H72*'Casa de Bombas'!$C$19) -> 0 | M72: -0.01692775 | N72: =SUM('Fluxo de Caixa'!$E$15:$E$27)+(M72*'Casa de Bombas'!$C$19) -> 0 | R72: -0.05242511263 | S72: =SUM('Fluxo de Caixa'!$F$15:$F$27)+(R72*'Casa de Bombas'!$C$19) -> 0 | W72: 0.01161350885 | X72: =SUM('Fluxo de Caixa'!$G$15:$G$27)+(W72*'Casa de Bombas'!$C$19) -> 0 | AB72: -0.004731677755 | AC72: =SUM('Fluxo de Caixa'!$H$15:$H$27)+(AB72*'Casa de Bombas'!$C$19) -> 0 | AG72: 0.03700087689 | AH72: =SUM('Fluxo de Caixa'!$I$15:$I$27)+(AG72*'Casa de Bombas'!$C$19) -> 0 | AL72: -0.04946553965 | AM72: =SUM('Fluxo de Caixa'!$J$15:$J$27)+(AL72*'Casa de Bombas'!$C$19) -> 0 | AQ72: -0.08128217965 | AR72: =SUM('Fluxo de Caixa'!$K$15:$K$27)+(AQ72*'Casa de Bombas'!$C$19) -> 0 | AV72: -0.05312961836 | AW72: =SUM('Fluxo de Caixa'!$L$15:$L$27)+(AV72*'Casa de Bombas'!$C$19) -> 0 | BA72: 0.06968884424 | BB72: =SUM('Fluxo de Caixa'!$M$15:$M$27)+(BA72*'Casa de Bombas'!$C$19) -> 0 | BF72: 0.006007582506 | BG72: =SUM('Fluxo de Caixa'!$N$15:$N$27)+(BF72*'Casa de Bombas'!$C$19) -> 0 | BK72: 0.06195914563 | BL72: =SUM('Fluxo de Caixa'!$O$15:$O$27)+(BK72*'Casa de Bombas'!$C$19) -> 0 | BP72: -0.05468741306 | BQ72: =SUM('Fluxo de Caixa'!$P$15:$P$27)+(BP72*'Casa de Bombas'!$C$19) -> 0 | BU72: -0.05643910648 | BV72: =SUM('Fluxo de Caixa'!$Q$15:$Q$27)+(BU72*'Casa de Bombas'!$C$19) -> 0 | BZ72: 0.03512546457 | CA72: =SUM('Fluxo de Caixa'!$R$15:$R$27)+(BZ72*'Casa de Bombas'!$C$19) -> 0 | CE72: 0.01858468225 | CF72: =SUM('Fluxo de Caixa'!$S$15:$S$27)+(CE72*'Casa de Bombas'!$C$19) -> 0 | CJ72: -0.02222762504 | CK72: =SUM('Fluxo de Caixa'!$T$15:$T$27)+(CJ72*'Casa de Bombas'!$C$19) -> 0 | CO72: 0.0468103831 | CP72: =SUM('Fluxo de Caixa'!$U$15:$U$27)+(CO72*'Casa de Bombas'!$C$19) -> 0 | CT72: -0.1089604499 | CU72: =SUM('Fluxo de Caixa'!$V$15:$V$27)+(CT72*'Casa de Bombas'!$C$19) -> 0 | CY72: 0.02927319649 | CZ72: =SUM('Fluxo de Caixa'!$W$15:$W$18)+(CY72*'Casa de Bombas'!$C$19) -> 0 | DC72: =DB72*AreaCana*DA72-'Fluxo de Caixa'!W78-'Fluxo de Caixa'!W80 ->  | DD72: 0
B73: 59 | C73: 0 | D73: =D72 -> 0 | E73: 0 | F73: 0 | G73: 0 | H73: -0.084721166 | I73: =SUM('Fluxo de Caixa'!$D$15:$D$27)+(H73*'Casa de Bombas'!$C$19) -> 0 | M73: 0.002630247409 | N73: =SUM('Fluxo de Caixa'!$E$15:$E$27)+(M73*'Casa de Bombas'!$C$19) -> 0 | R73: -0.04110798286 | S73: =SUM('Fluxo de Caixa'!$F$15:$F$27)+(R73*'Casa de Bombas'!$C$19) -> 0 | W73: -0.09079141268 | X73: =SUM('Fluxo de Caixa'!$G$15:$G$27)+(W73*'Casa de Bombas'!$C$19) -> 0 | AB73: -0.00761369098 | AC73: =SUM('Fluxo de Caixa'!$H$15:$H$27)+(AB73*'Casa de Bombas'!$C$19) -> 0 | AG73: -0.06578635535 | AH73: =SUM('Fluxo de Caixa'!$I$15:$I$27)+(AG73*'Casa de Bombas'!$C$19) -> 0 | AL73: 0.03625372225 | AM73: =SUM('Fluxo de Caixa'!$J$15:$J$27)+(AL73*'Casa de Bombas'!$C$19) -> 0 | AQ73: 0.04909133981 | AR73: =SUM('Fluxo de Caixa'!$K$15:$K$27)+(AQ73*'Casa de Bombas'!$C$19) -> 0 | AV73: -0.01387565415 | AW73: =SUM('Fluxo de Caixa'!$L$15:$L$27)+(AV73*'Casa de Bombas'!$C$19) -> 0 | BA73: -0.02705543249 | BB73: =SUM('Fluxo de Caixa'!$M$15:$M$27)+(BA73*'Casa de Bombas'!$C$19) -> 0 | BF73: 0.05642882125 | BG73: =SUM('Fluxo de Caixa'!$N$15:$N$27)+(BF73*'Casa de Bombas'!$C$19) -> 0 | BK73: 0.01666780888 | BL73: =SUM('Fluxo de Caixa'!$O$15:$O$27)+(BK73*'Casa de Bombas'!$C$19) -> 0 | BP73: 0.01818409772 | BQ73: =SUM('Fluxo de Caixa'!$P$15:$P$27)+(BP73*'Casa de Bombas'!$C$19) -> 0 | BU73: 0.01862025204 | BV73: =SUM('Fluxo de Caixa'!$Q$15:$Q$27)+(BU73*'Casa de Bombas'!$C$19) -> 0 | BZ73: -0.0316011627 | CA73: =SUM('Fluxo de Caixa'!$R$15:$R$27)+(BZ73*'Casa de Bombas'!$C$19) -> 0 | CE73: 0.08936883886 | CF73: =SUM('Fluxo de Caixa'!$S$15:$S$27)+(CE73*'Casa de Bombas'!$C$19) -> 0 | CJ73: -0.0007832800375 | CK73: =SUM('Fluxo de Caixa'!$T$15:$T$27)+(CJ73*'Casa de Bombas'!$C$19) -> 0 | CO73: 0.001652180338 | CP73: =SUM('Fluxo de Caixa'!$U$15:$U$27)+(CO73*'Casa de Bombas'!$C$19) -> 0 | CT73: 0.05025408403 | CU73: =SUM('Fluxo de Caixa'!$V$15:$V$27)+(CT73*'Casa de Bombas'!$C$19) -> 0 | CY73: 0.0005341460937 | CZ73: =SUM('Fluxo de Caixa'!$W$15:$W$18)+(CY73*'Casa de Bombas'!$C$19) -> 0 | DC73: =DB73*AreaCana*DA73-'Fluxo de Caixa'!W79-'Fluxo de Caixa'!W81 ->  | DD73: 0
B74: 60 | C74: 0 | D74: =D73 -> 0 | E74: 0 | F74: 0 | G74: 0 | H74: -0.07513861311 | I74: =SUM('Fluxo de Caixa'!$D$15:$D$27)+(H74*'Casa de Bombas'!$C$19) -> 0 | M74: 0.03214481349 | N74: =SUM('Fluxo de Caixa'!$E$15:$E$27)+(M74*'Casa de Bombas'!$C$19) -> 0 | R74: -0.03801598241 | S74: =SUM('Fluxo de Caixa'!$F$15:$F$27)+(R74*'Casa de Bombas'!$C$19) -> 0 | W74: 0.008837421727 | X74: =SUM('Fluxo de Caixa'!$G$15:$G$27)+(W74*'Casa de Bombas'!$C$19) -> 0 | AB74: -0.01562048116 | AC74: =SUM('Fluxo de Caixa'!$H$15:$H$27)+(AB74*'Casa de Bombas'!$C$19) -> 0 | AG74: 0.08819955134 | AH74: =SUM('Fluxo de Caixa'!$I$15:$I$27)+(AG74*'Casa de Bombas'!$C$19) -> 0 | AL74: 0.01273139832 | AM74: =SUM('Fluxo de Caixa'!$J$15:$J$27)+(AL74*'Casa de Bombas'!$C$19) -> 0 | AQ74: 0.04073490383 | AR74: =SUM('Fluxo de Caixa'!$K$15:$K$27)+(AQ74*'Casa de Bombas'!$C$19) -> 0 | AV74: -0.1525593019 | AW74: =SUM('Fluxo de Caixa'!$L$15:$L$27)+(AV74*'Casa de Bombas'!$C$19) -> 0 | BA74: -0.03451866943 | BB74: =SUM('Fluxo de Caixa'!$M$15:$M$27)+(BA74*'Casa de Bombas'!$C$19) -> 0 | BF74: -0.01914962492 | BG74: =SUM('Fluxo de Caixa'!$N$15:$N$27)+(BF74*'Casa de Bombas'!$C$19) -> 0 | BK74: -0.04018518817 | BL74: =SUM('Fluxo de Caixa'!$O$15:$O$27)+(BK74*'Casa de Bombas'!$C$19) -> 0 | BP74: -0.01815007106 | BQ74: =SUM('Fluxo de Caixa'!$P$15:$P$27)+(BP74*'Casa de Bombas'!$C$19) -> 0 | BU74: 0.007277242628 | BV74: =SUM('Fluxo de Caixa'!$Q$15:$Q$27)+(BU74*'Casa de Bombas'!$C$19) -> 0 | BZ74: 0.0376258289 | CA74: =SUM('Fluxo de Caixa'!$R$15:$R$27)+(BZ74*'Casa de Bombas'!$C$19) -> 0 | CE74: -0.0133136965 | CF74: =SUM('Fluxo de Caixa'!$S$15:$S$27)+(CE74*'Casa de Bombas'!$C$19) -> 0 | CJ74: 0.01285103956 | CK74: =SUM('Fluxo de Caixa'!$T$15:$T$27)+(CJ74*'Casa de Bombas'!$C$19) -> 0 | CO74: 0.06597105582 | CP74: =SUM('Fluxo de Caixa'!$U$15:$U$27)+(CO74*'Casa de Bombas'!$C$19) -> 0 | CT74: -0.04628471518 | CU74: =SUM('Fluxo de Caixa'!$V$15:$V$27)+(CT74*'Casa de Bombas'!$C$19) -> 0 | CY74: -0.02564702683 | CZ74: =SUM('Fluxo de Caixa'!$W$15:$W$18)+(CY74*'Casa de Bombas'!$C$19) -> 0 | DC74: =DB74*AreaCana*DA74-'Fluxo de Caixa'!W80-'Fluxo de Caixa'!W82 ->  | DD74: 0
B75: 61 | C75: 0 | D75: =D74 -> 0 | E75: 0 | F75: 0 | G75: 0 | H75: -0.05110419483 | I75: =SUM('Fluxo de Caixa'!$D$15:$D$27)+(H75*'Casa de Bombas'!$C$19) -> 0 | M75: -0.04311789134 | N75: =SUM('Fluxo de Caixa'!$E$15:$E$27)+(M75*'Casa de Bombas'!$C$19) -> 0 | R75: -0.0352611534 | S75: =SUM('Fluxo de Caixa'!$F$15:$F$27)+(R75*'Casa de Bombas'!$C$19) -> 0 | W75: 0.01291045549 | X75: =SUM('Fluxo de Caixa'!$G$15:$G$27)+(W75*'Casa de Bombas'!$C$19) -> 0 | AB75: -0.008362881513 | AC75: =SUM('Fluxo de Caixa'!$H$15:$H$27)+(AB75*'Casa de Bombas'!$C$19) -> 0 | AG75: 0.02932380051 | AH75: =SUM('Fluxo de Caixa'!$I$15:$I$27)+(AG75*'Casa de Bombas'!$C$19) -> 0 | AL75: 0.09618672174 | AM75: =SUM('Fluxo de Caixa'!$J$15:$J$27)+(AL75*'Casa de Bombas'!$C$19) -> 0 | AQ75: -0.01397611716 | AR75: =SUM('Fluxo de Caixa'!$K$15:$K$27)+(AQ75*'Casa de Bombas'!$C$19) -> 0 | AV75: -0.005103689316 | AW75: =SUM('Fluxo de Caixa'!$L$15:$L$27)+(AV75*'Casa de Bombas'!$C$19) -> 0 | BA75: 0.01990171608 | BB75: =SUM('Fluxo de Caixa'!$M$15:$M$27)+(BA75*'Casa de Bombas'!$C$19) -> 0 | BF75: -0.02137269551 | BG75: =SUM('Fluxo de Caixa'!$N$15:$N$27)+(BF75*'Casa de Bombas'!$C$19) -> 0 | BK75: 0.1026487509 | BL75: =SUM('Fluxo de Caixa'!$O$15:$O$27)+(BK75*'Casa de Bombas'!$C$19) -> 0 | BP75: 0.05887366522 | BQ75: =SUM('Fluxo de Caixa'!$P$15:$P$27)+(BP75*'Casa de Bombas'!$C$19) -> 0 | BU75: 0.02533626313 | BV75: =SUM('Fluxo de Caixa'!$Q$15:$Q$27)+(BU75*'Casa de Bombas'!$C$19) -> 0 | BZ75: -0.04026641805 | CA75: =SUM('Fluxo de Caixa'!$R$15:$R$27)+(BZ75*'Casa de Bombas'!$C$19) -> 0 | CE75: -0.01591788316 | CF75: =SUM('Fluxo de Caixa'!$S$15:$S$27)+(CE75*'Casa de Bombas'!$C$19) -> 0 | CJ75: -0.03523598449 | CK75: =SUM('Fluxo de Caixa'!$T$15:$T$27)+(CJ75*'Casa de Bombas'!$C$19) -> 0 | CO75: 0.04065215022 | CP75: =SUM('Fluxo de Caixa'!$U$15:$U$27)+(CO75*'Casa de Bombas'!$C$19) -> 0 | CT75: 0.01268273611 | CU75: =SUM('Fluxo de Caixa'!$V$15:$V$27)+(CT75*'Casa de Bombas'!$C$19) -> 0 | CY75: 0.1357201631 | CZ75: =SUM('Fluxo de Caixa'!$W$15:$W$18)+(CY75*'Casa de Bombas'!$C$19) -> 0 | DC75: =DB75*AreaCana*DA75-'Fluxo de Caixa'!W81-'Fluxo de Caixa'!W83 ->  | DD75: 0
B76: 62 | C76: 0 | D76: =D75 -> 0 | E76: 0 | F76: 0 | G76: 0 | H76: 0.05493972826 | I76: =SUM('Fluxo de Caixa'!$D$15:$D$27)+(H76*'Casa de Bombas'!$C$19) -> 0 | M76: 0.04659861746 | N76: =SUM('Fluxo de Caixa'!$E$15:$E$27)+(M76*'Casa de Bombas'!$C$19) -> 0 | R76: 0.03107182077 | S76: =SUM('Fluxo de Caixa'!$F$15:$F$27)+(R76*'Casa de Bombas'!$C$19) -> 0 | W76: -0.03448709103 | X76: =SUM('Fluxo de Caixa'!$G$15:$G$27)+(W76*'Casa de Bombas'!$C$19) -> 0 | AB76: 0.0471894423 | AC76: =SUM('Fluxo de Caixa'!$H$15:$H$27)+(AB76*'Casa de Bombas'!$C$19) -> 0 | AG76: -0.04651876612 | AH76: =SUM('Fluxo de Caixa'!$I$15:$I$27)+(AG76*'Casa de Bombas'!$C$19) -> 0 | AL76: -0.009629859812 | AM76: =SUM('Fluxo de Caixa'!$J$15:$J$27)+(AL76*'Casa de Bombas'!$C$19) -> 0 | AQ76: -0.08843579405 | AR76: =SUM('Fluxo de Caixa'!$K$15:$K$27)+(AQ76*'Casa de Bombas'!$C$19) -> 0 | AV76: -0.09914515023 | AW76: =SUM('Fluxo de Caixa'!$L$15:$L$27)+(AV76*'Casa de Bombas'!$C$19) -> 0 | BA76: 0.04823562075 | BB76: =SUM('Fluxo de Caixa'!$M$15:$M$27)+(BA76*'Casa de Bombas'!$C$19) -> 0 | BF76: -0.04978429499 | BG76: =SUM('Fluxo de Caixa'!$N$15:$N$27)+(BF76*'Casa de Bombas'!$C$19) -> 0 | BK76: 0.09274224241 | BL76: =SUM('Fluxo de Caixa'!$O$15:$O$27)+(BK76*'Casa de Bombas'!$C$19) -> 0 | BP76: -0.04497253687 | BQ76: =SUM('Fluxo de Caixa'!$P$15:$P$27)+(BP76*'Casa de Bombas'!$C$19) -> 0 | BU76: -0.0252509991 | BV76: =SUM('Fluxo de Caixa'!$Q$15:$Q$27)+(BU76*'Casa de Bombas'!$C$19) -> 0 | BZ76: 0.06948959116 | CA76: =SUM('Fluxo de Caixa'!$R$15:$R$27)+(BZ76*'Casa de Bombas'!$C$19) -> 0 | CE76: -0.05545792303 | CF76: =SUM('Fluxo de Caixa'!$S$15:$S$27)+(CE76*'Casa de Bombas'!$C$19) -> 0 | CJ76: 0.01980106197 | CK76: =SUM('Fluxo de Caixa'!$T$15:$T$27)+(CJ76*'Casa de Bombas'!$C$19) -> 0 | CO76: -0.06444292453 | CP76: =SUM('Fluxo de Caixa'!$U$15:$U$27)+(CO76*'Casa de Bombas'!$C$19) -> 0 | CT76: 0.04517455878 | CU76: =SUM('Fluxo de Caixa'!$V$15:$V$27)+(CT76*'Casa de Bombas'!$C$19) -> 0 | CY76: 0.06994818289 | CZ76: =SUM('Fluxo de Caixa'!$W$15:$W$18)+(CY76*'Casa de Bombas'!$C$19) -> 0 | DC76: =DB76*AreaCana*DA76-'Fluxo de Caixa'!W82-'Fluxo de Caixa'!W84 ->  | DD76: 0
B77: 63 | C77: 0 | D77: =D76 -> 0 | E77: 0 | F77: 0 | G77: 0 | H77: -0.03131143246 | I77: =SUM('Fluxo de Caixa'!$D$15:$D$27)+(H77*'Casa de Bombas'!$C$19) -> 0 | M77: -0.001946984791 | N77: =SUM('Fluxo de Caixa'!$E$15:$E$27)+(M77*'Casa de Bombas'!$C$19) -> 0 | R77: 0.004624881544 | S77: =SUM('Fluxo de Caixa'!$F$15:$F$27)+(R77*'Casa de Bombas'!$C$19) -> 0 | W77: -0.0322759322 | X77: =SUM('Fluxo de Caixa'!$G$15:$G$27)+(W77*'Casa de Bombas'!$C$19) -> 0 | AB77: 0.03338109313 | AC77: =SUM('Fluxo de Caixa'!$H$15:$H$27)+(AB77*'Casa de Bombas'!$C$19) -> 0 | AG77: 0.01057032723 | AH77: =SUM('Fluxo de Caixa'!$I$15:$I$27)+(AG77*'Casa de Bombas'!$C$19) -> 0 | AL77: -0.002388828862 | AM77: =SUM('Fluxo de Caixa'!$J$15:$J$27)+(AL77*'Casa de Bombas'!$C$19) -> 0 | AQ77: -0.05062508414 | AR77: =SUM('Fluxo de Caixa'!$K$15:$K$27)+(AQ77*'Casa de Bombas'!$C$19) -> 0 | AV77: 0.004690077436 | AW77: =SUM('Fluxo de Caixa'!$L$15:$L$27)+(AV77*'Casa de Bombas'!$C$19) -> 0 | BA77: -0.01804598517 | BB77: =SUM('Fluxo de Caixa'!$M$15:$M$27)+(BA77*'Casa de Bombas'!$C$19) -> 0 | BF77: -0.01057918866 | BG77: =SUM('Fluxo de Caixa'!$N$15:$N$27)+(BF77*'Casa de Bombas'!$C$19) -> 0 | BK77: -0.06267284905 | BL77: =SUM('Fluxo de Caixa'!$O$15:$O$27)+(BK77*'Casa de Bombas'!$C$19) -> 0 | BP77: -0.03378926406 | BQ77: =SUM('Fluxo de Caixa'!$P$15:$P$27)+(BP77*'Casa de Bombas'!$C$19) -> 0 | BU77: 0.04833214873 | BV77: =SUM('Fluxo de Caixa'!$Q$15:$Q$27)+(BU77*'Casa de Bombas'!$C$19) -> 0 | BZ77: 0.004841065616 | CA77: =SUM('Fluxo de Caixa'!$R$15:$R$27)+(BZ77*'Casa de Bombas'!$C$19) -> 0 | CE77: 0.05008590811 | CF77: =SUM('Fluxo de Caixa'!$S$15:$S$27)+(CE77*'Casa de Bombas'!$C$19) -> 0 | CJ77: -0.04666892457 | CK77: =SUM('Fluxo de Caixa'!$T$15:$T$27)+(CJ77*'Casa de Bombas'!$C$19) -> 0 | CO77: -0.06813053792 | CP77: =SUM('Fluxo de Caixa'!$U$15:$U$27)+(CO77*'Casa de Bombas'!$C$19) -> 0 | CT77: 0.01022043742 | CU77: =SUM('Fluxo de Caixa'!$V$15:$V$27)+(CT77*'Casa de Bombas'!$C$19) -> 0 | CY77: 0.046096885 | CZ77: =SUM('Fluxo de Caixa'!$W$15:$W$18)+(CY77*'Casa de Bombas'!$C$19) -> 0 | DC77: =DB77*AreaCana*DA77-'Fluxo de Caixa'!W83-'Fluxo de Caixa'!W85 ->  | DD77: 0
B78: 64 | C78: 0 | D78: =D77 -> 0 | E78: 0 | F78: 0 | G78: 0 | H78: 0.02759982936 | I78: =SUM('Fluxo de Caixa'!$D$15:$D$27)+(H78*'Casa de Bombas'!$C$19) -> 0 | L78: =K78*AreaCana*J78 ->  | M78: -0.03544073924 | N78: =SUM('Fluxo de Caixa'!$E$15:$E$27)+(M78*'Casa de Bombas'!$C$19) -> 0 | Q78: =P78*AreaCana*O78 ->  | R78: 0.08298327541 | S78: =SUM('Fluxo de Caixa'!$F$15:$F$27)+(R78*'Casa de Bombas'!$C$19) -> 0 | V78: =U78*AreaCana*T78 ->  | W78: 0.02570157906 | X78: =SUM('Fluxo de Caixa'!$G$15:$G$27)+(W78*'Casa de Bombas'!$C$19) -> 0 | AA78: =Z78*AreaCana*Y78 ->  | AB78: -0.008079251162 | AC78: =SUM('Fluxo de Caixa'!$H$15:$H$27)+(AB78*'Casa de Bombas'!$C$19) -> 0 | AF78: =AE78*AreaCana*AD78 ->  | AG78: 0.03229209862 | AH78: =SUM('Fluxo de Caixa'!$I$15:$I$27)+(AG78*'Casa de Bombas'!$C$19) -> 0 | AK78: =AJ78*AreaCana*AI78 ->  | AL78: -0.1342108855 | AM78: =SUM('Fluxo de Caixa'!$J$15:$J$27)+(AL78*'Casa de Bombas'!$C$19) -> 0 | AP78: =AO78*AreaCana*AN78 ->  | AQ78: 0.04020665931 | AR78: =SUM('Fluxo de Caixa'!$K$15:$K$27)+(AQ78*'Casa de Bombas'!$C$19) -> 0 | AU78: =AT78*AreaCana*AS78 ->  | AV78: 0.1035123036 | AW78: =SUM('Fluxo de Caixa'!$L$15:$L$27)+(AV78*'Casa de Bombas'!$C$19) -> 0 | AZ78: =AY78*AreaCana*AX78 ->  | BA78: -0.006678202786 | BB78: =SUM('Fluxo de Caixa'!$M$15:$M$27)+(BA78*'Casa de Bombas'!$C$19) -> 0 | BE78: =BD78*AreaCana*BC78 ->  | BF78: 0.04819729942 | BG78: =SUM('Fluxo de Caixa'!$N$15:$N$27)+(BF78*'Casa de Bombas'!$C$19) -> 0 | BJ78: =BI78*AreaCana*BH78 ->  | BK78: -0.04949941443 | BL78: =SUM('Fluxo de Caixa'!$O$15:$O$27)+(BK78*'Casa de Bombas'!$C$19) -> 0 | BO78: =BN78*AreaCana*BM78 ->  | BP78: -0.1128836479 | BQ78: =SUM('Fluxo de Caixa'!$P$15:$P$27)+(BP78*'Casa de Bombas'!$C$19) -> 0 | BT78: =BS78*AreaCana*BR78 ->  | BU78: -0.009841136078 | BV78: =SUM('Fluxo de Caixa'!$Q$15:$Q$27)+(BU78*'Casa de Bombas'!$C$19) -> 0 | BY78: =BX78*AreaCana*BW78 ->  | BZ78: 0.1059183318 | CA78: =SUM('Fluxo de Caixa'!$R$15:$R$27)+(BZ78*'Casa de Bombas'!$C$19) -> 0 | CD78: =CC78*AreaCana*CB78 ->  | CE78: 0.0476424335 | CF78: =SUM('Fluxo de Caixa'!$S$15:$S$27)+(CE78*'Casa de Bombas'!$C$19) -> 0 | CI78: =CH78*AreaCana*CG78 ->  | CJ78: -0.0225068182 | CK78: =SUM('Fluxo de Caixa'!$T$15:$T$27)+(CJ78*'Casa de Bombas'!$C$19) -> 0 | CN78: =CM78*AreaCana*CL78 ->  | CO78: 0.01087808397 | CP78: =SUM('Fluxo de Caixa'!$U$15:$U$27)+(CO78*'Casa de Bombas'!$C$19) -> 0 | CS78: =CR78*AreaCana*CQ78 ->  | CT78: -0.02432695922 | CU78: =SUM('Fluxo de Caixa'!$V$15:$V$27)+(CT78*'Casa de Bombas'!$C$19) -> 0 | CX78: =CW78*AreaCana*CV78 ->  | CY78: 0.07468030698 | CZ78: =SUM('Fluxo de Caixa'!$W$15:$W$18)+(CY78*'Casa de Bombas'!$C$19) -> 0 | DC78: =DB78*AreaCana*DA78-'Fluxo de Caixa'!W84-'Fluxo de Caixa'!W86 ->  | DD78: 0
B79: 65 | C79: 0 | D79: =D78 -> 0 | E79: 0 | F79: 0 | G79: 0 | H79: 0.008027706151 | I79: =SUM('Fluxo de Caixa'!$D$15:$D$27)+(H79*'Casa de Bombas'!$C$19) -> 0 | M79: 0.07214411534 | N79: =SUM('Fluxo de Caixa'!$E$15:$E$27)+(M79*'Casa de Bombas'!$C$19) -> 0 | R79: -0.03443340353 | S79: =SUM('Fluxo de Caixa'!$F$15:$F$27)+(R79*'Casa de Bombas'!$C$19) -> 0 | W79: 0.01300421426 | X79: =SUM('Fluxo de Caixa'!$G$15:$G$27)+(W79*'Casa de Bombas'!$C$19) -> 0 | AB79: -0.08303307099 | AC79: =SUM('Fluxo de Caixa'!$H$15:$H$27)+(AB79*'Casa de Bombas'!$C$19) -> 0 | AG79: -0.0004131695207 | AH79: =SUM('Fluxo de Caixa'!$I$15:$I$27)+(AG79*'Casa de Bombas'!$C$19) -> 0 | AL79: -0.06872615371 | AM79: =SUM('Fluxo de Caixa'!$J$15:$J$27)+(AL79*'Casa de Bombas'!$C$19) -> 0 | AQ79: -0.05315326035 | AR79: =SUM('Fluxo de Caixa'!$K$15:$K$27)+(AQ79*'Casa de Bombas'!$C$19) -> 0 | AV79: -0.02839768692 | AW79: =SUM('Fluxo de Caixa'!$L$15:$L$27)+(AV79*'Casa de Bombas'!$C$19) -> 0 | BA79: -0.03915223582 | BB79: =SUM('Fluxo de Caixa'!$M$15:$M$27)+(BA79*'Casa de Bombas'!$C$19) -> 0 | BF79: 0.04621635641 | BG79: =SUM('Fluxo de Caixa'!$N$15:$N$27)+(BF79*'Casa de Bombas'!$C$19) -> 0 | BK79: -0.05027466291 | BL79: =SUM('Fluxo de Caixa'!$O$15:$O$27)+(BK79*'Casa de Bombas'!$C$19) -> 0 | BP79: -0.04308076434 | BQ79: =SUM('Fluxo de Caixa'!$P$15:$P$27)+(BP79*'Casa de Bombas'!$C$19) -> 0 | BU79: 0.01348621538 | BV79: =SUM('Fluxo de Caixa'!$Q$15:$Q$27)+(BU79*'Casa de Bombas'!$C$19) -> 0 | BZ79: 0.07832550242 | CA79: =SUM('Fluxo de Caixa'!$R$15:$R$27)+(BZ79*'Casa de Bombas'!$C$19) -> 0 | CE79: 0.08223291239 | CF79: =SUM('Fluxo de Caixa'!$S$15:$S$27)+(CE79*'Casa de Bombas'!$C$19) -> 0 | CJ79: 0.002271886 | CK79: =SUM('Fluxo de Caixa'!$T$15:$T$27)+(CJ79*'Casa de Bombas'!$C$19) -> 0 | CO79: -0.03998724954 | CP79: =SUM('Fluxo de Caixa'!$U$15:$U$27)+(CO79*'Casa de Bombas'!$C$19) -> 0 | CT79: -0.0411895777 | CU79: =SUM('Fluxo de Caixa'!$V$15:$V$27)+(CT79*'Casa de Bombas'!$C$19) -> 0 | CY79: 0.01576325787 | CZ79: =SUM('Fluxo de Caixa'!$W$15:$W$18)+(CY79*'Casa de Bombas'!$C$19) -> 0 | DC79: =DB79*AreaCana*DA79-'Fluxo de Caixa'!W85-'Fluxo de Caixa'!W87 ->  | DD79: 0 | EH79: =_xlfn.NORM.DIST(EG79,$EH$11,$EH$12,TRUE) -> 
B80: 66 | C80: =$C$14 -> 0 | D80: =D79 -> 0 | E80: 0 | F80: 0 | G80: 0 | H80: =_xlfn.NORM.INV(RAND(),H$14,$B$2) -> -0.1084082744 | I80: =SUM('Fluxo de Caixa'!$D$15:$D$27)+(H80*'Casa de Bombas'!$C$19) -> 0 | J80: =_xlfn.NORM.INV(RAND(),J$14,$C$2) ->  | K80: =_xlfn.NORM.INV(RAND(),K$14,$F$2) ->  | M80: =_xlfn.NORM.INV(RAND(),M$14,$B$2) -> -0.02215597264 | N80: =SUM('Fluxo de Caixa'!$E$15:$E$27)+(M80*'Casa de Bombas'!$C$19) -> 0 | O80: =_xlfn.NORM.INV(RAND(),O$14,$C$2) ->  | P80: =_xlfn.NORM.INV(RAND(),P$14,$F$2) ->  | R80: =_xlfn.NORM.INV(RAND(),R$14,$B$2) -> 0.03889402761 | S80: =SUM('Fluxo de Caixa'!$F$15:$F$27)+(R80*'Casa de Bombas'!$C$19) -> 0 | T80: =_xlfn.NORM.INV(RAND(),T$14,$C$2) ->  | U80: =_xlfn.NORM.INV(RAND(),U$14,$F$2) ->  | W80: =_xlfn.NORM.INV(RAND(),W$14,$B$2) -> 0.03911197788 | X80: =SUM('Fluxo de Caixa'!$G$15:$G$27)+(W80*'Casa de Bombas'!$C$19) -> 0 | Y80: =_xlfn.NORM.INV(RAND(),Y$14,$C$2) ->  | Z80: =_xlfn.NORM.INV(RAND(),Z$14,$F$2) ->  | AB80: =_xlfn.NORM.INV(RAND(),AB$14,$B$2) -> -0.02662774159 | AC80: =SUM('Fluxo de Caixa'!$H$15:$H$27)+(AB80*'Casa de Bombas'!$C$19) -> 0 | AD80: =_xlfn.NORM.INV(RAND(),AD$14,$C$2) ->  | AE80: =_xlfn.NORM.INV(RAND(),AE$14,$F$2) ->  | AG80: =_xlfn.NORM.INV(RAND(),AG$14,$B$2) -> -0.05414180632 | AH80: =SUM('Fluxo de Caixa'!$I$15:$I$27)+(AG80*'Casa de Bombas'!$C$19) -> 0 | AI80: =_xlfn.NORM.INV(RAND(),AI$14,$C$2) ->  | AJ80: =_xlfn.NORM.INV(RAND(),AJ$14,$F$2) ->  | AL80: =_xlfn.NORM.INV(RAND(),AL$14,$B$2) -> 0.05590987702 | AM80: =SUM('Fluxo de Caixa'!$J$15:$J$27)+(AL80*'Casa de Bombas'!$C$19) -> 0 | AN80: =_xlfn.NORM.INV(RAND(),AN$14,$C$2) ->  | AO80: =_xlfn.NORM.INV(RAND(),AO$14,$F$2) ->  | AQ80: =_xlfn.NORM.INV(RAND(),AQ$14,$B$2) -> -0.01339152765 | AR80: =SUM('Fluxo de Caixa'!$K$15:$K$27)+(AQ80*'Casa de Bombas'!$C$19) -> 0 | AS80: =_xlfn.NORM.INV(RAND(),AS$14,$C$2) ->  | AT80: =_xlfn.NORM.INV(RAND(),AT$14,$F$2) ->  | AV80: =_xlfn.NORM.INV(RAND(),AV$14,$B$2) -> 0.0004340191985 | AW80: =SUM('Fluxo de Caixa'!$L$15:$L$27)+(AV80*'Casa de Bombas'!$C$19) -> 0 | AX80: =_xlfn.NORM.INV(RAND(),AX$14,$C$2) ->  | AY80: =_xlfn.NORM.INV(RAND(),AY$14,$F$2) ->  | BA80: =_xlfn.NORM.INV(RAND(),BA$14,$B$2) -> 0.06015031193 | BB80: =SUM('Fluxo de Caixa'!$M$15:$M$27)+(BA80*'Casa de Bombas'!$C$19) -> 0 | BC80: =_xlfn.NORM.INV(RAND(),BC$14,$C$2) ->  | BD80: =_xlfn.NORM.INV(RAND(),BD$14,$F$2) ->  | BF80: =_xlfn.NORM.INV(RAND(),BF$14,$B$2) -> -0.0003587188462 | BG80: =SUM('Fluxo de Caixa'!$N$15:$N$27)+(BF80*'Casa de Bombas'!$C$19) -> 0 | BH80: =_xlfn.NORM.INV(RAND(),BH$14,$C$2) ->  | BI80: =_xlfn.NORM.INV(RAND(),BI$14,$F$2) ->  | BK80: =_xlfn.NORM.INV(RAND(),BK$14,$B$2) -> -0.0493072381 | BL80: =SUM('Fluxo de Caixa'!$O$15:$O$27)+(BK80*'Casa de Bombas'!$C$19) -> 0 | BM80: =_xlfn.NORM.INV(RAND(),BM$14,$C$2) ->  | BN80: =_xlfn.NORM.INV(RAND(),BN$14,$F$2) ->  | BP80: =_xlfn.NORM.INV(RAND(),BP$14,$B$2) -> -0.05468184119 | BQ80: =SUM('Fluxo de Caixa'!$P$15:$P$27)+(BP80*'Casa de Bombas'!$C$19) -> 0 | BR80: =_xlfn.NORM.INV(RAND(),BR$14,$C$2) ->  | BS80: =_xlfn.NORM.INV(RAND(),BS$14,$F$2) ->  | BU80: =_xlfn.NORM.INV(RAND(),BU$14,$B$2) -> -0.006435485813 | BV80: =SUM('Fluxo de Caixa'!$Q$15:$Q$27)+(BU80*'Casa de Bombas'!$C$19) -> 0 | BW80: =_xlfn.NORM.INV(RAND(),BW$14,$C$2) ->  | BX80: =_xlfn.NORM.INV(RAND(),BX$14,$F$2) ->  | BZ80: =_xlfn.NORM.INV(RAND(),BZ$14,$B$2) -> -0.01258576075 | CA80: =SUM('Fluxo de Caixa'!$R$15:$R$27)+(BZ80*'Casa de Bombas'!$C$19) -> 0 | CB80: =_xlfn.NORM.INV(RAND(),CB$14,$C$2) ->  | CC80: =_xlfn.NORM.INV(RAND(),CC$14,$F$2) ->  | CE80: =_xlfn.NORM.INV(RAND(),CE$14,$B$2) -> -0.05285509071 | CF80: =SUM('Fluxo de Caixa'!$S$15:$S$27)+(CE80*'Casa de Bombas'!$C$19) -> 0 | CG80: =_xlfn.NORM.INV(RAND(),CG$14,$C$2) ->  | CH80: =_xlfn.NORM.INV(RAND(),CH$14,$F$2) ->  | CJ80: =_xlfn.NORM.INV(RAND(),CJ$14,$B$2) -> 0.02694287147 | CK80: =SUM('Fluxo de Caixa'!$T$15:$T$27)+(CJ80*'Casa de Bombas'!$C$19) -> 0 | CL80: =_xlfn.NORM.INV(RAND(),CL$14,$C$2) ->  | CM80: =_xlfn.NORM.INV(RAND(),CM$14,$F$2) ->  | CO80: =_xlfn.NORM.INV(RAND(),CO$14,$B$2) -> 0.02356301335 | CP80: =SUM('Fluxo de Caixa'!$U$15:$U$27)+(CO80*'Casa de Bombas'!$C$19) -> 0 | CQ80: =_xlfn.NORM.INV(RAND(),CQ$14,$C$2) ->  | CR80: =_xlfn.NORM.INV(RAND(),CR$14,$F$2) ->  | CT80: =_xlfn.NORM.INV(RAND(),CT$14,$B$2) -> 0.00450438282 | CU80: =SUM('Fluxo de Caixa'!$V$15:$V$27)+(CT80*'Casa de Bombas'!$C$19) -> 0 | CV80: =_xlfn.NORM.INV(RAND(),CV$14,$C$2) ->  | CW80: =_xlfn.NORM.INV(RAND(),CW$14,$F$2) ->  | CY80: =_xlfn.NORM.INV(RAND(),CY$14,$B$2) -> 0.01897735822 | CZ80: =SUM('Fluxo de Caixa'!$W$15:$W$18)+(CY80*'Casa de Bombas'!$C$19) -> 0 | DA80: =_xlfn.NORM.INV(RAND(),DA$14,$C$2) ->  | DB80: =_xlfn.NORM.INV(RAND(),DB$14,$F$2) ->  | DC80: =DB80*AreaCana*DA80-'Fluxo de Caixa'!W86-'Fluxo de Caixa'!W88 ->  | DD80: =G80-D80 -> 0 | DE80: =L80-I80 ->  | DF80: =Q80-N80 ->  | DG80: =V80-S80 ->  | DH80: =AA80-X80 ->  | DI80: =AF80-AC80 ->  | DJ80: =AK80-AH80 ->  | DK80: =AP80-AM80 ->  | DL80: =AU80-AR80 ->  | DM80: =AZ80-AW80 ->  | DN80: =BE80-BB80 ->  | DO80: =BJ80-BG80 ->  | DP80: =BO80-BL80 ->  | DQ80: =BT80-BQ80 ->  | DR80: =BY80-BV80 ->  | DS80: =CD80-CA80 ->  | DT80: =CI80-CF80 ->  | DU80: =CN80-CK80 ->  | DV80: =CS80-CP80 ->  | DW80: =CX80-CU80 ->  | DX80: =DC80-CZ80 ->  | DY80: =NPV($AC$1,DD80:DX80) ->  | DZ80: =_xlfn.NORM.DIST(DY80,$DY$11,$DY$12,TRUE) ->  | ED80: =_xlfn.NORM.DIST(EC80,$ED$11,$ED$12,TRUE) ->  | EF80: =_xlfn.NORM.DIST(EE80,$EF$11,$EF$12,TRUE) -> 
B81: 67 | C81: 0 | D81: =D80 -> 0 | E81: 0 | F81: 0 | G81: 0 | H81: -0.004768921561 | I81: =SUM('Fluxo de Caixa'!$D$15:$D$27)+(H81*'Casa de Bombas'!$C$19) -> 0 | M81: 0.1159524645 | N81: =SUM('Fluxo de Caixa'!$E$15:$E$27)+(M81*'Casa de Bombas'!$C$19) -> 0 | R81: -0.01051183809 | S81: =SUM('Fluxo de Caixa'!$F$15:$F$27)+(R81*'Casa de Bombas'!$C$19) -> 0 | W81: 0.05036061109 | X81: =SUM('Fluxo de Caixa'!$G$15:$G$27)+(W81*'Casa de Bombas'!$C$19) -> 0 | AB81: -0.06855191676 | AC81: =SUM('Fluxo de Caixa'!$H$15:$H$27)+(AB81*'Casa de Bombas'!$C$19) -> 0 | AG81: -0.1915425803 | AH81: =SUM('Fluxo de Caixa'!$I$15:$I$27)+(AG81*'Casa de Bombas'!$C$19) -> 0 | AL81: -0.0260098554 | AM81: =SUM('Fluxo de Caixa'!$J$15:$J$27)+(AL81*'Casa de Bombas'!$C$19) -> 0 | AQ81: 0.1062646895 | AR81: =SUM('Fluxo de Caixa'!$K$15:$K$27)+(AQ81*'Casa de Bombas'!$C$19) -> 0 | AV81: -0.06149568397 | AW81: =SUM('Fluxo de Caixa'!$L$15:$L$27)+(AV81*'Casa de Bombas'!$C$19) -> 0 | BA81: 0.02426028405 | BB81: =SUM('Fluxo de Caixa'!$M$15:$M$27)+(BA81*'Casa de Bombas'!$C$19) -> 0 | BF81: 0.04644664496 | BG81: =SUM('Fluxo de Caixa'!$N$15:$N$27)+(BF81*'Casa de Bombas'!$C$19) -> 0 | BK81: -0.03739547827 | BL81: =SUM('Fluxo de Caixa'!$O$15:$O$27)+(BK81*'Casa de Bombas'!$C$19) -> 0 | BP81: -0.003609988759 | BQ81: =SUM('Fluxo de Caixa'!$P$15:$P$27)+(BP81*'Casa de Bombas'!$C$19) -> 0 | BU81: 0.136199717 | BV81: =SUM('Fluxo de Caixa'!$Q$15:$Q$27)+(BU81*'Casa de Bombas'!$C$19) -> 0 | BZ81: 0.05926754101 | CA81: =SUM('Fluxo de Caixa'!$R$15:$R$27)+(BZ81*'Casa de Bombas'!$C$19) -> 0 | CE81: 0.08485465326 | CF81: =SUM('Fluxo de Caixa'!$S$15:$S$27)+(CE81*'Casa de Bombas'!$C$19) -> 0 | CJ81: -0.00138505368 | CK81: =SUM('Fluxo de Caixa'!$T$15:$T$27)+(CJ81*'Casa de Bombas'!$C$19) -> 0 | CO81: -0.05209982061 | CP81: =SUM('Fluxo de Caixa'!$U$15:$U$27)+(CO81*'Casa de Bombas'!$C$19) -> 0 | CT81: 0.05970924304 | CU81: =SUM('Fluxo de Caixa'!$V$15:$V$27)+(CT81*'Casa de Bombas'!$C$19) -> 0 | CY81: -0.05784589509 | CZ81: =SUM('Fluxo de Caixa'!$W$15:$W$18)+(CY81*'Casa de Bombas'!$C$19) -> 0 | DC81: =DB81*AreaCana*DA81-'Fluxo de Caixa'!W87-'Fluxo de Caixa'!W89 ->  | DD81: 0
B82: 68 | C82: 0 | D82: =D81 -> 0 | E82: 0 | F82: 0 | G82: 0 | H82: -0.0256669274 | I82: =SUM('Fluxo de Caixa'!$D$15:$D$27)+(H82*'Casa de Bombas'!$C$19) -> 0 | M82: 0.01945711403 | N82: =SUM('Fluxo de Caixa'!$E$15:$E$27)+(M82*'Casa de Bombas'!$C$19) -> 0 | R82: -0.04148143231 | S82: =SUM('Fluxo de Caixa'!$F$15:$F$27)+(R82*'Casa de Bombas'!$C$19) -> 0 | W82: 0.006930224445 | X82: =SUM('Fluxo de Caixa'!$G$15:$G$27)+(W82*'Casa de Bombas'!$C$19) -> 0 | AB82: -0.01092409388 | AC82: =SUM('Fluxo de Caixa'!$H$15:$H$27)+(AB82*'Casa de Bombas'!$C$19) -> 0 | AG82: 0.1005724226 | AH82: =SUM('Fluxo de Caixa'!$I$15:$I$27)+(AG82*'Casa de Bombas'!$C$19) -> 0 | AL82: -0.06460919667 | AM82: =SUM('Fluxo de Caixa'!$J$15:$J$27)+(AL82*'Casa de Bombas'!$C$19) -> 0 | AQ82: 0.01098955024 | AR82: =SUM('Fluxo de Caixa'!$K$15:$K$27)+(AQ82*'Casa de Bombas'!$C$19) -> 0 | AV82: -0.06013578516 | AW82: =SUM('Fluxo de Caixa'!$L$15:$L$27)+(AV82*'Casa de Bombas'!$C$19) -> 0 | BA82: 0.03885197562 | BB82: =SUM('Fluxo de Caixa'!$M$15:$M$27)+(BA82*'Casa de Bombas'!$C$19) -> 0 | BF82: 0.003067827209 | BG82: =SUM('Fluxo de Caixa'!$N$15:$N$27)+(BF82*'Casa de Bombas'!$C$19) -> 0 | BK82: -0.1046217454 | BL82: =SUM('Fluxo de Caixa'!$O$15:$O$27)+(BK82*'Casa de Bombas'!$C$19) -> 0 | BP82: -0.0115407445 | BQ82: =SUM('Fluxo de Caixa'!$P$15:$P$27)+(BP82*'Casa de Bombas'!$C$19) -> 0 | BU82: -0.05965591845 | BV82: =SUM('Fluxo de Caixa'!$Q$15:$Q$27)+(BU82*'Casa de Bombas'!$C$19) -> 0 | BZ82: -0.0173350011 | CA82: =SUM('Fluxo de Caixa'!$R$15:$R$27)+(BZ82*'Casa de Bombas'!$C$19) -> 0 | CE82: 0.06388142978 | CF82: =SUM('Fluxo de Caixa'!$S$15:$S$27)+(CE82*'Casa de Bombas'!$C$19) -> 0 | CJ82: 0.00270782746 | CK82: =SUM('Fluxo de Caixa'!$T$15:$T$27)+(CJ82*'Casa de Bombas'!$C$19) -> 0 | CO82: -0.015150783 | CP82: =SUM('Fluxo de Caixa'!$U$15:$U$27)+(CO82*'Casa de Bombas'!$C$19) -> 0 | CT82: 0.0181096767 | CU82: =SUM('Fluxo de Caixa'!$V$15:$V$27)+(CT82*'Casa de Bombas'!$C$19) -> 0 | CY82: 0.0806750202 | CZ82: =SUM('Fluxo de Caixa'!$W$15:$W$18)+(CY82*'Casa de Bombas'!$C$19) -> 0 | DC82: =DB82*AreaCana*DA82-'Fluxo de Caixa'!W88-'Fluxo de Caixa'!W90 ->  | DD82: 0
B83: 69 | C83: 0 | D83: =D82 -> 0 | E83: 0 | F83: 0 | G83: 0 | H83: -0.1437304448 | I83: =SUM('Fluxo de Caixa'!$D$15:$D$27)+(H83*'Casa de Bombas'!$C$19) -> 0 | M83: 0.04451961141 | N83: =SUM('Fluxo de Caixa'!$E$15:$E$27)+(M83*'Casa de Bombas'!$C$19) -> 0 | R83: 0.05252812642 | S83: =SUM('Fluxo de Caixa'!$F$15:$F$27)+(R83*'Casa de Bombas'!$C$19) -> 0 | W83: -0.06423187143 | X83: =SUM('Fluxo de Caixa'!$G$15:$G$27)+(W83*'Casa de Bombas'!$C$19) -> 0 | AB83: -0.01456523901 | AC83: =SUM('Fluxo de Caixa'!$H$15:$H$27)+(AB83*'Casa de Bombas'!$C$19) -> 0 | AG83: -0.02625632161 | AH83: =SUM('Fluxo de Caixa'!$I$15:$I$27)+(AG83*'Casa de Bombas'!$C$19) -> 0 | AL83: 0.05556688333 | AM83: =SUM('Fluxo de Caixa'!$J$15:$J$27)+(AL83*'Casa de Bombas'!$C$19) -> 0 | AQ83: -0.05770868546 | AR83: =SUM('Fluxo de Caixa'!$K$15:$K$27)+(AQ83*'Casa de Bombas'!$C$19) -> 0 | AV83: -0.0007893642016 | AW83: =SUM('Fluxo de Caixa'!$L$15:$L$27)+(AV83*'Casa de Bombas'!$C$19) -> 0 | BA83: 0.07609013143 | BB83: =SUM('Fluxo de Caixa'!$M$15:$M$27)+(BA83*'Casa de Bombas'!$C$19) -> 0 | BF83: 0.1361171333 | BG83: =SUM('Fluxo de Caixa'!$N$15:$N$27)+(BF83*'Casa de Bombas'!$C$19) -> 0 | BK83: 0.03144753929 | BL83: =SUM('Fluxo de Caixa'!$O$15:$O$27)+(BK83*'Casa de Bombas'!$C$19) -> 0 | BP83: -0.01441358269 | BQ83: =SUM('Fluxo de Caixa'!$P$15:$P$27)+(BP83*'Casa de Bombas'!$C$19) -> 0 | BU83: -0.01931751869 | BV83: =SUM('Fluxo de Caixa'!$Q$15:$Q$27)+(BU83*'Casa de Bombas'!$C$19) -> 0 | BZ83: -0.0008784250168 | CA83: =SUM('Fluxo de Caixa'!$R$15:$R$27)+(BZ83*'Casa de Bombas'!$C$19) -> 0 | CE83: -0.08170239113 | CF83: =SUM('Fluxo de Caixa'!$S$15:$S$27)+(CE83*'Casa de Bombas'!$C$19) -> 0 | CJ83: -0.03816006452 | CK83: =SUM('Fluxo de Caixa'!$T$15:$T$27)+(CJ83*'Casa de Bombas'!$C$19) -> 0 | CO83: 0.05257739757 | CP83: =SUM('Fluxo de Caixa'!$U$15:$U$27)+(CO83*'Casa de Bombas'!$C$19) -> 0 | CT83: -0.05815563332 | CU83: =SUM('Fluxo de Caixa'!$V$15:$V$27)+(CT83*'Casa de Bombas'!$C$19) -> 0 | CY83: 0.03845316989 | CZ83: =SUM('Fluxo de Caixa'!$W$15:$W$18)+(CY83*'Casa de Bombas'!$C$19) -> 0 | DC83: =DB83*AreaCana*DA83-'Fluxo de Caixa'!W89-'Fluxo de Caixa'!W91 ->  | DD83: 0
B84: 70 | C84: 0 | D84: =D83 -> 0 | E84: 0 | F84: 0 | G84: 0 | H84: 0.09842910124 | I84: =SUM('Fluxo de Caixa'!$D$15:$D$27)+(H84*'Casa de Bombas'!$C$19) -> 0 | M84: -0.08277559124 | N84: =SUM('Fluxo de Caixa'!$E$15:$E$27)+(M84*'Casa de Bombas'!$C$19) -> 0 | R84: -0.01827540759 | S84: =SUM('Fluxo de Caixa'!$F$15:$F$27)+(R84*'Casa de Bombas'!$C$19) -> 0 | W84: 0.03395211339 | X84: =SUM('Fluxo de Caixa'!$G$15:$G$27)+(W84*'Casa de Bombas'!$C$19) -> 0 | AB84: -0.01821607997 | AC84: =SUM('Fluxo de Caixa'!$H$15:$H$27)+(AB84*'Casa de Bombas'!$C$19) -> 0 | AG84: 0.01619428574 | AH84: =SUM('Fluxo de Caixa'!$I$15:$I$27)+(AG84*'Casa de Bombas'!$C$19) -> 0 | AL84: -0.05643788457 | AM84: =SUM('Fluxo de Caixa'!$J$15:$J$27)+(AL84*'Casa de Bombas'!$C$19) -> 0 | AQ84: -0.08446032412 | AR84: =SUM('Fluxo de Caixa'!$K$15:$K$27)+(AQ84*'Casa de Bombas'!$C$19) -> 0 | AV84: -0.04496391831 | AW84: =SUM('Fluxo de Caixa'!$L$15:$L$27)+(AV84*'Casa de Bombas'!$C$19) -> 0 | BA84: 0.0382873085 | BB84: =SUM('Fluxo de Caixa'!$M$15:$M$27)+(BA84*'Casa de Bombas'!$C$19) -> 0 | BF84: -0.0002931678278 | BG84: =SUM('Fluxo de Caixa'!$N$15:$N$27)+(BF84*'Casa de Bombas'!$C$19) -> 0 | BK84: 0.03433290187 | BL84: =SUM('Fluxo de Caixa'!$O$15:$O$27)+(BK84*'Casa de Bombas'!$C$19) -> 0 | BP84: -0.05665882558 | BQ84: =SUM('Fluxo de Caixa'!$P$15:$P$27)+(BP84*'Casa de Bombas'!$C$19) -> 0 | BU84: -0.01438462817 | BV84: =SUM('Fluxo de Caixa'!$Q$15:$Q$27)+(BU84*'Casa de Bombas'!$C$19) -> 0 | BZ84: 0.02967566188 | CA84: =SUM('Fluxo de Caixa'!$R$15:$R$27)+(BZ84*'Casa de Bombas'!$C$19) -> 0 | CE84: -0.03595457164 | CF84: =SUM('Fluxo de Caixa'!$S$15:$S$27)+(CE84*'Casa de Bombas'!$C$19) -> 0 | CJ84: -0.0186278685 | CK84: =SUM('Fluxo de Caixa'!$T$15:$T$27)+(CJ84*'Casa de Bombas'!$C$19) -> 0 | CO84: 0.06697489419 | CP84: =SUM('Fluxo de Caixa'!$U$15:$U$27)+(CO84*'Casa de Bombas'!$C$19) -> 0 | CT84: -0.03237270278 | CU84: =SUM('Fluxo de Caixa'!$V$15:$V$27)+(CT84*'Casa de Bombas'!$C$19) -> 0 | CY84: 0.02416760729 | CZ84: =SUM('Fluxo de Caixa'!$W$15:$W$18)+(CY84*'Casa de Bombas'!$C$19) -> 0 | DC84: =DB84*AreaCana*DA84-'Fluxo de Caixa'!W90-'Fluxo de Caixa'!W92 ->  | DD84: 0
B85: 71 | C85: 0 | D85: =D84 -> 0 | E85: 0 | F85: 0 | G85: 0 | H85: 0.1326053384 | I85: =SUM('Fluxo de Caixa'!$D$15:$D$27)+(H85*'Casa de Bombas'!$C$19) -> 0 | M85: -0.0890543391 | N85: =SUM('Fluxo de Caixa'!$E$15:$E$27)+(M85*'Casa de Bombas'!$C$19) -> 0 | R85: -0.09506106636 | S85: =SUM('Fluxo de Caixa'!$F$15:$F$27)+(R85*'Casa de Bombas'!$C$19) -> 0 | W85: 0.0064668149 | X85: =SUM('Fluxo de Caixa'!$G$15:$G$27)+(W85*'Casa de Bombas'!$C$19) -> 0 | AB85: -0.03839795551 | AC85: =SUM('Fluxo de Caixa'!$H$15:$H$27)+(AB85*'Casa de Bombas'!$C$19) -> 0 | AG85: 0.009447600174 | AH85: =SUM('Fluxo de Caixa'!$I$15:$I$27)+(AG85*'Casa de Bombas'!$C$19) -> 0 | AL85: 0.05707492264 | AM85: =SUM('Fluxo de Caixa'!$J$15:$J$27)+(AL85*'Casa de Bombas'!$C$19) -> 0 | AQ85: -0.002698079441 | AR85: =SUM('Fluxo de Caixa'!$K$15:$K$27)+(AQ85*'Casa de Bombas'!$C$19) -> 0 | AV85: -0.01962817318 | AW85: =SUM('Fluxo de Caixa'!$L$15:$L$27)+(AV85*'Casa de Bombas'!$C$19) -> 0 | BA85: -0.0309868399 | BB85: =SUM('Fluxo de Caixa'!$M$15:$M$27)+(BA85*'Casa de Bombas'!$C$19) -> 0 | BF85: -0.01693852987 | BG85: =SUM('Fluxo de Caixa'!$N$15:$N$27)+(BF85*'Casa de Bombas'!$C$19) -> 0 | BK85: 0.02539663766 | BL85: =SUM('Fluxo de Caixa'!$O$15:$O$27)+(BK85*'Casa de Bombas'!$C$19) -> 0 | BP85: -0.02373241534 | BQ85: =SUM('Fluxo de Caixa'!$P$15:$P$27)+(BP85*'Casa de Bombas'!$C$19) -> 0 | BU85: -0.04075927047 | BV85: =SUM('Fluxo de Caixa'!$Q$15:$Q$27)+(BU85*'Casa de Bombas'!$C$19) -> 0 | BZ85: -0.07748963011 | CA85: =SUM('Fluxo de Caixa'!$R$15:$R$27)+(BZ85*'Casa de Bombas'!$C$19) -> 0 | CE85: -0.01335237121 | CF85: =SUM('Fluxo de Caixa'!$S$15:$S$27)+(CE85*'Casa de Bombas'!$C$19) -> 0 | CJ85: 0.03215705362 | CK85: =SUM('Fluxo de Caixa'!$T$15:$T$27)+(CJ85*'Casa de Bombas'!$C$19) -> 0 | CO85: -0.049339845 | CP85: =SUM('Fluxo de Caixa'!$U$15:$U$27)+(CO85*'Casa de Bombas'!$C$19) -> 0 | CT85: 0.006374809424 | CU85: =SUM('Fluxo de Caixa'!$V$15:$V$27)+(CT85*'Casa de Bombas'!$C$19) -> 0 | CY85: 0.06349220405 | CZ85: =SUM('Fluxo de Caixa'!$W$15:$W$18)+(CY85*'Casa de Bombas'!$C$19) -> 0 | DC85: =DB85*AreaCana*DA85-'Fluxo de Caixa'!W91-'Fluxo de Caixa'!W93 ->  | DD85: 0
B86: 72 | C86: 0 | D86: =D85 -> 0 | E86: 0 | F86: 0 | G86: 0 | H86: 0.06821256756 | I86: =SUM('Fluxo de Caixa'!$D$15:$D$27)+(H86*'Casa de Bombas'!$C$19) -> 0 | M86: -0.007396196568 | N86: =SUM('Fluxo de Caixa'!$E$15:$E$27)+(M86*'Casa de Bombas'!$C$19) -> 0 | R86: 0.03536436011 | S86: =SUM('Fluxo de Caixa'!$F$15:$F$27)+(R86*'Casa de Bombas'!$C$19) -> 0 | W86: 0.0389897922 | X86: =SUM('Fluxo de Caixa'!$G$15:$G$27)+(W86*'Casa de Bombas'!$C$19) -> 0 | AB86: -0.03669118412 | AC86: =SUM('Fluxo de Caixa'!$H$15:$H$27)+(AB86*'Casa de Bombas'!$C$19) -> 0 | AG86: 0.03437292801 | AH86: =SUM('Fluxo de Caixa'!$I$15:$I$27)+(AG86*'Casa de Bombas'!$C$19) -> 0 | AL86: -0.09969238656 | AM86: =SUM('Fluxo de Caixa'!$J$15:$J$27)+(AL86*'Casa de Bombas'!$C$19) -> 0 | AQ86: -0.04190359113 | AR86: =SUM('Fluxo de Caixa'!$K$15:$K$27)+(AQ86*'Casa de Bombas'!$C$19) -> 0 | AV86: 0.09090558273 | AW86: =SUM('Fluxo de Caixa'!$L$15:$L$27)+(AV86*'Casa de Bombas'!$C$19) -> 0 | BA86: 0.0009763002132 | BB86: =SUM('Fluxo de Caixa'!$M$15:$M$27)+(BA86*'Casa de Bombas'!$C$19) -> 0 | BF86: 0.0002956954714 | BG86: =SUM('Fluxo de Caixa'!$N$15:$N$27)+(BF86*'Casa de Bombas'!$C$19) -> 0 | BK86: -0.0427561568 | BL86: =SUM('Fluxo de Caixa'!$O$15:$O$27)+(BK86*'Casa de Bombas'!$C$19) -> 0 | BP86: 0.04639291503 | BQ86: =SUM('Fluxo de Caixa'!$P$15:$P$27)+(BP86*'Casa de Bombas'!$C$19) -> 0 | BU86: 0.06015449355 | BV86: =SUM('Fluxo de Caixa'!$Q$15:$Q$27)+(BU86*'Casa de Bombas'!$C$19) -> 0 | BZ86: -0.04731286871 | CA86: =SUM('Fluxo de Caixa'!$R$15:$R$27)+(BZ86*'Casa de Bombas'!$C$19) -> 0 | CE86: -0.05677467883 | CF86: =SUM('Fluxo de Caixa'!$S$15:$S$27)+(CE86*'Casa de Bombas'!$C$19) -> 0 | CJ86: 0.0888289775 | CK86: =SUM('Fluxo de Caixa'!$T$15:$T$27)+(CJ86*'Casa de Bombas'!$C$19) -> 0 | CO86: 0.04007439855 | CP86: =SUM('Fluxo de Caixa'!$U$15:$U$27)+(CO86*'Casa de Bombas'!$C$19) -> 0 | CT86: -0.01892021381 | CU86: =SUM('Fluxo de Caixa'!$V$15:$V$27)+(CT86*'Casa de Bombas'!$C$19) -> 0 | CY86: 0.05316546566 | CZ86: =SUM('Fluxo de Caixa'!$W$15:$W$18)+(CY86*'Casa de Bombas'!$C$19) -> 0 | DC86: =DB86*AreaCana*DA86-'Fluxo de Caixa'!W92-'Fluxo de Caixa'!W94 ->  | DD86: 0
B87: 73 | C87: 0 | D87: =D86 -> 0 | E87: 0 | F87: 0 | G87: 0 | H87: 0.05331405972 | I87: =SUM('Fluxo de Caixa'!$D$15:$D$27)+(H87*'Casa de Bombas'!$C$19) -> 0 | M87: 0.02009350927 | N87: =SUM('Fluxo de Caixa'!$E$15:$E$27)+(M87*'Casa de Bombas'!$C$19) -> 0 | R87: -0.05165826989 | S87: =SUM('Fluxo de Caixa'!$F$15:$F$27)+(R87*'Casa de Bombas'!$C$19) -> 0 | W87: 0.06511871008 | X87: =SUM('Fluxo de Caixa'!$G$15:$G$27)+(W87*'Casa de Bombas'!$C$19) -> 0 | AB87: 0.1111215404 | AC87: =SUM('Fluxo de Caixa'!$H$15:$H$27)+(AB87*'Casa de Bombas'!$C$19) -> 0 | AG87: -0.03624082454 | AH87: =SUM('Fluxo de Caixa'!$I$15:$I$27)+(AG87*'Casa de Bombas'!$C$19) -> 0 | AL87: -0.06630192128 | AM87: =SUM('Fluxo de Caixa'!$J$15:$J$27)+(AL87*'Casa de Bombas'!$C$19) -> 0 | AQ87: -0.02034476313 | AR87: =SUM('Fluxo de Caixa'!$K$15:$K$27)+(AQ87*'Casa de Bombas'!$C$19) -> 0 | AV87: -0.0280561326 | AW87: =SUM('Fluxo de Caixa'!$L$15:$L$27)+(AV87*'Casa de Bombas'!$C$19) -> 0 | BA87: 0.06036831674 | BB87: =SUM('Fluxo de Caixa'!$M$15:$M$27)+(BA87*'Casa de Bombas'!$C$19) -> 0 | BF87: 0.06417766037 | BG87: =SUM('Fluxo de Caixa'!$N$15:$N$27)+(BF87*'Casa de Bombas'!$C$19) -> 0 | BK87: -0.0314665552 | BL87: =SUM('Fluxo de Caixa'!$O$15:$O$27)+(BK87*'Casa de Bombas'!$C$19) -> 0 | BP87: 0.06220973403 | BQ87: =SUM('Fluxo de Caixa'!$P$15:$P$27)+(BP87*'Casa de Bombas'!$C$19) -> 0 | BU87: 0.01930925401 | BV87: =SUM('Fluxo de Caixa'!$Q$15:$Q$27)+(BU87*'Casa de Bombas'!$C$19) -> 0 | BZ87: -0.03821728427 | CA87: =SUM('Fluxo de Caixa'!$R$15:$R$27)+(BZ87*'Casa de Bombas'!$C$19) -> 0 | CE87: -0.03664895811 | CF87: =SUM('Fluxo de Caixa'!$S$15:$S$27)+(CE87*'Casa de Bombas'!$C$19) -> 0 | CJ87: 0.03966544587 | CK87: =SUM('Fluxo de Caixa'!$T$15:$T$27)+(CJ87*'Casa de Bombas'!$C$19) -> 0 | CO87: -0.04257129346 | CP87: =SUM('Fluxo de Caixa'!$U$15:$U$27)+(CO87*'Casa de Bombas'!$C$19) -> 0 | CT87: -0.09649477804 | CU87: =SUM('Fluxo de Caixa'!$V$15:$V$27)+(CT87*'Casa de Bombas'!$C$19) -> 0 | CY87: -0.01022048732 | CZ87: =SUM('Fluxo de Caixa'!$W$15:$W$18)+(CY87*'Casa de Bombas'!$C$19) -> 0 | DC87: =DB87*AreaCana*DA87-'Fluxo de Caixa'!W93-'Fluxo de Caixa'!W95 ->  | DD87: 0
B88: 74 | C88: 0 | D88: =D87 -> 0 | E88: 0 | F88: 0 | G88: 0 | H88: -0.007856755622 | I88: =SUM('Fluxo de Caixa'!$D$15:$D$27)+(H88*'Casa de Bombas'!$C$19) -> 0 | M88: -0.000428513373 | N88: =SUM('Fluxo de Caixa'!$E$15:$E$27)+(M88*'Casa de Bombas'!$C$19) -> 0 | R88: -0.009697446171 | S88: =SUM('Fluxo de Caixa'!$F$15:$F$27)+(R88*'Casa de Bombas'!$C$19) -> 0 | W88: -0.06918507629 | X88: =SUM('Fluxo de Caixa'!$G$15:$G$27)+(W88*'Casa de Bombas'!$C$19) -> 0 | AB88: 0.05362997709 | AC88: =SUM('Fluxo de Caixa'!$H$15:$H$27)+(AB88*'Casa de Bombas'!$C$19) -> 0 | AG88: -0.003933272133 | AH88: =SUM('Fluxo de Caixa'!$I$15:$I$27)+(AG88*'Casa de Bombas'!$C$19) -> 0 | AL88: -0.03906611019 | AM88: =SUM('Fluxo de Caixa'!$J$15:$J$27)+(AL88*'Casa de Bombas'!$C$19) -> 0 | AQ88: 0.0839324231 | AR88: =SUM('Fluxo de Caixa'!$K$15:$K$27)+(AQ88*'Casa de Bombas'!$C$19) -> 0 | AV88: 0.05221899782 | AW88: =SUM('Fluxo de Caixa'!$L$15:$L$27)+(AV88*'Casa de Bombas'!$C$19) -> 0 | BA88: 0.02860237273 | BB88: =SUM('Fluxo de Caixa'!$M$15:$M$27)+(BA88*'Casa de Bombas'!$C$19) -> 0 | BF88: 0.05103922536 | BG88: =SUM('Fluxo de Caixa'!$N$15:$N$27)+(BF88*'Casa de Bombas'!$C$19) -> 0 | BK88: -0.06809568655 | BL88: =SUM('Fluxo de Caixa'!$O$15:$O$27)+(BK88*'Casa de Bombas'!$C$19) -> 0 | BP88: 0.02262054692 | BQ88: =SUM('Fluxo de Caixa'!$P$15:$P$27)+(BP88*'Casa de Bombas'!$C$19) -> 0 | BU88: 0.01559090972 | BV88: =SUM('Fluxo de Caixa'!$Q$15:$Q$27)+(BU88*'Casa de Bombas'!$C$19) -> 0 | BZ88: 0.09149173192 | CA88: =SUM('Fluxo de Caixa'!$R$15:$R$27)+(BZ88*'Casa de Bombas'!$C$19) -> 0 | CE88: 0.03463368623 | CF88: =SUM('Fluxo de Caixa'!$S$15:$S$27)+(CE88*'Casa de Bombas'!$C$19) -> 0 | CJ88: 0.08185002199 | CK88: =SUM('Fluxo de Caixa'!$T$15:$T$27)+(CJ88*'Casa de Bombas'!$C$19) -> 0 | CO88: -0.1011483589 | CP88: =SUM('Fluxo de Caixa'!$U$15:$U$27)+(CO88*'Casa de Bombas'!$C$19) -> 0 | CT88: -0.01795961058 | CU88: =SUM('Fluxo de Caixa'!$V$15:$V$27)+(CT88*'Casa de Bombas'!$C$19) -> 0 | CY88: 0.007159411845 | CZ88: =SUM('Fluxo de Caixa'!$W$15:$W$18)+(CY88*'Casa de Bombas'!$C$19) -> 0 | DC88: =DB88*AreaCana*DA88-'Fluxo de Caixa'!W94-'Fluxo de Caixa'!W96 ->  | DD88: 0
B89: 75 | C89: 0 | D89: =D88 -> 0 | E89: 0 | F89: 0 | G89: 0 | H89: -0.08525535745 | I89: =SUM('Fluxo de Caixa'!$D$15:$D$27)+(H89*'Casa de Bombas'!$C$19) -> 0 | M89: -0.0221158749 | N89: =SUM('Fluxo de Caixa'!$E$15:$E$27)+(M89*'Casa de Bombas'!$C$19) -> 0 | R89: 0.008291765201 | S89: =SUM('Fluxo de Caixa'!$F$15:$F$27)+(R89*'Casa de Bombas'!$C$19) -> 0 | W89: 0.05502138399 | X89: =SUM('Fluxo de Caixa'!$G$15:$G$27)+(W89*'Casa de Bombas'!$C$19) -> 0 | AB89: 0.02738436646 | AC89: =SUM('Fluxo de Caixa'!$H$15:$H$27)+(AB89*'Casa de Bombas'!$C$19) -> 0 | AG89: 0.06087419548 | AH89: =SUM('Fluxo de Caixa'!$I$15:$I$27)+(AG89*'Casa de Bombas'!$C$19) -> 0 | AL89: -0.01819986351 | AM89: =SUM('Fluxo de Caixa'!$J$15:$J$27)+(AL89*'Casa de Bombas'!$C$19) -> 0 | AQ89: -0.02233952886 | AR89: =SUM('Fluxo de Caixa'!$K$15:$K$27)+(AQ89*'Casa de Bombas'!$C$19) -> 0 | AV89: -0.04136394877 | AW89: =SUM('Fluxo de Caixa'!$L$15:$L$27)+(AV89*'Casa de Bombas'!$C$19) -> 0 | BA89: -0.06948501224 | BB89: =SUM('Fluxo de Caixa'!$M$15:$M$27)+(BA89*'Casa de Bombas'!$C$19) -> 0 | BF89: 0.03890710907 | BG89: =SUM('Fluxo de Caixa'!$N$15:$N$27)+(BF89*'Casa de Bombas'!$C$19) -> 0 | BK89: 0.004776863439 | BL89: =SUM('Fluxo de Caixa'!$O$15:$O$27)+(BK89*'Casa de Bombas'!$C$19) -> 0 | BP89: 0.002883427469 | BQ89: =SUM('Fluxo de Caixa'!$P$15:$P$27)+(BP89*'Casa de Bombas'!$C$19) -> 0 | BU89: 0.06417321751 | BV89: =SUM('Fluxo de Caixa'!$Q$15:$Q$27)+(BU89*'Casa de Bombas'!$C$19) -> 0 | BZ89: 0.008961862739 | CA89: =SUM('Fluxo de Caixa'!$R$15:$R$27)+(BZ89*'Casa de Bombas'!$C$19) -> 0 | CE89: 0.03313336702 | CF89: =SUM('Fluxo de Caixa'!$S$15:$S$27)+(CE89*'Casa de Bombas'!$C$19) -> 0 | CJ89: -0.03329546472 | CK89: =SUM('Fluxo de Caixa'!$T$15:$T$27)+(CJ89*'Casa de Bombas'!$C$19) -> 0 | CO89: 0.05157814626 | CP89: =SUM('Fluxo de Caixa'!$U$15:$U$27)+(CO89*'Casa de Bombas'!$C$19) -> 0 | CT89: 0.03117189022 | CU89: =SUM('Fluxo de Caixa'!$V$15:$V$27)+(CT89*'Casa de Bombas'!$C$19) -> 0 | CY89: -0.06945677669 | CZ89: =SUM('Fluxo de Caixa'!$W$15:$W$18)+(CY89*'Casa de Bombas'!$C$19) -> 0 | DC89: =DB89*AreaCana*DA89-'Fluxo de Caixa'!W95-'Fluxo de Caixa'!W97 ->  | DD89: 0
B90: 76 | C90: 0 | D90: =D89 -> 0 | E90: 0 | F90: 0 | G90: 0 | H90: -0.09363852139 | I90: =SUM('Fluxo de Caixa'!$D$15:$D$27)+(H90*'Casa de Bombas'!$C$19) -> 0 | M90: -0.00763782782 | N90: =SUM('Fluxo de Caixa'!$E$15:$E$27)+(M90*'Casa de Bombas'!$C$19) -> 0 | R90: 0.0465606422 | S90: =SUM('Fluxo de Caixa'!$F$15:$F$27)+(R90*'Casa de Bombas'!$C$19) -> 0 | W90: 0.05003701391 | X90: =SUM('Fluxo de Caixa'!$G$15:$G$27)+(W90*'Casa de Bombas'!$C$19) -> 0 | AB90: -0.05888904927 | AC90: =SUM('Fluxo de Caixa'!$H$15:$H$27)+(AB90*'Casa de Bombas'!$C$19) -> 0 | AG90: -0.04018925943 | AH90: =SUM('Fluxo de Caixa'!$I$15:$I$27)+(AG90*'Casa de Bombas'!$C$19) -> 0 | AL90: 0.02790100263 | AM90: =SUM('Fluxo de Caixa'!$J$15:$J$27)+(AL90*'Casa de Bombas'!$C$19) -> 0 | AQ90: 0.02028040983 | AR90: =SUM('Fluxo de Caixa'!$K$15:$K$27)+(AQ90*'Casa de Bombas'!$C$19) -> 0 | AV90: 0.01998736098 | AW90: =SUM('Fluxo de Caixa'!$L$15:$L$27)+(AV90*'Casa de Bombas'!$C$19) -> 0 | BA90: -0.002200912079 | BB90: =SUM('Fluxo de Caixa'!$M$15:$M$27)+(BA90*'Casa de Bombas'!$C$19) -> 0 | BF90: 0.02810883244 | BG90: =SUM('Fluxo de Caixa'!$N$15:$N$27)+(BF90*'Casa de Bombas'!$C$19) -> 0 | BK90: -0.0224538503 | BL90: =SUM('Fluxo de Caixa'!$O$15:$O$27)+(BK90*'Casa de Bombas'!$C$19) -> 0 | BP90: 0.04334716639 | BQ90: =SUM('Fluxo de Caixa'!$P$15:$P$27)+(BP90*'Casa de Bombas'!$C$19) -> 0 | BU90: -0.02831766175 | BV90: =SUM('Fluxo de Caixa'!$Q$15:$Q$27)+(BU90*'Casa de Bombas'!$C$19) -> 0 | BZ90: -0.009349092207 | CA90: =SUM('Fluxo de Caixa'!$R$15:$R$27)+(BZ90*'Casa de Bombas'!$C$19) -> 0 | CE90: -0.07202312551 | CF90: =SUM('Fluxo de Caixa'!$S$15:$S$27)+(CE90*'Casa de Bombas'!$C$19) -> 0 | CJ90: 0.03290333064 | CK90: =SUM('Fluxo de Caixa'!$T$15:$T$27)+(CJ90*'Casa de Bombas'!$C$19) -> 0 | CO90: -0.01908478842 | CP90: =SUM('Fluxo de Caixa'!$U$15:$U$27)+(CO90*'Casa de Bombas'!$C$19) -> 0 | CT90: -0.06465600785 | CU90: =SUM('Fluxo de Caixa'!$V$15:$V$27)+(CT90*'Casa de Bombas'!$C$19) -> 0 | CY90: -0.0208721628 | CZ90: =SUM('Fluxo de Caixa'!$W$15:$W$18)+(CY90*'Casa de Bombas'!$C$19) -> 0 | DC90: =DB90*AreaCana*DA90-'Fluxo de Caixa'!W96-'Fluxo de Caixa'!W98 ->  | DD90: 0
B91: 77 | C91: 0 | D91: =D90 -> 0 | E91: 0 | F91: 0 | G91: 0 | H91: 0.04287331721 | I91: =SUM('Fluxo de Caixa'!$D$15:$D$27)+(H91*'Casa de Bombas'!$C$19) -> 0 | M91: -0.012820301 | N91: =SUM('Fluxo de Caixa'!$E$15:$E$27)+(M91*'Casa de Bombas'!$C$19) -> 0 | R91: 0.07144723353 | S91: =SUM('Fluxo de Caixa'!$F$15:$F$27)+(R91*'Casa de Bombas'!$C$19) -> 0 | W91: 0.03437553318 | X91: =SUM('Fluxo de Caixa'!$G$15:$G$27)+(W91*'Casa de Bombas'!$C$19) -> 0 | AB91: -0.01831172411 | AC91: =SUM('Fluxo de Caixa'!$H$15:$H$27)+(AB91*'Casa de Bombas'!$C$19) -> 0 | AG91: 0.05436408463 | AH91: =SUM('Fluxo de Caixa'!$I$15:$I$27)+(AG91*'Casa de Bombas'!$C$19) -> 0 | AL91: 0.09215106586 | AM91: =SUM('Fluxo de Caixa'!$J$15:$J$27)+(AL91*'Casa de Bombas'!$C$19) -> 0 | AQ91: 0.0001410138142 | AR91: =SUM('Fluxo de Caixa'!$K$15:$K$27)+(AQ91*'Casa de Bombas'!$C$19) -> 0 | AV91: -0.06053229396 | AW91: =SUM('Fluxo de Caixa'!$L$15:$L$27)+(AV91*'Casa de Bombas'!$C$19) -> 0 | BA91: -0.01316402486 | BB91: =SUM('Fluxo de Caixa'!$M$15:$M$27)+(BA91*'Casa de Bombas'!$C$19) -> 0 | BF91: 2.704572092e-05 | BG91: =SUM('Fluxo de Caixa'!$N$15:$N$27)+(BF91*'Casa de Bombas'!$C$19) -> 0 | BK91: -0.05075880029 | BL91: =SUM('Fluxo de Caixa'!$O$15:$O$27)+(BK91*'Casa de Bombas'!$C$19) -> 0 | BP91: -0.08858988739 | BQ91: =SUM('Fluxo de Caixa'!$P$15:$P$27)+(BP91*'Casa de Bombas'!$C$19) -> 0 | BU91: 0.006912897373 | BV91: =SUM('Fluxo de Caixa'!$Q$15:$Q$27)+(BU91*'Casa de Bombas'!$C$19) -> 0 | BZ91: -0.01246469327 | CA91: =SUM('Fluxo de Caixa'!$R$15:$R$27)+(BZ91*'Casa de Bombas'!$C$19) -> 0 | CE91: -0.005852440952 | CF91: =SUM('Fluxo de Caixa'!$S$15:$S$27)+(CE91*'Casa de Bombas'!$C$19) -> 0 | CJ91: -0.007552777352 | CK91: =SUM('Fluxo de Caixa'!$T$15:$T$27)+(CJ91*'Casa de Bombas'!$C$19) -> 0 | CO91: 0.006568276437 | CP91: =SUM('Fluxo de Caixa'!$U$15:$U$27)+(CO91*'Casa de Bombas'!$C$19) -> 0 | CT91: -0.002808412366 | CU91: =SUM('Fluxo de Caixa'!$V$15:$V$27)+(CT91*'Casa de Bombas'!$C$19) -> 0 | CY91: 0.01752838454 | CZ91: =SUM('Fluxo de Caixa'!$W$15:$W$18)+(CY91*'Casa de Bombas'!$C$19) -> 0 | DC91: =DB91*AreaCana*DA91-'Fluxo de Caixa'!W97-'Fluxo de Caixa'!W99 ->  | DD91: 0
B92: 78 | C92: 0 | D92: =D91 -> 0 | E92: 0 | F92: 0 | G92: 0 | H92: -0.03839341863 | I92: =SUM('Fluxo de Caixa'!$D$15:$D$27)+(H92*'Casa de Bombas'!$C$19) -> 0 | M92: -0.04678346401 | N92: =SUM('Fluxo de Caixa'!$E$15:$E$27)+(M92*'Casa de Bombas'!$C$19) -> 0 | R92: -0.03961760842 | S92: =SUM('Fluxo de Caixa'!$F$15:$F$27)+(R92*'Casa de Bombas'!$C$19) -> 0 | W92: 0.04304718793 | X92: =SUM('Fluxo de Caixa'!$G$15:$G$27)+(W92*'Casa de Bombas'!$C$19) -> 0 | AB92: -0.06388786879 | AC92: =SUM('Fluxo de Caixa'!$H$15:$H$27)+(AB92*'Casa de Bombas'!$C$19) -> 0 | AG92: 0.009111963512 | AH92: =SUM('Fluxo de Caixa'!$I$15:$I$27)+(AG92*'Casa de Bombas'!$C$19) -> 0 | AL92: -0.01536161712 | AM92: =SUM('Fluxo de Caixa'!$J$15:$J$27)+(AL92*'Casa de Bombas'!$C$19) -> 0 | AQ92: -0.07563932624 | AR92: =SUM('Fluxo de Caixa'!$K$15:$K$27)+(AQ92*'Casa de Bombas'!$C$19) -> 0 | AV92: 0.04782287807 | AW92: =SUM('Fluxo de Caixa'!$L$15:$L$27)+(AV92*'Casa de Bombas'!$C$19) -> 0 | BA92: -0.04799532831 | BB92: =SUM('Fluxo de Caixa'!$M$15:$M$27)+(BA92*'Casa de Bombas'!$C$19) -> 0 | BF92: -0.02870749281 | BG92: =SUM('Fluxo de Caixa'!$N$15:$N$27)+(BF92*'Casa de Bombas'!$C$19) -> 0 | BK92: 0.008510658926 | BL92: =SUM('Fluxo de Caixa'!$O$15:$O$27)+(BK92*'Casa de Bombas'!$C$19) -> 0 | BP92: 0.05922906478 | BQ92: =SUM('Fluxo de Caixa'!$P$15:$P$27)+(BP92*'Casa de Bombas'!$C$19) -> 0 | BU92: 0.007195596767 | BV92: =SUM('Fluxo de Caixa'!$Q$15:$Q$27)+(BU92*'Casa de Bombas'!$C$19) -> 0 | BZ92: -0.008117414409 | CA92: =SUM('Fluxo de Caixa'!$R$15:$R$27)+(BZ92*'Casa de Bombas'!$C$19) -> 0 | CE92: -0.02451328851 | CF92: =SUM('Fluxo de Caixa'!$S$15:$S$27)+(CE92*'Casa de Bombas'!$C$19) -> 0 | CJ92: 0.004241519315 | CK92: =SUM('Fluxo de Caixa'!$T$15:$T$27)+(CJ92*'Casa de Bombas'!$C$19) -> 0 | CO92: -0.003293338695 | CP92: =SUM('Fluxo de Caixa'!$U$15:$U$27)+(CO92*'Casa de Bombas'!$C$19) -> 0 | CT92: -0.05424056403 | CU92: =SUM('Fluxo de Caixa'!$V$15:$V$27)+(CT92*'Casa de Bombas'!$C$19) -> 0 | CY92: 0.131357826 | CZ92: =SUM('Fluxo de Caixa'!$W$15:$W$18)+(CY92*'Casa de Bombas'!$C$19) -> 0 | DC92: =DB92*AreaCana*DA92-'Fluxo de Caixa'!W98-'Fluxo de Caixa'!W100 ->  | DD92: 0
B93: 79 | C93: 0 | D93: =D92 -> 0 | E93: 0 | F93: 0 | G93: 0 | H93: 0.1066533985 | I93: =SUM('Fluxo de Caixa'!$D$15:$D$27)+(H93*'Casa de Bombas'!$C$19) -> 0 | M93: -0.01434174606 | N93: =SUM('Fluxo de Caixa'!$E$15:$E$27)+(M93*'Casa de Bombas'!$C$19) -> 0 | R93: -0.02117802473 | S93: =SUM('Fluxo de Caixa'!$F$15:$F$27)+(R93*'Casa de Bombas'!$C$19) -> 0 | W93: 0.02986334469 | X93: =SUM('Fluxo de Caixa'!$G$15:$G$27)+(W93*'Casa de Bombas'!$C$19) -> 0 | AB93: -0.01831792874 | AC93: =SUM('Fluxo de Caixa'!$H$15:$H$27)+(AB93*'Casa de Bombas'!$C$19) -> 0 | AG93: -0.1321070774 | AH93: =SUM('Fluxo de Caixa'!$I$15:$I$27)+(AG93*'Casa de Bombas'!$C$19) -> 0 | AL93: -0.03712013949 | AM93: =SUM('Fluxo de Caixa'!$J$15:$J$27)+(AL93*'Casa de Bombas'!$C$19) -> 0 | AQ93: 0.006376373063 | AR93: =SUM('Fluxo de Caixa'!$K$15:$K$27)+(AQ93*'Casa de Bombas'!$C$19) -> 0 | AV93: -0.04838111495 | AW93: =SUM('Fluxo de Caixa'!$L$15:$L$27)+(AV93*'Casa de Bombas'!$C$19) -> 0 | BA93: 0.02593869267 | BB93: =SUM('Fluxo de Caixa'!$M$15:$M$27)+(BA93*'Casa de Bombas'!$C$19) -> 0 | BF93: 0.0319837238 | BG93: =SUM('Fluxo de Caixa'!$N$15:$N$27)+(BF93*'Casa de Bombas'!$C$19) -> 0 | BK93: -0.01259184833 | BL93: =SUM('Fluxo de Caixa'!$O$15:$O$27)+(BK93*'Casa de Bombas'!$C$19) -> 0 | BP93: -0.07580353449 | BQ93: =SUM('Fluxo de Caixa'!$P$15:$P$27)+(BP93*'Casa de Bombas'!$C$19) -> 0 | BU93: -0.05395763697 | BV93: =SUM('Fluxo de Caixa'!$Q$15:$Q$27)+(BU93*'Casa de Bombas'!$C$19) -> 0 | BZ93: -0.0963313452 | CA93: =SUM('Fluxo de Caixa'!$R$15:$R$27)+(BZ93*'Casa de Bombas'!$C$19) -> 0 | CE93: 0.00937791179 | CF93: =SUM('Fluxo de Caixa'!$S$15:$S$27)+(CE93*'Casa de Bombas'!$C$19) -> 0 | CJ93: -0.01231470377 | CK93: =SUM('Fluxo de Caixa'!$T$15:$T$27)+(CJ93*'Casa de Bombas'!$C$19) -> 0 | CO93: -0.0376717026 | CP93: =SUM('Fluxo de Caixa'!$U$15:$U$27)+(CO93*'Casa de Bombas'!$C$19) -> 0 | CT93: 0.0185168424 | CU93: =SUM('Fluxo de Caixa'!$V$15:$V$27)+(CT93*'Casa de Bombas'!$C$19) -> 0 | CY93: 0.05911877038 | CZ93: =SUM('Fluxo de Caixa'!$W$15:$W$18)+(CY93*'Casa de Bombas'!$C$19) -> 0 | DC93: =DB93*AreaCana*DA93-'Fluxo de Caixa'!W99-'Fluxo de Caixa'!W101 ->  | DD93: 0
B94: 80 | C94: 0 | D94: =D93 -> 0 | E94: 0 | F94: 0 | G94: 0 | H94: 0.03369857278 | I94: =SUM('Fluxo de Caixa'!$D$15:$D$27)+(H94*'Casa de Bombas'!$C$19) -> 0 | M94: -0.04984992995 | N94: =SUM('Fluxo de Caixa'!$E$15:$E$27)+(M94*'Casa de Bombas'!$C$19) -> 0 | R94: -0.05423669194 | S94: =SUM('Fluxo de Caixa'!$F$15:$F$27)+(R94*'Casa de Bombas'!$C$19) -> 0 | W94: 0.01735734162 | X94: =SUM('Fluxo de Caixa'!$G$15:$G$27)+(W94*'Casa de Bombas'!$C$19) -> 0 | AB94: 0.005476231493 | AC94: =SUM('Fluxo de Caixa'!$H$15:$H$27)+(AB94*'Casa de Bombas'!$C$19) -> 0 | AG94: -0.04517188085 | AH94: =SUM('Fluxo de Caixa'!$I$15:$I$27)+(AG94*'Casa de Bombas'!$C$19) -> 0 | AL94: -0.1236951091 | AM94: =SUM('Fluxo de Caixa'!$J$15:$J$27)+(AL94*'Casa de Bombas'!$C$19) -> 0 | AQ94: -0.03201161427 | AR94: =SUM('Fluxo de Caixa'!$K$15:$K$27)+(AQ94*'Casa de Bombas'!$C$19) -> 0 | AV94: -0.04781939417 | AW94: =SUM('Fluxo de Caixa'!$L$15:$L$27)+(AV94*'Casa de Bombas'!$C$19) -> 0 | BA94: 0.009791956396 | BB94: =SUM('Fluxo de Caixa'!$M$15:$M$27)+(BA94*'Casa de Bombas'!$C$19) -> 0 | BF94: 0.03484964662 | BG94: =SUM('Fluxo de Caixa'!$N$15:$N$27)+(BF94*'Casa de Bombas'!$C$19) -> 0 | BK94: -0.006537470244 | BL94: =SUM('Fluxo de Caixa'!$O$15:$O$27)+(BK94*'Casa de Bombas'!$C$19) -> 0 | BP94: -0.04555880584 | BQ94: =SUM('Fluxo de Caixa'!$P$15:$P$27)+(BP94*'Casa de Bombas'!$C$19) -> 0 | BU94: 0.03478981228 | BV94: =SUM('Fluxo de Caixa'!$Q$15:$Q$27)+(BU94*'Casa de Bombas'!$C$19) -> 0 | BZ94: 0.05003241314 | CA94: =SUM('Fluxo de Caixa'!$R$15:$R$27)+(BZ94*'Casa de Bombas'!$C$19) -> 0 | CE94: -0.0331430545 | CF94: =SUM('Fluxo de Caixa'!$S$15:$S$27)+(CE94*'Casa de Bombas'!$C$19) -> 0 | CJ94: 0.008556864784 | CK94: =SUM('Fluxo de Caixa'!$T$15:$T$27)+(CJ94*'Casa de Bombas'!$C$19) -> 0 | CO94: 0.01620132081 | CP94: =SUM('Fluxo de Caixa'!$U$15:$U$27)+(CO94*'Casa de Bombas'!$C$19) -> 0 | CT94: 0.08603888221 | CU94: =SUM('Fluxo de Caixa'!$V$15:$V$27)+(CT94*'Casa de Bombas'!$C$19) -> 0 | CY94: 0.043957842 | CZ94: =SUM('Fluxo de Caixa'!$W$15:$W$18)+(CY94*'Casa de Bombas'!$C$19) -> 0 | DC94: =DB94*AreaCana*DA94-'Fluxo de Caixa'!W100-'Fluxo de Caixa'!W102 ->  | DD94: 0
B95: 81 | C95: 0 | D95: =D94 -> 0 | E95: 0 | F95: 0 | G95: 0 | H95: -0.04150834992 | I95: =SUM('Fluxo de Caixa'!$D$15:$D$27)+(H95*'Casa de Bombas'!$C$19) -> 0 | M95: 0.04901557982 | N95: =SUM('Fluxo de Caixa'!$E$15:$E$27)+(M95*'Casa de Bombas'!$C$19) -> 0 | R95: -0.02255773634 | S95: =SUM('Fluxo de Caixa'!$F$15:$F$27)+(R95*'Casa de Bombas'!$C$19) -> 0 | W95: 0.02034521599 | X95: =SUM('Fluxo de Caixa'!$G$15:$G$27)+(W95*'Casa de Bombas'!$C$19) -> 0 | AB95: 0.0314976518 | AC95: =SUM('Fluxo de Caixa'!$H$15:$H$27)+(AB95*'Casa de Bombas'!$C$19) -> 0 | AG95: -0.06897540252 | AH95: =SUM('Fluxo de Caixa'!$I$15:$I$27)+(AG95*'Casa de Bombas'!$C$19) -> 0 | AL95: 0.06481654668 | AM95: =SUM('Fluxo de Caixa'!$J$15:$J$27)+(AL95*'Casa de Bombas'!$C$19) -> 0 | AQ95: 0.04858028525 | AR95: =SUM('Fluxo de Caixa'!$K$15:$K$27)+(AQ95*'Casa de Bombas'!$C$19) -> 0 | AV95: -0.08989261666 | AW95: =SUM('Fluxo de Caixa'!$L$15:$L$27)+(AV95*'Casa de Bombas'!$C$19) -> 0 | BA95: 0.1163714646 | BB95: =SUM('Fluxo de Caixa'!$M$15:$M$27)+(BA95*'Casa de Bombas'!$C$19) -> 0 | BF95: 0.04933314925 | BG95: =SUM('Fluxo de Caixa'!$N$15:$N$27)+(BF95*'Casa de Bombas'!$C$19) -> 0 | BK95: 0.01950788793 | BL95: =SUM('Fluxo de Caixa'!$O$15:$O$27)+(BK95*'Casa de Bombas'!$C$19) -> 0 | BP95: -0.0009002125482 | BQ95: =SUM('Fluxo de Caixa'!$P$15:$P$27)+(BP95*'Casa de Bombas'!$C$19) -> 0 | BU95: -0.06401402807 | BV95: =SUM('Fluxo de Caixa'!$Q$15:$Q$27)+(BU95*'Casa de Bombas'!$C$19) -> 0 | BZ95: 0.03042197231 | CA95: =SUM('Fluxo de Caixa'!$R$15:$R$27)+(BZ95*'Casa de Bombas'!$C$19) -> 0 | CE95: -0.05374012841 | CF95: =SUM('Fluxo de Caixa'!$S$15:$S$27)+(CE95*'Casa de Bombas'!$C$19) -> 0 | CJ95: 0.08653126415 | CK95: =SUM('Fluxo de Caixa'!$T$15:$T$27)+(CJ95*'Casa de Bombas'!$C$19) -> 0 | CO95: -0.013389268 | CP95: =SUM('Fluxo de Caixa'!$U$15:$U$27)+(CO95*'Casa de Bombas'!$C$19) -> 0 | CT95: -0.0353582935 | CU95: =SUM('Fluxo de Caixa'!$V$15:$V$27)+(CT95*'Casa de Bombas'!$C$19) -> 0 | CY95: -0.109445914 | CZ95: =SUM('Fluxo de Caixa'!$W$15:$W$18)+(CY95*'Casa de Bombas'!$C$19) -> 0 | DC95: =DB95*AreaCana*DA95-'Fluxo de Caixa'!W101-'Fluxo de Caixa'!W103 ->  | DD95: 0
B96: 82 | C96: 0 | D96: =D95 -> 0 | E96: 0 | F96: 0 | G96: 0 | H96: 0.01168070007 | I96: =SUM('Fluxo de Caixa'!$D$15:$D$27)+(H96*'Casa de Bombas'!$C$19) -> 0 | M96: 0.0345009392 | N96: =SUM('Fluxo de Caixa'!$E$15:$E$27)+(M96*'Casa de Bombas'!$C$19) -> 0 | R96: 0.002723406163 | S96: =SUM('Fluxo de Caixa'!$F$15:$F$27)+(R96*'Casa de Bombas'!$C$19) -> 0 | W96: 0.04933095773 | X96: =SUM('Fluxo de Caixa'!$G$15:$G$27)+(W96*'Casa de Bombas'!$C$19) -> 0 | AB96: -0.001893944752 | AC96: =SUM('Fluxo de Caixa'!$H$15:$H$27)+(AB96*'Casa de Bombas'!$C$19) -> 0 | AG96: -0.06926798993 | AH96: =SUM('Fluxo de Caixa'!$I$15:$I$27)+(AG96*'Casa de Bombas'!$C$19) -> 0 | AL96: -0.05192059575 | AM96: =SUM('Fluxo de Caixa'!$J$15:$J$27)+(AL96*'Casa de Bombas'!$C$19) -> 0 | AQ96: -0.0201090964 | AR96: =SUM('Fluxo de Caixa'!$K$15:$K$27)+(AQ96*'Casa de Bombas'!$C$19) -> 0 | AV96: 0.09173858077 | AW96: =SUM('Fluxo de Caixa'!$L$15:$L$27)+(AV96*'Casa de Bombas'!$C$19) -> 0 | BA96: 0.05893111607 | BB96: =SUM('Fluxo de Caixa'!$M$15:$M$27)+(BA96*'Casa de Bombas'!$C$19) -> 0 | BF96: 0.02909278588 | BG96: =SUM('Fluxo de Caixa'!$N$15:$N$27)+(BF96*'Casa de Bombas'!$C$19) -> 0 | BK96: 0.006527599802 | BL96: =SUM('Fluxo de Caixa'!$O$15:$O$27)+(BK96*'Casa de Bombas'!$C$19) -> 0 | BP96: 0.0783943273 | BQ96: =SUM('Fluxo de Caixa'!$P$15:$P$27)+(BP96*'Casa de Bombas'!$C$19) -> 0 | BU96: -0.03362451488 | BV96: =SUM('Fluxo de Caixa'!$Q$15:$Q$27)+(BU96*'Casa de Bombas'!$C$19) -> 0 | BZ96: 0.04915104601 | CA96: =SUM('Fluxo de Caixa'!$R$15:$R$27)+(BZ96*'Casa de Bombas'!$C$19) -> 0 | CE96: -0.008491859657 | CF96: =SUM('Fluxo de Caixa'!$S$15:$S$27)+(CE96*'Casa de Bombas'!$C$19) -> 0 | CJ96: -0.04664878949 | CK96: =SUM('Fluxo de Caixa'!$T$15:$T$27)+(CJ96*'Casa de Bombas'!$C$19) -> 0 | CO96: 0.0303692119 | CP96: =SUM('Fluxo de Caixa'!$U$15:$U$27)+(CO96*'Casa de Bombas'!$C$19) -> 0 | CT96: -0.01565397139 | CU96: =SUM('Fluxo de Caixa'!$V$15:$V$27)+(CT96*'Casa de Bombas'!$C$19) -> 0 | CY96: -0.1267892453 | CZ96: =SUM('Fluxo de Caixa'!$W$15:$W$18)+(CY96*'Casa de Bombas'!$C$19) -> 0 | DC96: =DB96*AreaCana*DA96-'Fluxo de Caixa'!W102-'Fluxo de Caixa'!W104 ->  | DD96: 0
B97: 83 | C97: 0 | D97: =D96 -> 0 | E97: 0 | F97: 0 | G97: 0 | H97: -0.01790183873 | I97: =SUM('Fluxo de Caixa'!$D$15:$D$27)+(H97*'Casa de Bombas'!$C$19) -> 0 | M97: 0.08818968207 | N97: =SUM('Fluxo de Caixa'!$E$15:$E$27)+(M97*'Casa de Bombas'!$C$19) -> 0 | R97: 0.007084778513 | S97: =SUM('Fluxo de Caixa'!$F$15:$F$27)+(R97*'Casa de Bombas'!$C$19) -> 0 | W97: -0.02356189787 | X97: =SUM('Fluxo de Caixa'!$G$15:$G$27)+(W97*'Casa de Bombas'!$C$19) -> 0 | AB97: 0.006358380567 | AC97: =SUM('Fluxo de Caixa'!$H$15:$H$27)+(AB97*'Casa de Bombas'!$C$19) -> 0 | AG97: 0.03401819628 | AH97: =SUM('Fluxo de Caixa'!$I$15:$I$27)+(AG97*'Casa de Bombas'!$C$19) -> 0 | AL97: 0.01326103934 | AM97: =SUM('Fluxo de Caixa'!$J$15:$J$27)+(AL97*'Casa de Bombas'!$C$19) -> 0 | AQ97: 0.0165872684 | AR97: =SUM('Fluxo de Caixa'!$K$15:$K$27)+(AQ97*'Casa de Bombas'!$C$19) -> 0 | AV97: -0.01833272841 | AW97: =SUM('Fluxo de Caixa'!$L$15:$L$27)+(AV97*'Casa de Bombas'!$C$19) -> 0 | BA97: -0.004843184059 | BB97: =SUM('Fluxo de Caixa'!$M$15:$M$27)+(BA97*'Casa de Bombas'!$C$19) -> 0 | BF97: -0.04655621815 | BG97: =SUM('Fluxo de Caixa'!$N$15:$N$27)+(BF97*'Casa de Bombas'!$C$19) -> 0 | BK97: 0.01677753241 | BL97: =SUM('Fluxo de Caixa'!$O$15:$O$27)+(BK97*'Casa de Bombas'!$C$19) -> 0 | BP97: -0.03289193913 | BQ97: =SUM('Fluxo de Caixa'!$P$15:$P$27)+(BP97*'Casa de Bombas'!$C$19) -> 0 | BU97: -0.03139967168 | BV97: =SUM('Fluxo de Caixa'!$Q$15:$Q$27)+(BU97*'Casa de Bombas'!$C$19) -> 0 | BZ97: 0.01040955282 | CA97: =SUM('Fluxo de Caixa'!$R$15:$R$27)+(BZ97*'Casa de Bombas'!$C$19) -> 0 | CE97: -0.1144859019 | CF97: =SUM('Fluxo de Caixa'!$S$15:$S$27)+(CE97*'Casa de Bombas'!$C$19) -> 0 | CJ97: 0.02204554194 | CK97: =SUM('Fluxo de Caixa'!$T$15:$T$27)+(CJ97*'Casa de Bombas'!$C$19) -> 0 | CO97: -0.03796803212 | CP97: =SUM('Fluxo de Caixa'!$U$15:$U$27)+(CO97*'Casa de Bombas'!$C$19) -> 0 | CT97: -0.03634087328 | CU97: =SUM('Fluxo de Caixa'!$V$15:$V$27)+(CT97*'Casa de Bombas'!$C$19) -> 0 | CY97: -0.02371120548 | CZ97: =SUM('Fluxo de Caixa'!$W$15:$W$18)+(CY97*'Casa de Bombas'!$C$19) -> 0 | DC97: =DB97*AreaCana*DA97-'Fluxo de Caixa'!W103-'Fluxo de Caixa'!W105 ->  | DD97: 0
B98: 84 | C98: 0 | D98: =D97 -> 0 | E98: 0 | F98: 0 | G98: 0 | H98: 0.0755248382 | I98: =SUM('Fluxo de Caixa'!$D$15:$D$27)+(H98*'Casa de Bombas'!$C$19) -> 0 | M98: 0.02718720577 | N98: =SUM('Fluxo de Caixa'!$E$15:$E$27)+(M98*'Casa de Bombas'!$C$19) -> 0 | R98: 0.02399222106 | S98: =SUM('Fluxo de Caixa'!$F$15:$F$27)+(R98*'Casa de Bombas'!$C$19) -> 0 | W98: 0.01377671942 | X98: =SUM('Fluxo de Caixa'!$G$15:$G$27)+(W98*'Casa de Bombas'!$C$19) -> 0 | AB98: -0.005012806004 | AC98: =SUM('Fluxo de Caixa'!$H$15:$H$27)+(AB98*'Casa de Bombas'!$C$19) -> 0 | AG98: -0.09705199849 | AH98: =SUM('Fluxo de Caixa'!$I$15:$I$27)+(AG98*'Casa de Bombas'!$C$19) -> 0 | AL98: 0.02666832293 | AM98: =SUM('Fluxo de Caixa'!$J$15:$J$27)+(AL98*'Casa de Bombas'!$C$19) -> 0 | AQ98: -0.002741715609 | AR98: =SUM('Fluxo de Caixa'!$K$15:$K$27)+(AQ98*'Casa de Bombas'!$C$19) -> 0 | AV98: 0.01522291587 | AW98: =SUM('Fluxo de Caixa'!$L$15:$L$27)+(AV98*'Casa de Bombas'!$C$19) -> 0 | BA98: -0.003358094875 | BB98: =SUM('Fluxo de Caixa'!$M$15:$M$27)+(BA98*'Casa de Bombas'!$C$19) -> 0 | BF98: 0.02083175416 | BG98: =SUM('Fluxo de Caixa'!$N$15:$N$27)+(BF98*'Casa de Bombas'!$C$19) -> 0 | BK98: 0.02528531925 | BL98: =SUM('Fluxo de Caixa'!$O$15:$O$27)+(BK98*'Casa de Bombas'!$C$19) -> 0 | BP98: -0.06991974744 | BQ98: =SUM('Fluxo de Caixa'!$P$15:$P$27)+(BP98*'Casa de Bombas'!$C$19) -> 0 | BU98: 0.01319243895 | BV98: =SUM('Fluxo de Caixa'!$Q$15:$Q$27)+(BU98*'Casa de Bombas'!$C$19) -> 0 | BZ98: -0.003311501045 | CA98: =SUM('Fluxo de Caixa'!$R$15:$R$27)+(BZ98*'Casa de Bombas'!$C$19) -> 0 | CE98: -0.04066763384 | CF98: =SUM('Fluxo de Caixa'!$S$15:$S$27)+(CE98*'Casa de Bombas'!$C$19) -> 0 | CJ98: 0.01830540181 | CK98: =SUM('Fluxo de Caixa'!$T$15:$T$27)+(CJ98*'Casa de Bombas'!$C$19) -> 0 | CO98: 0.07586149365 | CP98: =SUM('Fluxo de Caixa'!$U$15:$U$27)+(CO98*'Casa de Bombas'!$C$19) -> 0 | CT98: -0.03333840013 | CU98: =SUM('Fluxo de Caixa'!$V$15:$V$27)+(CT98*'Casa de Bombas'!$C$19) -> 0 | CY98: -0.05997262278 | CZ98: =SUM('Fluxo de Caixa'!$W$15:$W$18)+(CY98*'Casa de Bombas'!$C$19) -> 0 | DC98: =DB98*AreaCana*DA98-'Fluxo de Caixa'!W104-'Fluxo de Caixa'!W106 ->  | DD98: 0
B99: 85 | C99: 0 | D99: =D98 -> 0 | E99: 0 | F99: 0 | G99: 0 | H99: -0.0524567071 | I99: =SUM('Fluxo de Caixa'!$D$15:$D$27)+(H99*'Casa de Bombas'!$C$19) -> 0 | M99: 0.03281627992 | N99: =SUM('Fluxo de Caixa'!$E$15:$E$27)+(M99*'Casa de Bombas'!$C$19) -> 0 | R99: -0.001813584922 | S99: =SUM('Fluxo de Caixa'!$F$15:$F$27)+(R99*'Casa de Bombas'!$C$19) -> 0 | W99: -0.05984725497 | X99: =SUM('Fluxo de Caixa'!$G$15:$G$27)+(W99*'Casa de Bombas'!$C$19) -> 0 | AB99: 0.03783112118 | AC99: =SUM('Fluxo de Caixa'!$H$15:$H$27)+(AB99*'Casa de Bombas'!$C$19) -> 0 | AG99: 0.01121862751 | AH99: =SUM('Fluxo de Caixa'!$I$15:$I$27)+(AG99*'Casa de Bombas'!$C$19) -> 0 | AL99: 0.02289619155 | AM99: =SUM('Fluxo de Caixa'!$J$15:$J$27)+(AL99*'Casa de Bombas'!$C$19) -> 0 | AQ99: 0.06860212658 | AR99: =SUM('Fluxo de Caixa'!$K$15:$K$27)+(AQ99*'Casa de Bombas'!$C$19) -> 0 | AV99: 0.07692636729 | AW99: =SUM('Fluxo de Caixa'!$L$15:$L$27)+(AV99*'Casa de Bombas'!$C$19) -> 0 | BA99: 0.0502030581 | BB99: =SUM('Fluxo de Caixa'!$M$15:$M$27)+(BA99*'Casa de Bombas'!$C$19) -> 0 | BF99: -0.02738204314 | BG99: =SUM('Fluxo de Caixa'!$N$15:$N$27)+(BF99*'Casa de Bombas'!$C$19) -> 0 | BK99: 0.02265519381 | BL99: =SUM('Fluxo de Caixa'!$O$15:$O$27)+(BK99*'Casa de Bombas'!$C$19) -> 0 | BP99: -0.08704192257 | BQ99: =SUM('Fluxo de Caixa'!$P$15:$P$27)+(BP99*'Casa de Bombas'!$C$19) -> 0 | BU99: 0.1308955111 | BV99: =SUM('Fluxo de Caixa'!$Q$15:$Q$27)+(BU99*'Casa de Bombas'!$C$19) -> 0 | BZ99: -0.02649472807 | CA99: =SUM('Fluxo de Caixa'!$R$15:$R$27)+(BZ99*'Casa de Bombas'!$C$19) -> 0 | CE99: 0.02134604758 | CF99: =SUM('Fluxo de Caixa'!$S$15:$S$27)+(CE99*'Casa de Bombas'!$C$19) -> 0 | CJ99: -0.0462969986 | CK99: =SUM('Fluxo de Caixa'!$T$15:$T$27)+(CJ99*'Casa de Bombas'!$C$19) -> 0 | CO99: 0.01303049916 | CP99: =SUM('Fluxo de Caixa'!$U$15:$U$27)+(CO99*'Casa de Bombas'!$C$19) -> 0 | CT99: 0.0502061411 | CU99: =SUM('Fluxo de Caixa'!$V$15:$V$27)+(CT99*'Casa de Bombas'!$C$19) -> 0 | CY99: 0.04094110093 | CZ99: =SUM('Fluxo de Caixa'!$W$15:$W$18)+(CY99*'Casa de Bombas'!$C$19) -> 0 | DC99: =DB99*AreaCana*DA99-'Fluxo de Caixa'!W105-'Fluxo de Caixa'!W107 ->  | DD99: 0
B100: 86 | C100: 0 | D100: =D99 -> 0 | E100: 0 | F100: 0 | G100: 0 | H100: 0.008423138726 | I100: =SUM('Fluxo de Caixa'!$D$15:$D$27)+(H100*'Casa de Bombas'!$C$19) -> 0 | M100: -0.01866854993 | N100: =SUM('Fluxo de Caixa'!$E$15:$E$27)+(M100*'Casa de Bombas'!$C$19) -> 0 | R100: -0.0293584567 | S100: =SUM('Fluxo de Caixa'!$F$15:$F$27)+(R100*'Casa de Bombas'!$C$19) -> 0 | W100: 0.04256359066 | X100: =SUM('Fluxo de Caixa'!$G$15:$G$27)+(W100*'Casa de Bombas'!$C$19) -> 0 | AB100: -0.06328113379 | AC100: =SUM('Fluxo de Caixa'!$H$15:$H$27)+(AB100*'Casa de Bombas'!$C$19) -> 0 | AG100: 0.02280762743 | AH100: =SUM('Fluxo de Caixa'!$I$15:$I$27)+(AG100*'Casa de Bombas'!$C$19) -> 0 | AL100: 0.03992888744 | AM100: =SUM('Fluxo de Caixa'!$J$15:$J$27)+(AL100*'Casa de Bombas'!$C$19) -> 0 | AQ100: 0.06704534097 | AR100: =SUM('Fluxo de Caixa'!$K$15:$K$27)+(AQ100*'Casa de Bombas'!$C$19) -> 0 | AV100: 0.005062209891 | AW100: =SUM('Fluxo de Caixa'!$L$15:$L$27)+(AV100*'Casa de Bombas'!$C$19) -> 0 | BA100: 0.004318126657 | BB100: =SUM('Fluxo de Caixa'!$M$15:$M$27)+(BA100*'Casa de Bombas'!$C$19) -> 0 | BF100: -0.001254505704 | BG100: =SUM('Fluxo de Caixa'!$N$15:$N$27)+(BF100*'Casa de Bombas'!$C$19) -> 0 | BK100: -0.03720359119 | BL100: =SUM('Fluxo de Caixa'!$O$15:$O$27)+(BK100*'Casa de Bombas'!$C$19) -> 0 | BP100: 0.02805652401 | BQ100: =SUM('Fluxo de Caixa'!$P$15:$P$27)+(BP100*'Casa de Bombas'!$C$19) -> 0 | BU100: 0.0130269074 | BV100: =SUM('Fluxo de Caixa'!$Q$15:$Q$27)+(BU100*'Casa de Bombas'!$C$19) -> 0 | BZ100: 0.07637998853 | CA100: =SUM('Fluxo de Caixa'!$R$15:$R$27)+(BZ100*'Casa de Bombas'!$C$19) -> 0 | CE100: -0.1054273216 | CF100: =SUM('Fluxo de Caixa'!$S$15:$S$27)+(CE100*'Casa de Bombas'!$C$19) -> 0 | CJ100: 0.02310861704 | CK100: =SUM('Fluxo de Caixa'!$T$15:$T$27)+(CJ100*'Casa de Bombas'!$C$19) -> 0 | CO100: 0.005809339713 | CP100: =SUM('Fluxo de Caixa'!$U$15:$U$27)+(CO100*'Casa de Bombas'!$C$19) -> 0 | CT100: 0.03929955166 | CU100: =SUM('Fluxo de Caixa'!$V$15:$V$27)+(CT100*'Casa de Bombas'!$C$19) -> 0 | CY100: -0.0461197558 | CZ100: =SUM('Fluxo de Caixa'!$W$15:$W$18)+(CY100*'Casa de Bombas'!$C$19) -> 0 | DC100: =DB100*AreaCana*DA100-'Fluxo de Caixa'!W106-'Fluxo de Caixa'!W108 ->  | DD100: 0
B101: 87 | C101: 0 | D101: =D100 -> 0 | E101: 0 | F101: 0 | G101: 0 | H101: -0.002188580331 | I101: =SUM('Fluxo de Caixa'!$D$15:$D$27)+(H101*'Casa de Bombas'!$C$19) -> 0 | M101: -0.04788280833 | N101: =SUM('Fluxo de Caixa'!$E$15:$E$27)+(M101*'Casa de Bombas'!$C$19) -> 0 | R101: 0.05545725132 | S101: =SUM('Fluxo de Caixa'!$F$15:$F$27)+(R101*'Casa de Bombas'!$C$19) -> 0 | W101: 0.01636364051 | X101: =SUM('Fluxo de Caixa'!$G$15:$G$27)+(W101*'Casa de Bombas'!$C$19) -> 0 | AB101: 0.006746330652 | AC101: =SUM('Fluxo de Caixa'!$H$15:$H$27)+(AB101*'Casa de Bombas'!$C$19) -> 0 | AG101: 0.008539125374 | AH101: =SUM('Fluxo de Caixa'!$I$15:$I$27)+(AG101*'Casa de Bombas'!$C$19) -> 0 | AL101: -0.08316192795 | AM101: =SUM('Fluxo de Caixa'!$J$15:$J$27)+(AL101*'Casa de Bombas'!$C$19) -> 0 | AQ101: 0.09920715992 | AR101: =SUM('Fluxo de Caixa'!$K$15:$K$27)+(AQ101*'Casa de Bombas'!$C$19) -> 0 | AV101: 0.0135829631 | AW101: =SUM('Fluxo de Caixa'!$L$15:$L$27)+(AV101*'Casa de Bombas'!$C$19) -> 0 | BA101: -0.06600616264 | BB101: =SUM('Fluxo de Caixa'!$M$15:$M$27)+(BA101*'Casa de Bombas'!$C$19) -> 0 | BF101: -0.03079791984 | BG101: =SUM('Fluxo de Caixa'!$N$15:$N$27)+(BF101*'Casa de Bombas'!$C$19) -> 0 | BK101: 0.0770386723 | BL101: =SUM('Fluxo de Caixa'!$O$15:$O$27)+(BK101*'Casa de Bombas'!$C$19) -> 0 | BP101: -0.06136184098 | BQ101: =SUM('Fluxo de Caixa'!$P$15:$P$27)+(BP101*'Casa de Bombas'!$C$19) -> 0 | BU101: -0.07666548686 | BV101: =SUM('Fluxo de Caixa'!$Q$15:$Q$27)+(BU101*'Casa de Bombas'!$C$19) -> 0 | BZ101: -0.01672339571 | CA101: =SUM('Fluxo de Caixa'!$R$15:$R$27)+(BZ101*'Casa de Bombas'!$C$19) -> 0 | CE101: -0.006441312191 | CF101: =SUM('Fluxo de Caixa'!$S$15:$S$27)+(CE101*'Casa de Bombas'!$C$19) -> 0 | CJ101: 0.03557350585 | CK101: =SUM('Fluxo de Caixa'!$T$15:$T$27)+(CJ101*'Casa de Bombas'!$C$19) -> 0 | CO101: 0.01171426914 | CP101: =SUM('Fluxo de Caixa'!$U$15:$U$27)+(CO101*'Casa de Bombas'!$C$19) -> 0 | CT101: -0.02789214143 | CU101: =SUM('Fluxo de Caixa'!$V$15:$V$27)+(CT101*'Casa de Bombas'!$C$19) -> 0 | CY101: -0.05974697333 | CZ101: =SUM('Fluxo de Caixa'!$W$15:$W$18)+(CY101*'Casa de Bombas'!$C$19) -> 0 | DC101: =DB101*AreaCana*DA101-'Fluxo de Caixa'!W107-'Fluxo de Caixa'!W109 ->  | DD101: 0
B102: 88 | C102: 0 | D102: =D101 -> 0 | E102: 0 | F102: 0 | G102: 0 | H102: -0.05246441995 | I102: =SUM('Fluxo de Caixa'!$D$15:$D$27)+(H102*'Casa de Bombas'!$C$19) -> 0 | M102: -0.08339935296 | N102: =SUM('Fluxo de Caixa'!$E$15:$E$27)+(M102*'Casa de Bombas'!$C$19) -> 0 | R102: 0.004418950411 | S102: =SUM('Fluxo de Caixa'!$F$15:$F$27)+(R102*'Casa de Bombas'!$C$19) -> 0 | W102: 0.009340201281 | X102: =SUM('Fluxo de Caixa'!$G$15:$G$27)+(W102*'Casa de Bombas'!$C$19) -> 0 | AB102: -0.06791582101 | AC102: =SUM('Fluxo de Caixa'!$H$15:$H$27)+(AB102*'Casa de Bombas'!$C$19) -> 0 | AG102: -0.00529211048 | AH102: =SUM('Fluxo de Caixa'!$I$15:$I$27)+(AG102*'Casa de Bombas'!$C$19) -> 0 | AL102: 0.07205712189 | AM102: =SUM('Fluxo de Caixa'!$J$15:$J$27)+(AL102*'Casa de Bombas'!$C$19) -> 0 | AQ102: -0.05292665334 | AR102: =SUM('Fluxo de Caixa'!$K$15:$K$27)+(AQ102*'Casa de Bombas'!$C$19) -> 0 | AV102: -0.0489023368 | AW102: =SUM('Fluxo de Caixa'!$L$15:$L$27)+(AV102*'Casa de Bombas'!$C$19) -> 0 | BA102: -0.07170198774 | BB102: =SUM('Fluxo de Caixa'!$M$15:$M$27)+(BA102*'Casa de Bombas'!$C$19) -> 0 | BF102: -0.06426773414 | BG102: =SUM('Fluxo de Caixa'!$N$15:$N$27)+(BF102*'Casa de Bombas'!$C$19) -> 0 | BK102: -0.07287241583 | BL102: =SUM('Fluxo de Caixa'!$O$15:$O$27)+(BK102*'Casa de Bombas'!$C$19) -> 0 | BP102: 0.07732712985 | BQ102: =SUM('Fluxo de Caixa'!$P$15:$P$27)+(BP102*'Casa de Bombas'!$C$19) -> 0 | BU102: 0.1238381995 | BV102: =SUM('Fluxo de Caixa'!$Q$15:$Q$27)+(BU102*'Casa de Bombas'!$C$19) -> 0 | BZ102: -0.07610852403 | CA102: =SUM('Fluxo de Caixa'!$R$15:$R$27)+(BZ102*'Casa de Bombas'!$C$19) -> 0 | CE102: 0.04502004038 | CF102: =SUM('Fluxo de Caixa'!$S$15:$S$27)+(CE102*'Casa de Bombas'!$C$19) -> 0 | CJ102: 0.01014280587 | CK102: =SUM('Fluxo de Caixa'!$T$15:$T$27)+(CJ102*'Casa de Bombas'!$C$19) -> 0 | CO102: 0.03799086506 | CP102: =SUM('Fluxo de Caixa'!$U$15:$U$27)+(CO102*'Casa de Bombas'!$C$19) -> 0 | CT102: -0.002951671065 | CU102: =SUM('Fluxo de Caixa'!$V$15:$V$27)+(CT102*'Casa de Bombas'!$C$19) -> 0 | CY102: 0.03294064581 | CZ102: =SUM('Fluxo de Caixa'!$W$15:$W$18)+(CY102*'Casa de Bombas'!$C$19) -> 0 | DC102: =DB102*AreaCana*DA102-'Fluxo de Caixa'!W108-'Fluxo de Caixa'!W110 ->  | DD102: 0
B103: 89 | C103: 0 | D103: =D102 -> 0 | E103: 0 | F103: 0 | G103: 0 | H103: 0.0006187659187 | I103: =SUM('Fluxo de Caixa'!$D$15:$D$27)+(H103*'Casa de Bombas'!$C$19) -> 0 | M103: -0.0598056329 | N103: =SUM('Fluxo de Caixa'!$E$15:$E$27)+(M103*'Casa de Bombas'!$C$19) -> 0 | R103: -0.007029302623 | S103: =SUM('Fluxo de Caixa'!$F$15:$F$27)+(R103*'Casa de Bombas'!$C$19) -> 0 | W103: -0.06582023518 | X103: =SUM('Fluxo de Caixa'!$G$15:$G$27)+(W103*'Casa de Bombas'!$C$19) -> 0 | AB103: -0.07851392136 | AC103: =SUM('Fluxo de Caixa'!$H$15:$H$27)+(AB103*'Casa de Bombas'!$C$19) -> 0 | AG103: 0.0171329176 | AH103: =SUM('Fluxo de Caixa'!$I$15:$I$27)+(AG103*'Casa de Bombas'!$C$19) -> 0 | AL103: 0.02838283273 | AM103: =SUM('Fluxo de Caixa'!$J$15:$J$27)+(AL103*'Casa de Bombas'!$C$19) -> 0 | AQ103: 0.0295513336 | AR103: =SUM('Fluxo de Caixa'!$K$15:$K$27)+(AQ103*'Casa de Bombas'!$C$19) -> 0 | AV103: 0.02902746004 | AW103: =SUM('Fluxo de Caixa'!$L$15:$L$27)+(AV103*'Casa de Bombas'!$C$19) -> 0 | BA103: 0.026458766 | BB103: =SUM('Fluxo de Caixa'!$M$15:$M$27)+(BA103*'Casa de Bombas'!$C$19) -> 0 | BF103: -0.03277690241 | BG103: =SUM('Fluxo de Caixa'!$N$15:$N$27)+(BF103*'Casa de Bombas'!$C$19) -> 0 | BK103: 0.03717792352 | BL103: =SUM('Fluxo de Caixa'!$O$15:$O$27)+(BK103*'Casa de Bombas'!$C$19) -> 0 | BP103: 0.02362810139 | BQ103: =SUM('Fluxo de Caixa'!$P$15:$P$27)+(BP103*'Casa de Bombas'!$C$19) -> 0 | BU103: -0.01197829355 | BV103: =SUM('Fluxo de Caixa'!$Q$15:$Q$27)+(BU103*'Casa de Bombas'!$C$19) -> 0 | BZ103: -0.02297487434 | CA103: =SUM('Fluxo de Caixa'!$R$15:$R$27)+(BZ103*'Casa de Bombas'!$C$19) -> 0 | CE103: -0.1168765705 | CF103: =SUM('Fluxo de Caixa'!$S$15:$S$27)+(CE103*'Casa de Bombas'!$C$19) -> 0 | CJ103: -0.05953907275 | CK103: =SUM('Fluxo de Caixa'!$T$15:$T$27)+(CJ103*'Casa de Bombas'!$C$19) -> 0 | CO103: 0.01295855206 | CP103: =SUM('Fluxo de Caixa'!$U$15:$U$27)+(CO103*'Casa de Bombas'!$C$19) -> 0 | CT103: -0.09126922816 | CU103: =SUM('Fluxo de Caixa'!$V$15:$V$27)+(CT103*'Casa de Bombas'!$C$19) -> 0 | CY103: 0.04479965601 | CZ103: =SUM('Fluxo de Caixa'!$W$15:$W$18)+(CY103*'Casa de Bombas'!$C$19) -> 0 | DC103: =DB103*AreaCana*DA103-'Fluxo de Caixa'!W109-'Fluxo de Caixa'!W111 ->  | DD103: 0
B104: 90 | C104: 0 | D104: =D103 -> 0 | E104: 0 | F104: 0 | G104: 0 | H104: 0.04318728284 | I104: =SUM('Fluxo de Caixa'!$D$15:$D$27)+(H104*'Casa de Bombas'!$C$19) -> 0 | M104: 0.01938164822 | N104: =SUM('Fluxo de Caixa'!$E$15:$E$27)+(M104*'Casa de Bombas'!$C$19) -> 0 | R104: 0.01331626065 | S104: =SUM('Fluxo de Caixa'!$F$15:$F$27)+(R104*'Casa de Bombas'!$C$19) -> 0 | W104: -0.02561706549 | X104: =SUM('Fluxo de Caixa'!$G$15:$G$27)+(W104*'Casa de Bombas'!$C$19) -> 0 | AB104: 0.04761399248 | AC104: =SUM('Fluxo de Caixa'!$H$15:$H$27)+(AB104*'Casa de Bombas'!$C$19) -> 0 | AG104: 0.09464966125 | AH104: =SUM('Fluxo de Caixa'!$I$15:$I$27)+(AG104*'Casa de Bombas'!$C$19) -> 0 | AL104: -0.06044002408 | AM104: =SUM('Fluxo de Caixa'!$J$15:$J$27)+(AL104*'Casa de Bombas'!$C$19) -> 0 | AQ104: 0.03832322813 | AR104: =SUM('Fluxo de Caixa'!$K$15:$K$27)+(AQ104*'Casa de Bombas'!$C$19) -> 0 | AV104: 0.0793507877 | AW104: =SUM('Fluxo de Caixa'!$L$15:$L$27)+(AV104*'Casa de Bombas'!$C$19) -> 0 | BA104: 0.0235250204 | BB104: =SUM('Fluxo de Caixa'!$M$15:$M$27)+(BA104*'Casa de Bombas'!$C$19) -> 0 | BF104: -0.03572065282 | BG104: =SUM('Fluxo de Caixa'!$N$15:$N$27)+(BF104*'Casa de Bombas'!$C$19) -> 0 | BK104: -0.03819230267 | BL104: =SUM('Fluxo de Caixa'!$O$15:$O$27)+(BK104*'Casa de Bombas'!$C$19) -> 0 | BP104: 0.06256415817 | BQ104: =SUM('Fluxo de Caixa'!$P$15:$P$27)+(BP104*'Casa de Bombas'!$C$19) -> 0 | BU104: 0.04148546195 | BV104: =SUM('Fluxo de Caixa'!$Q$15:$Q$27)+(BU104*'Casa de Bombas'!$C$19) -> 0 | BZ104: -0.0913085207 | CA104: =SUM('Fluxo de Caixa'!$R$15:$R$27)+(BZ104*'Casa de Bombas'!$C$19) -> 0 | CE104: 0.006353125351 | CF104: =SUM('Fluxo de Caixa'!$S$15:$S$27)+(CE104*'Casa de Bombas'!$C$19) -> 0 | CJ104: 0.005848131997 | CK104: =SUM('Fluxo de Caixa'!$T$15:$T$27)+(CJ104*'Casa de Bombas'!$C$19) -> 0 | CO104: 0.02762105749 | CP104: =SUM('Fluxo de Caixa'!$U$15:$U$27)+(CO104*'Casa de Bombas'!$C$19) -> 0 | CT104: -0.02877963455 | CU104: =SUM('Fluxo de Caixa'!$V$15:$V$27)+(CT104*'Casa de Bombas'!$C$19) -> 0 | CY104: -0.01128297346 | CZ104: =SUM('Fluxo de Caixa'!$W$15:$W$18)+(CY104*'Casa de Bombas'!$C$19) -> 0 | DC104: =DB104*AreaCana*DA104-'Fluxo de Caixa'!W110-'Fluxo de Caixa'!W112 ->  | DD104: 0
B105: 91 | C105: 0 | D105: =D104 -> 0 | E105: 0 | F105: 0 | G105: 0 | H105: 0.03903660174 | I105: =SUM('Fluxo de Caixa'!$D$15:$D$27)+(H105*'Casa de Bombas'!$C$19) -> 0 | M105: -0.03010726506 | N105: =SUM('Fluxo de Caixa'!$E$15:$E$27)+(M105*'Casa de Bombas'!$C$19) -> 0 | R105: 0.04853308739 | S105: =SUM('Fluxo de Caixa'!$F$15:$F$27)+(R105*'Casa de Bombas'!$C$19) -> 0 | W105: -0.009015208214 | X105: =SUM('Fluxo de Caixa'!$G$15:$G$27)+(W105*'Casa de Bombas'!$C$19) -> 0 | AB105: -0.01228306234 | AC105: =SUM('Fluxo de Caixa'!$H$15:$H$27)+(AB105*'Casa de Bombas'!$C$19) -> 0 | AG105: -0.003748097706 | AH105: =SUM('Fluxo de Caixa'!$I$15:$I$27)+(AG105*'Casa de Bombas'!$C$19) -> 0 | AL105: 0.02758258469 | AM105: =SUM('Fluxo de Caixa'!$J$15:$J$27)+(AL105*'Casa de Bombas'!$C$19) -> 0 | AQ105: -0.06064674951 | AR105: =SUM('Fluxo de Caixa'!$K$15:$K$27)+(AQ105*'Casa de Bombas'!$C$19) -> 0 | AV105: -0.004878505512 | AW105: =SUM('Fluxo de Caixa'!$L$15:$L$27)+(AV105*'Casa de Bombas'!$C$19) -> 0 | BA105: 0.02394855494 | BB105: =SUM('Fluxo de Caixa'!$M$15:$M$27)+(BA105*'Casa de Bombas'!$C$19) -> 0 | BF105: -0.08250724476 | BG105: =SUM('Fluxo de Caixa'!$N$15:$N$27)+(BF105*'Casa de Bombas'!$C$19) -> 0 | BK105: 0.03717963285 | BL105: =SUM('Fluxo de Caixa'!$O$15:$O$27)+(BK105*'Casa de Bombas'!$C$19) -> 0 | BP105: -0.07934689091 | BQ105: =SUM('Fluxo de Caixa'!$P$15:$P$27)+(BP105*'Casa de Bombas'!$C$19) -> 0 | BU105: -0.1071844129 | BV105: =SUM('Fluxo de Caixa'!$Q$15:$Q$27)+(BU105*'Casa de Bombas'!$C$19) -> 0 | BZ105: -0.1291315074 | CA105: =SUM('Fluxo de Caixa'!$R$15:$R$27)+(BZ105*'Casa de Bombas'!$C$19) -> 0 | CE105: 0.0006933524204 | CF105: =SUM('Fluxo de Caixa'!$S$15:$S$27)+(CE105*'Casa de Bombas'!$C$19) -> 0 | CJ105: 0.05969651312 | CK105: =SUM('Fluxo de Caixa'!$T$15:$T$27)+(CJ105*'Casa de Bombas'!$C$19) -> 0 | CO105: 0.007119556373 | CP105: =SUM('Fluxo de Caixa'!$U$15:$U$27)+(CO105*'Casa de Bombas'!$C$19) -> 0 | CT105: 0.00726993772 | CU105: =SUM('Fluxo de Caixa'!$V$15:$V$27)+(CT105*'Casa de Bombas'!$C$19) -> 0 | CY105: -0.04945824645 | CZ105: =SUM('Fluxo de Caixa'!$W$15:$W$18)+(CY105*'Casa de Bombas'!$C$19) -> 0 | DC105: =DB105*AreaCana*DA105-'Fluxo de Caixa'!W111-'Fluxo de Caixa'!W113 ->  | DD105: 0
B106: 92 | C106: 0 | D106: =D105 -> 0 | E106: 0 | F106: 0 | G106: 0 | H106: -0.01041401244 | I106: =SUM('Fluxo de Caixa'!$D$15:$D$27)+(H106*'Casa de Bombas'!$C$19) -> 0 | M106: -0.09458195214 | N106: =SUM('Fluxo de Caixa'!$E$15:$E$27)+(M106*'Casa de Bombas'!$C$19) -> 0 | R106: -0.04956809192 | S106: =SUM('Fluxo de Caixa'!$F$15:$F$27)+(R106*'Casa de Bombas'!$C$19) -> 0 | W106: -0.05218168831 | X106: =SUM('Fluxo de Caixa'!$G$15:$G$27)+(W106*'Casa de Bombas'!$C$19) -> 0 | AB106: 0.05281005509 | AC106: =SUM('Fluxo de Caixa'!$H$15:$H$27)+(AB106*'Casa de Bombas'!$C$19) -> 0 | AG106: -0.06733160811 | AH106: =SUM('Fluxo de Caixa'!$I$15:$I$27)+(AG106*'Casa de Bombas'!$C$19) -> 0 | AL106: 0.04698910677 | AM106: =SUM('Fluxo de Caixa'!$J$15:$J$27)+(AL106*'Casa de Bombas'!$C$19) -> 0 | AQ106: -0.05873883047 | AR106: =SUM('Fluxo de Caixa'!$K$15:$K$27)+(AQ106*'Casa de Bombas'!$C$19) -> 0 | AV106: -0.03247766957 | AW106: =SUM('Fluxo de Caixa'!$L$15:$L$27)+(AV106*'Casa de Bombas'!$C$19) -> 0 | BA106: -0.01851825909 | BB106: =SUM('Fluxo de Caixa'!$M$15:$M$27)+(BA106*'Casa de Bombas'!$C$19) -> 0 | BF106: 0.1298413187 | BG106: =SUM('Fluxo de Caixa'!$N$15:$N$27)+(BF106*'Casa de Bombas'!$C$19) -> 0 | BK106: 0.09238680874 | BL106: =SUM('Fluxo de Caixa'!$O$15:$O$27)+(BK106*'Casa de Bombas'!$C$19) -> 0 | BP106: 0.01013289364 | BQ106: =SUM('Fluxo de Caixa'!$P$15:$P$27)+(BP106*'Casa de Bombas'!$C$19) -> 0 | BU106: -0.0275904264 | BV106: =SUM('Fluxo de Caixa'!$Q$15:$Q$27)+(BU106*'Casa de Bombas'!$C$19) -> 0 | BZ106: 0.06179973617 | CA106: =SUM('Fluxo de Caixa'!$R$15:$R$27)+(BZ106*'Casa de Bombas'!$C$19) -> 0 | CE106: 0.07667830139 | CF106: =SUM('Fluxo de Caixa'!$S$15:$S$27)+(CE106*'Casa de Bombas'!$C$19) -> 0 | CJ106: -0.04538478575 | CK106: =SUM('Fluxo de Caixa'!$T$15:$T$27)+(CJ106*'Casa de Bombas'!$C$19) -> 0 | CO106: 0.1482482538 | CP106: =SUM('Fluxo de Caixa'!$U$15:$U$27)+(CO106*'Casa de Bombas'!$C$19) -> 0 | CT106: -0.01358425507 | CU106: =SUM('Fluxo de Caixa'!$V$15:$V$27)+(CT106*'Casa de Bombas'!$C$19) -> 0 | CY106: 0.08328631733 | CZ106: =SUM('Fluxo de Caixa'!$W$15:$W$18)+(CY106*'Casa de Bombas'!$C$19) -> 0 | DC106: =DB106*AreaCana*DA106-'Fluxo de Caixa'!W112-'Fluxo de Caixa'!W114 ->  | DD106: 0
B107: 93 | C107: 0 | D107: =D106 -> 0 | E107: 0 | F107: 0 | G107: 0 | H107: 0.006368475975 | I107: =SUM('Fluxo de Caixa'!$D$15:$D$27)+(H107*'Casa de Bombas'!$C$19) -> 0 | M107: -0.02932387577 | N107: =SUM('Fluxo de Caixa'!$E$15:$E$27)+(M107*'Casa de Bombas'!$C$19) -> 0 | R107: -0.01617053116 | S107: =SUM('Fluxo de Caixa'!$F$15:$F$27)+(R107*'Casa de Bombas'!$C$19) -> 0 | W107: -0.008329223488 | X107: =SUM('Fluxo de Caixa'!$G$15:$G$27)+(W107*'Casa de Bombas'!$C$19) -> 0 | AB107: -0.002434108448 | AC107: =SUM('Fluxo de Caixa'!$H$15:$H$27)+(AB107*'Casa de Bombas'!$C$19) -> 0 | AG107: -0.1078033937 | AH107: =SUM('Fluxo de Caixa'!$I$15:$I$27)+(AG107*'Casa de Bombas'!$C$19) -> 0 | AL107: 0.01192078303 | AM107: =SUM('Fluxo de Caixa'!$J$15:$J$27)+(AL107*'Casa de Bombas'!$C$19) -> 0 | AQ107: -0.01323871761 | AR107: =SUM('Fluxo de Caixa'!$K$15:$K$27)+(AQ107*'Casa de Bombas'!$C$19) -> 0 | AV107: -0.007128244485 | AW107: =SUM('Fluxo de Caixa'!$L$15:$L$27)+(AV107*'Casa de Bombas'!$C$19) -> 0 | BA107: -0.1208920064 | BB107: =SUM('Fluxo de Caixa'!$M$15:$M$27)+(BA107*'Casa de Bombas'!$C$19) -> 0 | BF107: -0.02297163697 | BG107: =SUM('Fluxo de Caixa'!$N$15:$N$27)+(BF107*'Casa de Bombas'!$C$19) -> 0 | BK107: -0.04221642353 | BL107: =SUM('Fluxo de Caixa'!$O$15:$O$27)+(BK107*'Casa de Bombas'!$C$19) -> 0 | BP107: -0.04572832385 | BQ107: =SUM('Fluxo de Caixa'!$P$15:$P$27)+(BP107*'Casa de Bombas'!$C$19) -> 0 | BU107: -0.04030688421 | BV107: =SUM('Fluxo de Caixa'!$Q$15:$Q$27)+(BU107*'Casa de Bombas'!$C$19) -> 0 | BZ107: 0.00501672692 | CA107: =SUM('Fluxo de Caixa'!$R$15:$R$27)+(BZ107*'Casa de Bombas'!$C$19) -> 0 | CE107: 0.04089925473 | CF107: =SUM('Fluxo de Caixa'!$S$15:$S$27)+(CE107*'Casa de Bombas'!$C$19) -> 0 | CJ107: 0.05978453574 | CK107: =SUM('Fluxo de Caixa'!$T$15:$T$27)+(CJ107*'Casa de Bombas'!$C$19) -> 0 | CO107: -0.01684133945 | CP107: =SUM('Fluxo de Caixa'!$U$15:$U$27)+(CO107*'Casa de Bombas'!$C$19) -> 0 | CT107: -0.06282833097 | CU107: =SUM('Fluxo de Caixa'!$V$15:$V$27)+(CT107*'Casa de Bombas'!$C$19) -> 0 | CY107: -0.03549211334 | CZ107: =SUM('Fluxo de Caixa'!$W$15:$W$18)+(CY107*'Casa de Bombas'!$C$19) -> 0 | DC107: =DB107*AreaCana*DA107-'Fluxo de Caixa'!W113-'Fluxo de Caixa'!W115 ->  | DD107: 0
B108: 94 | C108: 0 | D108: =D107 -> 0 | E108: 0 | F108: 0 | G108: 0 | H108: -0.04690937051 | I108: =SUM('Fluxo de Caixa'!$D$15:$D$27)+(H108*'Casa de Bombas'!$C$19) -> 0 | M108: 0.02041283337 | N108: =SUM('Fluxo de Caixa'!$E$15:$E$27)+(M108*'Casa de Bombas'!$C$19) -> 0 | R108: 0.008158647262 | S108: =SUM('Fluxo de Caixa'!$F$15:$F$27)+(R108*'Casa de Bombas'!$C$19) -> 0 | W108: 0.1275803409 | X108: =SUM('Fluxo de Caixa'!$G$15:$G$27)+(W108*'Casa de Bombas'!$C$19) -> 0 | AB108: 0.05692081316 | AC108: =SUM('Fluxo de Caixa'!$H$15:$H$27)+(AB108*'Casa de Bombas'!$C$19) -> 0 | AG108: 0.03124618967 | AH108: =SUM('Fluxo de Caixa'!$I$15:$I$27)+(AG108*'Casa de Bombas'!$C$19) -> 0 | AL108: 0.01335127104 | AM108: =SUM('Fluxo de Caixa'!$J$15:$J$27)+(AL108*'Casa de Bombas'!$C$19) -> 0 | AQ108: 0.01012071301 | AR108: =SUM('Fluxo de Caixa'!$K$15:$K$27)+(AQ108*'Casa de Bombas'!$C$19) -> 0 | AV108: -0.02590594972 | AW108: =SUM('Fluxo de Caixa'!$L$15:$L$27)+(AV108*'Casa de Bombas'!$C$19) -> 0 | BA108: -0.0352485833 | BB108: =SUM('Fluxo de Caixa'!$M$15:$M$27)+(BA108*'Casa de Bombas'!$C$19) -> 0 | BF108: 0.04240016441 | BG108: =SUM('Fluxo de Caixa'!$N$15:$N$27)+(BF108*'Casa de Bombas'!$C$19) -> 0 | BK108: -0.02276708146 | BL108: =SUM('Fluxo de Caixa'!$O$15:$O$27)+(BK108*'Casa de Bombas'!$C$19) -> 0 | BP108: 0.1085550674 | BQ108: =SUM('Fluxo de Caixa'!$P$15:$P$27)+(BP108*'Casa de Bombas'!$C$19) -> 0 | BU108: -0.03880831223 | BV108: =SUM('Fluxo de Caixa'!$Q$15:$Q$27)+(BU108*'Casa de Bombas'!$C$19) -> 0 | BZ108: -0.01437725676 | CA108: =SUM('Fluxo de Caixa'!$R$15:$R$27)+(BZ108*'Casa de Bombas'!$C$19) -> 0 | CE108: -0.0312859969 | CF108: =SUM('Fluxo de Caixa'!$S$15:$S$27)+(CE108*'Casa de Bombas'!$C$19) -> 0 | CJ108: 0.0254301149 | CK108: =SUM('Fluxo de Caixa'!$T$15:$T$27)+(CJ108*'Casa de Bombas'!$C$19) -> 0 | CO108: -0.1201758623 | CP108: =SUM('Fluxo de Caixa'!$U$15:$U$27)+(CO108*'Casa de Bombas'!$C$19) -> 0 | CT108: 0.07259595673 | CU108: =SUM('Fluxo de Caixa'!$V$15:$V$27)+(CT108*'Casa de Bombas'!$C$19) -> 0 | CY108: -0.02521947576 | CZ108: =SUM('Fluxo de Caixa'!$W$15:$W$18)+(CY108*'Casa de Bombas'!$C$19) -> 0 | DC108: =DB108*AreaCana*DA108-'Fluxo de Caixa'!W114-'Fluxo de Caixa'!W116 ->  | DD108: 0
B109: 95 | C109: 0 | D109: =D108 -> 0 | E109: 0 | F109: 0 | G109: 0 | H109: 0.023598506 | I109: =SUM('Fluxo de Caixa'!$D$15:$D$27)+(H109*'Casa de Bombas'!$C$19) -> 0 | M109: 0.02174146828 | N109: =SUM('Fluxo de Caixa'!$E$15:$E$27)+(M109*'Casa de Bombas'!$C$19) -> 0 | R109: 0.07752082804 | S109: =SUM('Fluxo de Caixa'!$F$15:$F$27)+(R109*'Casa de Bombas'!$C$19) -> 0 | W109: 0.06610657433 | X109: =SUM('Fluxo de Caixa'!$G$15:$G$27)+(W109*'Casa de Bombas'!$C$19) -> 0 | AB109: -0.009244300523 | AC109: =SUM('Fluxo de Caixa'!$H$15:$H$27)+(AB109*'Casa de Bombas'!$C$19) -> 0 | AG109: -0.1145914657 | AH109: =SUM('Fluxo de Caixa'!$I$15:$I$27)+(AG109*'Casa de Bombas'!$C$19) -> 0 | AL109: 0.001878125964 | AM109: =SUM('Fluxo de Caixa'!$J$15:$J$27)+(AL109*'Casa de Bombas'!$C$19) -> 0 | AQ109: -0.02826553873 | AR109: =SUM('Fluxo de Caixa'!$K$15:$K$27)+(AQ109*'Casa de Bombas'!$C$19) -> 0 | AV109: -0.06239334791 | AW109: =SUM('Fluxo de Caixa'!$L$15:$L$27)+(AV109*'Casa de Bombas'!$C$19) -> 0 | BA109: 0.01580133507 | BB109: =SUM('Fluxo de Caixa'!$M$15:$M$27)+(BA109*'Casa de Bombas'!$C$19) -> 0 | BF109: 0.02173779662 | BG109: =SUM('Fluxo de Caixa'!$N$15:$N$27)+(BF109*'Casa de Bombas'!$C$19) -> 0 | BK109: 0.01672093854 | BL109: =SUM('Fluxo de Caixa'!$O$15:$O$27)+(BK109*'Casa de Bombas'!$C$19) -> 0 | BP109: 0.006577401815 | BQ109: =SUM('Fluxo de Caixa'!$P$15:$P$27)+(BP109*'Casa de Bombas'!$C$19) -> 0 | BU109: 0.08274544263 | BV109: =SUM('Fluxo de Caixa'!$Q$15:$Q$27)+(BU109*'Casa de Bombas'!$C$19) -> 0 | BZ109: -0.06961520938 | CA109: =SUM('Fluxo de Caixa'!$R$15:$R$27)+(BZ109*'Casa de Bombas'!$C$19) -> 0 | CE109: -0.01056731597 | CF109: =SUM('Fluxo de Caixa'!$S$15:$S$27)+(CE109*'Casa de Bombas'!$C$19) -> 0 | CJ109: 0.04595859435 | CK109: =SUM('Fluxo de Caixa'!$T$15:$T$27)+(CJ109*'Casa de Bombas'!$C$19) -> 0 | CO109: -0.05778108876 | CP109: =SUM('Fluxo de Caixa'!$U$15:$U$27)+(CO109*'Casa de Bombas'!$C$19) -> 0 | CT109: -0.04640872838 | CU109: =SUM('Fluxo de Caixa'!$V$15:$V$27)+(CT109*'Casa de Bombas'!$C$19) -> 0 | CY109: -0.02743902493 | CZ109: =SUM('Fluxo de Caixa'!$W$15:$W$18)+(CY109*'Casa de Bombas'!$C$19) -> 0 | DC109: =DB109*AreaCana*DA109-'Fluxo de Caixa'!W115-'Fluxo de Caixa'!W117 ->  | DD109: 0
B110: 96 | C110: 0 | D110: =D109 -> 0 | E110: 0 | F110: 0 | G110: 0 | H110: 0.03741179914 | I110: =SUM('Fluxo de Caixa'!$D$15:$D$27)+(H110*'Casa de Bombas'!$C$19) -> 0 | M110: 0.01734608698 | N110: =SUM('Fluxo de Caixa'!$E$15:$E$27)+(M110*'Casa de Bombas'!$C$19) -> 0 | R110: 0.02914769679 | S110: =SUM('Fluxo de Caixa'!$F$15:$F$27)+(R110*'Casa de Bombas'!$C$19) -> 0 | W110: -0.04560804411 | X110: =SUM('Fluxo de Caixa'!$G$15:$G$27)+(W110*'Casa de Bombas'!$C$19) -> 0 | AB110: -0.01311254463 | AC110: =SUM('Fluxo de Caixa'!$H$15:$H$27)+(AB110*'Casa de Bombas'!$C$19) -> 0 | AG110: 0.005435689471 | AH110: =SUM('Fluxo de Caixa'!$I$15:$I$27)+(AG110*'Casa de Bombas'!$C$19) -> 0 | AL110: 0.02301862382 | AM110: =SUM('Fluxo de Caixa'!$J$15:$J$27)+(AL110*'Casa de Bombas'!$C$19) -> 0 | AQ110: -0.05196307578 | AR110: =SUM('Fluxo de Caixa'!$K$15:$K$27)+(AQ110*'Casa de Bombas'!$C$19) -> 0 | AV110: -0.003614576658 | AW110: =SUM('Fluxo de Caixa'!$L$15:$L$27)+(AV110*'Casa de Bombas'!$C$19) -> 0 | BA110: -0.01054809493 | BB110: =SUM('Fluxo de Caixa'!$M$15:$M$27)+(BA110*'Casa de Bombas'!$C$19) -> 0 | BF110: -0.07485031863 | BG110: =SUM('Fluxo de Caixa'!$N$15:$N$27)+(BF110*'Casa de Bombas'!$C$19) -> 0 | BK110: 0.05042870464 | BL110: =SUM('Fluxo de Caixa'!$O$15:$O$27)+(BK110*'Casa de Bombas'!$C$19) -> 0 | BP110: 0.0785615783 | BQ110: =SUM('Fluxo de Caixa'!$P$15:$P$27)+(BP110*'Casa de Bombas'!$C$19) -> 0 | BU110: 0.05736331877 | BV110: =SUM('Fluxo de Caixa'!$Q$15:$Q$27)+(BU110*'Casa de Bombas'!$C$19) -> 0 | BZ110: 0.01506512332 | CA110: =SUM('Fluxo de Caixa'!$R$15:$R$27)+(BZ110*'Casa de Bombas'!$C$19) -> 0 | CE110: -0.0624534727 | CF110: =SUM('Fluxo de Caixa'!$S$15:$S$27)+(CE110*'Casa de Bombas'!$C$19) -> 0 | CJ110: 0.1135805984 | CK110: =SUM('Fluxo de Caixa'!$T$15:$T$27)+(CJ110*'Casa de Bombas'!$C$19) -> 0 | CO110: -0.006091102406 | CP110: =SUM('Fluxo de Caixa'!$U$15:$U$27)+(CO110*'Casa de Bombas'!$C$19) -> 0 | CT110: -0.03439867664 | CU110: =SUM('Fluxo de Caixa'!$V$15:$V$27)+(CT110*'Casa de Bombas'!$C$19) -> 0 | CY110: -0.02134781197 | CZ110: =SUM('Fluxo de Caixa'!$W$15:$W$18)+(CY110*'Casa de Bombas'!$C$19) -> 0 | DC110: =DB110*AreaCana*DA110-'Fluxo de Caixa'!W116-'Fluxo de Caixa'!W118 ->  | DD110: 0
B111: 97 | C111: 0 | D111: =D110 -> 0 | E111: 0 | F111: 0 | G111: 0 | H111: -0.01219806926 | I111: =SUM('Fluxo de Caixa'!$D$15:$D$27)+(H111*'Casa de Bombas'!$C$19) -> 0 | M111: -0.05888670394 | N111: =SUM('Fluxo de Caixa'!$E$15:$E$27)+(M111*'Casa de Bombas'!$C$19) -> 0 | R111: 0.0586976233 | S111: =SUM('Fluxo de Caixa'!$F$15:$F$27)+(R111*'Casa de Bombas'!$C$19) -> 0 | W111: -0.01217103218 | X111: =SUM('Fluxo de Caixa'!$G$15:$G$27)+(W111*'Casa de Bombas'!$C$19) -> 0 | AB111: -0.02537894835 | AC111: =SUM('Fluxo de Caixa'!$H$15:$H$27)+(AB111*'Casa de Bombas'!$C$19) -> 0 | AG111: -0.001022543027 | AH111: =SUM('Fluxo de Caixa'!$I$15:$I$27)+(AG111*'Casa de Bombas'!$C$19) -> 0 | AL111: 0.01388759371 | AM111: =SUM('Fluxo de Caixa'!$J$15:$J$27)+(AL111*'Casa de Bombas'!$C$19) -> 0 | AQ111: -0.01975673524 | AR111: =SUM('Fluxo de Caixa'!$K$15:$K$27)+(AQ111*'Casa de Bombas'!$C$19) -> 0 | AV111: -0.05458366612 | AW111: =SUM('Fluxo de Caixa'!$L$15:$L$27)+(AV111*'Casa de Bombas'!$C$19) -> 0 | BA111: 0.05958448217 | BB111: =SUM('Fluxo de Caixa'!$M$15:$M$27)+(BA111*'Casa de Bombas'!$C$19) -> 0 | BF111: -0.06328724923 | BG111: =SUM('Fluxo de Caixa'!$N$15:$N$27)+(BF111*'Casa de Bombas'!$C$19) -> 0 | BK111: -0.05200673308 | BL111: =SUM('Fluxo de Caixa'!$O$15:$O$27)+(BK111*'Casa de Bombas'!$C$19) -> 0 | BP111: -0.0147629412 | BQ111: =SUM('Fluxo de Caixa'!$P$15:$P$27)+(BP111*'Casa de Bombas'!$C$19) -> 0 | BU111: 0.0568828723 | BV111: =SUM('Fluxo de Caixa'!$Q$15:$Q$27)+(BU111*'Casa de Bombas'!$C$19) -> 0 | BZ111: 0.05949302384 | CA111: =SUM('Fluxo de Caixa'!$R$15:$R$27)+(BZ111*'Casa de Bombas'!$C$19) -> 0 | CE111: -0.05719032639 | CF111: =SUM('Fluxo de Caixa'!$S$15:$S$27)+(CE111*'Casa de Bombas'!$C$19) -> 0 | CJ111: 0.06632040585 | CK111: =SUM('Fluxo de Caixa'!$T$15:$T$27)+(CJ111*'Casa de Bombas'!$C$19) -> 0 | CO111: 0.01260090686 | CP111: =SUM('Fluxo de Caixa'!$U$15:$U$27)+(CO111*'Casa de Bombas'!$C$19) -> 0 | CT111: 0.03690360599 | CU111: =SUM('Fluxo de Caixa'!$V$15:$V$27)+(CT111*'Casa de Bombas'!$C$19) -> 0 | CY111: 0.029467674 | CZ111: =SUM('Fluxo de Caixa'!$W$15:$W$18)+(CY111*'Casa de Bombas'!$C$19) -> 0 | DC111: =DB111*AreaCana*DA111-'Fluxo de Caixa'!W117-'Fluxo de Caixa'!W119 ->  | DD111: 0
B112: 98 | C112: 0 | D112: =D111 -> 0 | E112: 0 | F112: 0 | G112: 0 | H112: -0.01143551695 | I112: =SUM('Fluxo de Caixa'!$D$15:$D$27)+(H112*'Casa de Bombas'!$C$19) -> 0 | M112: 0.07817145477 | N112: =SUM('Fluxo de Caixa'!$E$15:$E$27)+(M112*'Casa de Bombas'!$C$19) -> 0 | R112: 0.01793213065 | S112: =SUM('Fluxo de Caixa'!$F$15:$F$27)+(R112*'Casa de Bombas'!$C$19) -> 0 | W112: 0.01223851287 | X112: =SUM('Fluxo de Caixa'!$G$15:$G$27)+(W112*'Casa de Bombas'!$C$19) -> 0 | AB112: 0.06078793762 | AC112: =SUM('Fluxo de Caixa'!$H$15:$H$27)+(AB112*'Casa de Bombas'!$C$19) -> 0 | AG112: 0.01667789964 | AH112: =SUM('Fluxo de Caixa'!$I$15:$I$27)+(AG112*'Casa de Bombas'!$C$19) -> 0 | AL112: -0.01443809237 | AM112: =SUM('Fluxo de Caixa'!$J$15:$J$27)+(AL112*'Casa de Bombas'!$C$19) -> 0 | AQ112: -0.03292685481 | AR112: =SUM('Fluxo de Caixa'!$K$15:$K$27)+(AQ112*'Casa de Bombas'!$C$19) -> 0 | AV112: 0.03214242784 | AW112: =SUM('Fluxo de Caixa'!$L$15:$L$27)+(AV112*'Casa de Bombas'!$C$19) -> 0 | BA112: 0.001404075927 | BB112: =SUM('Fluxo de Caixa'!$M$15:$M$27)+(BA112*'Casa de Bombas'!$C$19) -> 0 | BF112: 0.06370948064 | BG112: =SUM('Fluxo de Caixa'!$N$15:$N$27)+(BF112*'Casa de Bombas'!$C$19) -> 0 | BK112: 0.02799365974 | BL112: =SUM('Fluxo de Caixa'!$O$15:$O$27)+(BK112*'Casa de Bombas'!$C$19) -> 0 | BP112: 0.01027237316 | BQ112: =SUM('Fluxo de Caixa'!$P$15:$P$27)+(BP112*'Casa de Bombas'!$C$19) -> 0 | BU112: 0.02403747198 | BV112: =SUM('Fluxo de Caixa'!$Q$15:$Q$27)+(BU112*'Casa de Bombas'!$C$19) -> 0 | BZ112: 0.06576255078 | CA112: =SUM('Fluxo de Caixa'!$R$15:$R$27)+(BZ112*'Casa de Bombas'!$C$19) -> 0 | CE112: 0.02993672404 | CF112: =SUM('Fluxo de Caixa'!$S$15:$S$27)+(CE112*'Casa de Bombas'!$C$19) -> 0 | CJ112: 0.01923608057 | CK112: =SUM('Fluxo de Caixa'!$T$15:$T$27)+(CJ112*'Casa de Bombas'!$C$19) -> 0 | CO112: 0.06719069908 | CP112: =SUM('Fluxo de Caixa'!$U$15:$U$27)+(CO112*'Casa de Bombas'!$C$19) -> 0 | CT112: -0.06250499325 | CU112: =SUM('Fluxo de Caixa'!$V$15:$V$27)+(CT112*'Casa de Bombas'!$C$19) -> 0 | CY112: 0.02938347369 | CZ112: =SUM('Fluxo de Caixa'!$W$15:$W$18)+(CY112*'Casa de Bombas'!$C$19) -> 0 | DC112: =DB112*AreaCana*DA112-'Fluxo de Caixa'!W118-'Fluxo de Caixa'!W120 ->  | DD112: 0
B113: 99 | C113: 0 | D113: =D112 -> 0 | E113: 0 | F113: 0 | G113: 0 | H113: -0.05275605696 | I113: =SUM('Fluxo de Caixa'!$D$15:$D$27)+(H113*'Casa de Bombas'!$C$19) -> 0 | M113: -0.02707005017 | N113: =SUM('Fluxo de Caixa'!$E$15:$E$27)+(M113*'Casa de Bombas'!$C$19) -> 0 | R113: 0.05356340252 | S113: =SUM('Fluxo de Caixa'!$F$15:$F$27)+(R113*'Casa de Bombas'!$C$19) -> 0 | W113: -0.03671567687 | X113: =SUM('Fluxo de Caixa'!$G$15:$G$27)+(W113*'Casa de Bombas'!$C$19) -> 0 | AB113: 0.007671311922 | AC113: =SUM('Fluxo de Caixa'!$H$15:$H$27)+(AB113*'Casa de Bombas'!$C$19) -> 0 | AG113: -0.01219927755 | AH113: =SUM('Fluxo de Caixa'!$I$15:$I$27)+(AG113*'Casa de Bombas'!$C$19) -> 0 | AL113: -0.03451502004 | AM113: =SUM('Fluxo de Caixa'!$J$15:$J$27)+(AL113*'Casa de Bombas'!$C$19) -> 0 | AQ113: 0.06808737387 | AR113: =SUM('Fluxo de Caixa'!$K$15:$K$27)+(AQ113*'Casa de Bombas'!$C$19) -> 0 | AV113: -0.03838457529 | AW113: =SUM('Fluxo de Caixa'!$L$15:$L$27)+(AV113*'Casa de Bombas'!$C$19) -> 0 | BA113: -0.04598887496 | BB113: =SUM('Fluxo de Caixa'!$M$15:$M$27)+(BA113*'Casa de Bombas'!$C$19) -> 0 | BF113: -0.00104346103 | BG113: =SUM('Fluxo de Caixa'!$N$15:$N$27)+(BF113*'Casa de Bombas'!$C$19) -> 0 | BK113: -0.08317291219 | BL113: =SUM('Fluxo de Caixa'!$O$15:$O$27)+(BK113*'Casa de Bombas'!$C$19) -> 0 | BP113: 0.02761035108 | BQ113: =SUM('Fluxo de Caixa'!$P$15:$P$27)+(BP113*'Casa de Bombas'!$C$19) -> 0 | BU113: -0.04790248323 | BV113: =SUM('Fluxo de Caixa'!$Q$15:$Q$27)+(BU113*'Casa de Bombas'!$C$19) -> 0 | BZ113: 0.001465877929 | CA113: =SUM('Fluxo de Caixa'!$R$15:$R$27)+(BZ113*'Casa de Bombas'!$C$19) -> 0 | CE113: 0.08779904622 | CF113: =SUM('Fluxo de Caixa'!$S$15:$S$27)+(CE113*'Casa de Bombas'!$C$19) -> 0 | CJ113: 0.003513564999 | CK113: =SUM('Fluxo de Caixa'!$T$15:$T$27)+(CJ113*'Casa de Bombas'!$C$19) -> 0 | CO113: 0.03791003869 | CP113: =SUM('Fluxo de Caixa'!$U$15:$U$27)+(CO113*'Casa de Bombas'!$C$19) -> 0 | CT113: 0.03790313331 | CU113: =SUM('Fluxo de Caixa'!$V$15:$V$27)+(CT113*'Casa de Bombas'!$C$19) -> 0 | CY113: 0.06176730811 | CZ113: =SUM('Fluxo de Caixa'!$W$15:$W$18)+(CY113*'Casa de Bombas'!$C$19) -> 0 | DC113: =DB113*AreaCana*DA113-'Fluxo de Caixa'!W119-'Fluxo de Caixa'!W121 ->  | DD113: 0
B114: 100 | C114: 0 | D114: =D113 -> 0 | E114: 0 | F114: 0 | G114: 0 | H114: -0.06521644233 | I114: =SUM('Fluxo de Caixa'!$D$15:$D$27)+(H114*'Casa de Bombas'!$C$19) -> 0 | M114: 0.02420212 | N114: =SUM('Fluxo de Caixa'!$E$15:$E$27)+(M114*'Casa de Bombas'!$C$19) -> 0 | R114: 0.007294472152 | S114: =SUM('Fluxo de Caixa'!$F$15:$F$27)+(R114*'Casa de Bombas'!$C$19) -> 0 | W114: -0.0545995519 | X114: =SUM('Fluxo de Caixa'!$G$15:$G$27)+(W114*'Casa de Bombas'!$C$19) -> 0 | AB114: 0.05402849822 | AC114: =SUM('Fluxo de Caixa'!$H$15:$H$27)+(AB114*'Casa de Bombas'!$C$19) -> 0 | AG114: 0.04611215663 | AH114: =SUM('Fluxo de Caixa'!$I$15:$I$27)+(AG114*'Casa de Bombas'!$C$19) -> 0 | AL114: -0.04971074534 | AM114: =SUM('Fluxo de Caixa'!$J$15:$J$27)+(AL114*'Casa de Bombas'!$C$19) -> 0 | AQ114: 0.002266630673 | AR114: =SUM('Fluxo de Caixa'!$K$15:$K$27)+(AQ114*'Casa de Bombas'!$C$19) -> 0 | AV114: -0.05959386952 | AW114: =SUM('Fluxo de Caixa'!$L$15:$L$27)+(AV114*'Casa de Bombas'!$C$19) -> 0 | BA114: 0.09070352257 | BB114: =SUM('Fluxo de Caixa'!$M$15:$M$27)+(BA114*'Casa de Bombas'!$C$19) -> 0 | BF114: -0.009974525245 | BG114: =SUM('Fluxo de Caixa'!$N$15:$N$27)+(BF114*'Casa de Bombas'!$C$19) -> 0 | BK114: -0.06470221969 | BL114: =SUM('Fluxo de Caixa'!$O$15:$O$27)+(BK114*'Casa de Bombas'!$C$19) -> 0 | BP114: 0.01463834169 | BQ114: =SUM('Fluxo de Caixa'!$P$15:$P$27)+(BP114*'Casa de Bombas'!$C$19) -> 0 | BU114: 0.02446274613 | BV114: =SUM('Fluxo de Caixa'!$Q$15:$Q$27)+(BU114*'Casa de Bombas'!$C$19) -> 0 | BZ114: -0.02088872808 | CA114: =SUM('Fluxo de Caixa'!$R$15:$R$27)+(BZ114*'Casa de Bombas'!$C$19) -> 0 | CE114: 0.0259736787 | CF114: =SUM('Fluxo de Caixa'!$S$15:$S$27)+(CE114*'Casa de Bombas'!$C$19) -> 0 | CJ114: 0.05562459185 | CK114: =SUM('Fluxo de Caixa'!$T$15:$T$27)+(CJ114*'Casa de Bombas'!$C$19) -> 0 | CO114: -0.01301794982 | CP114: =SUM('Fluxo de Caixa'!$U$15:$U$27)+(CO114*'Casa de Bombas'!$C$19) -> 0 | CT114: -0.03417973492 | CU114: =SUM('Fluxo de Caixa'!$V$15:$V$27)+(CT114*'Casa de Bombas'!$C$19) -> 0 | CY114: 0.01721165134 | CZ114: =SUM('Fluxo de Caixa'!$W$15:$W$18)+(CY114*'Casa de Bombas'!$C$19) -> 0 | DC114: =DB114*AreaCana*DA114-'Fluxo de Caixa'!W120-'Fluxo de Caixa'!W122 ->  | DD114: 0
B115: 101 | C115: 0 | D115: =D114 -> 0 | E115: 0 | F115: 0 | G115: 0 | H115: 0.005294444675 | I115: =SUM('Fluxo de Caixa'!$D$15:$D$27)+(H115*'Casa de Bombas'!$C$19) -> 0 | M115: 0.05467118195 | N115: =SUM('Fluxo de Caixa'!$E$15:$E$27)+(M115*'Casa de Bombas'!$C$19) -> 0 | R115: 0.03669782949 | S115: =SUM('Fluxo de Caixa'!$F$15:$F$27)+(R115*'Casa de Bombas'!$C$19) -> 0 | W115: -0.1018846566 | X115: =SUM('Fluxo de Caixa'!$G$15:$G$27)+(W115*'Casa de Bombas'!$C$19) -> 0 | AB115: -0.07674981911 | AC115: =SUM('Fluxo de Caixa'!$H$15:$H$27)+(AB115*'Casa de Bombas'!$C$19) -> 0 | AG115: -0.07243240868 | AH115: =SUM('Fluxo de Caixa'!$I$15:$I$27)+(AG115*'Casa de Bombas'!$C$19) -> 0 | AL115: 0.0001207520777 | AM115: =SUM('Fluxo de Caixa'!$J$15:$J$27)+(AL115*'Casa de Bombas'!$C$19) -> 0 | AQ115: 0.02628320015 | AR115: =SUM('Fluxo de Caixa'!$K$15:$K$27)+(AQ115*'Casa de Bombas'!$C$19) -> 0 | AV115: 0.09624496134 | AW115: =SUM('Fluxo de Caixa'!$L$15:$L$27)+(AV115*'Casa de Bombas'!$C$19) -> 0 | BA115: 0.02833208402 | BB115: =SUM('Fluxo de Caixa'!$M$15:$M$27)+(BA115*'Casa de Bombas'!$C$19) -> 0 | BF115: -0.03415137601 | BG115: =SUM('Fluxo de Caixa'!$N$15:$N$27)+(BF115*'Casa de Bombas'!$C$19) -> 0 | BK115: -0.04110891807 | BL115: =SUM('Fluxo de Caixa'!$O$15:$O$27)+(BK115*'Casa de Bombas'!$C$19) -> 0 | BP115: -0.03919014549 | BQ115: =SUM('Fluxo de Caixa'!$P$15:$P$27)+(BP115*'Casa de Bombas'!$C$19) -> 0 | BU115: -0.02424020508 | BV115: =SUM('Fluxo de Caixa'!$Q$15:$Q$27)+(BU115*'Casa de Bombas'!$C$19) -> 0 | BZ115: -0.003342793878 | CA115: =SUM('Fluxo de Caixa'!$R$15:$R$27)+(BZ115*'Casa de Bombas'!$C$19) -> 0 | CE115: 0.02330492946 | CF115: =SUM('Fluxo de Caixa'!$S$15:$S$27)+(CE115*'Casa de Bombas'!$C$19) -> 0 | CJ115: 0.05219453644 | CK115: =SUM('Fluxo de Caixa'!$T$15:$T$27)+(CJ115*'Casa de Bombas'!$C$19) -> 0 | CO115: -0.003926774637 | CP115: =SUM('Fluxo de Caixa'!$U$15:$U$27)+(CO115*'Casa de Bombas'!$C$19) -> 0 | CT115: 0.02064865727 | CU115: =SUM('Fluxo de Caixa'!$V$15:$V$27)+(CT115*'Casa de Bombas'!$C$19) -> 0 | CY115: -0.02479952028 | CZ115: =SUM('Fluxo de Caixa'!$W$15:$W$18)+(CY115*'Casa de Bombas'!$C$19) -> 0 | DC115: =DB115*AreaCana*DA115-'Fluxo de Caixa'!W121-'Fluxo de Caixa'!W123 ->  | DD115: 0
B116: 102 | C116: 0 | D116: =D115 -> 0 | E116: 0 | F116: 0 | G116: 0 | H116: 0.02737316123 | I116: =SUM('Fluxo de Caixa'!$D$15:$D$27)+(H116*'Casa de Bombas'!$C$19) -> 0 | M116: -0.0003645373285 | N116: =SUM('Fluxo de Caixa'!$E$15:$E$27)+(M116*'Casa de Bombas'!$C$19) -> 0 | R116: 0.02435669487 | S116: =SUM('Fluxo de Caixa'!$F$15:$F$27)+(R116*'Casa de Bombas'!$C$19) -> 0 | W116: -0.06325900678 | X116: =SUM('Fluxo de Caixa'!$G$15:$G$27)+(W116*'Casa de Bombas'!$C$19) -> 0 | AB116: -0.07222412223 | AC116: =SUM('Fluxo de Caixa'!$H$15:$H$27)+(AB116*'Casa de Bombas'!$C$19) -> 0 | AG116: -0.04649437619 | AH116: =SUM('Fluxo de Caixa'!$I$15:$I$27)+(AG116*'Casa de Bombas'!$C$19) -> 0 | AL116: -0.01311843772 | AM116: =SUM('Fluxo de Caixa'!$J$15:$J$27)+(AL116*'Casa de Bombas'!$C$19) -> 0 | AQ116: -0.0530536258 | AR116: =SUM('Fluxo de Caixa'!$K$15:$K$27)+(AQ116*'Casa de Bombas'!$C$19) -> 0 | AV116: -0.02092941575 | AW116: =SUM('Fluxo de Caixa'!$L$15:$L$27)+(AV116*'Casa de Bombas'!$C$19) -> 0 | BA116: -0.01854273847 | BB116: =SUM('Fluxo de Caixa'!$M$15:$M$27)+(BA116*'Casa de Bombas'!$C$19) -> 0 | BF116: 0.02374165273 | BG116: =SUM('Fluxo de Caixa'!$N$15:$N$27)+(BF116*'Casa de Bombas'!$C$19) -> 0 | BK116: -0.06361593639 | BL116: =SUM('Fluxo de Caixa'!$O$15:$O$27)+(BK116*'Casa de Bombas'!$C$19) -> 0 | BP116: -0.006331405617 | BQ116: =SUM('Fluxo de Caixa'!$P$15:$P$27)+(BP116*'Casa de Bombas'!$C$19) -> 0 | BU116: 0.0701784142 | BV116: =SUM('Fluxo de Caixa'!$Q$15:$Q$27)+(BU116*'Casa de Bombas'!$C$19) -> 0 | BZ116: 0.07191564404 | CA116: =SUM('Fluxo de Caixa'!$R$15:$R$27)+(BZ116*'Casa de Bombas'!$C$19) -> 0 | CE116: 0.07279853406 | CF116: =SUM('Fluxo de Caixa'!$S$15:$S$27)+(CE116*'Casa de Bombas'!$C$19) -> 0 | CJ116: 0.04607873667 | CK116: =SUM('Fluxo de Caixa'!$T$15:$T$27)+(CJ116*'Casa de Bombas'!$C$19) -> 0 | CO116: 0.003161716375 | CP116: =SUM('Fluxo de Caixa'!$U$15:$U$27)+(CO116*'Casa de Bombas'!$C$19) -> 0 | CT116: 0.0309804455 | CU116: =SUM('Fluxo de Caixa'!$V$15:$V$27)+(CT116*'Casa de Bombas'!$C$19) -> 0 | CY116: -0.02110856972 | CZ116: =SUM('Fluxo de Caixa'!$W$15:$W$18)+(CY116*'Casa de Bombas'!$C$19) -> 0 | DC116: =DB116*AreaCana*DA116-'Fluxo de Caixa'!W122-'Fluxo de Caixa'!W124 ->  | DD116: 0
B117: 103 | C117: 0 | D117: =D116 -> 0 | E117: 0 | F117: 0 | G117: 0 | H117: -0.05924252814 | I117: =SUM('Fluxo de Caixa'!$D$15:$D$27)+(H117*'Casa de Bombas'!$C$19) -> 0 | M117: -0.003266462299 | N117: =SUM('Fluxo de Caixa'!$E$15:$E$27)+(M117*'Casa de Bombas'!$C$19) -> 0 | R117: 0.004301953314 | S117: =SUM('Fluxo de Caixa'!$F$15:$F$27)+(R117*'Casa de Bombas'!$C$19) -> 0 | W117: -0.02818652222 | X117: =SUM('Fluxo de Caixa'!$G$15:$G$27)+(W117*'Casa de Bombas'!$C$19) -> 0 | AB117: -0.01444313938 | AC117: =SUM('Fluxo de Caixa'!$H$15:$H$27)+(AB117*'Casa de Bombas'!$C$19) -> 0 | AG117: 0.007693954335 | AH117: =SUM('Fluxo de Caixa'!$I$15:$I$27)+(AG117*'Casa de Bombas'!$C$19) -> 0 | AL117: 0.006377915222 | AM117: =SUM('Fluxo de Caixa'!$J$15:$J$27)+(AL117*'Casa de Bombas'!$C$19) -> 0 | AQ117: 0.06315350766 | AR117: =SUM('Fluxo de Caixa'!$K$15:$K$27)+(AQ117*'Casa de Bombas'!$C$19) -> 0 | AV117: -0.05066842834 | AW117: =SUM('Fluxo de Caixa'!$L$15:$L$27)+(AV117*'Casa de Bombas'!$C$19) -> 0 | BA117: -0.04342045988 | BB117: =SUM('Fluxo de Caixa'!$M$15:$M$27)+(BA117*'Casa de Bombas'!$C$19) -> 0 | BF117: 0.0765407266 | BG117: =SUM('Fluxo de Caixa'!$N$15:$N$27)+(BF117*'Casa de Bombas'!$C$19) -> 0 | BK117: -0.07623271084 | BL117: =SUM('Fluxo de Caixa'!$O$15:$O$27)+(BK117*'Casa de Bombas'!$C$19) -> 0 | BP117: 0.05687399266 | BQ117: =SUM('Fluxo de Caixa'!$P$15:$P$27)+(BP117*'Casa de Bombas'!$C$19) -> 0 | BU117: 0.02198686881 | BV117: =SUM('Fluxo de Caixa'!$Q$15:$Q$27)+(BU117*'Casa de Bombas'!$C$19) -> 0 | BZ117: -0.04984599984 | CA117: =SUM('Fluxo de Caixa'!$R$15:$R$27)+(BZ117*'Casa de Bombas'!$C$19) -> 0 | CE117: 0.03443124314 | CF117: =SUM('Fluxo de Caixa'!$S$15:$S$27)+(CE117*'Casa de Bombas'!$C$19) -> 0 | CJ117: -0.0315392385 | CK117: =SUM('Fluxo de Caixa'!$T$15:$T$27)+(CJ117*'Casa de Bombas'!$C$19) -> 0 | CO117: 0.007583447348 | CP117: =SUM('Fluxo de Caixa'!$U$15:$U$27)+(CO117*'Casa de Bombas'!$C$19) -> 0 | CT117: 0.09058697736 | CU117: =SUM('Fluxo de Caixa'!$V$15:$V$27)+(CT117*'Casa de Bombas'!$C$19) -> 0 | CY117: -0.0811335585 | CZ117: =SUM('Fluxo de Caixa'!$W$15:$W$18)+(CY117*'Casa de Bombas'!$C$19) -> 0 | DC117: =DB117*AreaCana*DA117-'Fluxo de Caixa'!W123-'Fluxo de Caixa'!W125 ->  | DD117: 0
